Workbook

Sheet REPORT
A1: Surveyor’s Report
A2: Project: | B2: XXX-XXX-XXXX | D2: PID: | E2: XXXXX
A4: Scope: | B4: Establish Control, Centerline, and Right-of-Way
A5: Type:
A7: Gray boxes denote INPUT | E7: Tan boxes denote OUTPUT (check)
A9: Datum and Coordinate System | G9: Type:
A10: Coordinate System: | C10: Ohio State Plane, North Zone (3401) | G10: (Select from List)
A11: Horizontal Reference Datum: | C11: NAD83 (2011) | G11: Bridge Monitoring
A12: Ellipsoid: | C12: GRS80 | G12: Bridge Rehab
A13: Grid to Ground Multiplier (1/CSF): | D13: Factor is 8 decimal places per Survey & Mapping Specifications. | G13: Bridge Replacement
A14: Origin of Combined Scale Factor: | C14: (0,0) | G14: Culvert Rehab
A15: Vertical Reference Datum: | C15: NAVD88 | G15: Highway Widening
A16: Geoid Model: | C16: Geoid 12A | G16: Slope Repair
A17: Units: | C17: US Survey Feet (sft) | G17: Stream Maintenance
A18: Original Survey Subdivision:
A19: Township:
A20: Quarter Section/Section/Lot:
A21: Files | B21: Current projects are filed under i:\projectdata\XXXXX\ past projects are filed under j:\projectdata\XXXXX\ | E21: Description
A22: Design\geopak\jobXXX.gpk | E22: GEOPAK Coordinate Geometry File
A23: Design\geopak\XXXXX.tin | E23: GEOPAK Ground Surface File
A24: Design\survey\XXXXX_Survey.prj | E24: GEOPAK Project File
A25: Design\survey\basemaps\XXXXXBE001.dgn | E25: Planimetric Survey Basemap
A26: Design\geopak\basemaps\XXXXXBK001.dgn | E26: Centerline/Right-of-Way/Boundary Basemap
C27: Double-click icons to open
A28: Centerline Chain | C28: Field Notes | E28: Research
A29: Insert PDF Here | C29: Insert PDF Here | E29: Insert PDF Here
A30: XXXXX_CLCHAIN.pdf | C30: XXXXX_FIELDNOTES.pdf | E30: XXXXX_RESEARCH.pdf
A31: References
A32: Alignment based on the following plan:
A33: Other references used:
A37: Equipment Maintenance
A38: Equipment maintenance logs are on file at the Ohio Department of Transportation, District 3.
A39: Methodology and Equipment Used
A40: The centerline alignment and Right-of-Way were determined from plan information and data collected by the ODOT survey department.
A41: Horizontal control was positioned with a minimum of 5 VRS-derived GNSS observations.
A42: Vertical control was established by differential leveling.
A43: All positions are in conformance to the ODOT Surveying and Mapping Specifications.
A44: CP01 | B44: was assigned an absolute elevation of | D44: 0 | E44: sft.
A45: The Grid to Ground Multiplier for the project was computed by taking the inverse of the TBC-generated
A46: combined scale factor for: | C46: CP01
A48: Report Submitted by:
A49: Date Submitted:
A51: Surveying Performed by:
A55: DGN Overview Map
A56: Insert close-up screen shot of combined DGN here

Sheet CSF
A1: Combined Scale Factor Calculations | I1: Zone | J1: Index Value | K1: Project Latitude | M1: Radius of the Earth (meters) | N1: Tabular Difference | O1: Scale Factor (k) | P1: Differences | Q1: Coordinate System List
A2: Project: | B2: =REPORT!B2 -> XXX-XXX-XXXX | D2: PID: | E2: =REPORT!E2 -> XXXXX | I2: NZ | J2: 3940 | K2: 39 | L2: 40 | M2: 7485451.598 | N2: 30.84836 | O2: 1.00023491
I3: NZ | J3: 3941 | K3: 39 | L3: 41 | M3: 7483600.697 | N3: 30.84823 | O3: 1.00022793 | P3: =O2-O3 -> 6.98e-06 | Q3: State Plane Coordinate System: Ohio North (3401)
A4: Horizontal Datum: NAD83 | C4: State Plane Coordinate System: Ohio North (3401) | I4: NZ | J4: 3942 | K4: 39 | L4: 42 | M4: 7481749.803 | N4: 30.84811 | O4: 1.00022104 | P4: 6.89e-06 | Q4: State Plane Coordinate System: Ohio South (3402)
I5: NZ | J5: 3943 | K5: 39 | L5: 43 | M5: 7479898.916 | N5: 30.84799 | O5: 1.00021424 | P5: 6.8e-06
A6: Gray boxes denote INPUT | D6: Tan boxes denote OUTPUT (check) | I6: NZ | J6: 3944 | K6: 39 | L6: 44 | M6: 7478048.037 | N6: 30.84787 | O6: 1.00020751 | P6: 6.73e-06
I7: NZ | J7: 3945 | K7: 39 | L7: 45 | M7: 7476197.165 | N7: 30.84776 | O7: 1.00020087 | P7: 6.64e-06
C8: Input Deg. | D8: Min. | E8: Sec. | F8: Zone Parameters: | I8: NZ | J8: 3946 | K8: 39 | L8: 46 | M8: 7474346.299 | N8: 30.84765 | O8: 1.00019431 | P8: 6.56e-06
A9: Project Mean Latitude (DMS): | F9: =IF(C4="State Plane Coordinate System: Ohio North (3401)", "k = 1 at lats. 40⁰ 26' and 41⁰ 42'", "k = 1 at lats. 38⁰ 44' and 40⁰ 20'") -> k = 1 at lats. 40⁰ 26' and 41⁰ 42' | I9: NZ | J9: 3947 | K9: 39 | L9: 47 | M9: 7472495.44 | N9: 30.84754 | O9: 1.00018783 | P9: 6.48e-06
A10: =ISBLANK(D9) -> TRUE | B10: =ISBLANK(E9) -> TRUE | D10: =IF(OR(A10,B10)=TRUE,"Minute and second fields must be populated","") -> Minute and second fields must be populated | I10: NZ | J10: 3948 | K10: 39 | L10: 48 | M10: 7470644.588 | N10: 30.84743 | O10: 1.00018144 | P10: 6.39e-06
C11: Input Ellipsoid Height: | F11: =IF(C4="State Plane Coordinate System: Ohio North (3401)", "Origin at 82⁰ 30' long., 39⁰ 40' lat.", "Origin at 82⁰ 30' long., 38⁰ 00' lat.") -> Origin at 82⁰ 30' long., 39⁰ 40' lat. | I11: NZ | J11: 3949 | K11: 39 | L11: 49 | M11: 7468793.742 | N11: 30.84732 | O11: 1.00017513 | P11: 6.31e-06
A12: Project Mean Height (ft): | F12: Origin coords: x=600,000m, y=0m | I12: NZ | J12: 3950 | K12: 39 | L12: 50 | M12: 7466942.903 | N12: 30.84722 | O12: 1.0001689 | P12: 6.23e-06
I13: NZ | J13: 3951 | K13: 39 | L13: 51 | M13: 7465092.069 | N13: 30.84712 | O13: 1.00016276 | P13: 6.14e-06
C14: Radius of the Earth * (Radius of the Earth + Proj. Mean Elev.) = | I14: NZ | J14: 3952 | K14: 39 | L14: 52 | M14: 7463241.242 | N14: 30.84703 | O14: 1.0001567 | P14: 6.06e-06
A15: Sea Level Factor: | C15: =TRUNC(20906000/(20906000+C12),9) -> 1 | I15: NZ | J15: 3953 | K15: 39 | L15: 53 | M15: 7461390.42 | N15: 30.84693 | O15: 1.00015072 | P15: 5.98e-06
I16: NZ | J16: 3954 | K16: 39 | L16: 54 | M16: 7459539.604 | N16: 30.84684 | O16: 1.00014482 | P16: 5.9e-06
C17: Tabular data proportioned according to the number of seconds: | I17: NZ | J17: 3955 | K17: 39 | L17: 55 | M17: 7457688.794 | N17: 30.84675 | O17: 1.00013901 | P17: 5.81e-06
C18: =IF($C$4="State Plane Coordinate System: Ohio North (3401)",VLOOKUP(D18,J1:O150,6),VLOOKUP(D18,J151:O310,6)) ->  | D18: =VALUE(IF(D9>9,CONCATENATE(C9,D9),CONCATENATE(C9*10,D9))) -> 0 | E18: =IF(C18>C19,1-E9/60,E9/60) ->  | F18: ="Scale factor at "&LEFT($D18,2)&"⁰ "&RIGHT($D18,2)&"' latitude" -> Scale factor at 0⁰ 0' latitude | I18: NZ | J18: 3956 | K18: 39 | L18: 56 | M18: 7455837.989 | N18: 30.84667 | O18: 1.00013328 | P18: 5.73e-06
C19: =IF($C$4="State Plane Coordinate System: Ohio North (3401)",VLOOKUP(D19,J2:O151,6),VLOOKUP(D19,J152:O311,6)) ->  | D19: =IF(D9=59,(VALUE(IF(D9>9,CONCATENATE(C9,D9),CONCATENATE(C9*10,D9)))+41),(VALUE(IF(D9>9,CONCATENATE(C9,D9),CONCATENATE(C9*10,D9)))+1)) -> 1 | E19: =IF(C18<C19,1-E9/60,E9/60) ->  | F19: ="Scale factor at "&LEFT($D19,2)&"⁰ "&RIGHT($D19,2)&"' latitude" -> Scale factor at 1⁰ 1' latitude | I19: NZ | J19: 3957 | K19: 39 | L19: 57 | M19: 7453987.189 | N19: 30.84658 | O19: 1.00012763 | P19: 5.65e-06
A20: Scale Factor (k): | C20: =C18*E18+C19*E19 ->  | I20: NZ | J20: 3958 | K20: 39 | L20: 58 | M20: 7452136.394 | N20: 30.8465 | O20: 1.00012206 | P20: 5.57e-06
I21: NZ | J21: 3959 | K21: 39 | L21: 59 | M21: 7450285.604 | N21: 30.84642 | O21: 1.00011658 | P21: 5.48e-06
C22: =LEFT(A15,16)&" * "&LEFT(A20,12)&" =" -> Sea Level Factor * Scale Factor = | I22: NZ | J22: 4000 | K22: 40 | L22: 0 | M22: 7448434.819 | N22: 30.84634 | O22: 1.00011118 | P22: 5.4e-06
A23: Combined Scale Factor (CSF): | C23: =C15*C20 ->  | I23: NZ | J23: 4001 | K23: 40 | L23: 1 | M23: 7446584.038 | N23: 30.84627 | O23: 1.00010587 | P23: 5.31e-06
I24: NZ | J24: 4002 | K24: 40 | L24: 2 | M24: 7444733.262 | N24: 30.8462 | O24: 1.00010063 | P24: 5.24e-06
C25: Unitless Grid to Ground Multiplier: | I25: NZ | J25: 4003 | K25: 40 | L25: 3 | M25: 7442882.49 | N25: 30.84613 | O25: 1.00009548 | P25: 5.15e-06
A26: Grid to Ground Multiplier (1/CSF): | C26: =1/C23 ->  | I26: NZ | J26: 4004 | K26: 40 | L26: 4 | M26: 7441031.722 | N26: 30.84607 | O26: 1.00009042 | P26: 5.06e-06
I27: NZ | J27: 4005 | K27: 40 | L27: 5 | M27: 7439180.958 | N27: 30.846 | O27: 1.00008543 | P27: 4.99e-06
C28: Converts Grid Meters to Ground Feet: | I28: NZ | J28: 4006 | K28: 40 | L28: 6 | M28: 7437330.198 | N28: 30.84594 | O28: 1.00008053 | P28: 4.9e-06
A29: Project Adjustment Factor (PAF): | C29: =C26*3.28083333 ->  | I29: NZ | J29: 4007 | K29: 40 | L29: 7 | M29: 7435479.441 | N29: 30.84588 | O29: 1.00007571 | P29: 4.82e-06
I30: NZ | J30: 4011 | K30: 40 | L30: 11 | M30: 7428076.449 | N30: 30.84568 | O30: 1.00005728 | P30: =O34-O30 -> 4.48e-06
A31: Check spreadsheet-generated (XLS) CSF against Trimble Business Center-generated (TBC) CSF below. | I31: NZ | J31: 4012 | K31: 40 | L31: 12 | M31: 7426225.708 | N31: 30.84563 | O31: 1.00005287 | P31: =O30-O31 -> 4.41e-06
I32: NZ | J32: 4008 | K32: 40 | L32: 8 | M32: 7433628.688 | N32: 30.84583 | O32: 1.00007098 | P32: =O29-O32 -> 4.73e-06
C33: Compare to Unitless Grid to Ground Multiplier: | I33: NZ | J33: 4009 | K33: 40 | L33: 9 | M33: 7431777.939 | N33: 30.84577 | O33: 1.00006633 | P33: =O32-O33 -> 4.65e-06
A34: Input TBC-generated 1/CSF: | I34: NZ | J34: 4010 | K34: 40 | L34: 10 | M34: 7429927.192 | N34: 30.84572 | O34: 1.00006176 | P34: =O33-O34 -> 4.57e-06
I35: NZ | J35: 4013 | K35: 40 | L35: 13 | M35: 7424374.97 | N35: 30.84559 | O35: 1.00004856 | P35: =O31-O35 -> 4.31e-06
A36: Test point at one end of project: | C36: Northing (ft) | D36: Easting (ft) | F36: Grid - Ground (XLS) | I36: NZ | J36: 4014 | K36: 40 | L36: 14 | M36: 7422524.235 | N36: 30.84555 | O36: 1.00004432 | P36: =O35-O36 -> 4.24e-06
B37: Input Grid Coordinates: | F37: =IF(C37-C38>0,ABS(ROUND(C37-C38,3))&"' shift N",ABS(ROUND(C37-C38,3))&"' shift S") ->  | G37: =IF(D37-D38>0,ABS(ROUND(D37-D38,3))&"' shift E",ABS(ROUND(D37-D38,3))&"' shift W") ->  | I37: NZ | J37: 4015 | K37: 40 | L37: 15 | M37: 7420673.502 | N37: 30.84551 | O37: 1.00004017 | P37: 4.15e-06
A38: =$A37 -> 0 | B38: Ground (XLS): | C38: =$C37*$C$26 ->  | D38: =$D37*$C$26 ->  | F38: Ground (XLS) - Ground (TBC) | I38: NZ | J38: 4016 | K38: 40 | L38: 16 | M38: 7418822.772 | N38: 30.84547 | O38: 1.0000361 | P38: 4.07e-06
A39: =$A37 -> 0 | B39: Ground (TBC): | C39: =$C37*$C$34 -> 0 | D39: =$D37*$C$34 -> 0 | F39: =IF(C38-C39>0,ABS(ROUND(C38-C39,3))&"' shift N",ABS(ROUND(C38-C39,3))&"' shift S") ->  | G39: =IF(D38-D39>0,ABS(ROUND(D38-D39,3))&"' shift E",ABS(ROUND(D38-D39,3))&"' shift W") ->  | I39: NZ | J39: 4017 | K39: 40 | L39: 17 | M39: 7416972.043 | N39: 30.84544 | O39: 1.00003212 | P39: 3.98e-06
I40: NZ | J40: 4018 | K40: 40 | L40: 18 | M40: 7415121.317 | N40: 30.84541 | O40: 1.00002821 | P40: 3.91e-06
A41: Test point at other end of project: | C41: Northing (ft) | D41: Easting (ft) | F41: Grid - Ground (XLS) | I41: NZ | J41: 4019 | K41: 40 | L41: 19 | M41: 7413270.592 | N41: 30.84538 | O41: 1.0000244 | P41: 3.81e-06
B42: Input Grid Coordinates: | F42: =IF(C42-C43>0,ABS(ROUND(C42-C43,3))&"' shift N",ABS(ROUND(C42-C43,3))&"' shift S") ->  | G42: =IF(D42-D43>0,ABS(ROUND(D42-D43,3))&"' shift E",ABS(ROUND(D42-D43,3))&"' shift W") ->  | I42: NZ | J42: 4020 | K42: 40 | L42: 20 | M42: 7411419.869 | N42: 30.84536 | O42: 1.00002066 | P42: 3.74e-06
A43: =$A42 -> 0 | B43: Ground (XLS): | C43: =$C42*$C$26 ->  | D43: =$D42*$C$26 ->  | F43: Ground XLS - Ground TBC | I43: NZ | J43: 4021 | K43: 40 | L43: 21 | M43: 7409569.147 | N43: 30.84534 | O43: 1.00001701 | P43: 3.65e-06
A44: =$A42 -> 0 | B44: Ground (TBC): | C44: =$C42*$C$34 -> 0 | D44: =$D42*$C$34 -> 0 | F44: =IF(C43-C44>0,ABS(ROUND(C43-C44,3))&"' shift N",ABS(ROUND(C43-C44,3))&"' shift S") ->  | G44: =IF(D43-D44>0,ABS(ROUND(D43-D44,3))&"' shift E",ABS(ROUND(D43-D44,3))&"' shift W") ->  | I44: NZ | J44: 4022 | K44: 40 | L44: 22 | M44: 7407718.427 | N44: 30.84532 | O44: 1.00001344 | P44: 3.57e-06
I45: NZ | J45: 4023 | K45: 40 | L45: 23 | M45: 7405867.708 | N45: 30.8453 | O45: 1.00000995 | P45: 3.49e-06
A46: ="Change in computed horizontal distance between "&A$37&" and "&A$42&" due to CSF used (an approximate "&ROUND(SQRT((C38-C43)^2+(D38-D43)^2),0)&" foot distance):" ->  | F46: Ground (XLS) vs. Ground (TBC) | I46: NZ | J46: 4024 | K46: 40 | L46: 24 | M46: 7404016.99 | N46: 30.84529 | O46: 1.00000655 | P46: 3.4e-06
F47: =IF(ABS(C38-C43)>ABS(C39-C44),ABS(ROUND((C38-C39)-(C43-C44),3))&"' further N-S",ABS(ROUND((C38-C39)-(C43-C44),3))&"' nearer N-S") ->  | G47: =IF(ABS(D38-D43)>ABS(D39-D44),ABS(ROUND((D38-D39)-(D43-D44),3))&"' further E-W",ABS(ROUND((D38-D39)-(D43-D44),3))&"' nearer E-W") ->  | I47: NZ | J47: 4025 | K47: 40 | L47: 25 | M47: 7402166.273 | N47: 30.84527 | O47: 1.00000323 | P47: 3.32e-06
I48: NZ | J48: 4027 | K48: 40 | L48: 27 | M48: 7398464.84 | N48: 30.84526 | O48: 0.99999685 | P48: 6.38e-06
A49: ="Change in computed horizontal distance between "&A$37&" and "&A$42&" by adjusting from grid to ground (approx. "&ROUND(SQRT((C38-C43)^2+(D38-D43)^2),0)&" ft dist.):" ->  | F49: Grid vs. Ground (XLS) | I49: NZ | J49: 4028 | K49: 40 | L49: 28 | M49: 7396614.125 | N49: 30.84525 | O49: 0.99999378 | P49: 3.07e-06
F50: =IF(ABS(C38-C43)>ABS(C37-C42),ABS(ROUND((C37-C38)-(C42-C43),3))&"' further N-S",ABS(ROUND((C37-C38)-(C42-C43),3))&"' nearer N-S") ->  | G50: =IF(ABS(D38-D43)>ABS(D37-D42),ABS(ROUND((D37-D38)-(D42-D43),3))&"' further E-W",ABS(ROUND((D37-D38)-(D42-D43),3))&"' nearer E-W") ->  | I50: NZ | J50: 4029 | K50: 40 | L50: 29 | M50: 7394763.409 | N50: 30.84525 | O50: 0.9999908 | P50: 2.98e-06
I51: NZ | J51: 4030 | K51: 40 | L51: 30 | M51: 7392912.694 | N51: 30.84525 | O51: 0.9999879 | P51: 2.9e-06
I52: NZ | J52: 4031 | K52: 40 | L52: 31 | M52: 7391061.979 | N52: 30.84526 | O52: 0.99998508 | P52: 2.82e-06
I53: NZ | J53: 4032 | K53: 40 | L53: 32 | M53: 7389211.263 | N53: 30.84526 | O53: 0.99998235 | P53: 2.73e-06
I54: NZ | J54: 4033 | K54: 40 | L54: 33 | M54: 7387360.548 | N54: 30.84527 | O54: 0.9999797 | P54: 2.65e-06
I55: NZ | J55: 4034 | K55: 40 | L55: 34 | M55: 7385509.831 | N55: 30.84528 | O55: 0.99997713 | P55: 2.57e-06
I56: NZ | J56: 4035 | K56: 40 | L56: 35 | M56: 7383659.114 | N56: 30.8453 | O56: 0.99997465 | P56: 2.48e-06
I57: NZ | J57: 4036 | K57: 40 | L57: 36 | M57: 7381808.396 | N57: 30.84532 | O57: 0.99997225 | P57: 2.4e-06
I58: NZ | J58: 4037 | K58: 40 | L58: 37 | M58: 7379957.677 | N58: 30.84533 | O58: 0.99996993 | P58: 2.32e-06
I59: NZ | J59: 4038 | K59: 40 | L59: 38 | M59: 7378106.957 | N59: 30.84536 | O59: 0.9999677 | P59: 2.23e-06
I60: NZ | J60: 4039 | K60: 40 | L60: 39 | M60: 7376256.236 | N60: 30.84538 | O60: 0.99996556 | P60: 2.14e-06
I61: NZ | J61: 4040 | K61: 40 | L61: 40 | M61: 7374405.513 | N61: 30.84541 | O61: 0.99996349 | P61: 2.07e-06
I62: NZ | J62: 4041 | K62: 40 | L62: 41 | M62: 7372554.789 | N62: 30.84544 | O62: 0.99996151 | P62: 1.98e-06
I63: NZ | J63: 4042 | K63: 40 | L63: 42 | M63: 7370704.062 | N63: 30.84547 | O63: 0.99995961 | P63: 1.9e-06
I64: NZ | J64: 4043 | K64: 40 | L64: 43 | M64: 7368853.334 | N64: 30.8455 | O64: 0.9999578 | P64: 1.81e-06
I65: NZ | J65: 4044 | K65: 40 | L65: 44 | M65: 7367002.604 | N65: 30.84554 | O65: 0.99995607 | P65: 1.73e-06
I66: NZ | J66: 4045 | K66: 40 | L66: 45 | M66: 7365151.872 | N66: 30.84558 | O66: 0.99995443 | P66: 1.64e-06
I67: NZ | J67: 4046 | K67: 40 | L67: 46 | M67: 7363301.137 | N67: 30.84562 | O67: 0.99995287 | P67: 1.56e-06
I68: NZ | J68: 4047 | K68: 40 | L68: 47 | M68: 7361450.399 | N68: 30.84567 | O68: 0.99995139 | P68: =O67-O68 -> 1.48e-06
I69: NZ | J69: 4048 | K69: 40 | L69: 48 | M69: 7359599.659 | N69: 30.84572 | O69: 0.99995 | P69: 1.39e-06
I70: NZ | J70: 4049 | K70: 40 | L70: 49 | M70: 7357748.916 | N70: 30.84577 | O70: 0.99994869 | P70: 1.31e-06
I71: NZ | J71: 4050 | K71: 40 | L71: 50 | M71: 7355898.17 | N71: 30.84582 | O71: 0.99994746 | P71: 1.23e-06
I72: NZ | J72: 4051 | K72: 40 | L72: 51 | M72: 7354047.421 | N72: 30.84588 | O72: 0.99994632 | P72: 1.14e-06
I73: NZ | J73: 4052 | K73: 40 | L73: 52 | M73: 7352196.669 | N73: 30.84593 | O73: 0.99994527 | P73: 1.05e-06
I74: NZ | J74: 4053 | K74: 40 | L74: 53 | M74: 7350345.913 | N74: 30.84599 | O74: 0.99994429 | P74: 9.8e-07
I75: NZ | J75: 4054 | K75: 40 | L75: 54 | M75: 7348495.153 | N75: 30.84606 | O75: 0.9999434 | P75: 8.899999999e-07
I76: NZ | J76: 4055 | K76: 40 | L76: 55 | M76: 7346644.39 | N76: 30.84612 | O76: 0.9999426 | P76: 8e-07
I77: NZ | J77: 4056 | K77: 40 | L77: 56 | M77: 7344793.622 | N77: 30.84619 | O77: 0.99994188 | P77: 7.200000001e-07
I78: NZ | J78: 4057 | K78: 40 | L78: 57 | M78: 7342942.851 | N78: 30.84626 | O78: 0.99994124 | P78: 6.4e-07
I79: NZ | J79: 4058 | K79: 40 | L79: 58 | M79: 7341092.075 | N79: 30.84634 | O79: 0.99994069 | P79: 5.5e-07
I80: NZ | J80: 4059 | K80: 40 | L80: 59 | M80: 7339241.295 | N80: 30.84641 | O80: 0.99994022 | P80: 4.699999999e-07
I81: NZ | J81: 4100 | K81: 41 | L81: 0 | M81: 7337390.51 | N81: 30.84649 | O81: 0.99993984 | P81: 3.8e-07
I82: NZ | J82: 4101 | K82: 41 | L82: 1 | M82: 7335539.72 | N82: 30.84657 | O82: 0.99993954 | P82: 3.000000001e-07
I83: NZ | J83: 4102 | K83: 41 | L83: 2 | M83: 7333688.926 | N83: 30.84666 | O83: 0.99993932 | P83: 2.2e-07
I84: NZ | J84: 4103 | K84: 41 | L84: 3 | M84: 7331838.127 | N84: 30.84674 | O84: 0.99993919 | P84: 1.3e-07
I85: NZ | J85: 4104 | K85: 41 | L85: 4 | M85: 7329987.322 | N85: 30.84683 | O85: 0.99993914 | P85: 5.000000003e-08
I86: NZ | J86: 4105 | K86: 41 | L86: 5 | M86: 7328136.512 | N86: 30.84693 | O86: 0.99993918 | P86: -4.000000009e-08
I87: NZ | J87: 4106 | K87: 41 | L87: 6 | M87: 7326285.696 | N87: 30.84702 | O87: 0.9999393 | P87: -1.199999999e-07
I88: NZ | J88: 4107 | K88: 41 | L88: 7 | M88: 7324434.875 | N88: 30.84712 | O88: 0.9999395 | P88: -2e-07
I89: NZ | J89: 4108 | K89: 41 | L89: 8 | M89: 7322584.048 | N89: 30.84722 | O89: 0.99993979 | P89: -2.9e-07
I90: NZ | J90: 4109 | K90: 41 | L90: 9 | M90: 7320733.215 | N90: 30.84732 | O90: 0.99994017 | P90: -3.8e-07
I91: NZ | J91: 4110 | K91: 41 | L91: 10 | M91: 7318882.376 | N91: 30.84742 | O91: 0.99994063 | P91: -4.6e-07
I92: NZ | J92: 4111 | K92: 41 | L92: 11 | M92: 7317031.531 | N92: 30.84753 | O92: 0.99994117 | P92: -5.4e-07
I93: NZ | J93: 4112 | K93: 41 | L93: 12 | M93: 7315180.679 | N93: 30.84764 | O93: 0.9999418 | P93: -6.299999999e-07
I94: NZ | J94: 4113 | K94: 41 | L94: 13 | M94: 7313329.82 | N94: 30.84776 | O94: 0.99994251 | P94: -7.1e-07
I95: NZ | J95: 4114 | K95: 41 | L95: 14 | M95: 7311478.955 | N95: 30.84787 | O95: 0.99994331 | P95: -8e-07
I96: NZ | J96: 4115 | K96: 41 | L96: 15 | M96: 7309628.083 | N96: 30.84799 | O96: 0.99994419 | P96: -8.8e-07
I97: NZ | J97: 4116 | K97: 41 | L97: 16 | M97: 7307777.203 | N97: 30.84811 | O97: 0.99994515 | P97: -9.599999999e-07
I98: NZ | J98: 4117 | K98: 41 | L98: 17 | M98: 7305926.317 | N98: 30.84823 | O98: 0.9999462 | P98: -1.05e-06
I99: NZ | J99: 4118 | K99: 41 | L99: 18 | M99: 7304075.423 | N99: 30.84836 | O99: 0.99994734 | P99: -1.14e-06
I100: NZ | J100: 4119 | K100: 41 | L100: 19 | M100: 7302224.521 | N100: 30.84849 | O100: 0.99994856 | P100: =O99-O100 -> -1.22e-06
I101: NZ | J101: 4120 | K101: 41 | L101: 20 | M101: 7300373.612 | N101: 30.84862 | O101: 0.99994986 | P101: -1.3e-06
I102: NZ | J102: 4121 | K102: 41 | L102: 21 | M102: 7298522.695 | N102: 30.84875 | O102: 0.99995125 | P102: -1.39e-06
I103: NZ | J103: 4122 | K103: 41 | L103: 22 | M103: 7296671.77 | N103: 30.84889 | O103: 0.99995272 | P103: -1.47e-06
I104: NZ | J104: 4123 | K104: 41 | L104: 23 | M104: 7294820.837 | N104: 30.84903 | O104: 0.99995428 | P104: -1.56e-06
I105: NZ | J105: 4124 | K105: 41 | L105: 24 | M105: 7292969.895 | N105: 30.84917 | O105: 0.99995592 | P105: -1.64e-06
I106: NZ | J106: 4125 | K106: 41 | L106: 25 | M106: 7291118.945 | N106: 30.84931 | O106: 0.99995765 | P106: -1.73e-06
I107: NZ | J107: 4126 | K107: 41 | L107: 26 | M107: 7289267.986 | N107: 30.84946 | O107: 0.99995946 | P107: -1.81e-06
I108: NZ | J108: 4127 | K108: 41 | L108: 27 | M108: 7287417.018 | N108: 30.84961 | O108: 0.99996136 | P108: -1.9e-06
I109: NZ | J109: 4128 | K109: 41 | L109: 28 | M109: 7285566.042 | N109: 30.84976 | O109: 0.99996334 | P109: -1.98e-06
I110: NZ | J110: 4129 | K110: 41 | L110: 29 | M110: 7283715.056 | N110: 30.84992 | O110: 0.99996541 | P110: -2.07e-06
I111: NZ | J111: 4130 | K111: 41 | L111: 30 | M111: 7281864.061 | N111: 30.85007 | O111: 0.99996756 | P111: -2.15e-06
I112: NZ | J112: 4131 | K112: 41 | L112: 31 | M112: 7280013.057 | N112: 30.85023 | O112: 0.99996979 | P112: -2.23e-06
I113: NZ | J113: 4132 | K113: 41 | L113: 32 | M113: 7278162.043 | N113: 30.8504 | O113: 0.99997212 | P113: -2.33e-06
I114: NZ | J114: 4133 | K114: 41 | L114: 33 | M114: 7276311.019 | N114: 30.85056 | O114: 0.99997452 | P114: -2.4e-06
I115: NZ | J115: 4134 | K115: 41 | L115: 34 | M115: 7274459.985 | N115: 30.85073 | O115: 0.99997701 | P115: -2.49e-06
I116: NZ | J116: 4135 | K116: 41 | L116: 35 | M116: 7272608.941 | N116: 30.8509 | O116: 0.99997959 | P116: -2.58e-06
I117: NZ | J117: 4136 | K117: 41 | L117: 36 | M117: 7270757.887 | N117: 30.85107 | O117: 0.99998225 | P117: -2.66e-06
I118: NZ | J118: 4137 | K118: 41 | L118: 37 | M118: 7268906.823 | N118: 30.85125 | O118: 0.99998499 | P118: -2.74e-06
I119: NZ | J119: 4138 | K119: 41 | L119: 38 | M119: 7267055.748 | N119: 30.85143 | O119: 0.99998783 | P119: -2.84e-06
I120: NZ | J120: 4139 | K120: 41 | L120: 39 | M120: 7265204.662 | N120: 30.85161 | O120: 0.99999074 | P120: -2.91e-06
I121: NZ | J121: 4140 | K121: 41 | L121: 40 | M121: 7263353.566 | N121: 30.85179 | O121: 0.99999374 | P121: -3e-06
I122: NZ | J122: 4141 | K122: 41 | L122: 41 | M122: 7261502.458 | N122: 30.85198 | O122: 0.99999683 | P122: -3.09e-06
I123: NZ | J123: 4142 | K123: 41 | L123: 42 | M123: 7259651.339 | N123: 30.85217 | O123: 1 | P123: -3.17e-06
I124: NZ | J124: 4143 | K124: 41 | L124: 43 | M124: 7257800.209 | N124: 30.85236 | O124: 1.00000326 | P124: -3.26e-06
I125: NZ | J125: 4144 | K125: 41 | L125: 44 | M125: 7255949.068 | N125: 30.85255 | O125: 1.0000066 | P125: -3.34e-06
I126: NZ | J126: 4145 | K126: 41 | L126: 45 | M126: 7254097.915 | N126: 30.85275 | O126: 1.00001002 | P126: -3.42e-06
I127: NZ | J127: 4146 | K127: 41 | L127: 46 | M127: 7252246.75 | N127: 30.85295 | O127: 1.00001354 | P127: -3.52e-06
I128: NZ | J128: 4147 | K128: 41 | L128: 47 | M128: 7250395.573 | N128: 30.85315 | O128: 1.00001713 | P128: -3.59e-06
I129: NZ | J129: 4148 | K129: 41 | L129: 48 | M129: 7248544.384 | N129: 30.85336 | O129: 1.00002082 | P129: -3.69e-06
I130: NZ | J130: 4149 | K130: 41 | L130: 49 | M130: 7246693.182 | N130: 30.85356 | O130: 1.00002458 | P130: -3.76e-06
I131: NZ | J131: 4150 | K131: 41 | L131: 50 | M131: 7244841.968 | N131: 30.85377 | O131: 1.00002844 | P131: -3.86e-06
I132: NZ | J132: 4151 | K132: 41 | L132: 51 | M132: 7242990.742 | N132: 30.85399 | O132: 1.00003238 | P132: =O131-O132 -> -3.94e-06
I133: NZ | J133: 4152 | K133: 41 | L133: 52 | M133: 7241139.503 | N133: 30.8542 | O133: 1.0000364 | P133: -4.02e-06
I134: NZ | J134: 4153 | K134: 41 | L134: 53 | M134: 7239288.251 | N134: 30.85442 | O134: 1.00004051 | P134: -4.11e-06
I135: NZ | J135: 4154 | K135: 41 | L135: 54 | M135: 7237436.985 | N135: 30.85464 | O135: 1.0000447 | P135: -4.19e-06
I136: NZ | J136: 4155 | K136: 41 | L136: 55 | M136: 7235585.707 | N136: 30.85486 | O136: 1.00004898 | P136: -4.28e-06
I137: NZ | J137: 4156 | K137: 41 | L137: 56 | M137: 7233734.415 | N137: 30.85509 | O137: 1.00005335 | P137: -4.37e-06
I138: NZ | J138: 4157 | K138: 41 | L138: 57 | M138: 7231883.11 | N138: 30.85532 | O138: 1.0000578 | P138: -4.45e-06
I139: NZ | J139: 4158 | K139: 41 | L139: 58 | M139: 7230031.791 | N139: 30.85555 | O139: 1.00006234 | P139: -4.54e-06
I140: NZ | J140: 4159 | K140: 41 | L140: 59 | M140: 7228180.458 | N140: 30.85578 | O140: 1.00006696 | P140: -4.62e-06
I141: NZ | J141: 4200 | K141: 42 | L141: 0 | M141: 7226329.111 | N141: 30.85602 | O141: 1.00007167 | P141: -4.71e-06
I142: NZ | J142: 4201 | K142: 42 | L142: 1 | M142: 7224477.749 | N142: 30.85626 | O142: 1.00007646 | P142: -4.79e-06
I143: NZ | J143: 4202 | K143: 42 | L143: 2 | M143: 7222626.374 | N143: 30.8565 | O143: 1.00008134 | P143: -4.88e-06
I144: NZ | J144: 4203 | K144: 42 | L144: 3 | M144: 7220774.984 | N144: 30.85675 | O144: 1.0000863 | P144: -4.96e-06
I145: NZ | J145: 4204 | K145: 42 | L145: 4 | M145: 7218923.579 | N145: 30.85699 | O145: 1.00009135 | P145: -5.05e-06
I146: NZ | J146: 4205 | K146: 42 | L146: 5 | M146: 7217072.16 | N146: 30.85724 | O146: 1.00009649 | P146: -5.14e-06
I147: NZ | J147: 4206 | K147: 42 | L147: 6 | M147: 7215220.725 | N147: 30.85749 | O147: 1.00010171 | P147: -5.22e-06
I148: NZ | J148: 4207 | K148: 42 | L148: 7 | M148: 7213369.275 | N148: 30.85775 | O148: 1.00010702 | P148: -5.31e-06
I149: NZ | J149: 4208 | K149: 42 | L149: 8 | M149: 7211517.811 | N149: 30.85801 | O149: 1.00011241 | P149: -5.39e-06
I150: NZ | J150: 4209 | K150: 42 | L150: 9 | M150: 7209666.33 | N150: 30.85827 | O150: 1.00011789 | P150: -5.48e-06
I151: NZ | J151: 4210 | K151: 42 | L151: 10 | M151: 7207814.834 | N151: 30.85853 | O151: 1.00012345 | P151: -5.56e-06
I152: SZ | J152: 3800 | K152: 38 | L152: 0 | M152: 7932869.037 | N152: 30.83922 | O152: 1.00022476
I153: SZ | J153: 3801 | K153: 38 | L153: 1 | M153: 7931018.684 | N153: 30.8391 | O153: 1.00021786 | P153: =O152-O153 -> 6.9e-06
I154: SZ | J154: 3802 | K154: 38 | L154: 2 | M154: 7929168.338 | N154: 30.83898 | O154: 1.00021105 | P154: 6.81e-06
I155: SZ | J155: 3803 | K155: 38 | L155: 3 | M155: 7927318 | N155: 30.83886 | O155: 1.00020433 | P155: 6.72e-06
I156: SZ | J156: 3804 | K156: 38 | L156: 4 | M156: 7925467.668 | N156: 30.83874 | O156: 1.00019768 | P156: 6.65e-06
I157: SZ | J157: 3805 | K157: 38 | L157: 5 | M157: 7923617.343 | N157: 30.83863 | O157: 1.00019112 | P157: 6.56e-06
I158: SZ | J158: 3806 | K158: 38 | L158: 6 | M158: 7921767.026 | N158: 30.83852 | O158: 1.00018464 | P158: 6.48e-06
I159: SZ | J159: 3807 | K159: 38 | L159: 7 | M159: 7919916.715 | N159: 30.83841 | O159: 1.00017825 | P159: 6.39e-06
I160: SZ | J160: 3808 | K160: 38 | L160: 8 | M160: 7918066.41 | N160: 30.8383 | O160: 1.00017193 | P160: 6.32e-06
I161: SZ | J161: 3809 | K161: 38 | L161: 9 | M161: 7916216.112 | N161: 30.8382 | O161: 1.0001657 | P161: 6.23e-06
I162: SZ | J162: 3810 | K162: 38 | L162: 10 | M162: 7914365.82 | N162: 30.8381 | O162: 1.00015956 | P162: 6.14e-06
I163: SZ | J163: 3811 | K163: 38 | L163: 11 | M163: 7912515.534 | N163: 30.8381 | O163: 1.00015349 | P163: 6.07e-06
I164: SZ | J164: 3812 | K164: 38 | L164: 12 | M164: 7910665.253 | N164: 30.83791 | O164: 1.00014751 | P164: 5.98e-06
I165: SZ | J165: 3813 | K165: 38 | L165: 13 | M165: 7908814.979 | N165: 30.83782 | O165: 1.00014161 | P165: 5.9e-06
I166: SZ | J166: 3814 | K166: 38 | L166: 14 | M166: 7906964.71 | N166: 30.83772 | O166: 1.0001358 | P166: 5.81e-06
I167: SZ | J167: 3815 | K167: 38 | L167: 15 | M167: 7905114.446 | N167: 30.83764 | O167: 1.00013007 | P167: 5.73e-06
I168: SZ | J168: 3816 | K168: 38 | L168: 16 | M168: 7903264.188 | N168: 30.83755 | O168: 1.00012442 | P168: 5.65e-06
I169: SZ | J169: 3817 | K169: 38 | L169: 17 | M169: 7901413.935 | N169: 30.83747 | O169: 1.00011885 | P169: 5.57e-06
I170: SZ | J170: 3818 | K170: 38 | L170: 18 | M170: 7899563.687 | N170: 30.83739 | O170: 1.00011337 | P170: 5.48e-06
I171: SZ | J171: 3819 | K171: 38 | L171: 19 | M171: 7897713.444 | N171: 30.83731 | O171: 1.00010797 | P171: 5.4e-06
I172: SZ | J172: 3820 | K172: 38 | L172: 20 | M172: 7895863.205 | N172: 30.83724 | O172: 1.00010265 | P172: 5.32e-06
I173: SZ | J173: 3821 | K173: 38 | L173: 21 | M173: 7894012.971 | N173: 30.83717 | O173: 1.00009741 | P173: 5.24e-06
I174: SZ | J174: 3822 | K174: 38 | L174: 22 | M174: 7892162.741 | N174: 30.8371 | O174: 1.00009226 | P174: 5.15e-06
I175: SZ | J175: 3823 | K175: 38 | L175: 23 | M175: 7890312.515 | N175: 30.83703 | O175: 1.0000872 | P175: 5.06e-06
I176: SZ | J176: 3824 | K176: 38 | L176: 24 | M176: 7888462.293 | N176: 30.83696 | O176: 1.00008221 | P176: 4.99e-06
I177: SZ | J177: 3825 | K177: 38 | L177: 25 | M177: 7886612.075 | N177: 30.8369 | O177: 1.00007731 | P177: 4.9e-06
I178: SZ | J178: 3826 | K178: 38 | L178: 26 | M178: 7884761.861 | N178: 30.83684 | O178: 1.00007249 | P178: 4.82e-06
I179: SZ | J179: 3827 | K179: 38 | L179: 27 | M179: 7882911.651 | N179: 30.83679 | O179: 1.00006776 | P179: 4.73e-06
I180: SZ | J180: 3828 | K180: 38 | L180: 28 | M180: 7881061.444 | N180: 30.83673 | O180: 1.0000631 | P180: 4.66e-06
I181: SZ | J181: 3829 | K181: 38 | L181: 29 | M181: 7879211.24 | N181: 30.83668 | O181: 1.00005853 | P181: 4.57e-06
I182: SZ | J182: 3830 | K182: 38 | L182: 30 | M182: 7877361.039 | N182: 30.83663 | O182: 1.00005405 | P182: 4.48e-06
I183: SZ | J183: 3831 | K183: 38 | L183: 31 | M183: 7875510.841 | N183: 30.83658 | O183: 1.00004965 | P183: 4.4e-06
I184: SZ | J184: 3832 | K184: 38 | L184: 32 | M184: 7873660.646 | N184: 30.83654 | O184: 1.00004533 | P184: 4.32e-06
I185: SZ | J185: 3833 | K185: 38 | L185: 33 | M185: 7871810.453 | N185: 30.8365 | O185: 1.00004109 | P185: =O184-O185 -> 4.24e-06
I186: SZ | J186: 3834 | K186: 38 | L186: 34 | M186: 7869960.263 | N186: 30.83646 | O186: 1.00003694 | P186: 4.15e-06
I187: SZ | J187: 3835 | K187: 38 | L187: 35 | M187: 7868110.076 | N187: 30.83642 | O187: 1.00003287 | P187: 4.07e-06
I188: SZ | J188: 3836 | K188: 38 | L188: 36 | M188: 7866259.89 | N188: 30.83639 | O188: 1.00002888 | P188: 3.99e-06
I189: SZ | J189: 3837 | K189: 38 | L189: 37 | M189: 7864409.707 | N189: 30.83636 | O189: 1.00002498 | P189: 3.9e-06
I190: SZ | J190: 3838 | K190: 38 | L190: 38 | M190: 7862559.525 | N190: 30.83633 | O190: 1.00002116 | P190: 3.82e-06
I191: SZ | J191: 3839 | K191: 38 | L191: 39 | M191: 7860709.345 | N191: 30.83631 | O191: 1.00001743 | P191: 3.73e-06
I192: SZ | J192: 3840 | K192: 38 | L192: 40 | M192: 7858859.167 | N192: 30.83628 | O192: 1.00001377 | P192: 3.66e-06
I193: SZ | J193: 3841 | K193: 38 | L193: 41 | M193: 7857008.99 | N193: 30.83626 | O193: 1.00001021 | P193: 3.56e-06
I194: SZ | J194: 3842 | K194: 38 | L194: 42 | M194: 7855158.814 | N194: 30.83624 | O194: 1.00000672 | P194: 3.49e-06
I195: SZ | J195: 3843 | K195: 38 | L195: 43 | M195: 7853308.64 | N195: 30.83623 | O195: 1.00000332 | P195: 3.4e-06
I196: SZ | J196: 3844 | K196: 38 | L196: 44 | M196: 7851458.466 | N196: 30.83622 | O196: 1 | P196: 3.32e-06
I197: SZ | J197: 3845 | K197: 38 | L197: 45 | M197: 7849608.293 | N197: 30.83621 | O197: 0.99999677 | P197: 3.23e-06
I198: SZ | J198: 3846 | K198: 38 | L198: 46 | M198: 7847758.121 | N198: 30.8362 | O198: 0.99999361 | P198: 3.16e-06
I199: SZ | J199: 3847 | K199: 38 | L199: 47 | M199: 7845907.949 | N199: 30.83619 | O199: 0.99999055 | P199: 3.06e-06
I200: SZ | J200: 3848 | K200: 38 | L200: 48 | M200: 7844057.777 | N200: 30.83619 | O200: 0.99998756 | P200: 2.99e-06
... 111 more rows

Sheet GRID>GRND
A1: Project: | B1: =REPORT!B2 -> XXX-XXX-XXXX | F1: Input Units (please select): | G1: State Plane Grid - US Survey Feet | J1: Unitless Grid to Ground Factor: | K1: =REPORT!C13 -> 0
A2: Pid: | B2: =REPORT!E2 -> XXXXX | F2: Output Units (please select): | G2: Ground - US Survey Feet | J2: Project Adjustment Factor: | K2: =K1*K3 -> 0
J3: Metric to US Survey Feet Factor: | K3: =3937/1200 -> 3.280833333
A5: INPUT | G5: OUTPUT
A6: =G1 -> State Plane Grid - US Survey Feet | G6: =G2 -> Ground - US Survey Feet | N6: INPUT UNITS
A7: NAME | B7: NORTH | C7: EAST | D7: ORTHO HT | E7: FEATURE | G7: NAME | H7: NORTH | I7: EAST | J7: ORTHO HT | K7: FEATURE | N7: State Plane Grid - Meters
G8: =A8 -> 0 | H8: =IF(AND($G$1="STATE PLANE GRID - METERS",$G$2="STATE PLANE GRID - US SURVEY FEET"),B8*$K$3,IF(AND($G$1="STATE PLANE GRID - METERS",$G$2="GROUND - METERS"),B8*$K$1,IF(AND($G$1="STATE PLANE GRID - METERS",$G$2="GROUND - US SURVEY FEET"),B8*$K$2,IF(AND($G$1="STATE PLANE GRID - US SURVEY FEET",$G$2="STATE PLANE GRID - METERS"),B8/$K$3,IF(AND($G$1="STATE PLANE GRID - US SURVEY FEET",$G$2="GROUND - METERS"),B8/$K$2,IF(AND($G$1="STATE PLANE GRID - US SURVEY FEET",$G$2="GROUND - US SURVEY FEET"),B8*$K$1,IF(AND($G$1="GROUND - METERS",$G$2="STATE PLANE GRID - US SURVEY FEET"),B8*$K$3/$K$1,IF(AND($G$1="GROUND - METERS",$G$2="STATE PLANE GRID - METERS"),B8/$K$1,IF(AND($G$1="GROUND - METERS",$G$2="GROUND - US SURVEY FEET"),B8*$K$3,IF(AND($G$1="GROUND - US SURVEY FEET",$G$2="STATE PLANE GRID - US SURVEY FEET"),B8/$K$1,IF(AND($G$1="GROUND - US SURVEY FEET",$G$2="STATE PLANE GRID - METERS"),B8/$K$2,IF(AND($G$1="GROUND - US SURVEY FEET",$G$2="GROUND - METERS"),B8/$K$3)))))))))))) -> 0 | I8: =IF(AND($G$1="STATE PLANE GRID - METERS",$G$2="STATE PLANE GRID - US SURVEY FEET"),C8*$K$3,IF(AND($G$1="STATE PLANE GRID - METERS",$G$2="GROUND - METERS"),C8*$K$1,IF(AND($G$1="STATE PLANE GRID - METERS",$G$2="GROUND - US SURVEY FEET"),C8*$K$2,IF(AND($G$1="STATE PLANE GRID - US SURVEY FEET",$G$2="STATE PLANE GRID - METERS"),C8/$K$3,IF(AND($G$1="STATE PLANE GRID - US SURVEY FEET",$G$2="GROUND - METERS"),C8/$K$2,IF(AND($G$1="STATE PLANE GRID - US SURVEY FEET",$G$2="GROUND - US SURVEY FEET"),C8*$K$1,IF(AND($G$1="GROUND - METERS",$G$2="STATE PLANE GRID - US SURVEY FEET"),C8*$K$3/$K$1,IF(AND($G$1="GROUND - METERS",$G$2="STATE PLANE GRID - METERS"),C8/$K$1,IF(AND($G$1="GROUND - METERS",$G$2="GROUND - US SURVEY FEET"),C8*$K$3,IF(AND($G$1="GROUND - US SURVEY FEET",$G$2="STATE PLANE GRID - US SURVEY FEET"),C8/$K$1,IF(AND($G$1="GROUND - US SURVEY FEET",$G$2="STATE PLANE GRID - METERS"),C8/$K$2,IF(AND($G$1="GROUND - US SURVEY FEET",$G$2="GROUND - METERS"),C8/$K$3)))))))))))) -> 0 | J8: =IF(AND($G$1="STATE PLANE GRID - METERS",$G$2="STATE PLANE GRID - US SURVEY FEET"),D8*$K$3,IF(AND($G$1="STATE PLANE GRID - METERS",$G$2="GROUND - METERS"),B8,IF(AND($G$1="STATE PLANE GRID - METERS",$G$2="GROUND - US SURVEY FEET"),D8*$K$3,IF(AND($G$1="STATE PLANE GRID - US SURVEY FEET",$G$2="STATE PLANE GRID - METERS"),D8/$K$3,IF(AND($G$1="STATE PLANE GRID - US SURVEY FEET",$G$2="GROUND - METERS"),D8/$K$3,IF(AND($G$1="STATE PLANE GRID - US SURVEY FEET",$G$2="GROUND - US SURVEY FEET"),D8,IF(AND($G$1="GROUND - METERS",$G$2="STATE PLANE GRID - US SURVEY FEET"),D8*$K$3,IF(AND($G$1="GROUND - METERS",$G$2="STATE PLANE GRID - METERS"),D8,IF(AND($G$1="GROUND - METERS",$G$2="GROUND - US SURVEY FEET"),D8*$K$3,IF(AND($G$1="GROUND - US SURVEY FEET",$G$2="STATE PLANE GRID - US SURVEY FEET"),D8,IF(AND($G$1="GROUND - US SURVEY FEET",$G$2="STATE PLANE GRID - METERS"),D8/$K$3,IF(AND($G$1="GROUND - US SURVEY FEET",$G$2="GROUND - METERS"),D8/$K$3)))))))))))) -> 0 | K8: =E8 -> 0 | N8: State Plane Grid - US Survey Feet
G9: 0 | H9: 0 | I9: 0 | J9: 0 | K9: 0 | N9: Ground - Meters
G10: 0 | H10: 0 | I10: 0 | J10: 0 | K10: 0 | N10: Ground - US Survey Feet
G11: 0 | H11: 0 | I11: 0 | J11: 0 | K11: 0
G12: 0 | H12: 0 | I12: 0 | J12: 0 | K12: 0
G13: 0 | H13: 0 | I13: 0 | J13: 0 | K13: 0
G14: 0 | H14: 0 | I14: 0 | J14: 0 | K14: 0
G15: 0 | H15: 0 | I15: 0 | J15: 0 | K15: 0
G16: 0 | H16: 0 | I16: 0 | J16: 0 | K16: 0
G17: 0 | H17: 0 | I17: 0 | J17: 0 | K17: 0
G18: 0 | H18: 0 | I18: 0 | J18: 0 | K18: 0
G19: 0 | H19: 0 | I19: 0 | J19: 0 | K19: 0
G20: 0 | H20: 0 | I20: 0 | J20: 0 | K20: 0
G21: 0 | H21: 0 | I21: 0 | J21: 0 | K21: 0
G22: 0 | H22: 0 | I22: 0 | J22: 0 | K22: 0
G23: 0 | H23: 0 | I23: 0 | J23: 0 | K23: 0
G24: 0 | H24: 0 | I24: 0 | J24: 0 | K24: 0
G25: 0 | H25: 0 | I25: 0 | J25: 0 | K25: 0
G26: 0 | H26: 0 | I26: 0 | J26: 0 | K26: 0
G27: 0 | H27: 0 | I27: 0 | J27: 0 | K27: 0
G28: 0 | H28: 0 | I28: 0 | J28: 0 | K28: 0
G29: 0 | H29: 0 | I29: 0 | J29: 0 | K29: 0
G30: 0 | H30: 0 | I30: 0 | J30: 0 | K30: 0
G31: 0 | H31: 0 | I31: 0 | J31: 0 | K31: 0
G32: 0 | H32: 0 | I32: 0 | J32: 0 | K32: 0
G33: 0 | H33: 0 | I33: 0 | J33: 0 | K33: 0
G34: 0 | H34: 0 | I34: 0 | J34: 0 | K34: 0
G35: 0 | H35: 0 | I35: 0 | J35: 0 | K35: 0
G36: 0 | H36: 0 | I36: 0 | J36: 0 | K36: 0
G37: 0 | H37: 0 | I37: 0 | J37: 0 | K37: 0
G38: 0 | H38: 0 | I38: 0 | J38: 0 | K38: 0
G39: 0 | H39: 0 | I39: 0 | J39: 0 | K39: 0
G40: 0 | H40: =IF(AND($G$1="STATE PLANE GRID - METERS",$G$2="STATE PLANE GRID - US SURVEY FEET"),B40*$K$3,IF(AND($G$1="STATE PLANE GRID - METERS",$G$2="GROUND - METERS"),B40*$K$1,IF(AND($G$1="STATE PLANE GRID - METERS",$G$2="GROUND - US SURVEY FEET"),B40*$K$2,IF(AND($G$1="STATE PLANE GRID - US SURVEY FEET",$G$2="STATE PLANE GRID - METERS"),B40/$K$3,IF(AND($G$1="STATE PLANE GRID - US SURVEY FEET",$G$2="GROUND - METERS"),B40/$K$2,IF(AND($G$1="STATE PLANE GRID - US SURVEY FEET",$G$2="GROUND - US SURVEY FEET"),B40*$K$1,IF(AND($G$1="GROUND - METERS",$G$2="STATE PLANE GRID - US SURVEY FEET"),B40*$K$3/$K$1,IF(AND($G$1="GROUND - METERS",$G$2="STATE PLANE GRID - METERS"),B40/$K$1,IF(AND($G$1="GROUND - METERS",$G$2="GROUND - US SURVEY FEET"),B40*$K$3,IF(AND($G$1="GROUND - US SURVEY FEET",$G$2="STATE PLANE GRID - US SURVEY FEET"),B40/$K$1,IF(AND($G$1="GROUND - US SURVEY FEET",$G$2="STATE PLANE GRID - METERS"),B40/$K$2,IF(AND($G$1="GROUND - US SURVEY FEET",$G$2="GROUND - METERS"),B40/$K$3)))))))))))) -> 0 | I40: =IF(AND($G$1="STATE PLANE GRID - METERS",$G$2="STATE PLANE GRID - US SURVEY FEET"),C40*$K$3,IF(AND($G$1="STATE PLANE GRID - METERS",$G$2="GROUND - METERS"),C40*$K$1,IF(AND($G$1="STATE PLANE GRID - METERS",$G$2="GROUND - US SURVEY FEET"),C40*$K$2,IF(AND($G$1="STATE PLANE GRID - US SURVEY FEET",$G$2="STATE PLANE GRID - METERS"),C40/$K$3,IF(AND($G$1="STATE PLANE GRID - US SURVEY FEET",$G$2="GROUND - METERS"),C40/$K$2,IF(AND($G$1="STATE PLANE GRID - US SURVEY FEET",$G$2="GROUND - US SURVEY FEET"),C40*$K$1,IF(AND($G$1="GROUND - METERS",$G$2="STATE PLANE GRID - US SURVEY FEET"),C40*$K$3/$K$1,IF(AND($G$1="GROUND - METERS",$G$2="STATE PLANE GRID - METERS"),C40/$K$1,IF(AND($G$1="GROUND - METERS",$G$2="GROUND - US SURVEY FEET"),C40*$K$3,IF(AND($G$1="GROUND - US SURVEY FEET",$G$2="STATE PLANE GRID - US SURVEY FEET"),C40/$K$1,IF(AND($G$1="GROUND - US SURVEY FEET",$G$2="STATE PLANE GRID - METERS"),C40/$K$2,IF(AND($G$1="GROUND - US SURVEY FEET",$G$2="GROUND - METERS"),C40/$K$3)))))))))))) -> 0 | J40: =IF(AND($G$1="STATE PLANE GRID - METERS",$G$2="STATE PLANE GRID - US SURVEY FEET"),D40*$K$3,IF(AND($G$1="STATE PLANE GRID - METERS",$G$2="GROUND - METERS"),B40,IF(AND($G$1="STATE PLANE GRID - METERS",$G$2="GROUND - US SURVEY FEET"),D40*$K$3,IF(AND($G$1="STATE PLANE GRID - US SURVEY FEET",$G$2="STATE PLANE GRID - METERS"),D40/$K$3,IF(AND($G$1="STATE PLANE GRID - US SURVEY FEET",$G$2="GROUND - METERS"),D40/$K$3,IF(AND($G$1="STATE PLANE GRID - US SURVEY FEET",$G$2="GROUND - US SURVEY FEET"),D40,IF(AND($G$1="GROUND - METERS",$G$2="STATE PLANE GRID - US SURVEY FEET"),D40*$K$3,IF(AND($G$1="GROUND - METERS",$G$2="STATE PLANE GRID - METERS"),D40,IF(AND($G$1="GROUND - METERS",$G$2="GROUND - US SURVEY FEET"),D40*$K$3,IF(AND($G$1="GROUND - US SURVEY FEET",$G$2="STATE PLANE GRID - US SURVEY FEET"),D40,IF(AND($G$1="GROUND - US SURVEY FEET",$G$2="STATE PLANE GRID - METERS"),D40/$K$3,IF(AND($G$1="GROUND - US SURVEY FEET",$G$2="GROUND - METERS"),D40/$K$3)))))))))))) -> 0 | K40: 0
G41: 0 | H41: 0 | I41: 0 | J41: 0 | K41: 0
G42: 0 | H42: 0 | I42: 0 | J42: 0 | K42: 0
G43: 0 | H43: 0 | I43: 0 | J43: 0 | K43: 0
G44: 0 | H44: 0 | I44: 0 | J44: 0 | K44: 0
G45: 0 | H45: 0 | I45: 0 | J45: 0 | K45: 0
G46: 0 | H46: 0 | I46: 0 | J46: 0 | K46: 0
G47: 0 | H47: 0 | I47: 0 | J47: 0 | K47: 0
G48: 0 | H48: 0 | I48: 0 | J48: 0 | K48: 0
G49: 0 | H49: 0 | I49: 0 | J49: 0 | K49: 0
G50: 0 | H50: 0 | I50: 0 | J50: 0 | K50: 0
G51: 0 | H51: 0 | I51: 0 | J51: 0 | K51: 0
G52: 0 | H52: 0 | I52: 0 | J52: 0 | K52: 0
G53: 0 | H53: 0 | I53: 0 | J53: 0 | K53: 0
G54: 0 | H54: 0 | I54: 0 | J54: 0 | K54: 0
G55: 0 | H55: 0 | I55: 0 | J55: 0 | K55: 0
G56: 0 | H56: 0 | I56: 0 | J56: 0 | K56: 0
G57: 0 | H57: 0 | I57: 0 | J57: 0 | K57: 0
G58: 0 | H58: 0 | I58: 0 | J58: 0 | K58: 0
G59: 0 | H59: 0 | I59: 0 | J59: 0 | K59: 0
G60: 0 | H60: 0 | I60: 0 | J60: 0 | K60: 0
G61: 0 | H61: 0 | I61: 0 | J61: 0 | K61: 0
G62: 0 | H62: 0 | I62: 0 | J62: 0 | K62: 0
G63: 0 | H63: 0 | I63: 0 | J63: 0 | K63: 0
G64: 0 | H64: 0 | I64: 0 | J64: 0 | K64: 0
G65: 0 | H65: 0 | I65: 0 | J65: 0 | K65: 0
G66: 0 | H66: 0 | I66: 0 | J66: 0 | K66: 0
G67: 0 | H67: 0 | I67: 0 | J67: 0 | K67: 0
G68: 0 | H68: 0 | I68: 0 | J68: 0 | K68: 0
G69: 0 | H69: 0 | I69: 0 | J69: 0 | K69: 0
G70: 0 | H70: 0 | I70: 0 | J70: 0 | K70: 0
G71: 0 | H71: 0 | I71: 0 | J71: 0 | K71: 0
G72: =A72 -> 0 | H72: =IF(AND($G$1="STATE PLANE GRID - METERS",$G$2="STATE PLANE GRID - US SURVEY FEET"),B72*$K$3,IF(AND($G$1="STATE PLANE GRID - METERS",$G$2="GROUND - METERS"),B72*$K$1,IF(AND($G$1="STATE PLANE GRID - METERS",$G$2="GROUND - US SURVEY FEET"),B72*$K$2,IF(AND($G$1="STATE PLANE GRID - US SURVEY FEET",$G$2="STATE PLANE GRID - METERS"),B72/$K$3,IF(AND($G$1="STATE PLANE GRID - US SURVEY FEET",$G$2="GROUND - METERS"),B72/$K$2,IF(AND($G$1="STATE PLANE GRID - US SURVEY FEET",$G$2="GROUND - US SURVEY FEET"),B72*$K$1,IF(AND($G$1="GROUND - METERS",$G$2="STATE PLANE GRID - US SURVEY FEET"),B72*$K$3/$K$1,IF(AND($G$1="GROUND - METERS",$G$2="STATE PLANE GRID - METERS"),B72/$K$1,IF(AND($G$1="GROUND - METERS",$G$2="GROUND - US SURVEY FEET"),B72*$K$3,IF(AND($G$1="GROUND - US SURVEY FEET",$G$2="STATE PLANE GRID - US SURVEY FEET"),B72/$K$1,IF(AND($G$1="GROUND - US SURVEY FEET",$G$2="STATE PLANE GRID - METERS"),B72/$K$2,IF(AND($G$1="GROUND - US SURVEY FEET",$G$2="GROUND - METERS"),B72/$K$3)))))))))))) -> 0 | I72: =IF(AND($G$1="STATE PLANE GRID - METERS",$G$2="STATE PLANE GRID - US SURVEY FEET"),C72*$K$3,IF(AND($G$1="STATE PLANE GRID - METERS",$G$2="GROUND - METERS"),C72*$K$1,IF(AND($G$1="STATE PLANE GRID - METERS",$G$2="GROUND - US SURVEY FEET"),C72*$K$2,IF(AND($G$1="STATE PLANE GRID - US SURVEY FEET",$G$2="STATE PLANE GRID - METERS"),C72/$K$3,IF(AND($G$1="STATE PLANE GRID - US SURVEY FEET",$G$2="GROUND - METERS"),C72/$K$2,IF(AND($G$1="STATE PLANE GRID - US SURVEY FEET",$G$2="GROUND - US SURVEY FEET"),C72*$K$1,IF(AND($G$1="GROUND - METERS",$G$2="STATE PLANE GRID - US SURVEY FEET"),C72*$K$3/$K$1,IF(AND($G$1="GROUND - METERS",$G$2="STATE PLANE GRID - METERS"),C72/$K$1,IF(AND($G$1="GROUND - METERS",$G$2="GROUND - US SURVEY FEET"),C72*$K$3,IF(AND($G$1="GROUND - US SURVEY FEET",$G$2="STATE PLANE GRID - US SURVEY FEET"),C72/$K$1,IF(AND($G$1="GROUND - US SURVEY FEET",$G$2="STATE PLANE GRID - METERS"),C72/$K$2,IF(AND($G$1="GROUND - US SURVEY FEET",$G$2="GROUND - METERS"),C72/$K$3)))))))))))) -> 0 | J72: =IF(AND($G$1="STATE PLANE GRID - METERS",$G$2="STATE PLANE GRID - US SURVEY FEET"),D72*$K$3,IF(AND($G$1="STATE PLANE GRID - METERS",$G$2="GROUND - METERS"),B72,IF(AND($G$1="STATE PLANE GRID - METERS",$G$2="GROUND - US SURVEY FEET"),D72*$K$3,IF(AND($G$1="STATE PLANE GRID - US SURVEY FEET",$G$2="STATE PLANE GRID - METERS"),D72/$K$3,IF(AND($G$1="STATE PLANE GRID - US SURVEY FEET",$G$2="GROUND - METERS"),D72/$K$3,IF(AND($G$1="STATE PLANE GRID - US SURVEY FEET",$G$2="GROUND - US SURVEY FEET"),D72,IF(AND($G$1="GROUND - METERS",$G$2="STATE PLANE GRID - US SURVEY FEET"),D72*$K$3,IF(AND($G$1="GROUND - METERS",$G$2="STATE PLANE GRID - METERS"),D72,IF(AND($G$1="GROUND - METERS",$G$2="GROUND - US SURVEY FEET"),D72*$K$3,IF(AND($G$1="GROUND - US SURVEY FEET",$G$2="STATE PLANE GRID - US SURVEY FEET"),D72,IF(AND($G$1="GROUND - US SURVEY FEET",$G$2="STATE PLANE GRID - METERS"),D72/$K$3,IF(AND($G$1="GROUND - US SURVEY FEET",$G$2="GROUND - METERS"),D72/$K$3)))))))))))) -> 0 | K72: =E72 -> 0
G73: 0 | H73: 0 | I73: 0 | J73: 0 | K73: 0
G74: 0 | H74: 0 | I74: 0 | J74: 0 | K74: 0
G75: 0 | H75: 0 | I75: 0 | J75: 0 | K75: 0
G76: 0 | H76: 0 | I76: 0 | J76: 0 | K76: 0
G77: 0 | H77: 0 | I77: 0 | J77: 0 | K77: 0
G78: 0 | H78: 0 | I78: 0 | J78: 0 | K78: 0
G79: 0 | H79: 0 | I79: 0 | J79: 0 | K79: 0
G80: 0 | H80: 0 | I80: 0 | J80: 0 | K80: 0
G81: 0 | H81: 0 | I81: 0 | J81: 0 | K81: 0
G82: 0 | H82: 0 | I82: 0 | J82: 0 | K82: 0
G83: 0 | H83: 0 | I83: 0 | J83: 0 | K83: 0
G84: 0 | H84: 0 | I84: 0 | J84: 0 | K84: 0
G85: 0 | H85: 0 | I85: 0 | J85: 0 | K85: 0
G86: 0 | H86: 0 | I86: 0 | J86: 0 | K86: 0
G87: 0 | H87: 0 | I87: 0 | J87: 0 | K87: 0
G88: 0 | H88: 0 | I88: 0 | J88: 0 | K88: 0
G89: 0 | H89: 0 | I89: 0 | J89: 0 | K89: 0
G90: 0 | H90: 0 | I90: 0 | J90: 0 | K90: 0
G91: 0 | H91: 0 | I91: 0 | J91: 0 | K91: 0
G92: 0 | H92: 0 | I92: 0 | J92: 0 | K92: 0
G93: 0 | H93: 0 | I93: 0 | J93: 0 | K93: 0
G94: 0 | H94: 0 | I94: 0 | J94: 0 | K94: 0
G95: 0 | H95: 0 | I95: 0 | J95: 0 | K95: 0

Sheet OWNERS
A1: First | B1: Last | C1: Address | D1: City | E1: State | F1: Zip Code | G1: Deed Book/Page | H1: Auditor Parcel Number | I1: Area | J1: Section | K1: Lot | L1: Tax Map Parcel

Sheet OSIP
B1: Project: | C1: =REPORT!B2 -> XXX-XXX-XXXX
B2: Pid: | C2: =REPORT!E2 -> XXXXX
A4: Calculate the Project Coordinates for the corners of the Aerial Mapping Raster File
A5: To scale the Geo-referenced file to the Project Datum | N5: Project County: | P5: =REPORT!B2 -> XXX-XXX-XXXX | Q5: =MID(P5,1,3) -> XXX
O7: Photo Corners | Q7: Pixel Range
A8: INPUT: SP GRID - US SURVEY FEET | N8: COUNTY | O8: EASTING | P8: NORTHING | Q8: EASTING | R8: NORTHING
B9: X (East) | C9: Y (North) | N9: ADA | O9: 1620000 | P9: 215000 | Q9: 130000 | R9: 175000
A10: Lower left (SW) origin: | B10: =VLOOKUP(MID(REPORT!B2,1,3),OSIP!N9:R96,2,FALSE) ->  | C10: =VLOOKUP(MID(REPORT!B2,1,3),OSIP!N9:R96,3,FALSE) ->  | D10: Enter X,Y from Georeferenced Raster File Header | N10: ALL | O10: 1440000 | P10: 355000 | Q10: 150000 | R10: 110000
A11: Pixel Range: | B11: =VLOOKUP(MID(REPORT!B2,1,3),OSIP!N9:R96,4,FALSE) ->  | C11: =VLOOKUP(MID(REPORT!B2,1,3),OSIP!N9:R96,5,FALSE) ->  | D11: Enter X,Y from Georeferenced Raster File Header | N11: ASD | O11: 1985000 | P11: 320000 | Q11: 90000 | R11: 195000
A12: Upper right (NE) origin: | B12: =B10+B11 ->  | C12: =C10+C11 ->  | D12: Calculated NE ORIGIN using Delta X & Delta Y | N12: ASH | O12: 2375000 | P12: 670000 | Q12: 140000 | R12: 185000
N13: ATH | O13: 2025000 | P13: 430000 | Q13: 165000 | R13: 140000
A14: PAF (scale multiplier): | B14: =REPORT!C13 -> 0 | D14: Enter Unitless Project Adjustment Factor for Project | N14: AUG | O14: 1420000 | P14: 255000 | Q14: 170000 | R14: 125000
N15: BEL | O15: 2320000 | P15: 675000 | Q15: 155000 | R15: 120000
A16: OUTPUT: PROJECT GROUND - US SURVEY FEET | N16: BRO | O16: 1525000 | P16: 230000 | Q16: 115000 | R16: 235000
B17: X (East) | C17: Y (North) | N17: BUT | O17: 1310000 | P17: 475000 | Q17: 145000 | R17: 115000
A18: Lower left (SW) origin (MAP01): | B18: =PRODUCT(B10,B14) ->  | C18: =PRODUCT(C10,B14) ->  | D18: Calculated Scaled ORIGIN Coordinates | N18: CAR | O18: 2295000 | P18: 275000 | Q18: 130000 | R18: 120000
A19: Upper right (NE) origin (MAP02): | B19: =PRODUCT(B12,B14) ->  | C19: =PRODUCT(C12,B14) ->  | D19: Calculated Scaled ORIGIN Coordinates | N19: CHP | O19: 1535000 | P19: 730000 | Q19: 160000 | R19: 105000
N20: CLA | O20: 1530000 | P20: 645000 | Q20: 160000 | R20: 105000
D21: (Edit Header & Footer for Printing File report copy) | N21: CLE | O21: 1450000 | P21: 280000 | Q21: 100000 | R21: 190000
N22: CLI | O22: 1540000 | P22: 445000 | Q22: 125000 | R22: 130000
A23: 1) Place a Shape (BOX) in the MicroStation file at the Project Origin Coordinates and use KEY-IN COMMAND XY= (X value),(Y value) for both corners | N23: COL | O23: 2355000 | P23: 335000 | Q23: 165000 | R23: 130000
A24: 2) Attach the Raster File using the "INTERACTIVE" Toggle & PLACE at the Corners of the BOX | N24: COS | O24: 2050000 | P24: 175000 | Q24: 165000 | R24: 115000
N25: CRA | O25: 1795000 | P25: 375000 | Q25: 115000 | R25: 115000
A26: This will scale the Aerial Mapping Ortho Photo to fit the PROJECT COORDINATES | N26: CUY | O26: 2110000 | P26: 585000 | Q26: 170000 | R26: 145000
N27: DAR | O27: 1315000 | P27: 700000 | Q27: 115000 | R27: 170000
N28: DEF | O28: 1330000 | P28: 550000 | Q28: 165000 | R28: 100000
N29: DEL | O29: 1755000 | P29: 165000 | Q29: 150000 | R29: 120000
N30: ERI | O30: 1855000 | P30: 585000 | Q30: 160000 | R30: 135000
N31: FAI | O31: 1870000 | P31: 565000 | Q31: 140000 | R31: 145000
N32: FAY | O32: 1635000 | P32: 500000 | Q32: 125000 | R32: 130000
N33: FRA | O33: 1755000 | P33: 650000 | Q33: 145000 | R33: 135000
N34: FUL | O34: 1445000 | P34: 665000 | Q34: 150000 | R34: 90000
N35: GAL | O35: 1940000 | P35: 210000 | Q35: 145000 | R35: 170000
N36: GEA | O36: 2270000 | P36: 610000 | Q36: 110000 | R36: 145000
N37: GRE | O37: 1510000 | P37: 565000 | Q37: 140000 | R37: 115000
N38: GUE | O38: 2180000 | P38: 670000 | Q38: 145000 | R38: 145000
N39: HAM | O39: 1305000 | P39: 375000 | Q39: 170000 | R39: 110000
N40: HAN | O40: 1585000 | P40: 420000 | Q40: 135000 | R40: 135000
N41: HAR | O41: 1580000 | P41: 305000 | Q41: 135000 | R41: 120000
N42: HAS | O42: 2290000 | P42: 180000 | Q42: 135000 | R42: 105000
N43: HEN | O43: 1460000 | P43: 545000 | Q43: 130000 | R43: 125000
N44: HIG | O44: 1575000 | P44: 370000 | Q44: 155000 | R44: 135000
N45: HOC | O45: 1895000 | P45: 495000 | Q45: 170000 | R45: 115000
N46: HOL | O46: 2045000 | P46: 280000 | Q46: 160000 | R46: 90000
N47: HUR | O47: 1870000 | P47: 480000 | Q47: 145000 | R47: 115000
N48: JAC | O48: 1880000 | P48: 305000 | Q48: 110000 | R48: 140000
N49: JEF | O49: 2400000 | P49: 180000 | Q49: 100000 | R49: 165000
N50: KNO | O50: 1895000 | P50: 205000 | Q50: 165000 | R50: 130000
N51: LAK | O51: 2240000 | P51: 690000 | Q51: 140000 | R51: 115000
N52: LAW | O52: 1875000 | P52: 145000 | Q52: 155000 | R52: 165000
N53: LIC | O53: 1885000 | P53: 695000 | Q53: 175000 | R53: 135000
N54: LOG | O54: 1545000 | P54: 205000 | Q54: 145000 | R54: 120000
N55: LOR | O55: 2005000 | P55: 505000 | Q55: 135000 | R55: 175000
N56: LUC | O56: 1585000 | P56: 635000 | Q56: 225000 | R56: 125000
N57: MAD | O57: 1640000 | P57: 615000 | Q57: 135000 | R57: 160000
N58: MAH | O58: 2355000 | P58: 450000 | Q58: 165000 | R58: 95000
N59: MAR | O59: 1710000 | P59: 275000 | Q59: 160000 | R59: 105000
N60: MED | O60: 2055000 | P60: 480000 | Q60: 140000 | R60: 110000
N61: MEG | O61: 2015000 | P61: 315000 | Q61: 175000 | R61: 125000
N62: MER | O62: 1325000 | P62: 255000 | Q62: 110000 | R62: 145000
N63: MIA | O63: 1425000 | P63: 685000 | Q63: 120000 | R63: 125000
N64: MOE | O64: 2300000 | P64: 560000 | Q64: 145000 | R64: 125000
N65: MOT | O65: 1410000 | P65: 575000 | Q65: 125000 | R65: 130000
N66: MRG | O66: 2085000 | P66: 525000 | Q66: 145000 | R66: 125000
N67: MRW | O67: 1820000 | P67: 245000 | Q67: 115000 | R67: 140000
N68: MUS | O68: 2040000 | P68: 640000 | Q68: 160000 | R68: 150000
N69: NOB | O69: 2190000 | P69: 575000 | Q69: 135000 | R69: 140000
N70: OTT | O70: 1715000 | P70: 650000 | Q70: 20000 | R70: 105000
N71: PAU | O71: 1330000 | P71: 485000 | Q71: 135000 | R71: 105000
N72: PER | O72: 1975000 | P72: 560000 | Q72: 130000 | R72: 145000
N73: PIC | O73: 1750000 | P73: 530000 | Q73: 155000 | R73: 135000
N74: PIK | O74: 1715000 | P74: 345000 | Q74: 175000 | R74: 95000
N75: POR | O75: 2270000 | P75: 480000 | Q75: 115000 | R75: 140000
N76: PRE | O76: 1310000 | P76: 575000 | Q76: 105000 | R76: 135000
N77: PUT | O77: 1440000 | P77: 435000 | Q77: 150000 | R77: 120000
N78: RIC | O78: 1900000 | P78: 320000 | Q78: 115000 | R78: 165000
N79: ROS | O79: 1715000 | P79: 425000 | Q79: 190000 | R79: 130000
N80: SAN | O80: 1715000 | P80: 575000 | Q80: 165000 | R80: 100000
N81: SCI | O81: 1745000 | P81: 205000 | Q81: 185000 | R81: 170000
N82: SEN | O82: 1710000 | P82: 480000 | Q82: 170000 | R82: 105000
N83: SHE | O83: 1425000 | P83: 190000 | Q83: 130000 | R83: 115000
N84: STA | O84: 2200000 | P84: 350000 | Q84: 165000 | R84: 135000
N85: SUM | O85: 2190000 | P85: 450000 | Q85: 85000 | R85: 175000
N86: TRU | O86: 2375000 | P86: 535000 | Q86: 145000 | R86: 140000
N87: TUS | O87: 2185000 | P87: 200000 | Q87: 130000 | R87: 170000
N88: UNI | O88: 1650000 | P88: 160000 | Q88: 265000 | R88: 295000
N89: VAN | O89: 1325000 | P89: 375000 | Q89: 135000 | R89: 120000
N90: VIN | O90: 1890000 | P90: 370000 | Q90: 150000 | R90: 140000
N91: WAR | O91: 1440000 | P91: 460000 | Q91: 115000 | R91: 125000
N92: WAS | O92: 2150000 | P92: 440000 | Q92: 235000 | R92: 165000
N93: WAY | O93: 2070000 | P93: 360000 | Q93: 135000 | R93: 125000
N94: WIL | O94: 1335000 | P94: 645000 | Q94: 130000 | R94: 105000
N95: WOO | O95: 1585000 | P95: 545000 | Q95: 135000 | R95: 170000
N96: WYA | O96: 1685000 | P96: 370000 | Q96: 115000 | R96: 115000

Sheet MON TABLE
A1: PROJECT: | E1: =REPORT!B2 -> XXX-XXX-XXXX | H1: PID: | M1: =REPORT!$E$2 -> XXXXX
A2: PROJECT GROUND COORDINATES - US SURVEY FEET | I2: PROJECT CONTROL POINTS | J2: STATE PLANE GRID COORDINATES | P2: MONUMENTS TO BE SET
P3: DURING CONSTRUCTION
A4: Project coordinates (U.S. Survey Feet) are relative to State Plane Grid coordinates (meters) by a Project Adjustment Factor of: | H4: =C103 -> 0 | J4: Horiz. Datum: | K4: =REPORT!C11 -> NAD83 (2011) | L4: =REPORT!C10 -> Ohio State Plane, North Zone (3401) | N4: Vert. Datum: | O4: =REPORT!C15 -> NAVD88
P5: ITEM 623.05 | Q5: ITEM 623.05
B6: ="C/L of Right-of-Way SR "&MID(E1,5,3) -> C/L of Right-of-Way SR XXX | D6: =REPORT!C32&" used for alignment" -> used for alignment | J6: =REPORT!A44&" defined by GPS from CORS using "&REPORT!C16&". All other elevations are established by leveling from "&REPORT!A44&"." -> CP01 defined by GPS from CORS using Geoid 12A. All other elevations are established by leveling from CP01. | P6: MONUMENT | Q6: REFERENCE
A7: NAME | B7: STATION | C7: OFFSET (US FT) | D7: RT/LT | E7: NORTH (US FT) | F7: EAST (US FT) | G7: ELEVATION (US FT) | H7: FEATURE | I7: DESCRIPTION | J7: NAME | K7: NORTH (m) | L7: EAST (m) | M7: ORTHO HT (m) | N7: NORTH (US FT) | O7: EAST (US FT) | P7: ASSEMBLY | Q7: MONUMENT
D8: =IF(C8<0,"LT","RT") -> RT | J8: =A8 -> 0 | K8: =E8/$C$103 ->  | L8: =F8/$C$103 ->  | M8: =G8/$C$104 -> 0 | N8: =$K8*$C$104 ->  | O8: =$L8*$C$104 -> 
D9: =IF(C9<0,"LT","RT") -> RT | J9: =A9 -> 0 | M9: 0
D10: RT | J10: 0 | M10: 0
D11: RT | J11: 0 | M11: 0
D12: RT | J12: 0 | M12: 0
D13: RT | J13: 0 | M13: 0
D14: RT | J14: 0 | M14: 0
D15: RT | J15: 0 | M15: 0
D16: RT | J16: 0 | M16: 0
D17: RT | J17: 0 | M17: 0
D18: RT | J18: 0 | M18: 0
D19: RT | J19: 0 | M19: 0
D20: RT | J20: 0 | M20: 0
D21: RT | J21: 0 | M21: 0
D22: RT | J22: 0 | M22: 0
D23: RT | J23: 0 | M23: 0
D24: RT | J24: 0 | M24: 0
D25: RT | J25: 0 | M25: 0
D26: RT | J26: 0 | M26: 0
D27: RT | J27: 0 | M27: 0
D28: RT | J28: 0 | M28: 0
D29: RT | J29: 0 | M29: 0
D30: RT | J30: 0 | M30: 0
D31: RT | J31: 0 | M31: 0
D32: RT | J32: =A32 -> 0 | M32: 0
D33: RT | J33: 0 | M33: 0
D34: RT | J34: 0 | M34: 0
D35: RT | J35: 0 | M35: 0
D36: RT | J36: =A36 -> 0 | M36: 0
D37: RT | J37: =A37 -> 0 | M37: 0
A38: ="EXISTING MONUMENTATION "&"CENTERLINE OF RIGHT OF WAY STATE ROUTE "&MID(E1,5,3) -> EXISTING MONUMENTATION CENTERLINE OF RIGHT OF WAY STATE ROUTE XXX | I38: EXISTING CENTERLINE CONTROL POINTS | J38: Horiz. Datum: | K38: =REPORT!C11 -> NAD83 (2011) | L38: =REPORT!C10 -> Ohio State Plane, North Zone (3401) | N38: Vert. Datum: | O38: =REPORT!C15 -> NAVD88
A39: NAME | B39: STATION | C39: OFFSET (US FT) | D39: RT/LT | E39: NORTH (US FT) | F39: EAST (US FT) | G39: ELEVATION (US FT) | H39: FEATURE | I39: DESCRIPTION | J39: NAME | K39: NORTH (m) | L39: EAST (m) | M39: ORTHO HT (m) | N39: NORTH (US FT) | O39: EAST (US FT)
D40: =IF(C40<0,"LT","RT") -> RT | J40: =A40 -> 0 | K40: =E40/$C$103 ->  | L40: =F40/$C$103 ->  | M40: =G40/$C$104 -> 0 | N40: =$K40*$C$104 ->  | O40: =$L40*$C$104 -> 
D41: RT | J41: 0 | M41: 0
D42: RT | J42: 0 | M42: 0
D43: RT | J43: 0 | M43: 0
D44: RT | J44: 0 | M44: 0
D45: RT | J45: 0 | M45: 0
D46: RT | J46: 0 | M46: 0
D47: RT | J47: 0 | M47: 0
D48: RT | J48: 0 | M48: 0
D49: RT | J49: 0 | M49: 0
D50: RT | J50: 0 | M50: 0
D51: RT | J51: =A51 -> 0 | M51: 0
D52: RT | J52: 0 | M52: 0
D53: RT | J53: 0 | M53: 0
D54: RT | J54: 0 | M54: 0
D55: RT | J55: 0 | M55: 0
D56: RT | J56: 0 | M56: 0
D57: RT | J57: =A57 -> 0 | M57: 0
D58: RT | J58: 0 | M58: 0
D59: RT | J59: 0 | M59: 0
D60: RT | J60: 0 | M60: 0
D61: RT | J61: 0 | M61: 0
D62: RT | J62: 0 | M62: 0
D63: RT | J63: 0 | M63: 0
D64: RT | J64: 0 | M64: 0
D65: RT | J65: 0 | M65: 0
D66: RT | J66: 0 | M66: 0
D67: RT | J67: 0 | M67: 0
D68: RT | J68: 0 | M68: 0
D69: RT | J69: 0 | M69: 0
A70: =" CENTERLINE OF RIGHT OF WAY & CONSTRUCTION "&"STATE ROUTE "&MID(E1,5,3) -> CENTERLINE OF RIGHT OF WAY & CONSTRUCTION STATE ROUTE XXX | I70: CENTERLINE ALIGNMENT | J70: Horiz. Datum: | K70: =REPORT!C11 -> NAD83 (2011) | L70: =REPORT!C10 -> Ohio State Plane, North Zone (3401) | N70: Vert. Datum: | O70: =REPORT!C15 -> NAVD88
A71: NAME | B71: STATION | C71: OFFSET (US FT) | D71: RT/LT | E71: NORTH (US FT) | F71: EAST (US FT) | G71: ELEVATION (US FT) | H71: FEATURE | I71: DESCRIPTION | J71: NAME | K71: NORTH (m) | L71: EAST (m) | M71: ORTHO HT (m) | N71: NORTH (US FT) | O71: EAST (US FT)
D72: =IF(C72<0,"LT","RT") -> RT | J72: =A72 -> 0 | K72: =E72/$C$103 ->  | L72: =F72/$C$103 ->  | M72: =G72/$C$104 -> 0 | N72: =$K72*$C$104 ->  | O72: =$L72*$C$104 -> 
D73: RT | J73: =A73 -> 0 | M73: 0
D74: RT | J74: 0 | M74: 0
D75: RT | J75: 0 | M75: 0
D76: RT | J76: =A76 -> 0 | M76: 0
D77: RT | J77: 0 | M77: 0
D78: RT | J78: 0 | M78: 0
D79: RT | J79: 0 | M79: 0
D80: RT | J80: 0 | M80: 0
D81: RT | J81: 0 | M81: 0
D82: RT | J82: 0 | M82: 0
D83: RT | J83: 0 | M83: 0
D84: RT | J84: 0 | M84: 0
D85: RT | J85: 0 | M85: 0
D86: RT | J86: 0 | M86: 0
D87: RT | J87: 0 | M87: 0
D88: RT | J88: 0 | M88: 0
D89: RT | J89: 0 | M89: 0
D90: RT | J90: 0 | M90: 0
D91: RT | J91: 0 | M91: 0
D92: RT | J92: 0 | M92: 0
D93: RT | J93: 0 | M93: 0
D94: RT | J94: 0 | M94: 0
D95: RT | J95: 0 | M95: 0
D96: RT | J96: 0 | M96: 0
D97: RT | J97: 0 | M97: 0
D98: RT | J98: 0 | M98: 0
D99: RT | J99: 0 | M99: 0
D100: RT | J100: 0 | M100: 0
D101: RT | J101: 0 | M101: 0
A102: Grid to Ground Multiplier (1/CSF) = | C102: =REPORT!C13 -> 0 | E102: State Plane Grid to Project Ground (same units) | I102: Unitless Factor:
A103: Project Adjustment Factor (PAF) = | C103: =C102*C104 -> 0 | E103: State Plane Grid (meters) to Project Ground (US Survey Feet) | I103: =REPORT!A45&REPORT!A46&REPORT!C46 -> The Grid to Ground Multiplier for the project was computed by taking the inverse of the TBC-generated combined scale factor for: CP01
A104: English to metric conversion = | C104: =3937/1200 -> 3.280833333 | E104: US Survey foor to meters conversion factor | I104: Primary Project Control:
A105: PROJECT coordinates are scaled from GRID coordinates about the Ohio North Zone grid point N=0, E=0 (N 39⁰ 27' 01.76097", W 89⁰ 28' 32.98476"). | I105: =REPORT!A41&REPORT!A42&REPORT!A43 -> Horizontal control was positioned with a minimum of 5 VRS-derived GNSS observations. Vertical control was established by differential leveling.All positions are in conformance to the ODOT Surveying and Mapping Specifications.
A107: PROJECT GROUND COORDINATES - US SURVEY FEET | I107: PROPOSED RIGHT OF WAY MONUMENTS | J107: STATE PLANE GRID COORDINATES | P107: MONUMENTS TO BE RESET
P108: AFTER CONSTRUCTION
A109: =A4 -> Project coordinates (U.S. Survey Feet) are relative to State Plane Grid coordinates (meters) by a Project Adjustment Factor of: | H109: =H4 -> 0
J110: Horiz. Datum: | K110: =REPORT!C11 -> NAD83 (2011) | L110: =REPORT!C10 -> Ohio State Plane, North Zone (3401) | N110: Vert. Datum: | O110: =REPORT!C15 -> NAVD88 | P110: ITEM 623.05 | Q110: ITEM 623.05
B111: =$B$6 -> C/L of Right-of-Way SR XXX | D111: =$D$6 -> used for alignment | P111: RIGHT OF WAY | Q111: BOUNDARY
A112: NAME | B112: STATION | C112: OFFSET (US FT) | D112: RT/LT | E112: NORTH (US FT) | F112: EAST (US FT) | G112: ELEVATION (US FT) | H112: FEATURE | I112: DESCRIPTION | J112: NAME | K112: NORTH (m) | L112: EAST (m) | M112: ORTHO HT (m) | N112: NORTH (US FT) | O112: EAST (US FT) | P112: PIN (TYPE "B") | Q112: PIN (TYPE "B")
D113: =IF(C113<0,"LT","RT") -> RT | J113: =A113 -> 0 | K113: =E113/$C$103 ->  | L113: =F113/$C$103 ->  | M113: =G113/$C$104 -> 0 | N113: =$K113*$C$104 ->  | O113: =$L113*$C$104 -> 
D114: =IF(C114<0,"LT","RT") -> RT | J114: =A114 -> 0 | K114: =E114/$C$103 ->  | L114: =F114/$C$103 ->  | M114: =G114/$C$104 -> 0
D115: RT | J115: 0 | M115: 0
D116: RT | J116: 0 | M116: 0
D117: RT | J117: 0 | M117: 0
D118: RT | J118: 0 | M118: 0
D119: RT | J119: 0 | M119: 0
D120: RT | J120: 0 | M120: 0
D121: RT | J121: 0 | M121: 0
D122: RT | J122: 0 | M122: 0
D123: RT | J123: 0 | M123: 0
D124: RT | J124: 0 | M124: 0
D125: RT | J125: 0 | M125: 0
D126: RT | J126: 0 | K126: =E126/$C$103 ->  | M126: 0
D127: RT | J127: 0 | M127: 0
D128: RT | J128: 0 | M128: 0
D129: RT | J129: 0 | M129: 0
D130: RT | J130: =A130 -> 0 | L130: =F130/$C$103 ->  | M130: =G130/$C$104 -> 0
D131: RT | J131: 0 | M131: 0
D132: RT | J132: 0 | M132: 0
D133: RT | J133: 0 | M133: 0
D134: RT | J134: =A134 -> 0 | K134: =E134/$C$103 ->  | L134: =F134/$C$103 ->  | M134: =G134/$C$104 -> 0
D135: RT | J135: 0 | M135: 0
D136: RT | J136: 0 | M136: 0
D137: RT | J137: 0 | M137: 0
D138: RT | J138: 0 | M138: 0
D139: RT | J139: 0 | M139: 0
D140: RT | J140: 0 | M140: 0
D141: RT | J141: 0 | M141: 0
D142: RT | J142: 0 | M142: 0
J143: SUBTOTAL MONUMENTS - QUANTITY CARRIED TO CENTERLINE PLAT SHEET 3 OF 4 | P143: =+SUM(P112:P142) -> 0 | Q143: =+SUM(Q7:Q142) -> 0
A147: PROJECT GROUND COORDINATES - US SURVEY FEET | I147: EXISTING RIGHT OF WAY POINTS | J147: STATE PLANE GRID COORDINATES
A149: =A4 -> Project coordinates (U.S. Survey Feet) are relative to State Plane Grid coordinates (meters) by a Project Adjustment Factor of: | H149: =H4 -> 0
J150: Horiz. Datum: | K150: =REPORT!C11 -> NAD83 (2011) | L150: =REPORT!C10 -> Ohio State Plane, North Zone (3401) | N150: Vert. Datum: | O150: =REPORT!C15 -> NAVD88
B151: =$B$6 -> C/L of Right-of-Way SR XXX | D151: =$D$6 -> used for alignment
A152: NAME | B152: STATION | C152: OFFSET (US FT) | D152: RT/LT | E152: NORTH (US FT) | F152: EAST (US FT) | G152: ELEVATION (US FT) | H152: FEATURE | I152: DESCRIPTION | J152: NAME | K152: NORTH (m) | L152: EAST (m) | M152: ORTHO HT (m) | N152: NORTH (US FT) | O152: EAST (US FT)
D153: =IF(C153<0,"LT","RT") -> RT | J153: =A153 -> 0 | K153: =E153/$C$103 ->  | M153: =G153/$C$104 -> 0 | N153: =$K153*$C$104 ->  | O153: =$L153*$C$104 -> 
D154: RT | J154: 0 | M154: 0
D155: RT | J155: 0 | M155: 0
D156: RT | J156: 0 | M156: 0
D157: RT | J157: 0 | M157: 0
D158: RT | J158: 0 | M158: 0
D159: RT | J159: 0 | M159: 0
D160: RT | J160: =A160 -> 0 | K160: =E160/$C$103 ->  | L160: =F160/$C$103 ->  | M160: =G160/$C$104 -> 0
D161: RT | J161: 0 | M161: 0
D162: RT | J162: 0 | M162: 0
D163: RT | J163: 0 | M163: 0
D164: RT | J164: 0 | M164: 0
D165: RT | J165: 0 | M165: 0
D166: RT | J166: 0 | M166: 0
D167: RT | J167: 0 | M167: 0
D168: RT | J168: 0 | M168: 0
D169: RT | J169: 0 | M169: 0
D170: RT | J170: 0 | M170: 0
D171: RT | J171: 0 | M171: 0
D172: RT | J172: 0 | M172: 0
D173: RT | J173: 0 | M173: 0
D174: RT | J174: 0 | M174: 0
D175: RT | J175: 0 | M175: 0
D176: RT | J176: 0 | M176: 0
D177: RT | J177: 0 | M177: 0
D178: RT | J178: 0 | M178: 0
D179: RT | J179: 0 | M179: 0
D180: RT | J180: 0 | M180: 0
D181: RT | J181: 0 | M181: 0
D182: RT | J182: 0 | M182: 0
A184: PROJECT GROUND COORDINATES - US SURVEY FEET | I184: EXISTING BOUNDARY MONUMENTS | J184: STATE PLANE GRID COORDINATES
A185: =A4 -> Project coordinates (U.S. Survey Feet) are relative to State Plane Grid coordinates (meters) by a Project Adjustment Factor of: | H185: =H4 -> 0
J186: Horiz. Datum: | K186: =REPORT!C11 -> NAD83 (2011) | L186: =REPORT!C10 -> Ohio State Plane, North Zone (3401) | N186: Vert. Datum: | O186: =REPORT!C15 -> NAVD88
B187: =$B$6 -> C/L of Right-of-Way SR XXX | D187: =$D$6 -> used for alignment
A188: NAME | B188: STATION | C188: OFFSET (US FT) | D188: RT/LT | E188: NORTH (US FT) | F188: EAST (US FT) | G188: ELEVATION (US FT) | H188: FEATURE | I188: DESCRIPTION | J188: NAME | K188: NORTH (m) | L188: EAST (m) | M188: ORTHO HT (m) | N188: NORTH (US FT) | O188: EAST (US FT)
D189: =IF(C189<0,"LT","RT") -> RT | J189: =A189 -> 0 | K189: =E189/$C$103 ->  | M189: =G189/$C$104 -> 0 | N189: =$K189*$C$104 ->  | O189: =$L189*$C$104 -> 
D190: RT | J190: =A190 -> 0 | K190: =E190/$C$103 ->  | L190: =F190/$C$103 ->  | M190: =G190/$C$104 -> 0
D191: RT | J191: 0 | M191: 0
D192: RT | J192: 0 | M192: 0
D193: RT | J193: =A193 -> 0 | K193: =E193/$C$103 ->  | L193: =F193/$C$103 ->  | M193: =G193/$C$104 -> 0
D194: RT | J194: 0 | M194: 0
D195: RT | J195: 0 | M195: 0
D196: RT | J196: 0 | M196: 0
D197: RT | J197: 0 | M197: 0
D198: RT | J198: 0 | M198: 0
D199: RT | J199: 0 | M199: 0
D200: RT | J200: 0 | M200: 0
D201: RT | J201: 0 | M201: 0
D202: RT | J202: 0 | M202: 0
D203: RT | J203: 0 | M203: 0
D204: RT | J204: 0 | M204: 0
D205: RT | J205: 0 | M205: 0
D206: RT | J206: 0 | M206: 0
... 12 more rows

Sheet GPS_IMPORT
I5: Imported data should be in Grid Meters!

Sheet CP01
A1: VRS GNSS Project Control Monument Coordinate Analysis
A3: Project: | B3: =REPORT!B2 -> XXX-XXX-XXXX | C3: GPS Antenna: | D3: Trimble R6 | J3: Report Date:
A4: PID: | B4: =REPORT!E2 -> XXXXX | C4: VRS Network: | D4: ODOT VRS | J4: Prepared By:
A5: Point ID: | C5: No. of Sessions: | D5: =COUNTIF(GPS_IMPORT!A2:A1000,$B$5) -> 0 | J5: Checked By:
A6: SESSION # | B6: Point | C6: Observation Date | D6: Start Time | E6: Northing(m) | F6: Easting(m) | G6: Height(m) | H6: ∆ Northing(m) | I6: ∆ Easting(m) | J6: ∆ Height(m) | K6: Include in Solution?
A7: 1 | B7: =IF(ROWS(GPS_IMPORT!$1:1)<=COUNTIF(GPS_IMPORT!$A$2:$A$10000,$B$5),INDEX(GPS_IMPORT!$2:$10000,MATCH($B$5,(GPS_IMPORT!$A$2:$A$10000),0)+ROWS($1:1)-1,COLUMN()-1),0) -> 0 | C7: =IF(ROWS(GPS_IMPORT!$1:1)<=COUNTIF(GPS_IMPORT!$A$2:$A$10000,$B$5),INDEX(GPS_IMPORT!$2:$10000,MATCH($B$5,(GPS_IMPORT!$A$2:$A$10000),0)+ROWS($1:1)-1,COLUMN()-1),0) -> 00:00:00 | D7: =IF(ROWS(GPS_IMPORT!$1:1)<=COUNTIF(GPS_IMPORT!$A$2:$A$10000,$B$5),INDEX(GPS_IMPORT!$2:$10000,MATCH($B$5,(GPS_IMPORT!$A$2:$A$10000),0)+ROWS($1:1)-1,COLUMN()-1),0) -> 00:00:00 | E7: =IF(ROWS(GPS_IMPORT!$1:1)<=COUNTIF(GPS_IMPORT!$A$2:$A$10000,$B$5),INDEX(GPS_IMPORT!$2:$10000,MATCH($B$5,(GPS_IMPORT!$A$2:$A$10000),0)+ROWS($1:1)-1,COLUMN()-1),0) -> 0 | F7: =IF(ROWS(GPS_IMPORT!$1:1)<=COUNTIF(GPS_IMPORT!$A$2:$A$10000,$B$5),INDEX(GPS_IMPORT!$2:$10000,MATCH($B$5,(GPS_IMPORT!$A$2:$A$10000),0)+ROWS($1:1)-1,COLUMN()-1),0) -> 0 | G7: =IF(ROWS(GPS_IMPORT!$1:1)<=COUNTIF(GPS_IMPORT!$A$2:$A$10000,$B$5),INDEX(GPS_IMPORT!$2:$10000,MATCH($B$5,(GPS_IMPORT!$A$2:$A$10000),0)+ROWS($1:1)-1,COLUMN()-1),0) -> 0 | H7: =IF(E7>0,E$22-E7,0) -> 0 | I7: 0 | J7: 0 | K7: TRUE
A8: 2 | B8: =IF(ROWS(GPS_IMPORT!$1:2)<=COUNTIF(GPS_IMPORT!$A$2:$A$10000,$B$5),INDEX(GPS_IMPORT!$2:$10000,MATCH($B$5,(GPS_IMPORT!$A$2:$A$10000),0)+ROWS($1:2)-1,COLUMN()-1),0) -> 0 | C8: =IF(ROWS(GPS_IMPORT!$1:2)<=COUNTIF(GPS_IMPORT!$A$2:$A$10000,$B$5),INDEX(GPS_IMPORT!$2:$10000,MATCH($B$5,(GPS_IMPORT!$A$2:$A$10000),0)+ROWS($1:2)-1,COLUMN()-1),0) -> 00:00:00 | D8: =IF(ROWS(GPS_IMPORT!$1:2)<=COUNTIF(GPS_IMPORT!$A$2:$A$10000,$B$5),INDEX(GPS_IMPORT!$2:$10000,MATCH($B$5,(GPS_IMPORT!$A$2:$A$10000),0)+ROWS($1:2)-1,COLUMN()-1),0) -> 00:00:00 | E8: =IF(ROWS(GPS_IMPORT!$1:2)<=COUNTIF(GPS_IMPORT!$A$2:$A$10000,$B$5),INDEX(GPS_IMPORT!$2:$10000,MATCH($B$5,(GPS_IMPORT!$A$2:$A$10000),0)+ROWS($1:2)-1,COLUMN()-1),0) -> 0 | F8: =IF(ROWS(GPS_IMPORT!$1:2)<=COUNTIF(GPS_IMPORT!$A$2:$A$10000,$B$5),INDEX(GPS_IMPORT!$2:$10000,MATCH($B$5,(GPS_IMPORT!$A$2:$A$10000),0)+ROWS($1:2)-1,COLUMN()-1),0) -> 0 | G8: =IF(ROWS(GPS_IMPORT!$1:2)<=COUNTIF(GPS_IMPORT!$A$2:$A$10000,$B$5),INDEX(GPS_IMPORT!$2:$10000,MATCH($B$5,(GPS_IMPORT!$A$2:$A$10000),0)+ROWS($1:2)-1,COLUMN()-1),0) -> 0 | H8: 0 | I8: 0 | J8: 0 | K8: TRUE
A9: 3 | B9: =IF(ROWS(GPS_IMPORT!$1:3)<=COUNTIF(GPS_IMPORT!$A$2:$A$10000,$B$5),INDEX(GPS_IMPORT!$2:$10000,MATCH($B$5,(GPS_IMPORT!$A$2:$A$10000),0)+ROWS($1:3)-1,COLUMN()-1),0) -> 0 | C9: =IF(ROWS(GPS_IMPORT!$1:3)<=COUNTIF(GPS_IMPORT!$A$2:$A$10000,$B$5),INDEX(GPS_IMPORT!$2:$10000,MATCH($B$5,(GPS_IMPORT!$A$2:$A$10000),0)+ROWS($1:3)-1,COLUMN()-1),0) -> 00:00:00 | D9: =IF(ROWS(GPS_IMPORT!$1:3)<=COUNTIF(GPS_IMPORT!$A$2:$A$10000,$B$5),INDEX(GPS_IMPORT!$2:$10000,MATCH($B$5,(GPS_IMPORT!$A$2:$A$10000),0)+ROWS($1:3)-1,COLUMN()-1),0) -> 00:00:00 | E9: =IF(ROWS(GPS_IMPORT!$1:3)<=COUNTIF(GPS_IMPORT!$A$2:$A$10000,$B$5),INDEX(GPS_IMPORT!$2:$10000,MATCH($B$5,(GPS_IMPORT!$A$2:$A$10000),0)+ROWS($1:3)-1,COLUMN()-1),0) -> 0 | F9: =IF(ROWS(GPS_IMPORT!$1:3)<=COUNTIF(GPS_IMPORT!$A$2:$A$10000,$B$5),INDEX(GPS_IMPORT!$2:$10000,MATCH($B$5,(GPS_IMPORT!$A$2:$A$10000),0)+ROWS($1:3)-1,COLUMN()-1),0) -> 0 | G9: =IF(ROWS(GPS_IMPORT!$1:3)<=COUNTIF(GPS_IMPORT!$A$2:$A$10000,$B$5),INDEX(GPS_IMPORT!$2:$10000,MATCH($B$5,(GPS_IMPORT!$A$2:$A$10000),0)+ROWS($1:3)-1,COLUMN()-1),0) -> 0 | H9: 0 | I9: 0 | J9: 0 | K9: TRUE
A10: 4 | B10: =IF(ROWS(GPS_IMPORT!$1:4)<=COUNTIF(GPS_IMPORT!$A$2:$A$10000,$B$5),INDEX(GPS_IMPORT!$2:$10000,MATCH($B$5,(GPS_IMPORT!$A$2:$A$10000),0)+ROWS($1:4)-1,COLUMN()-1),0) -> 0 | C10: =IF(ROWS(GPS_IMPORT!$1:4)<=COUNTIF(GPS_IMPORT!$A$2:$A$10000,$B$5),INDEX(GPS_IMPORT!$2:$10000,MATCH($B$5,(GPS_IMPORT!$A$2:$A$10000),0)+ROWS($1:4)-1,COLUMN()-1),0) -> 00:00:00 | D10: =IF(ROWS(GPS_IMPORT!$1:4)<=COUNTIF(GPS_IMPORT!$A$2:$A$10000,$B$5),INDEX(GPS_IMPORT!$2:$10000,MATCH($B$5,(GPS_IMPORT!$A$2:$A$10000),0)+ROWS($1:4)-1,COLUMN()-1),0) -> 00:00:00 | E10: =IF(ROWS(GPS_IMPORT!$1:4)<=COUNTIF(GPS_IMPORT!$A$2:$A$10000,$B$5),INDEX(GPS_IMPORT!$2:$10000,MATCH($B$5,(GPS_IMPORT!$A$2:$A$10000),0)+ROWS($1:4)-1,COLUMN()-1),0) -> 0 | F10: =IF(ROWS(GPS_IMPORT!$1:4)<=COUNTIF(GPS_IMPORT!$A$2:$A$10000,$B$5),INDEX(GPS_IMPORT!$2:$10000,MATCH($B$5,(GPS_IMPORT!$A$2:$A$10000),0)+ROWS($1:4)-1,COLUMN()-1),0) -> 0 | G10: =IF(ROWS(GPS_IMPORT!$1:4)<=COUNTIF(GPS_IMPORT!$A$2:$A$10000,$B$5),INDEX(GPS_IMPORT!$2:$10000,MATCH($B$5,(GPS_IMPORT!$A$2:$A$10000),0)+ROWS($1:4)-1,COLUMN()-1),0) -> 0 | H10: 0 | I10: 0 | J10: 0 | K10: TRUE
A11: 5 | B11: =IF(ROWS(GPS_IMPORT!$1:5)<=COUNTIF(GPS_IMPORT!$A$2:$A$10000,$B$5),INDEX(GPS_IMPORT!$2:$10000,MATCH($B$5,(GPS_IMPORT!$A$2:$A$10000),0)+ROWS($1:5)-1,COLUMN()-1),0) -> 0 | C11: =IF(ROWS(GPS_IMPORT!$1:5)<=COUNTIF(GPS_IMPORT!$A$2:$A$10000,$B$5),INDEX(GPS_IMPORT!$2:$10000,MATCH($B$5,(GPS_IMPORT!$A$2:$A$10000),0)+ROWS($1:5)-1,COLUMN()-1),0) -> 00:00:00 | D11: =IF(ROWS(GPS_IMPORT!$1:5)<=COUNTIF(GPS_IMPORT!$A$2:$A$10000,$B$5),INDEX(GPS_IMPORT!$2:$10000,MATCH($B$5,(GPS_IMPORT!$A$2:$A$10000),0)+ROWS($1:5)-1,COLUMN()-1),0) -> 00:00:00 | E11: =IF(ROWS(GPS_IMPORT!$1:5)<=COUNTIF(GPS_IMPORT!$A$2:$A$10000,$B$5),INDEX(GPS_IMPORT!$2:$10000,MATCH($B$5,(GPS_IMPORT!$A$2:$A$10000),0)+ROWS($1:5)-1,COLUMN()-1),0) -> 0 | F11: =IF(ROWS(GPS_IMPORT!$1:5)<=COUNTIF(GPS_IMPORT!$A$2:$A$10000,$B$5),INDEX(GPS_IMPORT!$2:$10000,MATCH($B$5,(GPS_IMPORT!$A$2:$A$10000),0)+ROWS($1:5)-1,COLUMN()-1),0) -> 0 | G11: =IF(ROWS(GPS_IMPORT!$1:5)<=COUNTIF(GPS_IMPORT!$A$2:$A$10000,$B$5),INDEX(GPS_IMPORT!$2:$10000,MATCH($B$5,(GPS_IMPORT!$A$2:$A$10000),0)+ROWS($1:5)-1,COLUMN()-1),0) -> 0 | H11: 0 | I11: 0 | J11: 0 | K11: TRUE
A12: 6 | B12: =IF(ROWS(GPS_IMPORT!$1:6)<=COUNTIF(GPS_IMPORT!$A$2:$A$10000,$B$5),INDEX(GPS_IMPORT!$2:$10000,MATCH($B$5,(GPS_IMPORT!$A$2:$A$10000),0)+ROWS($1:6)-1,COLUMN()-1),0) -> 0 | C12: =IF(ROWS(GPS_IMPORT!$1:6)<=COUNTIF(GPS_IMPORT!$A$2:$A$10000,$B$5),INDEX(GPS_IMPORT!$2:$10000,MATCH($B$5,(GPS_IMPORT!$A$2:$A$10000),0)+ROWS($1:6)-1,COLUMN()-1),0) -> 00:00:00 | D12: =IF(ROWS(GPS_IMPORT!$1:6)<=COUNTIF(GPS_IMPORT!$A$2:$A$10000,$B$5),INDEX(GPS_IMPORT!$2:$10000,MATCH($B$5,(GPS_IMPORT!$A$2:$A$10000),0)+ROWS($1:6)-1,COLUMN()-1),0) -> 00:00:00 | E12: =IF(ROWS(GPS_IMPORT!$1:6)<=COUNTIF(GPS_IMPORT!$A$2:$A$10000,$B$5),INDEX(GPS_IMPORT!$2:$10000,MATCH($B$5,(GPS_IMPORT!$A$2:$A$10000),0)+ROWS($1:6)-1,COLUMN()-1),0) -> 0 | F12: =IF(ROWS(GPS_IMPORT!$1:6)<=COUNTIF(GPS_IMPORT!$A$2:$A$10000,$B$5),INDEX(GPS_IMPORT!$2:$10000,MATCH($B$5,(GPS_IMPORT!$A$2:$A$10000),0)+ROWS($1:6)-1,COLUMN()-1),0) -> 0 | G12: =IF(ROWS(GPS_IMPORT!$1:6)<=COUNTIF(GPS_IMPORT!$A$2:$A$10000,$B$5),INDEX(GPS_IMPORT!$2:$10000,MATCH($B$5,(GPS_IMPORT!$A$2:$A$10000),0)+ROWS($1:6)-1,COLUMN()-1),0) -> 0 | H12: 0 | I12: 0 | J12: 0 | K12: TRUE
A13: 7 | B13: =IF(ROWS(GPS_IMPORT!$1:7)<=COUNTIF(GPS_IMPORT!$A$2:$A$10000,$B$5),INDEX(GPS_IMPORT!$2:$10000,MATCH($B$5,(GPS_IMPORT!$A$2:$A$10000),0)+ROWS($1:7)-1,COLUMN()-1),0) -> 0 | C13: =IF(ROWS(GPS_IMPORT!$1:7)<=COUNTIF(GPS_IMPORT!$A$2:$A$10000,$B$5),INDEX(GPS_IMPORT!$2:$10000,MATCH($B$5,(GPS_IMPORT!$A$2:$A$10000),0)+ROWS($1:7)-1,COLUMN()-1),0) -> 00:00:00 | D13: =IF(ROWS(GPS_IMPORT!$1:7)<=COUNTIF(GPS_IMPORT!$A$2:$A$10000,$B$5),INDEX(GPS_IMPORT!$2:$10000,MATCH($B$5,(GPS_IMPORT!$A$2:$A$10000),0)+ROWS($1:7)-1,COLUMN()-1),0) -> 00:00:00 | E13: =IF(ROWS(GPS_IMPORT!$1:7)<=COUNTIF(GPS_IMPORT!$A$2:$A$10000,$B$5),INDEX(GPS_IMPORT!$2:$10000,MATCH($B$5,(GPS_IMPORT!$A$2:$A$10000),0)+ROWS($1:7)-1,COLUMN()-1),0) -> 0 | F13: =IF(ROWS(GPS_IMPORT!$1:7)<=COUNTIF(GPS_IMPORT!$A$2:$A$10000,$B$5),INDEX(GPS_IMPORT!$2:$10000,MATCH($B$5,(GPS_IMPORT!$A$2:$A$10000),0)+ROWS($1:7)-1,COLUMN()-1),0) -> 0 | G13: =IF(ROWS(GPS_IMPORT!$1:7)<=COUNTIF(GPS_IMPORT!$A$2:$A$10000,$B$5),INDEX(GPS_IMPORT!$2:$10000,MATCH($B$5,(GPS_IMPORT!$A$2:$A$10000),0)+ROWS($1:7)-1,COLUMN()-1),0) -> 0 | H13: 0 | I13: 0 | J13: 0 | K13: TRUE
A14: 8 | B14: =IF(ROWS(GPS_IMPORT!$1:8)<=COUNTIF(GPS_IMPORT!$A$2:$A$10000,$B$5),INDEX(GPS_IMPORT!$2:$10000,MATCH($B$5,(GPS_IMPORT!$A$2:$A$10000),0)+ROWS($1:8)-1,COLUMN()-1),0) -> 0 | C14: =IF(ROWS(GPS_IMPORT!$1:8)<=COUNTIF(GPS_IMPORT!$A$2:$A$10000,$B$5),INDEX(GPS_IMPORT!$2:$10000,MATCH($B$5,(GPS_IMPORT!$A$2:$A$10000),0)+ROWS($1:8)-1,COLUMN()-1),0) -> 00:00:00 | D14: =IF(ROWS(GPS_IMPORT!$1:8)<=COUNTIF(GPS_IMPORT!$A$2:$A$10000,$B$5),INDEX(GPS_IMPORT!$2:$10000,MATCH($B$5,(GPS_IMPORT!$A$2:$A$10000),0)+ROWS($1:8)-1,COLUMN()-1),0) -> 00:00:00 | E14: =IF(ROWS(GPS_IMPORT!$1:8)<=COUNTIF(GPS_IMPORT!$A$2:$A$10000,$B$5),INDEX(GPS_IMPORT!$2:$10000,MATCH($B$5,(GPS_IMPORT!$A$2:$A$10000),0)+ROWS($1:8)-1,COLUMN()-1),0) -> 0 | F14: =IF(ROWS(GPS_IMPORT!$1:8)<=COUNTIF(GPS_IMPORT!$A$2:$A$10000,$B$5),INDEX(GPS_IMPORT!$2:$10000,MATCH($B$5,(GPS_IMPORT!$A$2:$A$10000),0)+ROWS($1:8)-1,COLUMN()-1),0) -> 0 | G14: =IF(ROWS(GPS_IMPORT!$1:8)<=COUNTIF(GPS_IMPORT!$A$2:$A$10000,$B$5),INDEX(GPS_IMPORT!$2:$10000,MATCH($B$5,(GPS_IMPORT!$A$2:$A$10000),0)+ROWS($1:8)-1,COLUMN()-1),0) -> 0 | H14: 0 | I14: 0 | J14: 0 | K14: TRUE
A15: 9 | B15: =IF(ROWS(GPS_IMPORT!$1:9)<=COUNTIF(GPS_IMPORT!$A$2:$A$10000,$B$5),INDEX(GPS_IMPORT!$2:$10000,MATCH($B$5,(GPS_IMPORT!$A$2:$A$10000),0)+ROWS($1:9)-1,COLUMN()-1),0) -> 0 | C15: =IF(ROWS(GPS_IMPORT!$1:9)<=COUNTIF(GPS_IMPORT!$A$2:$A$10000,$B$5),INDEX(GPS_IMPORT!$2:$10000,MATCH($B$5,(GPS_IMPORT!$A$2:$A$10000),0)+ROWS($1:9)-1,COLUMN()-1),0) -> 00:00:00 | D15: =IF(ROWS(GPS_IMPORT!$1:9)<=COUNTIF(GPS_IMPORT!$A$2:$A$10000,$B$5),INDEX(GPS_IMPORT!$2:$10000,MATCH($B$5,(GPS_IMPORT!$A$2:$A$10000),0)+ROWS($1:9)-1,COLUMN()-1),0) -> 00:00:00 | E15: =IF(ROWS(GPS_IMPORT!$1:9)<=COUNTIF(GPS_IMPORT!$A$2:$A$10000,$B$5),INDEX(GPS_IMPORT!$2:$10000,MATCH($B$5,(GPS_IMPORT!$A$2:$A$10000),0)+ROWS($1:9)-1,COLUMN()-1),0) -> 0 | F15: =IF(ROWS(GPS_IMPORT!$1:9)<=COUNTIF(GPS_IMPORT!$A$2:$A$10000,$B$5),INDEX(GPS_IMPORT!$2:$10000,MATCH($B$5,(GPS_IMPORT!$A$2:$A$10000),0)+ROWS($1:9)-1,COLUMN()-1),0) -> 0 | G15: =IF(ROWS(GPS_IMPORT!$1:9)<=COUNTIF(GPS_IMPORT!$A$2:$A$10000,$B$5),INDEX(GPS_IMPORT!$2:$10000,MATCH($B$5,(GPS_IMPORT!$A$2:$A$10000),0)+ROWS($1:9)-1,COLUMN()-1),0) -> 0 | H15: 0 | I15: 0 | J15: 0 | K15: TRUE
A16: 10 | B16: =IF(ROWS(GPS_IMPORT!$1:10)<=COUNTIF(GPS_IMPORT!$A$2:$A$10000,$B$5),INDEX(GPS_IMPORT!$2:$10000,MATCH($B$5,(GPS_IMPORT!$A$2:$A$10000),0)+ROWS($1:10)-1,COLUMN()-1),0) -> 0 | C16: =IF(ROWS(GPS_IMPORT!$1:10)<=COUNTIF(GPS_IMPORT!$A$2:$A$10000,$B$5),INDEX(GPS_IMPORT!$2:$10000,MATCH($B$5,(GPS_IMPORT!$A$2:$A$10000),0)+ROWS($1:10)-1,COLUMN()-1),0) -> 00:00:00 | D16: =IF(ROWS(GPS_IMPORT!$1:10)<=COUNTIF(GPS_IMPORT!$A$2:$A$10000,$B$5),INDEX(GPS_IMPORT!$2:$10000,MATCH($B$5,(GPS_IMPORT!$A$2:$A$10000),0)+ROWS($1:10)-1,COLUMN()-1),0) -> 00:00:00 | E16: =IF(ROWS(GPS_IMPORT!$1:10)<=COUNTIF(GPS_IMPORT!$A$2:$A$10000,$B$5),INDEX(GPS_IMPORT!$2:$10000,MATCH($B$5,(GPS_IMPORT!$A$2:$A$10000),0)+ROWS($1:10)-1,COLUMN()-1),0) -> 0 | F16: =IF(ROWS(GPS_IMPORT!$1:10)<=COUNTIF(GPS_IMPORT!$A$2:$A$10000,$B$5),INDEX(GPS_IMPORT!$2:$10000,MATCH($B$5,(GPS_IMPORT!$A$2:$A$10000),0)+ROWS($1:10)-1,COLUMN()-1),0) -> 0 | G16: =IF(ROWS(GPS_IMPORT!$1:10)<=COUNTIF(GPS_IMPORT!$A$2:$A$10000,$B$5),INDEX(GPS_IMPORT!$2:$10000,MATCH($B$5,(GPS_IMPORT!$A$2:$A$10000),0)+ROWS($1:10)-1,COLUMN()-1),0) -> 0 | H16: 0 | I16: 0 | J16: 0 | K16: TRUE
A17: 11 | B17: =IF(ROWS(GPS_IMPORT!$1:11)<=COUNTIF(GPS_IMPORT!$A$2:$A$10000,$B$5),INDEX(GPS_IMPORT!$2:$10000,MATCH($B$5,(GPS_IMPORT!$A$2:$A$10000),0)+ROWS($1:11)-1,COLUMN()-1),0) -> 0 | C17: =IF(ROWS(GPS_IMPORT!$1:11)<=COUNTIF(GPS_IMPORT!$A$2:$A$10000,$B$5),INDEX(GPS_IMPORT!$2:$10000,MATCH($B$5,(GPS_IMPORT!$A$2:$A$10000),0)+ROWS($1:11)-1,COLUMN()-1),0) -> 00:00:00 | D17: =IF(ROWS(GPS_IMPORT!$1:11)<=COUNTIF(GPS_IMPORT!$A$2:$A$10000,$B$5),INDEX(GPS_IMPORT!$2:$10000,MATCH($B$5,(GPS_IMPORT!$A$2:$A$10000),0)+ROWS($1:11)-1,COLUMN()-1),0) -> 00:00:00 | E17: =IF(ROWS(GPS_IMPORT!$1:11)<=COUNTIF(GPS_IMPORT!$A$2:$A$10000,$B$5),INDEX(GPS_IMPORT!$2:$10000,MATCH($B$5,(GPS_IMPORT!$A$2:$A$10000),0)+ROWS($1:11)-1,COLUMN()-1),0) -> 0 | F17: =IF(ROWS(GPS_IMPORT!$1:11)<=COUNTIF(GPS_IMPORT!$A$2:$A$10000,$B$5),INDEX(GPS_IMPORT!$2:$10000,MATCH($B$5,(GPS_IMPORT!$A$2:$A$10000),0)+ROWS($1:11)-1,COLUMN()-1),0) -> 0 | G17: =IF(ROWS(GPS_IMPORT!$1:11)<=COUNTIF(GPS_IMPORT!$A$2:$A$10000,$B$5),INDEX(GPS_IMPORT!$2:$10000,MATCH($B$5,(GPS_IMPORT!$A$2:$A$10000),0)+ROWS($1:11)-1,COLUMN()-1),0) -> 0 | H17: 0 | I17: 0 | J17: 0 | K17: TRUE
A18: 12 | B18: =IF(ROWS(GPS_IMPORT!$1:12)<=COUNTIF(GPS_IMPORT!$A$2:$A$10000,$B$5),INDEX(GPS_IMPORT!$2:$10000,MATCH($B$5,(GPS_IMPORT!$A$2:$A$10000),0)+ROWS($1:12)-1,COLUMN()-1),0) -> 0 | C18: =IF(ROWS(GPS_IMPORT!$1:12)<=COUNTIF(GPS_IMPORT!$A$2:$A$10000,$B$5),INDEX(GPS_IMPORT!$2:$10000,MATCH($B$5,(GPS_IMPORT!$A$2:$A$10000),0)+ROWS($1:12)-1,COLUMN()-1),0) -> 00:00:00 | D18: =IF(ROWS(GPS_IMPORT!$1:12)<=COUNTIF(GPS_IMPORT!$A$2:$A$10000,$B$5),INDEX(GPS_IMPORT!$2:$10000,MATCH($B$5,(GPS_IMPORT!$A$2:$A$10000),0)+ROWS($1:12)-1,COLUMN()-1),0) -> 00:00:00 | E18: =IF(ROWS(GPS_IMPORT!$1:12)<=COUNTIF(GPS_IMPORT!$A$2:$A$10000,$B$5),INDEX(GPS_IMPORT!$2:$10000,MATCH($B$5,(GPS_IMPORT!$A$2:$A$10000),0)+ROWS($1:12)-1,COLUMN()-1),0) -> 0 | F18: =IF(ROWS(GPS_IMPORT!$1:12)<=COUNTIF(GPS_IMPORT!$A$2:$A$10000,$B$5),INDEX(GPS_IMPORT!$2:$10000,MATCH($B$5,(GPS_IMPORT!$A$2:$A$10000),0)+ROWS($1:12)-1,COLUMN()-1),0) -> 0 | G18: =IF(ROWS(GPS_IMPORT!$1:12)<=COUNTIF(GPS_IMPORT!$A$2:$A$10000,$B$5),INDEX(GPS_IMPORT!$2:$10000,MATCH($B$5,(GPS_IMPORT!$A$2:$A$10000),0)+ROWS($1:12)-1,COLUMN()-1),0) -> 0 | H18: 0 | I18: 0 | J18: 0 | K18: TRUE
A19: 13 | B19: =IF(ROWS(GPS_IMPORT!$1:13)<=COUNTIF(GPS_IMPORT!$A$2:$A$10000,$B$5),INDEX(GPS_IMPORT!$2:$10000,MATCH($B$5,(GPS_IMPORT!$A$2:$A$10000),0)+ROWS($1:13)-1,COLUMN()-1),0) -> 0 | C19: =IF(ROWS(GPS_IMPORT!$1:13)<=COUNTIF(GPS_IMPORT!$A$2:$A$10000,$B$5),INDEX(GPS_IMPORT!$2:$10000,MATCH($B$5,(GPS_IMPORT!$A$2:$A$10000),0)+ROWS($1:13)-1,COLUMN()-1),0) -> 00:00:00 | D19: =IF(ROWS(GPS_IMPORT!$1:13)<=COUNTIF(GPS_IMPORT!$A$2:$A$10000,$B$5),INDEX(GPS_IMPORT!$2:$10000,MATCH($B$5,(GPS_IMPORT!$A$2:$A$10000),0)+ROWS($1:13)-1,COLUMN()-1),0) -> 00:00:00 | E19: =IF(ROWS(GPS_IMPORT!$1:13)<=COUNTIF(GPS_IMPORT!$A$2:$A$10000,$B$5),INDEX(GPS_IMPORT!$2:$10000,MATCH($B$5,(GPS_IMPORT!$A$2:$A$10000),0)+ROWS($1:13)-1,COLUMN()-1),0) -> 0 | F19: =IF(ROWS(GPS_IMPORT!$1:13)<=COUNTIF(GPS_IMPORT!$A$2:$A$10000,$B$5),INDEX(GPS_IMPORT!$2:$10000,MATCH($B$5,(GPS_IMPORT!$A$2:$A$10000),0)+ROWS($1:13)-1,COLUMN()-1),0) -> 0 | G19: =IF(ROWS(GPS_IMPORT!$1:13)<=COUNTIF(GPS_IMPORT!$A$2:$A$10000,$B$5),INDEX(GPS_IMPORT!$2:$10000,MATCH($B$5,(GPS_IMPORT!$A$2:$A$10000),0)+ROWS($1:13)-1,COLUMN()-1),0) -> 0 | H19: =IF(E19>0,E$22-E19,0) -> 0 | I19: 0 | J19: 0 | K19: FALSE
A20: 14 | B20: =IF(ROWS(GPS_IMPORT!$1:14)<=COUNTIF(GPS_IMPORT!$A$2:$A$10000,$B$5),INDEX(GPS_IMPORT!$2:$10000,MATCH($B$5,(GPS_IMPORT!$A$2:$A$10000),0)+ROWS($1:14)-1,COLUMN()-1),0) -> 0 | C20: =IF(ROWS(GPS_IMPORT!$1:14)<=COUNTIF(GPS_IMPORT!$A$2:$A$10000,$B$5),INDEX(GPS_IMPORT!$2:$10000,MATCH($B$5,(GPS_IMPORT!$A$2:$A$10000),0)+ROWS($1:14)-1,COLUMN()-1),0) -> 00:00:00 | D20: =IF(ROWS(GPS_IMPORT!$1:14)<=COUNTIF(GPS_IMPORT!$A$2:$A$10000,$B$5),INDEX(GPS_IMPORT!$2:$10000,MATCH($B$5,(GPS_IMPORT!$A$2:$A$10000),0)+ROWS($1:14)-1,COLUMN()-1),0) -> 00:00:00 | E20: =IF(ROWS(GPS_IMPORT!$1:14)<=COUNTIF(GPS_IMPORT!$A$2:$A$10000,$B$5),INDEX(GPS_IMPORT!$2:$10000,MATCH($B$5,(GPS_IMPORT!$A$2:$A$10000),0)+ROWS($1:14)-1,COLUMN()-1),0) -> 0 | F20: =IF(ROWS(GPS_IMPORT!$1:14)<=COUNTIF(GPS_IMPORT!$A$2:$A$10000,$B$5),INDEX(GPS_IMPORT!$2:$10000,MATCH($B$5,(GPS_IMPORT!$A$2:$A$10000),0)+ROWS($1:14)-1,COLUMN()-1),0) -> 0 | G20: =IF(ROWS(GPS_IMPORT!$1:14)<=COUNTIF(GPS_IMPORT!$A$2:$A$10000,$B$5),INDEX(GPS_IMPORT!$2:$10000,MATCH($B$5,(GPS_IMPORT!$A$2:$A$10000),0)+ROWS($1:14)-1,COLUMN()-1),0) -> 0 | H20: 0 | I20: 0 | J20: 0 | K20: FALSE
A21: 15 | B21: =IF(ROWS(GPS_IMPORT!$1:15)<=COUNTIF(GPS_IMPORT!$A$2:$A$10000,$B$5),INDEX(GPS_IMPORT!$2:$10000,MATCH($B$5,(GPS_IMPORT!$A$2:$A$10000),0)+ROWS($1:15)-1,COLUMN()-1),0) -> 0 | C21: =IF(ROWS(GPS_IMPORT!$1:15)<=COUNTIF(GPS_IMPORT!$A$2:$A$10000,$B$5),INDEX(GPS_IMPORT!$2:$10000,MATCH($B$5,(GPS_IMPORT!$A$2:$A$10000),0)+ROWS($1:15)-1,COLUMN()-1),0) -> 00:00:00 | D21: =IF(ROWS(GPS_IMPORT!$1:15)<=COUNTIF(GPS_IMPORT!$A$2:$A$10000,$B$5),INDEX(GPS_IMPORT!$2:$10000,MATCH($B$5,(GPS_IMPORT!$A$2:$A$10000),0)+ROWS($1:15)-1,COLUMN()-1),0) -> 00:00:00 | E21: =IF(ROWS(GPS_IMPORT!$1:15)<=COUNTIF(GPS_IMPORT!$A$2:$A$10000,$B$5),INDEX(GPS_IMPORT!$2:$10000,MATCH($B$5,(GPS_IMPORT!$A$2:$A$10000),0)+ROWS($1:15)-1,COLUMN()-1),0) -> 0 | F21: =IF(ROWS(GPS_IMPORT!$1:15)<=COUNTIF(GPS_IMPORT!$A$2:$A$10000,$B$5),INDEX(GPS_IMPORT!$2:$10000,MATCH($B$5,(GPS_IMPORT!$A$2:$A$10000),0)+ROWS($1:15)-1,COLUMN()-1),0) -> 0 | G21: =IF(ROWS(GPS_IMPORT!$1:15)<=COUNTIF(GPS_IMPORT!$A$2:$A$10000,$B$5),INDEX(GPS_IMPORT!$2:$10000,MATCH($B$5,(GPS_IMPORT!$A$2:$A$10000),0)+ROWS($1:15)-1,COLUMN()-1),0) -> 0 | H21: 0 | I21: 0 | J21: 0 | K21: FALSE
D22: AVERAGE | E22: =(IF($K$7=TRUE,E7,0)+IF($K$8=TRUE,E8,0)+IF($K$9=TRUE,E9,0)+IF($K$10=TRUE,E10,0)+IF($K$11=TRUE,E11,0)+IF($K$12=TRUE,E12,0)+IF($K$13=TRUE,E13,0)+IF($K$14=TRUE,E14,0)+IF($K$15=TRUE,E15,0)+IF($K$16=TRUE,E16,0)+IF($K$17=TRUE,E17,0)+IF($K$18=TRUE,E18,0)+IF($K$19=TRUE,E19,0)+IF($K$20=TRUE,E20,0)+IF($K$21=TRUE,E21,0))/(IF($K$7=TRUE,1,0)+IF($K$8=TRUE,1,0)+IF($K$9=TRUE,1,0)+IF($K$10=TRUE,1,0)+IF($K$11=TRUE,1,0)+IF($K$12=TRUE,1,0)+IF($K$13=TRUE,1,0)+IF($K$14=TRUE,1,0)+IF($K$15=TRUE,1,0)+IF($K$16=TRUE,1,0)+IF($K$17=TRUE,1,0)+IF($K$18=TRUE,1,0)+IF($K$19=TRUE,1,0)+IF($K$20=TRUE,1,0)+IF($K$21=TRUE,1,0)) -> 0 | F22: =(IF($K$7=TRUE,F7,0)+IF($K$8=TRUE,F8,0)+IF($K$9=TRUE,F9,0)+IF($K$10=TRUE,F10,0)+IF($K$11=TRUE,F11,0)+IF($K$12=TRUE,F12,0)+IF($K$13=TRUE,F13,0)+IF($K$14=TRUE,F14,0)+IF($K$15=TRUE,F15,0)+IF($K$16=TRUE,F16,0)+IF($K$17=TRUE,F17,0)+IF($K$18=TRUE,F18,0)+IF($K$19=TRUE,F19,0)+IF($K$20=TRUE,F20,0)+IF($K$21=TRUE,F21,0))/(IF($K$7=TRUE,1,0)+IF($K$8=TRUE,1,0)+IF($K$9=TRUE,1,0)+IF($K$10=TRUE,1,0)+IF($K$11=TRUE,1,0)+IF($K$12=TRUE,1,0)+IF($K$13=TRUE,1,0)+IF($K$14=TRUE,1,0)+IF($K$15=TRUE,1,0)+IF($K$16=TRUE,1,0)+IF($K$17=TRUE,1,0)+IF($K$18=TRUE,1,0)+IF($K$19=TRUE,1,0)+IF($K$20=TRUE,1,0)+IF($K$21=TRUE,1,0)) -> 0 | G22: =(IF($K$7=TRUE,G7,0)+IF($K$8=TRUE,G8,0)+IF($K$9=TRUE,G9,0)+IF($K$10=TRUE,G10,0)+IF($K$11=TRUE,G11,0)+IF($K$12=TRUE,G12,0)+IF($K$13=TRUE,G13,0)+IF($K$14=TRUE,G14,0)+IF($K$15=TRUE,G15,0)+IF($K$16=TRUE,G16,0)+IF($K$17=TRUE,G17,0)+IF($K$18=TRUE,G18,0)+IF($K$19=TRUE,G19,0)+IF($K$20=TRUE,G20,0)+IF($K$21=TRUE,G21,0))/ (IF($K$7=TRUE,1,0)+IF($K$8=TRUE,1,0)+IF($K$9=TRUE,1,0)+IF($K$10=TRUE,1,0)+IF($K$11=TRUE,1,0)+IF($K$12=TRUE,1,0)+IF($K$13=TRUE,1,0)+IF($K$14=TRUE,1,0)+IF($K$15=TRUE,1,0)+IF($K$16=TRUE,1,0)+IF($K$17=TRUE,1,0)+IF($K$18=TRUE,1,0)+IF($K$19=TRUE,1,0)+IF($K$20=TRUE,1,0)+IF($K$21=TRUE,1,0)) -> 0 | H22: RMSE: | I22: RMSE: | J22: RMSE:
G23: RMSE IN METRIC: | H23: =SQRT(( (IF($K$7=TRUE,H7^2,0))+(IF($K$8=TRUE,H8^2,0))+(IF($K$9=TRUE,H9^2,0))+(IF($K$10=TRUE,H10^2,0))+(IF($K$11=TRUE,H11^2,0))+(IF($K$12=TRUE,H12^2,0))+(IF($K$13=TRUE,H13^2,0))+(IF($K$14=TRUE,H14^2,0))+(IF($K$15=TRUE,H15^2,0))+(IF($K$16=TRUE,H16^2,0))+(IF($K$17=TRUE,H17^2,0))+(IF($K$18=TRUE,H18^2,0))+(IF($K$19=TRUE,H19^2,0))+(IF($K$20=TRUE,H20^2,0))+(IF($K$21=TRUE,H21^2,0)))/ (IF($K$7=TRUE,1,0)+IF($K$8=TRUE,1,0)+IF($K$9=TRUE,1,0)+IF($K$10=TRUE,1,0)+IF($K$11=TRUE,1,0)+IF($K$12=TRUE,1,0)+IF($K$13=TRUE,1,0)+IF($K$14=TRUE,1,0)+IF($K$15=TRUE,1,0)+IF($K$16=TRUE,1,0)+IF($K$17=TRUE,1,0)+IF($K$18=TRUE,1,0)+IF($K$19=TRUE,1,0)+IF($K$20=TRUE,1,0)+IF($K$21=TRUE,1,0))) -> 0 | I23: =SQRT(( (IF($K$7=TRUE,I7^2,0))+(IF($K$8=TRUE,I8^2,0))+(IF($K$9=TRUE,I9^2,0))+(IF($K$10=TRUE,I10^2,0))+(IF($K$11=TRUE,I11^2,0))+(IF($K$12=TRUE,I12^2,0))+(IF($K$13=TRUE,I13^2,0))+(IF($K$14=TRUE,I14^2,0))+(IF($K$15=TRUE,I15^2,0))+(IF($K$16=TRUE,I16^2,0))+(IF($K$17=TRUE,I17^2,0))+(IF($K$18=TRUE,I18^2,0))+(IF($K$19=TRUE,I19^2,0))+(IF($K$20=TRUE,I20^2,0))+(IF($K$21=TRUE,I21^2,0)))/ (IF($K$7=TRUE,1,0)+IF($K$8=TRUE,1,0)+IF($K$9=TRUE,1,0)+IF($K$10=TRUE,1,0)+IF($K$11=TRUE,1,0)+IF($K$12=TRUE,1,0)+IF($K$13=TRUE,1,0)+IF($K$14=TRUE,1,0)+IF($K$15=TRUE,1,0)+IF($K$16=TRUE,1,0)+IF($K$17=TRUE,1,0)+IF($K$18=TRUE,1,0)+IF($K$19=TRUE,1,0)+IF($K$20=TRUE,1,0)+IF($K$21=TRUE,1,0))) -> 0 | J23: =SQRT(( (IF($K$7=TRUE,J7^2,0))+(IF($K$8=TRUE,J8^2,0))+(IF($K$9=TRUE,J9^2,0))+(IF($K$10=TRUE,J10^2,0))+(IF($K$11=TRUE,J11^2,0))+(IF($K$12=TRUE,J12^2,0))+(IF($K$13=TRUE,J13^2,0))+(IF($K$14=TRUE,J14^2,0))+(IF($K$15=TRUE,J15^2,0))+(IF($K$16=TRUE,J16^2,0))+(IF($K$17=TRUE,J17^2,0))+(IF($K$18=TRUE,J18^2,0))+(IF($K$19=TRUE,J19^2,0))+(IF($K$20=TRUE,J20^2,0))+(IF($K$21=TRUE,J21^2,0)))/ (IF($K$7=TRUE,1,0)+IF($K$8=TRUE,1,0)+IF($K$9=TRUE,1,0)+IF($K$10=TRUE,1,0)+IF($K$11=TRUE,1,0)+IF($K$12=TRUE,1,0)+IF($K$13=TRUE,1,0)+IF($K$14=TRUE,1,0)+IF($K$15=TRUE,1,0)+IF($K$16=TRUE,1,0)+IF($K$17=TRUE,1,0)+IF($K$18=TRUE,1,0)+IF($K$19=TRUE,1,0)+IF($K$20=TRUE,1,0)+IF($K$21=TRUE,1,0))) -> 0
C24: ENGLISH TO METRIC CONVERSION | D24: =3937/1200 -> 3.280833333 | G24: RMSE IN US SURVEY FEET: | H24: =H23*$D$24 -> 0 | I24: =I23*$D$24 -> 0 | J24: =J23*$D$24 -> 0
C25: UNITLESS GRID TO GROUND MULTIPLIER | D25: =REPORT!C13 -> 0 | H25: =IF(H24<=0.029,"PASS","FAIL") -> PASS | I25: =IF(I24<=0.029,"PASS","FAIL") -> PASS | J25: =IF(J24<=0.039,"PASS","FAIL") -> PASS
A27: AVERAGED GPS-DERIVED POSITION | I27: Notes:
B28: MONUMENT COORDINATES | D28: NORTHING | E28: EASTING | F28: ORTHO HEIGHT
B29: METERS (GRID) | D29: =$E$22 -> 0 | E29: =$F$22 -> 0 | F29: =$G$22 -> 0
A31: LEVELED ELEVATION
A32: US SURVEY FEET | C32: =VLOOKUP(B5,'LEVEL RUN'!A8:I59,9,FALSE) ->  | D32: (Type the leveled elevation or N/A if no leveled elevation is available)
A33: MONUMENT HELD | D33: (Type the monument name from which leveling originated)
A34: LEVELED ELEVATION - GPS DERIVED ELEVATION = | E34: =IF(C32="N/A","N/A",C32-(F29*D24)) -> 
A36: FINAL MONUMENT COORDINATES
B37: MONUMENT COORDINATES | D37: NORTHING | E37: EASTING | F37: ELEVATION | G37: FEATURE CODE
B38: US SURVEY FEET (GRID) | D38: =$E$22*$D$24 -> 0 | E38: =$F$22*$D$24 -> 0 | F38: =IF($C$32="N/A",($G$22*$D$24),$C$32) ->  | G38: IPINS
B39: US SURVEY FEET (GROUND) | D39: =$D$38*$D$25 -> 0 | E39: =$E$38*$D$25 -> 0 | F39: =IF($C$32="N/A",($G$22*$D$24),$C$32) ->  | G39: IPINS
A41: ∆ North, ∆ East, and ∆ Ht. are the difference between the average northing, easting, and height for each observation. | I41: Mask Angle: | J41: 13°

Sheet CP02
A1: VRS GNSS Project Control Monument Coordinate Analysis
A3: PROJECT: | B3: =REPORT!B2 -> XXX-XXX-XXXX | C3: GPS Antenna: | D3: Trimble R6 | J3: Report Date: | K3: ='CP01'!K3 -> 00:00:00
A4: PID: | B4: =REPORT!E2 -> XXXXX | C4: VRS Network: | D4: ODOT VRS | J4: Prepared By: | K4: ='CP01'!K4 -> 0
A5: MONUMENT NUMBER: | B5: CP02 | C5: No. of Sessions: | D5: =COUNTIF(GPS_IMPORT!A2:A1000,$B$5) -> 0 | J5: Checked By: | K5: ='CP01'!K5 -> 0
A6: SESSION # | B6: Point | C6: Observation Date | D6: Start Time | E6: Northing(m) | F6: Easting(m) | G6: Height(m) | H6: ∆ Northing(m) | I6: ∆ Easting(m) | J6: ∆ Height(m) | K6: Include in Solution?
A7: 1 | B7: =IF(ROWS(GPS_IMPORT!$1:1)<=COUNTIF(GPS_IMPORT!$A$2:$A$10000,$B$5),INDEX(GPS_IMPORT!$2:$10000,MATCH($B$5,(GPS_IMPORT!$A$2:$A$10000),0)+ROWS($1:1)-1,COLUMN()-1),0) -> 0 | C7: =IF(ROWS(GPS_IMPORT!$1:1)<=COUNTIF(GPS_IMPORT!$A$2:$A$10000,$B$5),INDEX(GPS_IMPORT!$2:$10000,MATCH($B$5,(GPS_IMPORT!$A$2:$A$10000),0)+ROWS($1:1)-1,COLUMN()-1),0) -> 00:00:00 | D7: =IF(ROWS(GPS_IMPORT!$1:1)<=COUNTIF(GPS_IMPORT!$A$2:$A$10000,$B$5),INDEX(GPS_IMPORT!$2:$10000,MATCH($B$5,(GPS_IMPORT!$A$2:$A$10000),0)+ROWS($1:1)-1,COLUMN()-1),0) -> 00:00:00 | E7: =IF(ROWS(GPS_IMPORT!$1:1)<=COUNTIF(GPS_IMPORT!$A$2:$A$10000,$B$5),INDEX(GPS_IMPORT!$2:$10000,MATCH($B$5,(GPS_IMPORT!$A$2:$A$10000),0)+ROWS($1:1)-1,COLUMN()-1),0) -> 0 | F7: =IF(ROWS(GPS_IMPORT!$1:1)<=COUNTIF(GPS_IMPORT!$A$2:$A$10000,$B$5),INDEX(GPS_IMPORT!$2:$10000,MATCH($B$5,(GPS_IMPORT!$A$2:$A$10000),0)+ROWS($1:1)-1,COLUMN()-1),0) -> 0 | G7: =IF(ROWS(GPS_IMPORT!$1:1)<=COUNTIF(GPS_IMPORT!$A$2:$A$10000,$B$5),INDEX(GPS_IMPORT!$2:$10000,MATCH($B$5,(GPS_IMPORT!$A$2:$A$10000),0)+ROWS($1:1)-1,COLUMN()-1),0) -> 0 | H7: =IF(E7>0,E$22-E7,0) -> 0 | I7: 0 | J7: 0 | K7: TRUE
A8: 2 | B8: =IF(ROWS(GPS_IMPORT!$1:2)<=COUNTIF(GPS_IMPORT!$A$2:$A$10000,$B$5),INDEX(GPS_IMPORT!$2:$10000,MATCH($B$5,(GPS_IMPORT!$A$2:$A$10000),0)+ROWS($1:2)-1,COLUMN()-1),0) -> 0 | C8: =IF(ROWS(GPS_IMPORT!$1:2)<=COUNTIF(GPS_IMPORT!$A$2:$A$10000,$B$5),INDEX(GPS_IMPORT!$2:$10000,MATCH($B$5,(GPS_IMPORT!$A$2:$A$10000),0)+ROWS($1:2)-1,COLUMN()-1),0) -> 00:00:00 | D8: =IF(ROWS(GPS_IMPORT!$1:2)<=COUNTIF(GPS_IMPORT!$A$2:$A$10000,$B$5),INDEX(GPS_IMPORT!$2:$10000,MATCH($B$5,(GPS_IMPORT!$A$2:$A$10000),0)+ROWS($1:2)-1,COLUMN()-1),0) -> 00:00:00 | E8: =IF(ROWS(GPS_IMPORT!$1:2)<=COUNTIF(GPS_IMPORT!$A$2:$A$10000,$B$5),INDEX(GPS_IMPORT!$2:$10000,MATCH($B$5,(GPS_IMPORT!$A$2:$A$10000),0)+ROWS($1:2)-1,COLUMN()-1),0) -> 0 | F8: =IF(ROWS(GPS_IMPORT!$1:2)<=COUNTIF(GPS_IMPORT!$A$2:$A$10000,$B$5),INDEX(GPS_IMPORT!$2:$10000,MATCH($B$5,(GPS_IMPORT!$A$2:$A$10000),0)+ROWS($1:2)-1,COLUMN()-1),0) -> 0 | G8: =IF(ROWS(GPS_IMPORT!$1:2)<=COUNTIF(GPS_IMPORT!$A$2:$A$10000,$B$5),INDEX(GPS_IMPORT!$2:$10000,MATCH($B$5,(GPS_IMPORT!$A$2:$A$10000),0)+ROWS($1:2)-1,COLUMN()-1),0) -> 0 | H8: 0 | I8: 0 | J8: 0 | K8: TRUE
A9: 3 | B9: =IF(ROWS(GPS_IMPORT!$1:3)<=COUNTIF(GPS_IMPORT!$A$2:$A$10000,$B$5),INDEX(GPS_IMPORT!$2:$10000,MATCH($B$5,(GPS_IMPORT!$A$2:$A$10000),0)+ROWS($1:3)-1,COLUMN()-1),0) -> 0 | C9: =IF(ROWS(GPS_IMPORT!$1:3)<=COUNTIF(GPS_IMPORT!$A$2:$A$10000,$B$5),INDEX(GPS_IMPORT!$2:$10000,MATCH($B$5,(GPS_IMPORT!$A$2:$A$10000),0)+ROWS($1:3)-1,COLUMN()-1),0) -> 00:00:00 | D9: =IF(ROWS(GPS_IMPORT!$1:3)<=COUNTIF(GPS_IMPORT!$A$2:$A$10000,$B$5),INDEX(GPS_IMPORT!$2:$10000,MATCH($B$5,(GPS_IMPORT!$A$2:$A$10000),0)+ROWS($1:3)-1,COLUMN()-1),0) -> 00:00:00 | E9: =IF(ROWS(GPS_IMPORT!$1:3)<=COUNTIF(GPS_IMPORT!$A$2:$A$10000,$B$5),INDEX(GPS_IMPORT!$2:$10000,MATCH($B$5,(GPS_IMPORT!$A$2:$A$10000),0)+ROWS($1:3)-1,COLUMN()-1),0) -> 0 | F9: =IF(ROWS(GPS_IMPORT!$1:3)<=COUNTIF(GPS_IMPORT!$A$2:$A$10000,$B$5),INDEX(GPS_IMPORT!$2:$10000,MATCH($B$5,(GPS_IMPORT!$A$2:$A$10000),0)+ROWS($1:3)-1,COLUMN()-1),0) -> 0 | G9: =IF(ROWS(GPS_IMPORT!$1:3)<=COUNTIF(GPS_IMPORT!$A$2:$A$10000,$B$5),INDEX(GPS_IMPORT!$2:$10000,MATCH($B$5,(GPS_IMPORT!$A$2:$A$10000),0)+ROWS($1:3)-1,COLUMN()-1),0) -> 0 | H9: 0 | I9: 0 | J9: 0 | K9: TRUE
A10: 4 | B10: =IF(ROWS(GPS_IMPORT!$1:4)<=COUNTIF(GPS_IMPORT!$A$2:$A$10000,$B$5),INDEX(GPS_IMPORT!$2:$10000,MATCH($B$5,(GPS_IMPORT!$A$2:$A$10000),0)+ROWS($1:4)-1,COLUMN()-1),0) -> 0 | C10: =IF(ROWS(GPS_IMPORT!$1:4)<=COUNTIF(GPS_IMPORT!$A$2:$A$10000,$B$5),INDEX(GPS_IMPORT!$2:$10000,MATCH($B$5,(GPS_IMPORT!$A$2:$A$10000),0)+ROWS($1:4)-1,COLUMN()-1),0) -> 00:00:00 | D10: =IF(ROWS(GPS_IMPORT!$1:4)<=COUNTIF(GPS_IMPORT!$A$2:$A$10000,$B$5),INDEX(GPS_IMPORT!$2:$10000,MATCH($B$5,(GPS_IMPORT!$A$2:$A$10000),0)+ROWS($1:4)-1,COLUMN()-1),0) -> 00:00:00 | E10: =IF(ROWS(GPS_IMPORT!$1:4)<=COUNTIF(GPS_IMPORT!$A$2:$A$10000,$B$5),INDEX(GPS_IMPORT!$2:$10000,MATCH($B$5,(GPS_IMPORT!$A$2:$A$10000),0)+ROWS($1:4)-1,COLUMN()-1),0) -> 0 | F10: =IF(ROWS(GPS_IMPORT!$1:4)<=COUNTIF(GPS_IMPORT!$A$2:$A$10000,$B$5),INDEX(GPS_IMPORT!$2:$10000,MATCH($B$5,(GPS_IMPORT!$A$2:$A$10000),0)+ROWS($1:4)-1,COLUMN()-1),0) -> 0 | G10: =IF(ROWS(GPS_IMPORT!$1:4)<=COUNTIF(GPS_IMPORT!$A$2:$A$10000,$B$5),INDEX(GPS_IMPORT!$2:$10000,MATCH($B$5,(GPS_IMPORT!$A$2:$A$10000),0)+ROWS($1:4)-1,COLUMN()-1),0) -> 0 | H10: 0 | I10: 0 | J10: 0 | K10: TRUE
A11: 5 | B11: =IF(ROWS(GPS_IMPORT!$1:5)<=COUNTIF(GPS_IMPORT!$A$2:$A$10000,$B$5),INDEX(GPS_IMPORT!$2:$10000,MATCH($B$5,(GPS_IMPORT!$A$2:$A$10000),0)+ROWS($1:5)-1,COLUMN()-1),0) -> 0 | C11: =IF(ROWS(GPS_IMPORT!$1:5)<=COUNTIF(GPS_IMPORT!$A$2:$A$10000,$B$5),INDEX(GPS_IMPORT!$2:$10000,MATCH($B$5,(GPS_IMPORT!$A$2:$A$10000),0)+ROWS($1:5)-1,COLUMN()-1),0) -> 00:00:00 | D11: =IF(ROWS(GPS_IMPORT!$1:5)<=COUNTIF(GPS_IMPORT!$A$2:$A$10000,$B$5),INDEX(GPS_IMPORT!$2:$10000,MATCH($B$5,(GPS_IMPORT!$A$2:$A$10000),0)+ROWS($1:5)-1,COLUMN()-1),0) -> 00:00:00 | E11: =IF(ROWS(GPS_IMPORT!$1:5)<=COUNTIF(GPS_IMPORT!$A$2:$A$10000,$B$5),INDEX(GPS_IMPORT!$2:$10000,MATCH($B$5,(GPS_IMPORT!$A$2:$A$10000),0)+ROWS($1:5)-1,COLUMN()-1),0) -> 0 | F11: =IF(ROWS(GPS_IMPORT!$1:5)<=COUNTIF(GPS_IMPORT!$A$2:$A$10000,$B$5),INDEX(GPS_IMPORT!$2:$10000,MATCH($B$5,(GPS_IMPORT!$A$2:$A$10000),0)+ROWS($1:5)-1,COLUMN()-1),0) -> 0 | G11: =IF(ROWS(GPS_IMPORT!$1:5)<=COUNTIF(GPS_IMPORT!$A$2:$A$10000,$B$5),INDEX(GPS_IMPORT!$2:$10000,MATCH($B$5,(GPS_IMPORT!$A$2:$A$10000),0)+ROWS($1:5)-1,COLUMN()-1),0) -> 0 | H11: 0 | I11: 0 | J11: 0 | K11: TRUE
A12: 6 | B12: =IF(ROWS(GPS_IMPORT!$1:6)<=COUNTIF(GPS_IMPORT!$A$2:$A$10000,$B$5),INDEX(GPS_IMPORT!$2:$10000,MATCH($B$5,(GPS_IMPORT!$A$2:$A$10000),0)+ROWS($1:6)-1,COLUMN()-1),0) -> 0 | C12: =IF(ROWS(GPS_IMPORT!$1:6)<=COUNTIF(GPS_IMPORT!$A$2:$A$10000,$B$5),INDEX(GPS_IMPORT!$2:$10000,MATCH($B$5,(GPS_IMPORT!$A$2:$A$10000),0)+ROWS($1:6)-1,COLUMN()-1),0) -> 00:00:00 | D12: =IF(ROWS(GPS_IMPORT!$1:6)<=COUNTIF(GPS_IMPORT!$A$2:$A$10000,$B$5),INDEX(GPS_IMPORT!$2:$10000,MATCH($B$5,(GPS_IMPORT!$A$2:$A$10000),0)+ROWS($1:6)-1,COLUMN()-1),0) -> 00:00:00 | E12: =IF(ROWS(GPS_IMPORT!$1:6)<=COUNTIF(GPS_IMPORT!$A$2:$A$10000,$B$5),INDEX(GPS_IMPORT!$2:$10000,MATCH($B$5,(GPS_IMPORT!$A$2:$A$10000),0)+ROWS($1:6)-1,COLUMN()-1),0) -> 0 | F12: =IF(ROWS(GPS_IMPORT!$1:6)<=COUNTIF(GPS_IMPORT!$A$2:$A$10000,$B$5),INDEX(GPS_IMPORT!$2:$10000,MATCH($B$5,(GPS_IMPORT!$A$2:$A$10000),0)+ROWS($1:6)-1,COLUMN()-1),0) -> 0 | G12: =IF(ROWS(GPS_IMPORT!$1:6)<=COUNTIF(GPS_IMPORT!$A$2:$A$10000,$B$5),INDEX(GPS_IMPORT!$2:$10000,MATCH($B$5,(GPS_IMPORT!$A$2:$A$10000),0)+ROWS($1:6)-1,COLUMN()-1),0) -> 0 | H12: 0 | I12: 0 | J12: 0 | K12: TRUE
A13: 7 | B13: =IF(ROWS(GPS_IMPORT!$1:7)<=COUNTIF(GPS_IMPORT!$A$2:$A$10000,$B$5),INDEX(GPS_IMPORT!$2:$10000,MATCH($B$5,(GPS_IMPORT!$A$2:$A$10000),0)+ROWS($1:7)-1,COLUMN()-1),0) -> 0 | C13: =IF(ROWS(GPS_IMPORT!$1:7)<=COUNTIF(GPS_IMPORT!$A$2:$A$10000,$B$5),INDEX(GPS_IMPORT!$2:$10000,MATCH($B$5,(GPS_IMPORT!$A$2:$A$10000),0)+ROWS($1:7)-1,COLUMN()-1),0) -> 00:00:00 | D13: =IF(ROWS(GPS_IMPORT!$1:7)<=COUNTIF(GPS_IMPORT!$A$2:$A$10000,$B$5),INDEX(GPS_IMPORT!$2:$10000,MATCH($B$5,(GPS_IMPORT!$A$2:$A$10000),0)+ROWS($1:7)-1,COLUMN()-1),0) -> 00:00:00 | E13: =IF(ROWS(GPS_IMPORT!$1:7)<=COUNTIF(GPS_IMPORT!$A$2:$A$10000,$B$5),INDEX(GPS_IMPORT!$2:$10000,MATCH($B$5,(GPS_IMPORT!$A$2:$A$10000),0)+ROWS($1:7)-1,COLUMN()-1),0) -> 0 | F13: =IF(ROWS(GPS_IMPORT!$1:7)<=COUNTIF(GPS_IMPORT!$A$2:$A$10000,$B$5),INDEX(GPS_IMPORT!$2:$10000,MATCH($B$5,(GPS_IMPORT!$A$2:$A$10000),0)+ROWS($1:7)-1,COLUMN()-1),0) -> 0 | G13: =IF(ROWS(GPS_IMPORT!$1:7)<=COUNTIF(GPS_IMPORT!$A$2:$A$10000,$B$5),INDEX(GPS_IMPORT!$2:$10000,MATCH($B$5,(GPS_IMPORT!$A$2:$A$10000),0)+ROWS($1:7)-1,COLUMN()-1),0) -> 0 | H13: 0 | I13: 0 | J13: 0 | K13: TRUE
A14: 8 | B14: =IF(ROWS(GPS_IMPORT!$1:8)<=COUNTIF(GPS_IMPORT!$A$2:$A$10000,$B$5),INDEX(GPS_IMPORT!$2:$10000,MATCH($B$5,(GPS_IMPORT!$A$2:$A$10000),0)+ROWS($1:8)-1,COLUMN()-1),0) -> 0 | C14: =IF(ROWS(GPS_IMPORT!$1:8)<=COUNTIF(GPS_IMPORT!$A$2:$A$10000,$B$5),INDEX(GPS_IMPORT!$2:$10000,MATCH($B$5,(GPS_IMPORT!$A$2:$A$10000),0)+ROWS($1:8)-1,COLUMN()-1),0) -> 00:00:00 | D14: =IF(ROWS(GPS_IMPORT!$1:8)<=COUNTIF(GPS_IMPORT!$A$2:$A$10000,$B$5),INDEX(GPS_IMPORT!$2:$10000,MATCH($B$5,(GPS_IMPORT!$A$2:$A$10000),0)+ROWS($1:8)-1,COLUMN()-1),0) -> 00:00:00 | E14: =IF(ROWS(GPS_IMPORT!$1:8)<=COUNTIF(GPS_IMPORT!$A$2:$A$10000,$B$5),INDEX(GPS_IMPORT!$2:$10000,MATCH($B$5,(GPS_IMPORT!$A$2:$A$10000),0)+ROWS($1:8)-1,COLUMN()-1),0) -> 0 | F14: =IF(ROWS(GPS_IMPORT!$1:8)<=COUNTIF(GPS_IMPORT!$A$2:$A$10000,$B$5),INDEX(GPS_IMPORT!$2:$10000,MATCH($B$5,(GPS_IMPORT!$A$2:$A$10000),0)+ROWS($1:8)-1,COLUMN()-1),0) -> 0 | G14: =IF(ROWS(GPS_IMPORT!$1:8)<=COUNTIF(GPS_IMPORT!$A$2:$A$10000,$B$5),INDEX(GPS_IMPORT!$2:$10000,MATCH($B$5,(GPS_IMPORT!$A$2:$A$10000),0)+ROWS($1:8)-1,COLUMN()-1),0) -> 0 | H14: 0 | I14: 0 | J14: 0 | K14: TRUE
A15: 9 | B15: =IF(ROWS(GPS_IMPORT!$1:9)<=COUNTIF(GPS_IMPORT!$A$2:$A$10000,$B$5),INDEX(GPS_IMPORT!$2:$10000,MATCH($B$5,(GPS_IMPORT!$A$2:$A$10000),0)+ROWS($1:9)-1,COLUMN()-1),0) -> 0 | C15: =IF(ROWS(GPS_IMPORT!$1:9)<=COUNTIF(GPS_IMPORT!$A$2:$A$10000,$B$5),INDEX(GPS_IMPORT!$2:$10000,MATCH($B$5,(GPS_IMPORT!$A$2:$A$10000),0)+ROWS($1:9)-1,COLUMN()-1),0) -> 00:00:00 | D15: =IF(ROWS(GPS_IMPORT!$1:9)<=COUNTIF(GPS_IMPORT!$A$2:$A$10000,$B$5),INDEX(GPS_IMPORT!$2:$10000,MATCH($B$5,(GPS_IMPORT!$A$2:$A$10000),0)+ROWS($1:9)-1,COLUMN()-1),0) -> 00:00:00 | E15: =IF(ROWS(GPS_IMPORT!$1:9)<=COUNTIF(GPS_IMPORT!$A$2:$A$10000,$B$5),INDEX(GPS_IMPORT!$2:$10000,MATCH($B$5,(GPS_IMPORT!$A$2:$A$10000),0)+ROWS($1:9)-1,COLUMN()-1),0) -> 0 | F15: =IF(ROWS(GPS_IMPORT!$1:9)<=COUNTIF(GPS_IMPORT!$A$2:$A$10000,$B$5),INDEX(GPS_IMPORT!$2:$10000,MATCH($B$5,(GPS_IMPORT!$A$2:$A$10000),0)+ROWS($1:9)-1,COLUMN()-1),0) -> 0 | G15: =IF(ROWS(GPS_IMPORT!$1:9)<=COUNTIF(GPS_IMPORT!$A$2:$A$10000,$B$5),INDEX(GPS_IMPORT!$2:$10000,MATCH($B$5,(GPS_IMPORT!$A$2:$A$10000),0)+ROWS($1:9)-1,COLUMN()-1),0) -> 0 | H15: 0 | I15: 0 | J15: 0 | K15: TRUE
A16: 10 | B16: =IF(ROWS(GPS_IMPORT!$1:10)<=COUNTIF(GPS_IMPORT!$A$2:$A$10000,$B$5),INDEX(GPS_IMPORT!$2:$10000,MATCH($B$5,(GPS_IMPORT!$A$2:$A$10000),0)+ROWS($1:10)-1,COLUMN()-1),0) -> 0 | C16: =IF(ROWS(GPS_IMPORT!$1:10)<=COUNTIF(GPS_IMPORT!$A$2:$A$10000,$B$5),INDEX(GPS_IMPORT!$2:$10000,MATCH($B$5,(GPS_IMPORT!$A$2:$A$10000),0)+ROWS($1:10)-1,COLUMN()-1),0) -> 00:00:00 | D16: =IF(ROWS(GPS_IMPORT!$1:10)<=COUNTIF(GPS_IMPORT!$A$2:$A$10000,$B$5),INDEX(GPS_IMPORT!$2:$10000,MATCH($B$5,(GPS_IMPORT!$A$2:$A$10000),0)+ROWS($1:10)-1,COLUMN()-1),0) -> 00:00:00 | E16: =IF(ROWS(GPS_IMPORT!$1:10)<=COUNTIF(GPS_IMPORT!$A$2:$A$10000,$B$5),INDEX(GPS_IMPORT!$2:$10000,MATCH($B$5,(GPS_IMPORT!$A$2:$A$10000),0)+ROWS($1:10)-1,COLUMN()-1),0) -> 0 | F16: =IF(ROWS(GPS_IMPORT!$1:10)<=COUNTIF(GPS_IMPORT!$A$2:$A$10000,$B$5),INDEX(GPS_IMPORT!$2:$10000,MATCH($B$5,(GPS_IMPORT!$A$2:$A$10000),0)+ROWS($1:10)-1,COLUMN()-1),0) -> 0 | G16: =IF(ROWS(GPS_IMPORT!$1:10)<=COUNTIF(GPS_IMPORT!$A$2:$A$10000,$B$5),INDEX(GPS_IMPORT!$2:$10000,MATCH($B$5,(GPS_IMPORT!$A$2:$A$10000),0)+ROWS($1:10)-1,COLUMN()-1),0) -> 0 | H16: 0 | I16: 0 | J16: 0 | K16: TRUE
A17: 11 | B17: =IF(ROWS(GPS_IMPORT!$1:11)<=COUNTIF(GPS_IMPORT!$A$2:$A$10000,$B$5),INDEX(GPS_IMPORT!$2:$10000,MATCH($B$5,(GPS_IMPORT!$A$2:$A$10000),0)+ROWS($1:11)-1,COLUMN()-1),0) -> 0 | C17: =IF(ROWS(GPS_IMPORT!$1:11)<=COUNTIF(GPS_IMPORT!$A$2:$A$10000,$B$5),INDEX(GPS_IMPORT!$2:$10000,MATCH($B$5,(GPS_IMPORT!$A$2:$A$10000),0)+ROWS($1:11)-1,COLUMN()-1),0) -> 00:00:00 | D17: =IF(ROWS(GPS_IMPORT!$1:11)<=COUNTIF(GPS_IMPORT!$A$2:$A$10000,$B$5),INDEX(GPS_IMPORT!$2:$10000,MATCH($B$5,(GPS_IMPORT!$A$2:$A$10000),0)+ROWS($1:11)-1,COLUMN()-1),0) -> 00:00:00 | E17: =IF(ROWS(GPS_IMPORT!$1:11)<=COUNTIF(GPS_IMPORT!$A$2:$A$10000,$B$5),INDEX(GPS_IMPORT!$2:$10000,MATCH($B$5,(GPS_IMPORT!$A$2:$A$10000),0)+ROWS($1:11)-1,COLUMN()-1),0) -> 0 | F17: =IF(ROWS(GPS_IMPORT!$1:11)<=COUNTIF(GPS_IMPORT!$A$2:$A$10000,$B$5),INDEX(GPS_IMPORT!$2:$10000,MATCH($B$5,(GPS_IMPORT!$A$2:$A$10000),0)+ROWS($1:11)-1,COLUMN()-1),0) -> 0 | G17: =IF(ROWS(GPS_IMPORT!$1:11)<=COUNTIF(GPS_IMPORT!$A$2:$A$10000,$B$5),INDEX(GPS_IMPORT!$2:$10000,MATCH($B$5,(GPS_IMPORT!$A$2:$A$10000),0)+ROWS($1:11)-1,COLUMN()-1),0) -> 0 | H17: 0 | I17: 0 | J17: 0 | K17: TRUE
A18: 12 | B18: =IF(ROWS(GPS_IMPORT!$1:12)<=COUNTIF(GPS_IMPORT!$A$2:$A$10000,$B$5),INDEX(GPS_IMPORT!$2:$10000,MATCH($B$5,(GPS_IMPORT!$A$2:$A$10000),0)+ROWS($1:12)-1,COLUMN()-1),0) -> 0 | C18: =IF(ROWS(GPS_IMPORT!$1:12)<=COUNTIF(GPS_IMPORT!$A$2:$A$10000,$B$5),INDEX(GPS_IMPORT!$2:$10000,MATCH($B$5,(GPS_IMPORT!$A$2:$A$10000),0)+ROWS($1:12)-1,COLUMN()-1),0) -> 00:00:00 | D18: =IF(ROWS(GPS_IMPORT!$1:12)<=COUNTIF(GPS_IMPORT!$A$2:$A$10000,$B$5),INDEX(GPS_IMPORT!$2:$10000,MATCH($B$5,(GPS_IMPORT!$A$2:$A$10000),0)+ROWS($1:12)-1,COLUMN()-1),0) -> 00:00:00 | E18: =IF(ROWS(GPS_IMPORT!$1:12)<=COUNTIF(GPS_IMPORT!$A$2:$A$10000,$B$5),INDEX(GPS_IMPORT!$2:$10000,MATCH($B$5,(GPS_IMPORT!$A$2:$A$10000),0)+ROWS($1:12)-1,COLUMN()-1),0) -> 0 | F18: =IF(ROWS(GPS_IMPORT!$1:12)<=COUNTIF(GPS_IMPORT!$A$2:$A$10000,$B$5),INDEX(GPS_IMPORT!$2:$10000,MATCH($B$5,(GPS_IMPORT!$A$2:$A$10000),0)+ROWS($1:12)-1,COLUMN()-1),0) -> 0 | G18: =IF(ROWS(GPS_IMPORT!$1:12)<=COUNTIF(GPS_IMPORT!$A$2:$A$10000,$B$5),INDEX(GPS_IMPORT!$2:$10000,MATCH($B$5,(GPS_IMPORT!$A$2:$A$10000),0)+ROWS($1:12)-1,COLUMN()-1),0) -> 0 | H18: 0 | I18: 0 | J18: 0 | K18: TRUE
A19: 13 | B19: =IF(ROWS(GPS_IMPORT!$1:13)<=COUNTIF(GPS_IMPORT!$A$2:$A$10000,$B$5),INDEX(GPS_IMPORT!$2:$10000,MATCH($B$5,(GPS_IMPORT!$A$2:$A$10000),0)+ROWS($1:13)-1,COLUMN()-1),0) -> 0 | C19: =IF(ROWS(GPS_IMPORT!$1:13)<=COUNTIF(GPS_IMPORT!$A$2:$A$10000,$B$5),INDEX(GPS_IMPORT!$2:$10000,MATCH($B$5,(GPS_IMPORT!$A$2:$A$10000),0)+ROWS($1:13)-1,COLUMN()-1),0) -> 00:00:00 | D19: =IF(ROWS(GPS_IMPORT!$1:13)<=COUNTIF(GPS_IMPORT!$A$2:$A$10000,$B$5),INDEX(GPS_IMPORT!$2:$10000,MATCH($B$5,(GPS_IMPORT!$A$2:$A$10000),0)+ROWS($1:13)-1,COLUMN()-1),0) -> 00:00:00 | E19: =IF(ROWS(GPS_IMPORT!$1:13)<=COUNTIF(GPS_IMPORT!$A$2:$A$10000,$B$5),INDEX(GPS_IMPORT!$2:$10000,MATCH($B$5,(GPS_IMPORT!$A$2:$A$10000),0)+ROWS($1:13)-1,COLUMN()-1),0) -> 0 | F19: =IF(ROWS(GPS_IMPORT!$1:13)<=COUNTIF(GPS_IMPORT!$A$2:$A$10000,$B$5),INDEX(GPS_IMPORT!$2:$10000,MATCH($B$5,(GPS_IMPORT!$A$2:$A$10000),0)+ROWS($1:13)-1,COLUMN()-1),0) -> 0 | G19: =IF(ROWS(GPS_IMPORT!$1:13)<=COUNTIF(GPS_IMPORT!$A$2:$A$10000,$B$5),INDEX(GPS_IMPORT!$2:$10000,MATCH($B$5,(GPS_IMPORT!$A$2:$A$10000),0)+ROWS($1:13)-1,COLUMN()-1),0) -> 0 | H19: =IF(E19>0,E$22-E19,0) -> 0 | I19: 0 | J19: 0 | K19: FALSE
A20: 14 | B20: =IF(ROWS(GPS_IMPORT!$1:14)<=COUNTIF(GPS_IMPORT!$A$2:$A$10000,$B$5),INDEX(GPS_IMPORT!$2:$10000,MATCH($B$5,(GPS_IMPORT!$A$2:$A$10000),0)+ROWS($1:14)-1,COLUMN()-1),0) -> 0 | C20: =IF(ROWS(GPS_IMPORT!$1:14)<=COUNTIF(GPS_IMPORT!$A$2:$A$10000,$B$5),INDEX(GPS_IMPORT!$2:$10000,MATCH($B$5,(GPS_IMPORT!$A$2:$A$10000),0)+ROWS($1:14)-1,COLUMN()-1),0) -> 00:00:00 | D20: =IF(ROWS(GPS_IMPORT!$1:14)<=COUNTIF(GPS_IMPORT!$A$2:$A$10000,$B$5),INDEX(GPS_IMPORT!$2:$10000,MATCH($B$5,(GPS_IMPORT!$A$2:$A$10000),0)+ROWS($1:14)-1,COLUMN()-1),0) -> 00:00:00 | E20: =IF(ROWS(GPS_IMPORT!$1:14)<=COUNTIF(GPS_IMPORT!$A$2:$A$10000,$B$5),INDEX(GPS_IMPORT!$2:$10000,MATCH($B$5,(GPS_IMPORT!$A$2:$A$10000),0)+ROWS($1:14)-1,COLUMN()-1),0) -> 0 | F20: =IF(ROWS(GPS_IMPORT!$1:14)<=COUNTIF(GPS_IMPORT!$A$2:$A$10000,$B$5),INDEX(GPS_IMPORT!$2:$10000,MATCH($B$5,(GPS_IMPORT!$A$2:$A$10000),0)+ROWS($1:14)-1,COLUMN()-1),0) -> 0 | G20: =IF(ROWS(GPS_IMPORT!$1:14)<=COUNTIF(GPS_IMPORT!$A$2:$A$10000,$B$5),INDEX(GPS_IMPORT!$2:$10000,MATCH($B$5,(GPS_IMPORT!$A$2:$A$10000),0)+ROWS($1:14)-1,COLUMN()-1),0) -> 0 | H20: 0 | I20: 0 | J20: 0 | K20: FALSE
A21: 15 | B21: =IF(ROWS(GPS_IMPORT!$1:15)<=COUNTIF(GPS_IMPORT!$A$2:$A$10000,$B$5),INDEX(GPS_IMPORT!$2:$10000,MATCH($B$5,(GPS_IMPORT!$A$2:$A$10000),0)+ROWS($1:15)-1,COLUMN()-1),0) -> 0 | C21: =IF(ROWS(GPS_IMPORT!$1:15)<=COUNTIF(GPS_IMPORT!$A$2:$A$10000,$B$5),INDEX(GPS_IMPORT!$2:$10000,MATCH($B$5,(GPS_IMPORT!$A$2:$A$10000),0)+ROWS($1:15)-1,COLUMN()-1),0) -> 00:00:00 | D21: =IF(ROWS(GPS_IMPORT!$1:15)<=COUNTIF(GPS_IMPORT!$A$2:$A$10000,$B$5),INDEX(GPS_IMPORT!$2:$10000,MATCH($B$5,(GPS_IMPORT!$A$2:$A$10000),0)+ROWS($1:15)-1,COLUMN()-1),0) -> 00:00:00 | E21: =IF(ROWS(GPS_IMPORT!$1:15)<=COUNTIF(GPS_IMPORT!$A$2:$A$10000,$B$5),INDEX(GPS_IMPORT!$2:$10000,MATCH($B$5,(GPS_IMPORT!$A$2:$A$10000),0)+ROWS($1:15)-1,COLUMN()-1),0) -> 0 | F21: =IF(ROWS(GPS_IMPORT!$1:15)<=COUNTIF(GPS_IMPORT!$A$2:$A$10000,$B$5),INDEX(GPS_IMPORT!$2:$10000,MATCH($B$5,(GPS_IMPORT!$A$2:$A$10000),0)+ROWS($1:15)-1,COLUMN()-1),0) -> 0 | G21: =IF(ROWS(GPS_IMPORT!$1:15)<=COUNTIF(GPS_IMPORT!$A$2:$A$10000,$B$5),INDEX(GPS_IMPORT!$2:$10000,MATCH($B$5,(GPS_IMPORT!$A$2:$A$10000),0)+ROWS($1:15)-1,COLUMN()-1),0) -> 0 | H21: 0 | I21: 0 | J21: 0 | K21: FALSE
D22: AVERAGE | E22: =(IF($K$7=TRUE,E7,0)+IF($K$8=TRUE,E8,0)+IF($K$9=TRUE,E9,0)+IF($K$10=TRUE,E10,0)+IF($K$11=TRUE,E11,0)+IF($K$12=TRUE,E12,0)+IF($K$13=TRUE,E13,0)+IF($K$14=TRUE,E14,0)+IF($K$15=TRUE,E15,0)+IF($K$16=TRUE,E16,0)+IF($K$17=TRUE,E17,0)+IF($K$18=TRUE,E18,0)+IF($K$19=TRUE,E19,0)+IF($K$20=TRUE,E20,0)+IF($K$21=TRUE,E21,0))/(IF($K$7=TRUE,1,0)+IF($K$8=TRUE,1,0)+IF($K$9=TRUE,1,0)+IF($K$10=TRUE,1,0)+IF($K$11=TRUE,1,0)+IF($K$12=TRUE,1,0)+IF($K$13=TRUE,1,0)+IF($K$14=TRUE,1,0)+IF($K$15=TRUE,1,0)+IF($K$16=TRUE,1,0)+IF($K$17=TRUE,1,0)+IF($K$18=TRUE,1,0)+IF($K$19=TRUE,1,0)+IF($K$20=TRUE,1,0)+IF($K$21=TRUE,1,0)) -> 0 | F22: =(IF($K$7=TRUE,F7,0)+IF($K$8=TRUE,F8,0)+IF($K$9=TRUE,F9,0)+IF($K$10=TRUE,F10,0)+IF($K$11=TRUE,F11,0)+IF($K$12=TRUE,F12,0)+IF($K$13=TRUE,F13,0)+IF($K$14=TRUE,F14,0)+IF($K$15=TRUE,F15,0)+IF($K$16=TRUE,F16,0)+IF($K$17=TRUE,F17,0)+IF($K$18=TRUE,F18,0)+IF($K$19=TRUE,F19,0)+IF($K$20=TRUE,F20,0)+IF($K$21=TRUE,F21,0))/(IF($K$7=TRUE,1,0)+IF($K$8=TRUE,1,0)+IF($K$9=TRUE,1,0)+IF($K$10=TRUE,1,0)+IF($K$11=TRUE,1,0)+IF($K$12=TRUE,1,0)+IF($K$13=TRUE,1,0)+IF($K$14=TRUE,1,0)+IF($K$15=TRUE,1,0)+IF($K$16=TRUE,1,0)+IF($K$17=TRUE,1,0)+IF($K$18=TRUE,1,0)+IF($K$19=TRUE,1,0)+IF($K$20=TRUE,1,0)+IF($K$21=TRUE,1,0)) -> 0 | G22: =(IF($K$7=TRUE,G7,0)+IF($K$8=TRUE,G8,0)+IF($K$9=TRUE,G9,0)+IF($K$10=TRUE,G10,0)+IF($K$11=TRUE,G11,0)+IF($K$12=TRUE,G12,0)+IF($K$13=TRUE,G13,0)+IF($K$14=TRUE,G14,0)+IF($K$15=TRUE,G15,0)+IF($K$16=TRUE,G16,0)+IF($K$17=TRUE,G17,0)+IF($K$18=TRUE,G18,0)+IF($K$19=TRUE,G19,0)+IF($K$20=TRUE,G20,0)+IF($K$21=TRUE,G21,0))/ (IF($K$7=TRUE,1,0)+IF($K$8=TRUE,1,0)+IF($K$9=TRUE,1,0)+IF($K$10=TRUE,1,0)+IF($K$11=TRUE,1,0)+IF($K$12=TRUE,1,0)+IF($K$13=TRUE,1,0)+IF($K$14=TRUE,1,0)+IF($K$15=TRUE,1,0)+IF($K$16=TRUE,1,0)+IF($K$17=TRUE,1,0)+IF($K$18=TRUE,1,0)+IF($K$19=TRUE,1,0)+IF($K$20=TRUE,1,0)+IF($K$21=TRUE,1,0)) -> 0 | H22: RMSE: | I22: RMSE: | J22: RMSE:
G23: RMSE IN METRIC: | H23: =SQRT(( (IF($K$7=TRUE,H7^2,0))+(IF($K$8=TRUE,H8^2,0))+(IF($K$9=TRUE,H9^2,0))+(IF($K$10=TRUE,H10^2,0))+(IF($K$11=TRUE,H11^2,0))+(IF($K$12=TRUE,H12^2,0))+(IF($K$13=TRUE,H13^2,0))+(IF($K$14=TRUE,H14^2,0))+(IF($K$15=TRUE,H15^2,0))+(IF($K$16=TRUE,H16^2,0))+(IF($K$17=TRUE,H17^2,0))+(IF($K$18=TRUE,H18^2,0))+(IF($K$19=TRUE,H19^2,0))+(IF($K$20=TRUE,H20^2,0))+(IF($K$21=TRUE,H21^2,0)))/ (IF($K$7=TRUE,1,0)+IF($K$8=TRUE,1,0)+IF($K$9=TRUE,1,0)+IF($K$10=TRUE,1,0)+IF($K$11=TRUE,1,0)+IF($K$12=TRUE,1,0)+IF($K$13=TRUE,1,0)+IF($K$14=TRUE,1,0)+IF($K$15=TRUE,1,0)+IF($K$16=TRUE,1,0)+IF($K$17=TRUE,1,0)+IF($K$18=TRUE,1,0)+IF($K$19=TRUE,1,0)+IF($K$20=TRUE,1,0)+IF($K$21=TRUE,1,0))) -> 0 | I23: =SQRT(( (IF($K$7=TRUE,I7^2,0))+(IF($K$8=TRUE,I8^2,0))+(IF($K$9=TRUE,I9^2,0))+(IF($K$10=TRUE,I10^2,0))+(IF($K$11=TRUE,I11^2,0))+(IF($K$12=TRUE,I12^2,0))+(IF($K$13=TRUE,I13^2,0))+(IF($K$14=TRUE,I14^2,0))+(IF($K$15=TRUE,I15^2,0))+(IF($K$16=TRUE,I16^2,0))+(IF($K$17=TRUE,I17^2,0))+(IF($K$18=TRUE,I18^2,0))+(IF($K$19=TRUE,I19^2,0))+(IF($K$20=TRUE,I20^2,0))+(IF($K$21=TRUE,I21^2,0)))/ (IF($K$7=TRUE,1,0)+IF($K$8=TRUE,1,0)+IF($K$9=TRUE,1,0)+IF($K$10=TRUE,1,0)+IF($K$11=TRUE,1,0)+IF($K$12=TRUE,1,0)+IF($K$13=TRUE,1,0)+IF($K$14=TRUE,1,0)+IF($K$15=TRUE,1,0)+IF($K$16=TRUE,1,0)+IF($K$17=TRUE,1,0)+IF($K$18=TRUE,1,0)+IF($K$19=TRUE,1,0)+IF($K$20=TRUE,1,0)+IF($K$21=TRUE,1,0))) -> 0 | J23: =SQRT(( (IF($K$7=TRUE,J7^2,0))+(IF($K$8=TRUE,J8^2,0))+(IF($K$9=TRUE,J9^2,0))+(IF($K$10=TRUE,J10^2,0))+(IF($K$11=TRUE,J11^2,0))+(IF($K$12=TRUE,J12^2,0))+(IF($K$13=TRUE,J13^2,0))+(IF($K$14=TRUE,J14^2,0))+(IF($K$15=TRUE,J15^2,0))+(IF($K$16=TRUE,J16^2,0))+(IF($K$17=TRUE,J17^2,0))+(IF($K$18=TRUE,J18^2,0))+(IF($K$19=TRUE,J19^2,0))+(IF($K$20=TRUE,J20^2,0))+(IF($K$21=TRUE,J21^2,0)))/ (IF($K$7=TRUE,1,0)+IF($K$8=TRUE,1,0)+IF($K$9=TRUE,1,0)+IF($K$10=TRUE,1,0)+IF($K$11=TRUE,1,0)+IF($K$12=TRUE,1,0)+IF($K$13=TRUE,1,0)+IF($K$14=TRUE,1,0)+IF($K$15=TRUE,1,0)+IF($K$16=TRUE,1,0)+IF($K$17=TRUE,1,0)+IF($K$18=TRUE,1,0)+IF($K$19=TRUE,1,0)+IF($K$20=TRUE,1,0)+IF($K$21=TRUE,1,0))) -> 0
C24: ENGLISH TO METRIC CONVERSION | D24: =3937/1200 -> 3.280833333 | G24: RMSE IN US SURVEY FEET: | H24: =H23*$D$24 -> 0 | I24: =I23*$D$24 -> 0 | J24: =J23*$D$24 -> 0
C25: UNITLESS GRID TO GROUND MULTIPLIER | D25: =REPORT!C13 -> 0 | H25: =IF(H24<=0.029,"PASS","FAIL") -> PASS | I25: =IF(I24<=0.029,"PASS","FAIL") -> PASS | J25: =IF(J24<=0.039,"PASS","FAIL") -> PASS
A27: AVERAGED GPS-DERIVED POSITION | I27: Notes:
B28: MONUMENT COORDINATES | D28: NORTHING | E28: EASTING | F28: ORTHO HEIGHT
B29: METERS (GRID) | D29: =$E$22 -> 0 | E29: =$F$22 -> 0 | F29: =$G$22 -> 0
A31: LEVELED ELEVATION
A32: US SURVEY FEET | C32: =VLOOKUP(B5,'LEVEL RUN'!A8:I59,9,FALSE) ->  | D32: (Type the leveled elevation or N/A if no leveled elevation is available)
A33: MONUMENT HELD | D33: (Type the monument name from which leveling originated)
A34: LEVELED ELEVATION - GPS DERIVED ELEVATION = | E34: =IF(C32="N/A","N/A",C32-(F29*D24)) -> 
A36: FINAL MONUMENT COORDINATES
B37: MONUMENT COORDINATES | D37: NORTHING | E37: EASTING | F37: ELEVATION | G37: FEATURE CODE
B38: US SURVEY FEET (GRID) | D38: =$E$22*$D$24 -> 0 | E38: =$F$22*$D$24 -> 0 | F38: =IF($C$32="N/A",($G$22*$D$24),$C$32) ->  | G38: IPINS
B39: US SURVEY FEET (GROUND) | D39: =$D$38*$D$25 -> 0 | E39: =$E$38*$D$25 -> 0 | F39: =IF($C$32="N/A",($G$22*$D$24),$C$32) ->  | G39: IPINS
A41: ∆ North, ∆ East, and ∆ Ht. are the difference between the average northing, easting, and height for each observation. | I41: Mask Angle: | J41: 13°

Sheet CP03
A1: VRS GNSS Project Control Monument Coordinate Analysis
A3: PROJECT: | B3: =REPORT!B2 -> XXX-XXX-XXXX | C3: GPS Antenna: | D3: Trimble R6 | J3: Report Date: | K3: ='CP01'!K3 -> 00:00:00
A4: PID: | B4: =REPORT!E2 -> XXXXX | C4: VRS Network: | D4: ODOT VRS | J4: Prepared By: | K4: ='CP01'!K4 -> 0
A5: MONUMENT NUMBER: | B5: CP03 | C5: No. of Sessions: | D5: =COUNTIF(GPS_IMPORT!A2:A1000,$B$5) -> 0 | J5: Checked By: | K5: ='CP01'!K5 -> 0
A6: SESSION # | B6: Point | C6: Observation Date | D6: Start Time | E6: Northing(m) | F6: Easting(m) | G6: Height(m) | H6: ∆ Northing(m) | I6: ∆ Easting(m) | J6: ∆ Height(m) | K6: Include in Solution?
A7: 1 | B7: =IF(ROWS(GPS_IMPORT!$1:1)<=COUNTIF(GPS_IMPORT!$A$2:$A$10000,$B$5),INDEX(GPS_IMPORT!$2:$10000,MATCH($B$5,(GPS_IMPORT!$A$2:$A$10000),0)+ROWS($1:1)-1,COLUMN()-1),0) -> 0 | C7: =IF(ROWS(GPS_IMPORT!$1:1)<=COUNTIF(GPS_IMPORT!$A$2:$A$10000,$B$5),INDEX(GPS_IMPORT!$2:$10000,MATCH($B$5,(GPS_IMPORT!$A$2:$A$10000),0)+ROWS($1:1)-1,COLUMN()-1),0) -> 00:00:00 | D7: =IF(ROWS(GPS_IMPORT!$1:1)<=COUNTIF(GPS_IMPORT!$A$2:$A$10000,$B$5),INDEX(GPS_IMPORT!$2:$10000,MATCH($B$5,(GPS_IMPORT!$A$2:$A$10000),0)+ROWS($1:1)-1,COLUMN()-1),0) -> 00:00:00 | E7: =IF(ROWS(GPS_IMPORT!$1:1)<=COUNTIF(GPS_IMPORT!$A$2:$A$10000,$B$5),INDEX(GPS_IMPORT!$2:$10000,MATCH($B$5,(GPS_IMPORT!$A$2:$A$10000),0)+ROWS($1:1)-1,COLUMN()-1),0) -> 0 | F7: =IF(ROWS(GPS_IMPORT!$1:1)<=COUNTIF(GPS_IMPORT!$A$2:$A$10000,$B$5),INDEX(GPS_IMPORT!$2:$10000,MATCH($B$5,(GPS_IMPORT!$A$2:$A$10000),0)+ROWS($1:1)-1,COLUMN()-1),0) -> 0 | G7: =IF(ROWS(GPS_IMPORT!$1:1)<=COUNTIF(GPS_IMPORT!$A$2:$A$10000,$B$5),INDEX(GPS_IMPORT!$2:$10000,MATCH($B$5,(GPS_IMPORT!$A$2:$A$10000),0)+ROWS($1:1)-1,COLUMN()-1),0) -> 0 | H7: =IF(E7>0,E$22-E7,0) -> 0 | I7: 0 | J7: 0 | K7: TRUE
A8: 2 | B8: =IF(ROWS(GPS_IMPORT!$1:2)<=COUNTIF(GPS_IMPORT!$A$2:$A$10000,$B$5),INDEX(GPS_IMPORT!$2:$10000,MATCH($B$5,(GPS_IMPORT!$A$2:$A$10000),0)+ROWS($1:2)-1,COLUMN()-1),0) -> 0 | C8: =IF(ROWS(GPS_IMPORT!$1:2)<=COUNTIF(GPS_IMPORT!$A$2:$A$10000,$B$5),INDEX(GPS_IMPORT!$2:$10000,MATCH($B$5,(GPS_IMPORT!$A$2:$A$10000),0)+ROWS($1:2)-1,COLUMN()-1),0) -> 00:00:00 | D8: =IF(ROWS(GPS_IMPORT!$1:2)<=COUNTIF(GPS_IMPORT!$A$2:$A$10000,$B$5),INDEX(GPS_IMPORT!$2:$10000,MATCH($B$5,(GPS_IMPORT!$A$2:$A$10000),0)+ROWS($1:2)-1,COLUMN()-1),0) -> 00:00:00 | E8: =IF(ROWS(GPS_IMPORT!$1:2)<=COUNTIF(GPS_IMPORT!$A$2:$A$10000,$B$5),INDEX(GPS_IMPORT!$2:$10000,MATCH($B$5,(GPS_IMPORT!$A$2:$A$10000),0)+ROWS($1:2)-1,COLUMN()-1),0) -> 0 | F8: =IF(ROWS(GPS_IMPORT!$1:2)<=COUNTIF(GPS_IMPORT!$A$2:$A$10000,$B$5),INDEX(GPS_IMPORT!$2:$10000,MATCH($B$5,(GPS_IMPORT!$A$2:$A$10000),0)+ROWS($1:2)-1,COLUMN()-1),0) -> 0 | G8: =IF(ROWS(GPS_IMPORT!$1:2)<=COUNTIF(GPS_IMPORT!$A$2:$A$10000,$B$5),INDEX(GPS_IMPORT!$2:$10000,MATCH($B$5,(GPS_IMPORT!$A$2:$A$10000),0)+ROWS($1:2)-1,COLUMN()-1),0) -> 0 | H8: 0 | I8: 0 | J8: 0 | K8: TRUE
A9: 3 | B9: =IF(ROWS(GPS_IMPORT!$1:3)<=COUNTIF(GPS_IMPORT!$A$2:$A$10000,$B$5),INDEX(GPS_IMPORT!$2:$10000,MATCH($B$5,(GPS_IMPORT!$A$2:$A$10000),0)+ROWS($1:3)-1,COLUMN()-1),0) -> 0 | C9: =IF(ROWS(GPS_IMPORT!$1:3)<=COUNTIF(GPS_IMPORT!$A$2:$A$10000,$B$5),INDEX(GPS_IMPORT!$2:$10000,MATCH($B$5,(GPS_IMPORT!$A$2:$A$10000),0)+ROWS($1:3)-1,COLUMN()-1),0) -> 00:00:00 | D9: =IF(ROWS(GPS_IMPORT!$1:3)<=COUNTIF(GPS_IMPORT!$A$2:$A$10000,$B$5),INDEX(GPS_IMPORT!$2:$10000,MATCH($B$5,(GPS_IMPORT!$A$2:$A$10000),0)+ROWS($1:3)-1,COLUMN()-1),0) -> 00:00:00 | E9: =IF(ROWS(GPS_IMPORT!$1:3)<=COUNTIF(GPS_IMPORT!$A$2:$A$10000,$B$5),INDEX(GPS_IMPORT!$2:$10000,MATCH($B$5,(GPS_IMPORT!$A$2:$A$10000),0)+ROWS($1:3)-1,COLUMN()-1),0) -> 0 | F9: =IF(ROWS(GPS_IMPORT!$1:3)<=COUNTIF(GPS_IMPORT!$A$2:$A$10000,$B$5),INDEX(GPS_IMPORT!$2:$10000,MATCH($B$5,(GPS_IMPORT!$A$2:$A$10000),0)+ROWS($1:3)-1,COLUMN()-1),0) -> 0 | G9: =IF(ROWS(GPS_IMPORT!$1:3)<=COUNTIF(GPS_IMPORT!$A$2:$A$10000,$B$5),INDEX(GPS_IMPORT!$2:$10000,MATCH($B$5,(GPS_IMPORT!$A$2:$A$10000),0)+ROWS($1:3)-1,COLUMN()-1),0) -> 0 | H9: 0 | I9: 0 | J9: 0 | K9: TRUE
A10: 4 | B10: =IF(ROWS(GPS_IMPORT!$1:4)<=COUNTIF(GPS_IMPORT!$A$2:$A$10000,$B$5),INDEX(GPS_IMPORT!$2:$10000,MATCH($B$5,(GPS_IMPORT!$A$2:$A$10000),0)+ROWS($1:4)-1,COLUMN()-1),0) -> 0 | C10: =IF(ROWS(GPS_IMPORT!$1:4)<=COUNTIF(GPS_IMPORT!$A$2:$A$10000,$B$5),INDEX(GPS_IMPORT!$2:$10000,MATCH($B$5,(GPS_IMPORT!$A$2:$A$10000),0)+ROWS($1:4)-1,COLUMN()-1),0) -> 00:00:00 | D10: =IF(ROWS(GPS_IMPORT!$1:4)<=COUNTIF(GPS_IMPORT!$A$2:$A$10000,$B$5),INDEX(GPS_IMPORT!$2:$10000,MATCH($B$5,(GPS_IMPORT!$A$2:$A$10000),0)+ROWS($1:4)-1,COLUMN()-1),0) -> 00:00:00 | E10: =IF(ROWS(GPS_IMPORT!$1:4)<=COUNTIF(GPS_IMPORT!$A$2:$A$10000,$B$5),INDEX(GPS_IMPORT!$2:$10000,MATCH($B$5,(GPS_IMPORT!$A$2:$A$10000),0)+ROWS($1:4)-1,COLUMN()-1),0) -> 0 | F10: =IF(ROWS(GPS_IMPORT!$1:4)<=COUNTIF(GPS_IMPORT!$A$2:$A$10000,$B$5),INDEX(GPS_IMPORT!$2:$10000,MATCH($B$5,(GPS_IMPORT!$A$2:$A$10000),0)+ROWS($1:4)-1,COLUMN()-1),0) -> 0 | G10: =IF(ROWS(GPS_IMPORT!$1:4)<=COUNTIF(GPS_IMPORT!$A$2:$A$10000,$B$5),INDEX(GPS_IMPORT!$2:$10000,MATCH($B$5,(GPS_IMPORT!$A$2:$A$10000),0)+ROWS($1:4)-1,COLUMN()-1),0) -> 0 | H10: 0 | I10: 0 | J10: 0 | K10: TRUE
A11: 5 | B11: =IF(ROWS(GPS_IMPORT!$1:5)<=COUNTIF(GPS_IMPORT!$A$2:$A$10000,$B$5),INDEX(GPS_IMPORT!$2:$10000,MATCH($B$5,(GPS_IMPORT!$A$2:$A$10000),0)+ROWS($1:5)-1,COLUMN()-1),0) -> 0 | C11: =IF(ROWS(GPS_IMPORT!$1:5)<=COUNTIF(GPS_IMPORT!$A$2:$A$10000,$B$5),INDEX(GPS_IMPORT!$2:$10000,MATCH($B$5,(GPS_IMPORT!$A$2:$A$10000),0)+ROWS($1:5)-1,COLUMN()-1),0) -> 00:00:00 | D11: =IF(ROWS(GPS_IMPORT!$1:5)<=COUNTIF(GPS_IMPORT!$A$2:$A$10000,$B$5),INDEX(GPS_IMPORT!$2:$10000,MATCH($B$5,(GPS_IMPORT!$A$2:$A$10000),0)+ROWS($1:5)-1,COLUMN()-1),0) -> 00:00:00 | E11: =IF(ROWS(GPS_IMPORT!$1:5)<=COUNTIF(GPS_IMPORT!$A$2:$A$10000,$B$5),INDEX(GPS_IMPORT!$2:$10000,MATCH($B$5,(GPS_IMPORT!$A$2:$A$10000),0)+ROWS($1:5)-1,COLUMN()-1),0) -> 0 | F11: =IF(ROWS(GPS_IMPORT!$1:5)<=COUNTIF(GPS_IMPORT!$A$2:$A$10000,$B$5),INDEX(GPS_IMPORT!$2:$10000,MATCH($B$5,(GPS_IMPORT!$A$2:$A$10000),0)+ROWS($1:5)-1,COLUMN()-1),0) -> 0 | G11: =IF(ROWS(GPS_IMPORT!$1:5)<=COUNTIF(GPS_IMPORT!$A$2:$A$10000,$B$5),INDEX(GPS_IMPORT!$2:$10000,MATCH($B$5,(GPS_IMPORT!$A$2:$A$10000),0)+ROWS($1:5)-1,COLUMN()-1),0) -> 0 | H11: 0 | I11: 0 | J11: 0 | K11: TRUE
A12: 6 | B12: =IF(ROWS(GPS_IMPORT!$1:6)<=COUNTIF(GPS_IMPORT!$A$2:$A$10000,$B$5),INDEX(GPS_IMPORT!$2:$10000,MATCH($B$5,(GPS_IMPORT!$A$2:$A$10000),0)+ROWS($1:6)-1,COLUMN()-1),0) -> 0 | C12: =IF(ROWS(GPS_IMPORT!$1:6)<=COUNTIF(GPS_IMPORT!$A$2:$A$10000,$B$5),INDEX(GPS_IMPORT!$2:$10000,MATCH($B$5,(GPS_IMPORT!$A$2:$A$10000),0)+ROWS($1:6)-1,COLUMN()-1),0) -> 00:00:00 | D12: =IF(ROWS(GPS_IMPORT!$1:6)<=COUNTIF(GPS_IMPORT!$A$2:$A$10000,$B$5),INDEX(GPS_IMPORT!$2:$10000,MATCH($B$5,(GPS_IMPORT!$A$2:$A$10000),0)+ROWS($1:6)-1,COLUMN()-1),0) -> 00:00:00 | E12: =IF(ROWS(GPS_IMPORT!$1:6)<=COUNTIF(GPS_IMPORT!$A$2:$A$10000,$B$5),INDEX(GPS_IMPORT!$2:$10000,MATCH($B$5,(GPS_IMPORT!$A$2:$A$10000),0)+ROWS($1:6)-1,COLUMN()-1),0) -> 0 | F12: =IF(ROWS(GPS_IMPORT!$1:6)<=COUNTIF(GPS_IMPORT!$A$2:$A$10000,$B$5),INDEX(GPS_IMPORT!$2:$10000,MATCH($B$5,(GPS_IMPORT!$A$2:$A$10000),0)+ROWS($1:6)-1,COLUMN()-1),0) -> 0 | G12: =IF(ROWS(GPS_IMPORT!$1:6)<=COUNTIF(GPS_IMPORT!$A$2:$A$10000,$B$5),INDEX(GPS_IMPORT!$2:$10000,MATCH($B$5,(GPS_IMPORT!$A$2:$A$10000),0)+ROWS($1:6)-1,COLUMN()-1),0) -> 0 | H12: 0 | I12: 0 | J12: 0 | K12: TRUE
A13: 7 | B13: =IF(ROWS(GPS_IMPORT!$1:7)<=COUNTIF(GPS_IMPORT!$A$2:$A$10000,$B$5),INDEX(GPS_IMPORT!$2:$10000,MATCH($B$5,(GPS_IMPORT!$A$2:$A$10000),0)+ROWS($1:7)-1,COLUMN()-1),0) -> 0 | C13: =IF(ROWS(GPS_IMPORT!$1:7)<=COUNTIF(GPS_IMPORT!$A$2:$A$10000,$B$5),INDEX(GPS_IMPORT!$2:$10000,MATCH($B$5,(GPS_IMPORT!$A$2:$A$10000),0)+ROWS($1:7)-1,COLUMN()-1),0) -> 00:00:00 | D13: =IF(ROWS(GPS_IMPORT!$1:7)<=COUNTIF(GPS_IMPORT!$A$2:$A$10000,$B$5),INDEX(GPS_IMPORT!$2:$10000,MATCH($B$5,(GPS_IMPORT!$A$2:$A$10000),0)+ROWS($1:7)-1,COLUMN()-1),0) -> 00:00:00 | E13: =IF(ROWS(GPS_IMPORT!$1:7)<=COUNTIF(GPS_IMPORT!$A$2:$A$10000,$B$5),INDEX(GPS_IMPORT!$2:$10000,MATCH($B$5,(GPS_IMPORT!$A$2:$A$10000),0)+ROWS($1:7)-1,COLUMN()-1),0) -> 0 | F13: =IF(ROWS(GPS_IMPORT!$1:7)<=COUNTIF(GPS_IMPORT!$A$2:$A$10000,$B$5),INDEX(GPS_IMPORT!$2:$10000,MATCH($B$5,(GPS_IMPORT!$A$2:$A$10000),0)+ROWS($1:7)-1,COLUMN()-1),0) -> 0 | G13: =IF(ROWS(GPS_IMPORT!$1:7)<=COUNTIF(GPS_IMPORT!$A$2:$A$10000,$B$5),INDEX(GPS_IMPORT!$2:$10000,MATCH($B$5,(GPS_IMPORT!$A$2:$A$10000),0)+ROWS($1:7)-1,COLUMN()-1),0) -> 0 | H13: 0 | I13: 0 | J13: 0 | K13: TRUE
A14: 8 | B14: =IF(ROWS(GPS_IMPORT!$1:8)<=COUNTIF(GPS_IMPORT!$A$2:$A$10000,$B$5),INDEX(GPS_IMPORT!$2:$10000,MATCH($B$5,(GPS_IMPORT!$A$2:$A$10000),0)+ROWS($1:8)-1,COLUMN()-1),0) -> 0 | C14: =IF(ROWS(GPS_IMPORT!$1:8)<=COUNTIF(GPS_IMPORT!$A$2:$A$10000,$B$5),INDEX(GPS_IMPORT!$2:$10000,MATCH($B$5,(GPS_IMPORT!$A$2:$A$10000),0)+ROWS($1:8)-1,COLUMN()-1),0) -> 00:00:00 | D14: =IF(ROWS(GPS_IMPORT!$1:8)<=COUNTIF(GPS_IMPORT!$A$2:$A$10000,$B$5),INDEX(GPS_IMPORT!$2:$10000,MATCH($B$5,(GPS_IMPORT!$A$2:$A$10000),0)+ROWS($1:8)-1,COLUMN()-1),0) -> 00:00:00 | E14: =IF(ROWS(GPS_IMPORT!$1:8)<=COUNTIF(GPS_IMPORT!$A$2:$A$10000,$B$5),INDEX(GPS_IMPORT!$2:$10000,MATCH($B$5,(GPS_IMPORT!$A$2:$A$10000),0)+ROWS($1:8)-1,COLUMN()-1),0) -> 0 | F14: =IF(ROWS(GPS_IMPORT!$1:8)<=COUNTIF(GPS_IMPORT!$A$2:$A$10000,$B$5),INDEX(GPS_IMPORT!$2:$10000,MATCH($B$5,(GPS_IMPORT!$A$2:$A$10000),0)+ROWS($1:8)-1,COLUMN()-1),0) -> 0 | G14: =IF(ROWS(GPS_IMPORT!$1:8)<=COUNTIF(GPS_IMPORT!$A$2:$A$10000,$B$5),INDEX(GPS_IMPORT!$2:$10000,MATCH($B$5,(GPS_IMPORT!$A$2:$A$10000),0)+ROWS($1:8)-1,COLUMN()-1),0) -> 0 | H14: 0 | I14: 0 | J14: 0 | K14: TRUE
A15: 9 | B15: =IF(ROWS(GPS_IMPORT!$1:9)<=COUNTIF(GPS_IMPORT!$A$2:$A$10000,$B$5),INDEX(GPS_IMPORT!$2:$10000,MATCH($B$5,(GPS_IMPORT!$A$2:$A$10000),0)+ROWS($1:9)-1,COLUMN()-1),0) -> 0 | C15: =IF(ROWS(GPS_IMPORT!$1:9)<=COUNTIF(GPS_IMPORT!$A$2:$A$10000,$B$5),INDEX(GPS_IMPORT!$2:$10000,MATCH($B$5,(GPS_IMPORT!$A$2:$A$10000),0)+ROWS($1:9)-1,COLUMN()-1),0) -> 00:00:00 | D15: =IF(ROWS(GPS_IMPORT!$1:9)<=COUNTIF(GPS_IMPORT!$A$2:$A$10000,$B$5),INDEX(GPS_IMPORT!$2:$10000,MATCH($B$5,(GPS_IMPORT!$A$2:$A$10000),0)+ROWS($1:9)-1,COLUMN()-1),0) -> 00:00:00 | E15: =IF(ROWS(GPS_IMPORT!$1:9)<=COUNTIF(GPS_IMPORT!$A$2:$A$10000,$B$5),INDEX(GPS_IMPORT!$2:$10000,MATCH($B$5,(GPS_IMPORT!$A$2:$A$10000),0)+ROWS($1:9)-1,COLUMN()-1),0) -> 0 | F15: =IF(ROWS(GPS_IMPORT!$1:9)<=COUNTIF(GPS_IMPORT!$A$2:$A$10000,$B$5),INDEX(GPS_IMPORT!$2:$10000,MATCH($B$5,(GPS_IMPORT!$A$2:$A$10000),0)+ROWS($1:9)-1,COLUMN()-1),0) -> 0 | G15: =IF(ROWS(GPS_IMPORT!$1:9)<=COUNTIF(GPS_IMPORT!$A$2:$A$10000,$B$5),INDEX(GPS_IMPORT!$2:$10000,MATCH($B$5,(GPS_IMPORT!$A$2:$A$10000),0)+ROWS($1:9)-1,COLUMN()-1),0) -> 0 | H15: 0 | I15: 0 | J15: 0 | K15: TRUE
A16: 10 | B16: =IF(ROWS(GPS_IMPORT!$1:10)<=COUNTIF(GPS_IMPORT!$A$2:$A$10000,$B$5),INDEX(GPS_IMPORT!$2:$10000,MATCH($B$5,(GPS_IMPORT!$A$2:$A$10000),0)+ROWS($1:10)-1,COLUMN()-1),0) -> 0 | C16: =IF(ROWS(GPS_IMPORT!$1:10)<=COUNTIF(GPS_IMPORT!$A$2:$A$10000,$B$5),INDEX(GPS_IMPORT!$2:$10000,MATCH($B$5,(GPS_IMPORT!$A$2:$A$10000),0)+ROWS($1:10)-1,COLUMN()-1),0) -> 00:00:00 | D16: =IF(ROWS(GPS_IMPORT!$1:10)<=COUNTIF(GPS_IMPORT!$A$2:$A$10000,$B$5),INDEX(GPS_IMPORT!$2:$10000,MATCH($B$5,(GPS_IMPORT!$A$2:$A$10000),0)+ROWS($1:10)-1,COLUMN()-1),0) -> 00:00:00 | E16: =IF(ROWS(GPS_IMPORT!$1:10)<=COUNTIF(GPS_IMPORT!$A$2:$A$10000,$B$5),INDEX(GPS_IMPORT!$2:$10000,MATCH($B$5,(GPS_IMPORT!$A$2:$A$10000),0)+ROWS($1:10)-1,COLUMN()-1),0) -> 0 | F16: =IF(ROWS(GPS_IMPORT!$1:10)<=COUNTIF(GPS_IMPORT!$A$2:$A$10000,$B$5),INDEX(GPS_IMPORT!$2:$10000,MATCH($B$5,(GPS_IMPORT!$A$2:$A$10000),0)+ROWS($1:10)-1,COLUMN()-1),0) -> 0 | G16: =IF(ROWS(GPS_IMPORT!$1:10)<=COUNTIF(GPS_IMPORT!$A$2:$A$10000,$B$5),INDEX(GPS_IMPORT!$2:$10000,MATCH($B$5,(GPS_IMPORT!$A$2:$A$10000),0)+ROWS($1:10)-1,COLUMN()-1),0) -> 0 | H16: 0 | I16: 0 | J16: 0 | K16: TRUE
A17: 11 | B17: =IF(ROWS(GPS_IMPORT!$1:11)<=COUNTIF(GPS_IMPORT!$A$2:$A$10000,$B$5),INDEX(GPS_IMPORT!$2:$10000,MATCH($B$5,(GPS_IMPORT!$A$2:$A$10000),0)+ROWS($1:11)-1,COLUMN()-1),0) -> 0 | C17: =IF(ROWS(GPS_IMPORT!$1:11)<=COUNTIF(GPS_IMPORT!$A$2:$A$10000,$B$5),INDEX(GPS_IMPORT!$2:$10000,MATCH($B$5,(GPS_IMPORT!$A$2:$A$10000),0)+ROWS($1:11)-1,COLUMN()-1),0) -> 00:00:00 | D17: =IF(ROWS(GPS_IMPORT!$1:11)<=COUNTIF(GPS_IMPORT!$A$2:$A$10000,$B$5),INDEX(GPS_IMPORT!$2:$10000,MATCH($B$5,(GPS_IMPORT!$A$2:$A$10000),0)+ROWS($1:11)-1,COLUMN()-1),0) -> 00:00:00 | E17: =IF(ROWS(GPS_IMPORT!$1:11)<=COUNTIF(GPS_IMPORT!$A$2:$A$10000,$B$5),INDEX(GPS_IMPORT!$2:$10000,MATCH($B$5,(GPS_IMPORT!$A$2:$A$10000),0)+ROWS($1:11)-1,COLUMN()-1),0) -> 0 | F17: =IF(ROWS(GPS_IMPORT!$1:11)<=COUNTIF(GPS_IMPORT!$A$2:$A$10000,$B$5),INDEX(GPS_IMPORT!$2:$10000,MATCH($B$5,(GPS_IMPORT!$A$2:$A$10000),0)+ROWS($1:11)-1,COLUMN()-1),0) -> 0 | G17: =IF(ROWS(GPS_IMPORT!$1:11)<=COUNTIF(GPS_IMPORT!$A$2:$A$10000,$B$5),INDEX(GPS_IMPORT!$2:$10000,MATCH($B$5,(GPS_IMPORT!$A$2:$A$10000),0)+ROWS($1:11)-1,COLUMN()-1),0) -> 0 | H17: 0 | I17: 0 | J17: 0 | K17: TRUE
A18: 12 | B18: =IF(ROWS(GPS_IMPORT!$1:12)<=COUNTIF(GPS_IMPORT!$A$2:$A$10000,$B$5),INDEX(GPS_IMPORT!$2:$10000,MATCH($B$5,(GPS_IMPORT!$A$2:$A$10000),0)+ROWS($1:12)-1,COLUMN()-1),0) -> 0 | C18: =IF(ROWS(GPS_IMPORT!$1:12)<=COUNTIF(GPS_IMPORT!$A$2:$A$10000,$B$5),INDEX(GPS_IMPORT!$2:$10000,MATCH($B$5,(GPS_IMPORT!$A$2:$A$10000),0)+ROWS($1:12)-1,COLUMN()-1),0) -> 00:00:00 | D18: =IF(ROWS(GPS_IMPORT!$1:12)<=COUNTIF(GPS_IMPORT!$A$2:$A$10000,$B$5),INDEX(GPS_IMPORT!$2:$10000,MATCH($B$5,(GPS_IMPORT!$A$2:$A$10000),0)+ROWS($1:12)-1,COLUMN()-1),0) -> 00:00:00 | E18: =IF(ROWS(GPS_IMPORT!$1:12)<=COUNTIF(GPS_IMPORT!$A$2:$A$10000,$B$5),INDEX(GPS_IMPORT!$2:$10000,MATCH($B$5,(GPS_IMPORT!$A$2:$A$10000),0)+ROWS($1:12)-1,COLUMN()-1),0) -> 0 | F18: =IF(ROWS(GPS_IMPORT!$1:12)<=COUNTIF(GPS_IMPORT!$A$2:$A$10000,$B$5),INDEX(GPS_IMPORT!$2:$10000,MATCH($B$5,(GPS_IMPORT!$A$2:$A$10000),0)+ROWS($1:12)-1,COLUMN()-1),0) -> 0 | G18: =IF(ROWS(GPS_IMPORT!$1:12)<=COUNTIF(GPS_IMPORT!$A$2:$A$10000,$B$5),INDEX(GPS_IMPORT!$2:$10000,MATCH($B$5,(GPS_IMPORT!$A$2:$A$10000),0)+ROWS($1:12)-1,COLUMN()-1),0) -> 0 | H18: 0 | I18: 0 | J18: 0 | K18: TRUE
A19: 13 | B19: =IF(ROWS(GPS_IMPORT!$1:13)<=COUNTIF(GPS_IMPORT!$A$2:$A$10000,$B$5),INDEX(GPS_IMPORT!$2:$10000,MATCH($B$5,(GPS_IMPORT!$A$2:$A$10000),0)+ROWS($1:13)-1,COLUMN()-1),0) -> 0 | C19: =IF(ROWS(GPS_IMPORT!$1:13)<=COUNTIF(GPS_IMPORT!$A$2:$A$10000,$B$5),INDEX(GPS_IMPORT!$2:$10000,MATCH($B$5,(GPS_IMPORT!$A$2:$A$10000),0)+ROWS($1:13)-1,COLUMN()-1),0) -> 00:00:00 | D19: =IF(ROWS(GPS_IMPORT!$1:13)<=COUNTIF(GPS_IMPORT!$A$2:$A$10000,$B$5),INDEX(GPS_IMPORT!$2:$10000,MATCH($B$5,(GPS_IMPORT!$A$2:$A$10000),0)+ROWS($1:13)-1,COLUMN()-1),0) -> 00:00:00 | E19: =IF(ROWS(GPS_IMPORT!$1:13)<=COUNTIF(GPS_IMPORT!$A$2:$A$10000,$B$5),INDEX(GPS_IMPORT!$2:$10000,MATCH($B$5,(GPS_IMPORT!$A$2:$A$10000),0)+ROWS($1:13)-1,COLUMN()-1),0) -> 0 | F19: =IF(ROWS(GPS_IMPORT!$1:13)<=COUNTIF(GPS_IMPORT!$A$2:$A$10000,$B$5),INDEX(GPS_IMPORT!$2:$10000,MATCH($B$5,(GPS_IMPORT!$A$2:$A$10000),0)+ROWS($1:13)-1,COLUMN()-1),0) -> 0 | G19: =IF(ROWS(GPS_IMPORT!$1:13)<=COUNTIF(GPS_IMPORT!$A$2:$A$10000,$B$5),INDEX(GPS_IMPORT!$2:$10000,MATCH($B$5,(GPS_IMPORT!$A$2:$A$10000),0)+ROWS($1:13)-1,COLUMN()-1),0) -> 0 | H19: =IF(E19>0,E$22-E19,0) -> 0 | I19: 0 | J19: 0 | K19: FALSE
A20: 14 | B20: =IF(ROWS(GPS_IMPORT!$1:14)<=COUNTIF(GPS_IMPORT!$A$2:$A$10000,$B$5),INDEX(GPS_IMPORT!$2:$10000,MATCH($B$5,(GPS_IMPORT!$A$2:$A$10000),0)+ROWS($1:14)-1,COLUMN()-1),0) -> 0 | C20: =IF(ROWS(GPS_IMPORT!$1:14)<=COUNTIF(GPS_IMPORT!$A$2:$A$10000,$B$5),INDEX(GPS_IMPORT!$2:$10000,MATCH($B$5,(GPS_IMPORT!$A$2:$A$10000),0)+ROWS($1:14)-1,COLUMN()-1),0) -> 00:00:00 | D20: =IF(ROWS(GPS_IMPORT!$1:14)<=COUNTIF(GPS_IMPORT!$A$2:$A$10000,$B$5),INDEX(GPS_IMPORT!$2:$10000,MATCH($B$5,(GPS_IMPORT!$A$2:$A$10000),0)+ROWS($1:14)-1,COLUMN()-1),0) -> 00:00:00 | E20: =IF(ROWS(GPS_IMPORT!$1:14)<=COUNTIF(GPS_IMPORT!$A$2:$A$10000,$B$5),INDEX(GPS_IMPORT!$2:$10000,MATCH($B$5,(GPS_IMPORT!$A$2:$A$10000),0)+ROWS($1:14)-1,COLUMN()-1),0) -> 0 | F20: =IF(ROWS(GPS_IMPORT!$1:14)<=COUNTIF(GPS_IMPORT!$A$2:$A$10000,$B$5),INDEX(GPS_IMPORT!$2:$10000,MATCH($B$5,(GPS_IMPORT!$A$2:$A$10000),0)+ROWS($1:14)-1,COLUMN()-1),0) -> 0 | G20: =IF(ROWS(GPS_IMPORT!$1:14)<=COUNTIF(GPS_IMPORT!$A$2:$A$10000,$B$5),INDEX(GPS_IMPORT!$2:$10000,MATCH($B$5,(GPS_IMPORT!$A$2:$A$10000),0)+ROWS($1:14)-1,COLUMN()-1),0) -> 0 | H20: 0 | I20: 0 | J20: 0 | K20: FALSE
A21: 15 | B21: =IF(ROWS(GPS_IMPORT!$1:15)<=COUNTIF(GPS_IMPORT!$A$2:$A$10000,$B$5),INDEX(GPS_IMPORT!$2:$10000,MATCH($B$5,(GPS_IMPORT!$A$2:$A$10000),0)+ROWS($1:15)-1,COLUMN()-1),0) -> 0 | C21: =IF(ROWS(GPS_IMPORT!$1:15)<=COUNTIF(GPS_IMPORT!$A$2:$A$10000,$B$5),INDEX(GPS_IMPORT!$2:$10000,MATCH($B$5,(GPS_IMPORT!$A$2:$A$10000),0)+ROWS($1:15)-1,COLUMN()-1),0) -> 00:00:00 | D21: =IF(ROWS(GPS_IMPORT!$1:15)<=COUNTIF(GPS_IMPORT!$A$2:$A$10000,$B$5),INDEX(GPS_IMPORT!$2:$10000,MATCH($B$5,(GPS_IMPORT!$A$2:$A$10000),0)+ROWS($1:15)-1,COLUMN()-1),0) -> 00:00:00 | E21: =IF(ROWS(GPS_IMPORT!$1:15)<=COUNTIF(GPS_IMPORT!$A$2:$A$10000,$B$5),INDEX(GPS_IMPORT!$2:$10000,MATCH($B$5,(GPS_IMPORT!$A$2:$A$10000),0)+ROWS($1:15)-1,COLUMN()-1),0) -> 0 | F21: =IF(ROWS(GPS_IMPORT!$1:15)<=COUNTIF(GPS_IMPORT!$A$2:$A$10000,$B$5),INDEX(GPS_IMPORT!$2:$10000,MATCH($B$5,(GPS_IMPORT!$A$2:$A$10000),0)+ROWS($1:15)-1,COLUMN()-1),0) -> 0 | G21: =IF(ROWS(GPS_IMPORT!$1:15)<=COUNTIF(GPS_IMPORT!$A$2:$A$10000,$B$5),INDEX(GPS_IMPORT!$2:$10000,MATCH($B$5,(GPS_IMPORT!$A$2:$A$10000),0)+ROWS($1:15)-1,COLUMN()-1),0) -> 0 | H21: 0 | I21: 0 | J21: 0 | K21: FALSE
D22: AVERAGE | E22: =(IF($K$7=TRUE,E7,0)+IF($K$8=TRUE,E8,0)+IF($K$9=TRUE,E9,0)+IF($K$10=TRUE,E10,0)+IF($K$11=TRUE,E11,0)+IF($K$12=TRUE,E12,0)+IF($K$13=TRUE,E13,0)+IF($K$14=TRUE,E14,0)+IF($K$15=TRUE,E15,0)+IF($K$16=TRUE,E16,0)+IF($K$17=TRUE,E17,0)+IF($K$18=TRUE,E18,0)+IF($K$19=TRUE,E19,0)+IF($K$20=TRUE,E20,0)+IF($K$21=TRUE,E21,0))/(IF($K$7=TRUE,1,0)+IF($K$8=TRUE,1,0)+IF($K$9=TRUE,1,0)+IF($K$10=TRUE,1,0)+IF($K$11=TRUE,1,0)+IF($K$12=TRUE,1,0)+IF($K$13=TRUE,1,0)+IF($K$14=TRUE,1,0)+IF($K$15=TRUE,1,0)+IF($K$16=TRUE,1,0)+IF($K$17=TRUE,1,0)+IF($K$18=TRUE,1,0)+IF($K$19=TRUE,1,0)+IF($K$20=TRUE,1,0)+IF($K$21=TRUE,1,0)) -> 0 | F22: =(IF($K$7=TRUE,F7,0)+IF($K$8=TRUE,F8,0)+IF($K$9=TRUE,F9,0)+IF($K$10=TRUE,F10,0)+IF($K$11=TRUE,F11,0)+IF($K$12=TRUE,F12,0)+IF($K$13=TRUE,F13,0)+IF($K$14=TRUE,F14,0)+IF($K$15=TRUE,F15,0)+IF($K$16=TRUE,F16,0)+IF($K$17=TRUE,F17,0)+IF($K$18=TRUE,F18,0)+IF($K$19=TRUE,F19,0)+IF($K$20=TRUE,F20,0)+IF($K$21=TRUE,F21,0))/(IF($K$7=TRUE,1,0)+IF($K$8=TRUE,1,0)+IF($K$9=TRUE,1,0)+IF($K$10=TRUE,1,0)+IF($K$11=TRUE,1,0)+IF($K$12=TRUE,1,0)+IF($K$13=TRUE,1,0)+IF($K$14=TRUE,1,0)+IF($K$15=TRUE,1,0)+IF($K$16=TRUE,1,0)+IF($K$17=TRUE,1,0)+IF($K$18=TRUE,1,0)+IF($K$19=TRUE,1,0)+IF($K$20=TRUE,1,0)+IF($K$21=TRUE,1,0)) -> 0 | G22: =(IF($K$7=TRUE,G7,0)+IF($K$8=TRUE,G8,0)+IF($K$9=TRUE,G9,0)+IF($K$10=TRUE,G10,0)+IF($K$11=TRUE,G11,0)+IF($K$12=TRUE,G12,0)+IF($K$13=TRUE,G13,0)+IF($K$14=TRUE,G14,0)+IF($K$15=TRUE,G15,0)+IF($K$16=TRUE,G16,0)+IF($K$17=TRUE,G17,0)+IF($K$18=TRUE,G18,0)+IF($K$19=TRUE,G19,0)+IF($K$20=TRUE,G20,0)+IF($K$21=TRUE,G21,0))/ (IF($K$7=TRUE,1,0)+IF($K$8=TRUE,1,0)+IF($K$9=TRUE,1,0)+IF($K$10=TRUE,1,0)+IF($K$11=TRUE,1,0)+IF($K$12=TRUE,1,0)+IF($K$13=TRUE,1,0)+IF($K$14=TRUE,1,0)+IF($K$15=TRUE,1,0)+IF($K$16=TRUE,1,0)+IF($K$17=TRUE,1,0)+IF($K$18=TRUE,1,0)+IF($K$19=TRUE,1,0)+IF($K$20=TRUE,1,0)+IF($K$21=TRUE,1,0)) -> 0 | H22: RMSE: | I22: RMSE: | J22: RMSE:
G23: RMSE IN METRIC: | H23: =SQRT(( (IF($K$7=TRUE,H7^2,0))+(IF($K$8=TRUE,H8^2,0))+(IF($K$9=TRUE,H9^2,0))+(IF($K$10=TRUE,H10^2,0))+(IF($K$11=TRUE,H11^2,0))+(IF($K$12=TRUE,H12^2,0))+(IF($K$13=TRUE,H13^2,0))+(IF($K$14=TRUE,H14^2,0))+(IF($K$15=TRUE,H15^2,0))+(IF($K$16=TRUE,H16^2,0))+(IF($K$17=TRUE,H17^2,0))+(IF($K$18=TRUE,H18^2,0))+(IF($K$19=TRUE,H19^2,0))+(IF($K$20=TRUE,H20^2,0))+(IF($K$21=TRUE,H21^2,0)))/ (IF($K$7=TRUE,1,0)+IF($K$8=TRUE,1,0)+IF($K$9=TRUE,1,0)+IF($K$10=TRUE,1,0)+IF($K$11=TRUE,1,0)+IF($K$12=TRUE,1,0)+IF($K$13=TRUE,1,0)+IF($K$14=TRUE,1,0)+IF($K$15=TRUE,1,0)+IF($K$16=TRUE,1,0)+IF($K$17=TRUE,1,0)+IF($K$18=TRUE,1,0)+IF($K$19=TRUE,1,0)+IF($K$20=TRUE,1,0)+IF($K$21=TRUE,1,0))) -> 0 | I23: =SQRT(( (IF($K$7=TRUE,I7^2,0))+(IF($K$8=TRUE,I8^2,0))+(IF($K$9=TRUE,I9^2,0))+(IF($K$10=TRUE,I10^2,0))+(IF($K$11=TRUE,I11^2,0))+(IF($K$12=TRUE,I12^2,0))+(IF($K$13=TRUE,I13^2,0))+(IF($K$14=TRUE,I14^2,0))+(IF($K$15=TRUE,I15^2,0))+(IF($K$16=TRUE,I16^2,0))+(IF($K$17=TRUE,I17^2,0))+(IF($K$18=TRUE,I18^2,0))+(IF($K$19=TRUE,I19^2,0))+(IF($K$20=TRUE,I20^2,0))+(IF($K$21=TRUE,I21^2,0)))/ (IF($K$7=TRUE,1,0)+IF($K$8=TRUE,1,0)+IF($K$9=TRUE,1,0)+IF($K$10=TRUE,1,0)+IF($K$11=TRUE,1,0)+IF($K$12=TRUE,1,0)+IF($K$13=TRUE,1,0)+IF($K$14=TRUE,1,0)+IF($K$15=TRUE,1,0)+IF($K$16=TRUE,1,0)+IF($K$17=TRUE,1,0)+IF($K$18=TRUE,1,0)+IF($K$19=TRUE,1,0)+IF($K$20=TRUE,1,0)+IF($K$21=TRUE,1,0))) -> 0 | J23: =SQRT(( (IF($K$7=TRUE,J7^2,0))+(IF($K$8=TRUE,J8^2,0))+(IF($K$9=TRUE,J9^2,0))+(IF($K$10=TRUE,J10^2,0))+(IF($K$11=TRUE,J11^2,0))+(IF($K$12=TRUE,J12^2,0))+(IF($K$13=TRUE,J13^2,0))+(IF($K$14=TRUE,J14^2,0))+(IF($K$15=TRUE,J15^2,0))+(IF($K$16=TRUE,J16^2,0))+(IF($K$17=TRUE,J17^2,0))+(IF($K$18=TRUE,J18^2,0))+(IF($K$19=TRUE,J19^2,0))+(IF($K$20=TRUE,J20^2,0))+(IF($K$21=TRUE,J21^2,0)))/ (IF($K$7=TRUE,1,0)+IF($K$8=TRUE,1,0)+IF($K$9=TRUE,1,0)+IF($K$10=TRUE,1,0)+IF($K$11=TRUE,1,0)+IF($K$12=TRUE,1,0)+IF($K$13=TRUE,1,0)+IF($K$14=TRUE,1,0)+IF($K$15=TRUE,1,0)+IF($K$16=TRUE,1,0)+IF($K$17=TRUE,1,0)+IF($K$18=TRUE,1,0)+IF($K$19=TRUE,1,0)+IF($K$20=TRUE,1,0)+IF($K$21=TRUE,1,0))) -> 0
C24: ENGLISH TO METRIC CONVERSION | D24: =3937/1200 -> 3.280833333 | G24: RMSE IN US SURVEY FEET: | H24: =H23*$D$24 -> 0 | I24: =I23*$D$24 -> 0 | J24: =J23*$D$24 -> 0
C25: UNITLESS GRID TO GROUND MULTIPLIER | D25: =REPORT!C13 -> 0 | H25: =IF(H24<=0.029,"PASS","FAIL") -> PASS | I25: =IF(I24<=0.029,"PASS","FAIL") -> PASS | J25: =IF(J24<=0.039,"PASS","FAIL") -> PASS
A27: AVERAGED GPS-DERIVED POSITION | I27: Notes:
B28: MONUMENT COORDINATES | D28: NORTHING | E28: EASTING | F28: ORTHO HEIGHT
B29: METERS (GRID) | D29: =$E$22 -> 0 | E29: =$F$22 -> 0 | F29: =$G$22 -> 0
A31: LEVELED ELEVATION
A32: US SURVEY FEET | C32: =VLOOKUP(B5,'LEVEL RUN'!A8:I59,9,FALSE) ->  | D32: (Type the leveled elevation or N/A if no leveled elevation is available)
A33: MONUMENT HELD | D33: (Type the monument name from which leveling originated)
A34: LEVELED ELEVATION - GPS DERIVED ELEVATION = | E34: =IF(C32="N/A","N/A",C32-(F29*D24)) -> 
A36: FINAL MONUMENT COORDINATES
B37: MONUMENT COORDINATES | D37: NORTHING | E37: EASTING | F37: ELEVATION | G37: FEATURE CODE
B38: US SURVEY FEET (GRID) | D38: =$E$22*$D$24 -> 0 | E38: =$F$22*$D$24 -> 0 | F38: =IF($C$32="N/A",($G$22*$D$24),$C$32) ->  | G38: IPINS
B39: US SURVEY FEET (GROUND) | D39: =$D$38*$D$25 -> 0 | E39: =$E$38*$D$25 -> 0 | F39: =IF($C$32="N/A",($G$22*$D$24),$C$32) ->  | G39: IPINS
A41: ∆ North, ∆ East, and ∆ Ht. are the difference between the average northing, easting, and height for each observation. | I41: Mask Angle: | J41: 13°

Sheet CP04
A1: VRS GNSS Project Control Monument Coordinate Analysis
A3: PROJECT: | B3: =REPORT!B2 -> XXX-XXX-XXXX | C3: GPS Antenna: | D3: Trimble R6 | J3: Report Date: | K3: ='CP01'!K3 -> 00:00:00
A4: PID: | B4: =REPORT!E2 -> XXXXX | C4: VRS Network: | D4: ODOT VRS | J4: Prepared By: | K4: ='CP01'!K4 -> 0
A5: MONUMENT NUMBER: | B5: CP04 | C5: No. of Sessions: | D5: =COUNTIF(GPS_IMPORT!A2:A1000,$B$5) -> 0 | J5: Checked By: | K5: ='CP01'!K5 -> 0
A6: SESSION # | B6: Point | C6: Observation Date | D6: Start Time | E6: Northing(m) | F6: Easting(m) | G6: Height(m) | H6: ∆ Northing(m) | I6: ∆ Easting(m) | J6: ∆ Height(m) | K6: Include in Solution?
A7: 1 | B7: =IF(ROWS(GPS_IMPORT!$1:1)<=COUNTIF(GPS_IMPORT!$A$2:$A$10000,$B$5),INDEX(GPS_IMPORT!$2:$10000,MATCH($B$5,(GPS_IMPORT!$A$2:$A$10000),0)+ROWS($1:1)-1,COLUMN()-1),0) -> 0 | C7: =IF(ROWS(GPS_IMPORT!$1:1)<=COUNTIF(GPS_IMPORT!$A$2:$A$10000,$B$5),INDEX(GPS_IMPORT!$2:$10000,MATCH($B$5,(GPS_IMPORT!$A$2:$A$10000),0)+ROWS($1:1)-1,COLUMN()-1),0) -> 00:00:00 | D7: =IF(ROWS(GPS_IMPORT!$1:1)<=COUNTIF(GPS_IMPORT!$A$2:$A$10000,$B$5),INDEX(GPS_IMPORT!$2:$10000,MATCH($B$5,(GPS_IMPORT!$A$2:$A$10000),0)+ROWS($1:1)-1,COLUMN()-1),0) -> 00:00:00 | E7: =IF(ROWS(GPS_IMPORT!$1:1)<=COUNTIF(GPS_IMPORT!$A$2:$A$10000,$B$5),INDEX(GPS_IMPORT!$2:$10000,MATCH($B$5,(GPS_IMPORT!$A$2:$A$10000),0)+ROWS($1:1)-1,COLUMN()-1),0) -> 0 | F7: =IF(ROWS(GPS_IMPORT!$1:1)<=COUNTIF(GPS_IMPORT!$A$2:$A$10000,$B$5),INDEX(GPS_IMPORT!$2:$10000,MATCH($B$5,(GPS_IMPORT!$A$2:$A$10000),0)+ROWS($1:1)-1,COLUMN()-1),0) -> 0 | G7: =IF(ROWS(GPS_IMPORT!$1:1)<=COUNTIF(GPS_IMPORT!$A$2:$A$10000,$B$5),INDEX(GPS_IMPORT!$2:$10000,MATCH($B$5,(GPS_IMPORT!$A$2:$A$10000),0)+ROWS($1:1)-1,COLUMN()-1),0) -> 0 | H7: =IF(E7>0,E$22-E7,0) -> 0 | I7: 0 | J7: 0 | K7: TRUE
A8: 2 | B8: =IF(ROWS(GPS_IMPORT!$1:2)<=COUNTIF(GPS_IMPORT!$A$2:$A$10000,$B$5),INDEX(GPS_IMPORT!$2:$10000,MATCH($B$5,(GPS_IMPORT!$A$2:$A$10000),0)+ROWS($1:2)-1,COLUMN()-1),0) -> 0 | C8: =IF(ROWS(GPS_IMPORT!$1:2)<=COUNTIF(GPS_IMPORT!$A$2:$A$10000,$B$5),INDEX(GPS_IMPORT!$2:$10000,MATCH($B$5,(GPS_IMPORT!$A$2:$A$10000),0)+ROWS($1:2)-1,COLUMN()-1),0) -> 00:00:00 | D8: =IF(ROWS(GPS_IMPORT!$1:2)<=COUNTIF(GPS_IMPORT!$A$2:$A$10000,$B$5),INDEX(GPS_IMPORT!$2:$10000,MATCH($B$5,(GPS_IMPORT!$A$2:$A$10000),0)+ROWS($1:2)-1,COLUMN()-1),0) -> 00:00:00 | E8: =IF(ROWS(GPS_IMPORT!$1:2)<=COUNTIF(GPS_IMPORT!$A$2:$A$10000,$B$5),INDEX(GPS_IMPORT!$2:$10000,MATCH($B$5,(GPS_IMPORT!$A$2:$A$10000),0)+ROWS($1:2)-1,COLUMN()-1),0) -> 0 | F8: =IF(ROWS(GPS_IMPORT!$1:2)<=COUNTIF(GPS_IMPORT!$A$2:$A$10000,$B$5),INDEX(GPS_IMPORT!$2:$10000,MATCH($B$5,(GPS_IMPORT!$A$2:$A$10000),0)+ROWS($1:2)-1,COLUMN()-1),0) -> 0 | G8: =IF(ROWS(GPS_IMPORT!$1:2)<=COUNTIF(GPS_IMPORT!$A$2:$A$10000,$B$5),INDEX(GPS_IMPORT!$2:$10000,MATCH($B$5,(GPS_IMPORT!$A$2:$A$10000),0)+ROWS($1:2)-1,COLUMN()-1),0) -> 0 | H8: 0 | I8: 0 | J8: 0 | K8: TRUE
A9: 3 | B9: =IF(ROWS(GPS_IMPORT!$1:3)<=COUNTIF(GPS_IMPORT!$A$2:$A$10000,$B$5),INDEX(GPS_IMPORT!$2:$10000,MATCH($B$5,(GPS_IMPORT!$A$2:$A$10000),0)+ROWS($1:3)-1,COLUMN()-1),0) -> 0 | C9: =IF(ROWS(GPS_IMPORT!$1:3)<=COUNTIF(GPS_IMPORT!$A$2:$A$10000,$B$5),INDEX(GPS_IMPORT!$2:$10000,MATCH($B$5,(GPS_IMPORT!$A$2:$A$10000),0)+ROWS($1:3)-1,COLUMN()-1),0) -> 00:00:00 | D9: =IF(ROWS(GPS_IMPORT!$1:3)<=COUNTIF(GPS_IMPORT!$A$2:$A$10000,$B$5),INDEX(GPS_IMPORT!$2:$10000,MATCH($B$5,(GPS_IMPORT!$A$2:$A$10000),0)+ROWS($1:3)-1,COLUMN()-1),0) -> 00:00:00 | E9: =IF(ROWS(GPS_IMPORT!$1:3)<=COUNTIF(GPS_IMPORT!$A$2:$A$10000,$B$5),INDEX(GPS_IMPORT!$2:$10000,MATCH($B$5,(GPS_IMPORT!$A$2:$A$10000),0)+ROWS($1:3)-1,COLUMN()-1),0) -> 0 | F9: =IF(ROWS(GPS_IMPORT!$1:3)<=COUNTIF(GPS_IMPORT!$A$2:$A$10000,$B$5),INDEX(GPS_IMPORT!$2:$10000,MATCH($B$5,(GPS_IMPORT!$A$2:$A$10000),0)+ROWS($1:3)-1,COLUMN()-1),0) -> 0 | G9: =IF(ROWS(GPS_IMPORT!$1:3)<=COUNTIF(GPS_IMPORT!$A$2:$A$10000,$B$5),INDEX(GPS_IMPORT!$2:$10000,MATCH($B$5,(GPS_IMPORT!$A$2:$A$10000),0)+ROWS($1:3)-1,COLUMN()-1),0) -> 0 | H9: 0 | I9: 0 | J9: 0 | K9: TRUE
A10: 4 | B10: =IF(ROWS(GPS_IMPORT!$1:4)<=COUNTIF(GPS_IMPORT!$A$2:$A$10000,$B$5),INDEX(GPS_IMPORT!$2:$10000,MATCH($B$5,(GPS_IMPORT!$A$2:$A$10000),0)+ROWS($1:4)-1,COLUMN()-1),0) -> 0 | C10: =IF(ROWS(GPS_IMPORT!$1:4)<=COUNTIF(GPS_IMPORT!$A$2:$A$10000,$B$5),INDEX(GPS_IMPORT!$2:$10000,MATCH($B$5,(GPS_IMPORT!$A$2:$A$10000),0)+ROWS($1:4)-1,COLUMN()-1),0) -> 00:00:00 | D10: =IF(ROWS(GPS_IMPORT!$1:4)<=COUNTIF(GPS_IMPORT!$A$2:$A$10000,$B$5),INDEX(GPS_IMPORT!$2:$10000,MATCH($B$5,(GPS_IMPORT!$A$2:$A$10000),0)+ROWS($1:4)-1,COLUMN()-1),0) -> 00:00:00 | E10: =IF(ROWS(GPS_IMPORT!$1:4)<=COUNTIF(GPS_IMPORT!$A$2:$A$10000,$B$5),INDEX(GPS_IMPORT!$2:$10000,MATCH($B$5,(GPS_IMPORT!$A$2:$A$10000),0)+ROWS($1:4)-1,COLUMN()-1),0) -> 0 | F10: =IF(ROWS(GPS_IMPORT!$1:4)<=COUNTIF(GPS_IMPORT!$A$2:$A$10000,$B$5),INDEX(GPS_IMPORT!$2:$10000,MATCH($B$5,(GPS_IMPORT!$A$2:$A$10000),0)+ROWS($1:4)-1,COLUMN()-1),0) -> 0 | G10: =IF(ROWS(GPS_IMPORT!$1:4)<=COUNTIF(GPS_IMPORT!$A$2:$A$10000,$B$5),INDEX(GPS_IMPORT!$2:$10000,MATCH($B$5,(GPS_IMPORT!$A$2:$A$10000),0)+ROWS($1:4)-1,COLUMN()-1),0) -> 0 | H10: 0 | I10: 0 | J10: 0 | K10: TRUE
A11: 5 | B11: =IF(ROWS(GPS_IMPORT!$1:5)<=COUNTIF(GPS_IMPORT!$A$2:$A$10000,$B$5),INDEX(GPS_IMPORT!$2:$10000,MATCH($B$5,(GPS_IMPORT!$A$2:$A$10000),0)+ROWS($1:5)-1,COLUMN()-1),0) -> 0 | C11: =IF(ROWS(GPS_IMPORT!$1:5)<=COUNTIF(GPS_IMPORT!$A$2:$A$10000,$B$5),INDEX(GPS_IMPORT!$2:$10000,MATCH($B$5,(GPS_IMPORT!$A$2:$A$10000),0)+ROWS($1:5)-1,COLUMN()-1),0) -> 00:00:00 | D11: =IF(ROWS(GPS_IMPORT!$1:5)<=COUNTIF(GPS_IMPORT!$A$2:$A$10000,$B$5),INDEX(GPS_IMPORT!$2:$10000,MATCH($B$5,(GPS_IMPORT!$A$2:$A$10000),0)+ROWS($1:5)-1,COLUMN()-1),0) -> 00:00:00 | E11: =IF(ROWS(GPS_IMPORT!$1:5)<=COUNTIF(GPS_IMPORT!$A$2:$A$10000,$B$5),INDEX(GPS_IMPORT!$2:$10000,MATCH($B$5,(GPS_IMPORT!$A$2:$A$10000),0)+ROWS($1:5)-1,COLUMN()-1),0) -> 0 | F11: =IF(ROWS(GPS_IMPORT!$1:5)<=COUNTIF(GPS_IMPORT!$A$2:$A$10000,$B$5),INDEX(GPS_IMPORT!$2:$10000,MATCH($B$5,(GPS_IMPORT!$A$2:$A$10000),0)+ROWS($1:5)-1,COLUMN()-1),0) -> 0 | G11: =IF(ROWS(GPS_IMPORT!$1:5)<=COUNTIF(GPS_IMPORT!$A$2:$A$10000,$B$5),INDEX(GPS_IMPORT!$2:$10000,MATCH($B$5,(GPS_IMPORT!$A$2:$A$10000),0)+ROWS($1:5)-1,COLUMN()-1),0) -> 0 | H11: 0 | I11: 0 | J11: 0 | K11: TRUE
A12: 6 | B12: =IF(ROWS(GPS_IMPORT!$1:6)<=COUNTIF(GPS_IMPORT!$A$2:$A$10000,$B$5),INDEX(GPS_IMPORT!$2:$10000,MATCH($B$5,(GPS_IMPORT!$A$2:$A$10000),0)+ROWS($1:6)-1,COLUMN()-1),0) -> 0 | C12: =IF(ROWS(GPS_IMPORT!$1:6)<=COUNTIF(GPS_IMPORT!$A$2:$A$10000,$B$5),INDEX(GPS_IMPORT!$2:$10000,MATCH($B$5,(GPS_IMPORT!$A$2:$A$10000),0)+ROWS($1:6)-1,COLUMN()-1),0) -> 00:00:00 | D12: =IF(ROWS(GPS_IMPORT!$1:6)<=COUNTIF(GPS_IMPORT!$A$2:$A$10000,$B$5),INDEX(GPS_IMPORT!$2:$10000,MATCH($B$5,(GPS_IMPORT!$A$2:$A$10000),0)+ROWS($1:6)-1,COLUMN()-1),0) -> 00:00:00 | E12: =IF(ROWS(GPS_IMPORT!$1:6)<=COUNTIF(GPS_IMPORT!$A$2:$A$10000,$B$5),INDEX(GPS_IMPORT!$2:$10000,MATCH($B$5,(GPS_IMPORT!$A$2:$A$10000),0)+ROWS($1:6)-1,COLUMN()-1),0) -> 0 | F12: =IF(ROWS(GPS_IMPORT!$1:6)<=COUNTIF(GPS_IMPORT!$A$2:$A$10000,$B$5),INDEX(GPS_IMPORT!$2:$10000,MATCH($B$5,(GPS_IMPORT!$A$2:$A$10000),0)+ROWS($1:6)-1,COLUMN()-1),0) -> 0 | G12: =IF(ROWS(GPS_IMPORT!$1:6)<=COUNTIF(GPS_IMPORT!$A$2:$A$10000,$B$5),INDEX(GPS_IMPORT!$2:$10000,MATCH($B$5,(GPS_IMPORT!$A$2:$A$10000),0)+ROWS($1:6)-1,COLUMN()-1),0) -> 0 | H12: 0 | I12: 0 | J12: 0 | K12: TRUE
A13: 7 | B13: =IF(ROWS(GPS_IMPORT!$1:7)<=COUNTIF(GPS_IMPORT!$A$2:$A$10000,$B$5),INDEX(GPS_IMPORT!$2:$10000,MATCH($B$5,(GPS_IMPORT!$A$2:$A$10000),0)+ROWS($1:7)-1,COLUMN()-1),0) -> 0 | C13: =IF(ROWS(GPS_IMPORT!$1:7)<=COUNTIF(GPS_IMPORT!$A$2:$A$10000,$B$5),INDEX(GPS_IMPORT!$2:$10000,MATCH($B$5,(GPS_IMPORT!$A$2:$A$10000),0)+ROWS($1:7)-1,COLUMN()-1),0) -> 00:00:00 | D13: =IF(ROWS(GPS_IMPORT!$1:7)<=COUNTIF(GPS_IMPORT!$A$2:$A$10000,$B$5),INDEX(GPS_IMPORT!$2:$10000,MATCH($B$5,(GPS_IMPORT!$A$2:$A$10000),0)+ROWS($1:7)-1,COLUMN()-1),0) -> 00:00:00 | E13: =IF(ROWS(GPS_IMPORT!$1:7)<=COUNTIF(GPS_IMPORT!$A$2:$A$10000,$B$5),INDEX(GPS_IMPORT!$2:$10000,MATCH($B$5,(GPS_IMPORT!$A$2:$A$10000),0)+ROWS($1:7)-1,COLUMN()-1),0) -> 0 | F13: =IF(ROWS(GPS_IMPORT!$1:7)<=COUNTIF(GPS_IMPORT!$A$2:$A$10000,$B$5),INDEX(GPS_IMPORT!$2:$10000,MATCH($B$5,(GPS_IMPORT!$A$2:$A$10000),0)+ROWS($1:7)-1,COLUMN()-1),0) -> 0 | G13: =IF(ROWS(GPS_IMPORT!$1:7)<=COUNTIF(GPS_IMPORT!$A$2:$A$10000,$B$5),INDEX(GPS_IMPORT!$2:$10000,MATCH($B$5,(GPS_IMPORT!$A$2:$A$10000),0)+ROWS($1:7)-1,COLUMN()-1),0) -> 0 | H13: 0 | I13: 0 | J13: 0 | K13: TRUE
A14: 8 | B14: =IF(ROWS(GPS_IMPORT!$1:8)<=COUNTIF(GPS_IMPORT!$A$2:$A$10000,$B$5),INDEX(GPS_IMPORT!$2:$10000,MATCH($B$5,(GPS_IMPORT!$A$2:$A$10000),0)+ROWS($1:8)-1,COLUMN()-1),0) -> 0 | C14: =IF(ROWS(GPS_IMPORT!$1:8)<=COUNTIF(GPS_IMPORT!$A$2:$A$10000,$B$5),INDEX(GPS_IMPORT!$2:$10000,MATCH($B$5,(GPS_IMPORT!$A$2:$A$10000),0)+ROWS($1:8)-1,COLUMN()-1),0) -> 00:00:00 | D14: =IF(ROWS(GPS_IMPORT!$1:8)<=COUNTIF(GPS_IMPORT!$A$2:$A$10000,$B$5),INDEX(GPS_IMPORT!$2:$10000,MATCH($B$5,(GPS_IMPORT!$A$2:$A$10000),0)+ROWS($1:8)-1,COLUMN()-1),0) -> 00:00:00 | E14: =IF(ROWS(GPS_IMPORT!$1:8)<=COUNTIF(GPS_IMPORT!$A$2:$A$10000,$B$5),INDEX(GPS_IMPORT!$2:$10000,MATCH($B$5,(GPS_IMPORT!$A$2:$A$10000),0)+ROWS($1:8)-1,COLUMN()-1),0) -> 0 | F14: =IF(ROWS(GPS_IMPORT!$1:8)<=COUNTIF(GPS_IMPORT!$A$2:$A$10000,$B$5),INDEX(GPS_IMPORT!$2:$10000,MATCH($B$5,(GPS_IMPORT!$A$2:$A$10000),0)+ROWS($1:8)-1,COLUMN()-1),0) -> 0 | G14: =IF(ROWS(GPS_IMPORT!$1:8)<=COUNTIF(GPS_IMPORT!$A$2:$A$10000,$B$5),INDEX(GPS_IMPORT!$2:$10000,MATCH($B$5,(GPS_IMPORT!$A$2:$A$10000),0)+ROWS($1:8)-1,COLUMN()-1),0) -> 0 | H14: 0 | I14: 0 | J14: 0 | K14: TRUE
A15: 9 | B15: =IF(ROWS(GPS_IMPORT!$1:9)<=COUNTIF(GPS_IMPORT!$A$2:$A$10000,$B$5),INDEX(GPS_IMPORT!$2:$10000,MATCH($B$5,(GPS_IMPORT!$A$2:$A$10000),0)+ROWS($1:9)-1,COLUMN()-1),0) -> 0 | C15: =IF(ROWS(GPS_IMPORT!$1:9)<=COUNTIF(GPS_IMPORT!$A$2:$A$10000,$B$5),INDEX(GPS_IMPORT!$2:$10000,MATCH($B$5,(GPS_IMPORT!$A$2:$A$10000),0)+ROWS($1:9)-1,COLUMN()-1),0) -> 00:00:00 | D15: =IF(ROWS(GPS_IMPORT!$1:9)<=COUNTIF(GPS_IMPORT!$A$2:$A$10000,$B$5),INDEX(GPS_IMPORT!$2:$10000,MATCH($B$5,(GPS_IMPORT!$A$2:$A$10000),0)+ROWS($1:9)-1,COLUMN()-1),0) -> 00:00:00 | E15: =IF(ROWS(GPS_IMPORT!$1:9)<=COUNTIF(GPS_IMPORT!$A$2:$A$10000,$B$5),INDEX(GPS_IMPORT!$2:$10000,MATCH($B$5,(GPS_IMPORT!$A$2:$A$10000),0)+ROWS($1:9)-1,COLUMN()-1),0) -> 0 | F15: =IF(ROWS(GPS_IMPORT!$1:9)<=COUNTIF(GPS_IMPORT!$A$2:$A$10000,$B$5),INDEX(GPS_IMPORT!$2:$10000,MATCH($B$5,(GPS_IMPORT!$A$2:$A$10000),0)+ROWS($1:9)-1,COLUMN()-1),0) -> 0 | G15: =IF(ROWS(GPS_IMPORT!$1:9)<=COUNTIF(GPS_IMPORT!$A$2:$A$10000,$B$5),INDEX(GPS_IMPORT!$2:$10000,MATCH($B$5,(GPS_IMPORT!$A$2:$A$10000),0)+ROWS($1:9)-1,COLUMN()-1),0) -> 0 | H15: 0 | I15: 0 | J15: 0 | K15: TRUE
A16: 10 | B16: =IF(ROWS(GPS_IMPORT!$1:10)<=COUNTIF(GPS_IMPORT!$A$2:$A$10000,$B$5),INDEX(GPS_IMPORT!$2:$10000,MATCH($B$5,(GPS_IMPORT!$A$2:$A$10000),0)+ROWS($1:10)-1,COLUMN()-1),0) -> 0 | C16: =IF(ROWS(GPS_IMPORT!$1:10)<=COUNTIF(GPS_IMPORT!$A$2:$A$10000,$B$5),INDEX(GPS_IMPORT!$2:$10000,MATCH($B$5,(GPS_IMPORT!$A$2:$A$10000),0)+ROWS($1:10)-1,COLUMN()-1),0) -> 00:00:00 | D16: =IF(ROWS(GPS_IMPORT!$1:10)<=COUNTIF(GPS_IMPORT!$A$2:$A$10000,$B$5),INDEX(GPS_IMPORT!$2:$10000,MATCH($B$5,(GPS_IMPORT!$A$2:$A$10000),0)+ROWS($1:10)-1,COLUMN()-1),0) -> 00:00:00 | E16: =IF(ROWS(GPS_IMPORT!$1:10)<=COUNTIF(GPS_IMPORT!$A$2:$A$10000,$B$5),INDEX(GPS_IMPORT!$2:$10000,MATCH($B$5,(GPS_IMPORT!$A$2:$A$10000),0)+ROWS($1:10)-1,COLUMN()-1),0) -> 0 | F16: =IF(ROWS(GPS_IMPORT!$1:10)<=COUNTIF(GPS_IMPORT!$A$2:$A$10000,$B$5),INDEX(GPS_IMPORT!$2:$10000,MATCH($B$5,(GPS_IMPORT!$A$2:$A$10000),0)+ROWS($1:10)-1,COLUMN()-1),0) -> 0 | G16: =IF(ROWS(GPS_IMPORT!$1:10)<=COUNTIF(GPS_IMPORT!$A$2:$A$10000,$B$5),INDEX(GPS_IMPORT!$2:$10000,MATCH($B$5,(GPS_IMPORT!$A$2:$A$10000),0)+ROWS($1:10)-1,COLUMN()-1),0) -> 0 | H16: 0 | I16: 0 | J16: 0 | K16: TRUE
A17: 11 | B17: =IF(ROWS(GPS_IMPORT!$1:11)<=COUNTIF(GPS_IMPORT!$A$2:$A$10000,$B$5),INDEX(GPS_IMPORT!$2:$10000,MATCH($B$5,(GPS_IMPORT!$A$2:$A$10000),0)+ROWS($1:11)-1,COLUMN()-1),0) -> 0 | C17: =IF(ROWS(GPS_IMPORT!$1:11)<=COUNTIF(GPS_IMPORT!$A$2:$A$10000,$B$5),INDEX(GPS_IMPORT!$2:$10000,MATCH($B$5,(GPS_IMPORT!$A$2:$A$10000),0)+ROWS($1:11)-1,COLUMN()-1),0) -> 00:00:00 | D17: =IF(ROWS(GPS_IMPORT!$1:11)<=COUNTIF(GPS_IMPORT!$A$2:$A$10000,$B$5),INDEX(GPS_IMPORT!$2:$10000,MATCH($B$5,(GPS_IMPORT!$A$2:$A$10000),0)+ROWS($1:11)-1,COLUMN()-1),0) -> 00:00:00 | E17: =IF(ROWS(GPS_IMPORT!$1:11)<=COUNTIF(GPS_IMPORT!$A$2:$A$10000,$B$5),INDEX(GPS_IMPORT!$2:$10000,MATCH($B$5,(GPS_IMPORT!$A$2:$A$10000),0)+ROWS($1:11)-1,COLUMN()-1),0) -> 0 | F17: =IF(ROWS(GPS_IMPORT!$1:11)<=COUNTIF(GPS_IMPORT!$A$2:$A$10000,$B$5),INDEX(GPS_IMPORT!$2:$10000,MATCH($B$5,(GPS_IMPORT!$A$2:$A$10000),0)+ROWS($1:11)-1,COLUMN()-1),0) -> 0 | G17: =IF(ROWS(GPS_IMPORT!$1:11)<=COUNTIF(GPS_IMPORT!$A$2:$A$10000,$B$5),INDEX(GPS_IMPORT!$2:$10000,MATCH($B$5,(GPS_IMPORT!$A$2:$A$10000),0)+ROWS($1:11)-1,COLUMN()-1),0) -> 0 | H17: 0 | I17: 0 | J17: 0 | K17: TRUE
A18: 12 | B18: =IF(ROWS(GPS_IMPORT!$1:12)<=COUNTIF(GPS_IMPORT!$A$2:$A$10000,$B$5),INDEX(GPS_IMPORT!$2:$10000,MATCH($B$5,(GPS_IMPORT!$A$2:$A$10000),0)+ROWS($1:12)-1,COLUMN()-1),0) -> 0 | C18: =IF(ROWS(GPS_IMPORT!$1:12)<=COUNTIF(GPS_IMPORT!$A$2:$A$10000,$B$5),INDEX(GPS_IMPORT!$2:$10000,MATCH($B$5,(GPS_IMPORT!$A$2:$A$10000),0)+ROWS($1:12)-1,COLUMN()-1),0) -> 00:00:00 | D18: =IF(ROWS(GPS_IMPORT!$1:12)<=COUNTIF(GPS_IMPORT!$A$2:$A$10000,$B$5),INDEX(GPS_IMPORT!$2:$10000,MATCH($B$5,(GPS_IMPORT!$A$2:$A$10000),0)+ROWS($1:12)-1,COLUMN()-1),0) -> 00:00:00 | E18: =IF(ROWS(GPS_IMPORT!$1:12)<=COUNTIF(GPS_IMPORT!$A$2:$A$10000,$B$5),INDEX(GPS_IMPORT!$2:$10000,MATCH($B$5,(GPS_IMPORT!$A$2:$A$10000),0)+ROWS($1:12)-1,COLUMN()-1),0) -> 0 | F18: =IF(ROWS(GPS_IMPORT!$1:12)<=COUNTIF(GPS_IMPORT!$A$2:$A$10000,$B$5),INDEX(GPS_IMPORT!$2:$10000,MATCH($B$5,(GPS_IMPORT!$A$2:$A$10000),0)+ROWS($1:12)-1,COLUMN()-1),0) -> 0 | G18: =IF(ROWS(GPS_IMPORT!$1:12)<=COUNTIF(GPS_IMPORT!$A$2:$A$10000,$B$5),INDEX(GPS_IMPORT!$2:$10000,MATCH($B$5,(GPS_IMPORT!$A$2:$A$10000),0)+ROWS($1:12)-1,COLUMN()-1),0) -> 0 | H18: 0 | I18: 0 | J18: 0 | K18: TRUE
A19: 13 | B19: =IF(ROWS(GPS_IMPORT!$1:13)<=COUNTIF(GPS_IMPORT!$A$2:$A$10000,$B$5),INDEX(GPS_IMPORT!$2:$10000,MATCH($B$5,(GPS_IMPORT!$A$2:$A$10000),0)+ROWS($1:13)-1,COLUMN()-1),0) -> 0 | C19: =IF(ROWS(GPS_IMPORT!$1:13)<=COUNTIF(GPS_IMPORT!$A$2:$A$10000,$B$5),INDEX(GPS_IMPORT!$2:$10000,MATCH($B$5,(GPS_IMPORT!$A$2:$A$10000),0)+ROWS($1:13)-1,COLUMN()-1),0) -> 00:00:00 | D19: =IF(ROWS(GPS_IMPORT!$1:13)<=COUNTIF(GPS_IMPORT!$A$2:$A$10000,$B$5),INDEX(GPS_IMPORT!$2:$10000,MATCH($B$5,(GPS_IMPORT!$A$2:$A$10000),0)+ROWS($1:13)-1,COLUMN()-1),0) -> 00:00:00 | E19: =IF(ROWS(GPS_IMPORT!$1:13)<=COUNTIF(GPS_IMPORT!$A$2:$A$10000,$B$5),INDEX(GPS_IMPORT!$2:$10000,MATCH($B$5,(GPS_IMPORT!$A$2:$A$10000),0)+ROWS($1:13)-1,COLUMN()-1),0) -> 0 | F19: =IF(ROWS(GPS_IMPORT!$1:13)<=COUNTIF(GPS_IMPORT!$A$2:$A$10000,$B$5),INDEX(GPS_IMPORT!$2:$10000,MATCH($B$5,(GPS_IMPORT!$A$2:$A$10000),0)+ROWS($1:13)-1,COLUMN()-1),0) -> 0 | G19: =IF(ROWS(GPS_IMPORT!$1:13)<=COUNTIF(GPS_IMPORT!$A$2:$A$10000,$B$5),INDEX(GPS_IMPORT!$2:$10000,MATCH($B$5,(GPS_IMPORT!$A$2:$A$10000),0)+ROWS($1:13)-1,COLUMN()-1),0) -> 0 | H19: =IF(E19>0,E$22-E19,0) -> 0 | I19: 0 | J19: 0 | K19: FALSE
A20: 14 | B20: =IF(ROWS(GPS_IMPORT!$1:14)<=COUNTIF(GPS_IMPORT!$A$2:$A$10000,$B$5),INDEX(GPS_IMPORT!$2:$10000,MATCH($B$5,(GPS_IMPORT!$A$2:$A$10000),0)+ROWS($1:14)-1,COLUMN()-1),0) -> 0 | C20: =IF(ROWS(GPS_IMPORT!$1:14)<=COUNTIF(GPS_IMPORT!$A$2:$A$10000,$B$5),INDEX(GPS_IMPORT!$2:$10000,MATCH($B$5,(GPS_IMPORT!$A$2:$A$10000),0)+ROWS($1:14)-1,COLUMN()-1),0) -> 00:00:00 | D20: =IF(ROWS(GPS_IMPORT!$1:14)<=COUNTIF(GPS_IMPORT!$A$2:$A$10000,$B$5),INDEX(GPS_IMPORT!$2:$10000,MATCH($B$5,(GPS_IMPORT!$A$2:$A$10000),0)+ROWS($1:14)-1,COLUMN()-1),0) -> 00:00:00 | E20: =IF(ROWS(GPS_IMPORT!$1:14)<=COUNTIF(GPS_IMPORT!$A$2:$A$10000,$B$5),INDEX(GPS_IMPORT!$2:$10000,MATCH($B$5,(GPS_IMPORT!$A$2:$A$10000),0)+ROWS($1:14)-1,COLUMN()-1),0) -> 0 | F20: =IF(ROWS(GPS_IMPORT!$1:14)<=COUNTIF(GPS_IMPORT!$A$2:$A$10000,$B$5),INDEX(GPS_IMPORT!$2:$10000,MATCH($B$5,(GPS_IMPORT!$A$2:$A$10000),0)+ROWS($1:14)-1,COLUMN()-1),0) -> 0 | G20: =IF(ROWS(GPS_IMPORT!$1:14)<=COUNTIF(GPS_IMPORT!$A$2:$A$10000,$B$5),INDEX(GPS_IMPORT!$2:$10000,MATCH($B$5,(GPS_IMPORT!$A$2:$A$10000),0)+ROWS($1:14)-1,COLUMN()-1),0) -> 0 | H20: 0 | I20: 0 | J20: 0 | K20: FALSE
A21: 15 | B21: =IF(ROWS(GPS_IMPORT!$1:15)<=COUNTIF(GPS_IMPORT!$A$2:$A$10000,$B$5),INDEX(GPS_IMPORT!$2:$10000,MATCH($B$5,(GPS_IMPORT!$A$2:$A$10000),0)+ROWS($1:15)-1,COLUMN()-1),0) -> 0 | C21: =IF(ROWS(GPS_IMPORT!$1:15)<=COUNTIF(GPS_IMPORT!$A$2:$A$10000,$B$5),INDEX(GPS_IMPORT!$2:$10000,MATCH($B$5,(GPS_IMPORT!$A$2:$A$10000),0)+ROWS($1:15)-1,COLUMN()-1),0) -> 00:00:00 | D21: =IF(ROWS(GPS_IMPORT!$1:15)<=COUNTIF(GPS_IMPORT!$A$2:$A$10000,$B$5),INDEX(GPS_IMPORT!$2:$10000,MATCH($B$5,(GPS_IMPORT!$A$2:$A$10000),0)+ROWS($1:15)-1,COLUMN()-1),0) -> 00:00:00 | E21: =IF(ROWS(GPS_IMPORT!$1:15)<=COUNTIF(GPS_IMPORT!$A$2:$A$10000,$B$5),INDEX(GPS_IMPORT!$2:$10000,MATCH($B$5,(GPS_IMPORT!$A$2:$A$10000),0)+ROWS($1:15)-1,COLUMN()-1),0) -> 0 | F21: =IF(ROWS(GPS_IMPORT!$1:15)<=COUNTIF(GPS_IMPORT!$A$2:$A$10000,$B$5),INDEX(GPS_IMPORT!$2:$10000,MATCH($B$5,(GPS_IMPORT!$A$2:$A$10000),0)+ROWS($1:15)-1,COLUMN()-1),0) -> 0 | G21: =IF(ROWS(GPS_IMPORT!$1:15)<=COUNTIF(GPS_IMPORT!$A$2:$A$10000,$B$5),INDEX(GPS_IMPORT!$2:$10000,MATCH($B$5,(GPS_IMPORT!$A$2:$A$10000),0)+ROWS($1:15)-1,COLUMN()-1),0) -> 0 | H21: 0 | I21: 0 | J21: 0 | K21: FALSE
D22: AVERAGE | E22: =(IF($K$7=TRUE,E7,0)+IF($K$8=TRUE,E8,0)+IF($K$9=TRUE,E9,0)+IF($K$10=TRUE,E10,0)+IF($K$11=TRUE,E11,0)+IF($K$12=TRUE,E12,0)+IF($K$13=TRUE,E13,0)+IF($K$14=TRUE,E14,0)+IF($K$15=TRUE,E15,0)+IF($K$16=TRUE,E16,0)+IF($K$17=TRUE,E17,0)+IF($K$18=TRUE,E18,0)+IF($K$19=TRUE,E19,0)+IF($K$20=TRUE,E20,0)+IF($K$21=TRUE,E21,0))/(IF($K$7=TRUE,1,0)+IF($K$8=TRUE,1,0)+IF($K$9=TRUE,1,0)+IF($K$10=TRUE,1,0)+IF($K$11=TRUE,1,0)+IF($K$12=TRUE,1,0)+IF($K$13=TRUE,1,0)+IF($K$14=TRUE,1,0)+IF($K$15=TRUE,1,0)+IF($K$16=TRUE,1,0)+IF($K$17=TRUE,1,0)+IF($K$18=TRUE,1,0)+IF($K$19=TRUE,1,0)+IF($K$20=TRUE,1,0)+IF($K$21=TRUE,1,0)) -> 0 | F22: =(IF($K$7=TRUE,F7,0)+IF($K$8=TRUE,F8,0)+IF($K$9=TRUE,F9,0)+IF($K$10=TRUE,F10,0)+IF($K$11=TRUE,F11,0)+IF($K$12=TRUE,F12,0)+IF($K$13=TRUE,F13,0)+IF($K$14=TRUE,F14,0)+IF($K$15=TRUE,F15,0)+IF($K$16=TRUE,F16,0)+IF($K$17=TRUE,F17,0)+IF($K$18=TRUE,F18,0)+IF($K$19=TRUE,F19,0)+IF($K$20=TRUE,F20,0)+IF($K$21=TRUE,F21,0))/(IF($K$7=TRUE,1,0)+IF($K$8=TRUE,1,0)+IF($K$9=TRUE,1,0)+IF($K$10=TRUE,1,0)+IF($K$11=TRUE,1,0)+IF($K$12=TRUE,1,0)+IF($K$13=TRUE,1,0)+IF($K$14=TRUE,1,0)+IF($K$15=TRUE,1,0)+IF($K$16=TRUE,1,0)+IF($K$17=TRUE,1,0)+IF($K$18=TRUE,1,0)+IF($K$19=TRUE,1,0)+IF($K$20=TRUE,1,0)+IF($K$21=TRUE,1,0)) -> 0 | G22: =(IF($K$7=TRUE,G7,0)+IF($K$8=TRUE,G8,0)+IF($K$9=TRUE,G9,0)+IF($K$10=TRUE,G10,0)+IF($K$11=TRUE,G11,0)+IF($K$12=TRUE,G12,0)+IF($K$13=TRUE,G13,0)+IF($K$14=TRUE,G14,0)+IF($K$15=TRUE,G15,0)+IF($K$16=TRUE,G16,0)+IF($K$17=TRUE,G17,0)+IF($K$18=TRUE,G18,0)+IF($K$19=TRUE,G19,0)+IF($K$20=TRUE,G20,0)+IF($K$21=TRUE,G21,0))/ (IF($K$7=TRUE,1,0)+IF($K$8=TRUE,1,0)+IF($K$9=TRUE,1,0)+IF($K$10=TRUE,1,0)+IF($K$11=TRUE,1,0)+IF($K$12=TRUE,1,0)+IF($K$13=TRUE,1,0)+IF($K$14=TRUE,1,0)+IF($K$15=TRUE,1,0)+IF($K$16=TRUE,1,0)+IF($K$17=TRUE,1,0)+IF($K$18=TRUE,1,0)+IF($K$19=TRUE,1,0)+IF($K$20=TRUE,1,0)+IF($K$21=TRUE,1,0)) -> 0 | H22: RMSE: | I22: RMSE: | J22: RMSE:
G23: RMSE IN METRIC: | H23: =SQRT(( (IF($K$7=TRUE,H7^2,0))+(IF($K$8=TRUE,H8^2,0))+(IF($K$9=TRUE,H9^2,0))+(IF($K$10=TRUE,H10^2,0))+(IF($K$11=TRUE,H11^2,0))+(IF($K$12=TRUE,H12^2,0))+(IF($K$13=TRUE,H13^2,0))+(IF($K$14=TRUE,H14^2,0))+(IF($K$15=TRUE,H15^2,0))+(IF($K$16=TRUE,H16^2,0))+(IF($K$17=TRUE,H17^2,0))+(IF($K$18=TRUE,H18^2,0))+(IF($K$19=TRUE,H19^2,0))+(IF($K$20=TRUE,H20^2,0))+(IF($K$21=TRUE,H21^2,0)))/ (IF($K$7=TRUE,1,0)+IF($K$8=TRUE,1,0)+IF($K$9=TRUE,1,0)+IF($K$10=TRUE,1,0)+IF($K$11=TRUE,1,0)+IF($K$12=TRUE,1,0)+IF($K$13=TRUE,1,0)+IF($K$14=TRUE,1,0)+IF($K$15=TRUE,1,0)+IF($K$16=TRUE,1,0)+IF($K$17=TRUE,1,0)+IF($K$18=TRUE,1,0)+IF($K$19=TRUE,1,0)+IF($K$20=TRUE,1,0)+IF($K$21=TRUE,1,0))) -> 0 | I23: =SQRT(( (IF($K$7=TRUE,I7^2,0))+(IF($K$8=TRUE,I8^2,0))+(IF($K$9=TRUE,I9^2,0))+(IF($K$10=TRUE,I10^2,0))+(IF($K$11=TRUE,I11^2,0))+(IF($K$12=TRUE,I12^2,0))+(IF($K$13=TRUE,I13^2,0))+(IF($K$14=TRUE,I14^2,0))+(IF($K$15=TRUE,I15^2,0))+(IF($K$16=TRUE,I16^2,0))+(IF($K$17=TRUE,I17^2,0))+(IF($K$18=TRUE,I18^2,0))+(IF($K$19=TRUE,I19^2,0))+(IF($K$20=TRUE,I20^2,0))+(IF($K$21=TRUE,I21^2,0)))/ (IF($K$7=TRUE,1,0)+IF($K$8=TRUE,1,0)+IF($K$9=TRUE,1,0)+IF($K$10=TRUE,1,0)+IF($K$11=TRUE,1,0)+IF($K$12=TRUE,1,0)+IF($K$13=TRUE,1,0)+IF($K$14=TRUE,1,0)+IF($K$15=TRUE,1,0)+IF($K$16=TRUE,1,0)+IF($K$17=TRUE,1,0)+IF($K$18=TRUE,1,0)+IF($K$19=TRUE,1,0)+IF($K$20=TRUE,1,0)+IF($K$21=TRUE,1,0))) -> 0 | J23: =SQRT(( (IF($K$7=TRUE,J7^2,0))+(IF($K$8=TRUE,J8^2,0))+(IF($K$9=TRUE,J9^2,0))+(IF($K$10=TRUE,J10^2,0))+(IF($K$11=TRUE,J11^2,0))+(IF($K$12=TRUE,J12^2,0))+(IF($K$13=TRUE,J13^2,0))+(IF($K$14=TRUE,J14^2,0))+(IF($K$15=TRUE,J15^2,0))+(IF($K$16=TRUE,J16^2,0))+(IF($K$17=TRUE,J17^2,0))+(IF($K$18=TRUE,J18^2,0))+(IF($K$19=TRUE,J19^2,0))+(IF($K$20=TRUE,J20^2,0))+(IF($K$21=TRUE,J21^2,0)))/ (IF($K$7=TRUE,1,0)+IF($K$8=TRUE,1,0)+IF($K$9=TRUE,1,0)+IF($K$10=TRUE,1,0)+IF($K$11=TRUE,1,0)+IF($K$12=TRUE,1,0)+IF($K$13=TRUE,1,0)+IF($K$14=TRUE,1,0)+IF($K$15=TRUE,1,0)+IF($K$16=TRUE,1,0)+IF($K$17=TRUE,1,0)+IF($K$18=TRUE,1,0)+IF($K$19=TRUE,1,0)+IF($K$20=TRUE,1,0)+IF($K$21=TRUE,1,0))) -> 0
C24: ENGLISH TO METRIC CONVERSION | D24: =3937/1200 -> 3.280833333 | G24: RMSE IN US SURVEY FEET: | H24: =H23*$D$24 -> 0 | I24: =I23*$D$24 -> 0 | J24: =J23*$D$24 -> 0
C25: UNITLESS GRID TO GROUND MULTIPLIER | D25: =REPORT!C13 -> 0 | H25: =IF(H24<=0.029,"PASS","FAIL") -> PASS | I25: =IF(I24<=0.029,"PASS","FAIL") -> PASS | J25: =IF(J24<=0.039,"PASS","FAIL") -> PASS
A27: AVERAGED GPS-DERIVED POSITION | I27: Notes:
B28: MONUMENT COORDINATES | D28: NORTHING | E28: EASTING | F28: ORTHO HEIGHT
B29: METERS (GRID) | D29: =$E$22 -> 0 | E29: =$F$22 -> 0 | F29: =$G$22 -> 0
A31: LEVELED ELEVATION
A32: US SURVEY FEET | C32: =VLOOKUP(B5,'LEVEL RUN'!A8:I59,9,FALSE) ->  | D32: (Type the leveled elevation or N/A if no leveled elevation is available)
A33: MONUMENT HELD | D33: (Type the monument name from which leveling originated)
A34: LEVELED ELEVATION - GPS DERIVED ELEVATION = | E34: =IF(C32="N/A","N/A",C32-(F29*D24)) -> 
A36: FINAL MONUMENT COORDINATES
B37: MONUMENT COORDINATES | D37: NORTHING | E37: EASTING | F37: ELEVATION | G37: FEATURE CODE
B38: US SURVEY FEET (GRID) | D38: =$E$22*$D$24 -> 0 | E38: =$F$22*$D$24 -> 0 | F38: =IF($C$32="N/A",($G$22*$D$24),$C$32) ->  | G38: IPINS
B39: US SURVEY FEET (GROUND) | D39: =$D$38*$D$25 -> 0 | E39: =$E$38*$D$25 -> 0 | F39: =IF($C$32="N/A",($G$22*$D$24),$C$32) ->  | G39: IPINS
A41: ∆ North, ∆ East, and ∆ Ht. are the difference between the average northing, easting, and height for each observation. | I41: Mask Angle: | J41: 13°

Sheet LEVEL RUN
A1: =REPORT!B2 -> XXX-XXX-XXXX | L1: PID: | M1: =REPORT!E2 -> XXXXX
A2: Adjustment factor only works for closed level loops. | E2: Instrument Used: | G2: Length in Miles: | I2: 0 | J2: Instrument: | L2: Date:
A3: SUM BS: | B3: =SUM(B7:B205) -> 977.6938 | C3: SUM FS: | D3: =SUM(E8:E205) -> 977.6881 | E3: Topcon DL-503 | G3: Misclosure: | I3: =B3-D3 -> 0.005700000001 | J3: Notes: | L3: Weather:
A4: Misclosure must not exceed 0.04 ft x √E where E=Length of loop (miles) | G4: Adj Factor: | I4: =(I3/(COUNTA(B7:B205)))*-1 -> -2.893401016e-05 | J4: Rod: | L4: Temperature:
A5: Please DELETE unused rows before printing!
A6: POINT | B6: BS | C6: HI | D6: FS | E6: SUMFS | F6: ELEV | G6: REC ELEV | H6: ADJ | I6: ADJ ELEV | J6: DESCRIPTION
A7: SV1 | B7: 6.9293 | C7: =F7+B7 -> 632.1173 | E7: =IF(D7>0,IF(B7>0,D7,0)," ") ->  | F7: 625.188 | I7: -
A8: SV2 | B8: 3.1791 | C8: =IF(D8<>"",IF(OR(B8<>"",INDIRECT("D9")=0),IF(B7<>"",F7+B7,VLOOKUP(INDEX($B$7:B7,MATCH(9.99999999999999E+307,$B$7:B7)),$B$7:F7,5,FALSE)+INDEX($B$7:B7,MATCH(9.99999999999999E+307,$B$7:B7))),(VLOOKUP(INDEX($B$7:B7,MATCH(9.99999999999999E+307,$B$7:B7)),$B$7:F7,5,FALSE))+(INDEX($B$7:B7,MATCH(9.99999999999999E+307,$B$7:B7)))),"") -> 632.1173 | D8: 4.481 | E8: =IF(D8<>"",IF(OR(B8<>"",INDIRECT("D9")=0),D8,0),"") -> 4.481 | F8: =IF(D8<>"",C8-D8,"") -> 627.6363 | H8: =IF(D8<>"",IF(AND(B8<>"",B7<>""),$I$4+H7,VLOOKUP(INDEX($B$7:B7,MATCH(9.99999999999999E+307,$B$7:B7)),$B$7:H7,7,FALSE)+$I$4),"") -> -2.893401016e-05 | I8: =IF(D8<>"",(F8+H8),"") -> 627.6362711
A9: TP1 | B9: 3.2438 | C9: =IF(D9<>"",IF(OR(B9<>"",INDIRECT("D10")=0),IF(B8<>"",F8+B8,VLOOKUP(INDEX($B$7:B8,MATCH(9.99999999999999E+307,$B$7:B8)),$B$7:F8,5,FALSE)+INDEX($B$7:B8,MATCH(9.99999999999999E+307,$B$7:B8))),(VLOOKUP(INDEX($B$7:B8,MATCH(9.99999999999999E+307,$B$7:B8)),$B$7:F8,5,FALSE))+(INDEX($B$7:B8,MATCH(9.99999999999999E+307,$B$7:B8)))),"") -> 630.8154 | D9: 3.9724 | E9: =IF(D9<>"",IF(OR(B9<>"",INDIRECT("D10")=0),D9,0),"") -> 3.9724 | F9: =IF(D9<>"",C9-D9,"") -> 626.843 | H9: =IF(D9<>"",IF(AND(B9<>"",B8<>""),$I$4+H8,VLOOKUP(INDEX($B$7:B8,MATCH(9.99999999999999E+307,$B$7:B8)),$B$7:H8,7,FALSE)+$I$4),"") -> -5.786802031e-05 | I9: =IF(D9<>"",(F9+H9),"") -> 626.8429421
A10: TP2 | B10: 4.201 | C10: =IF(D10<>"",IF(OR(B10<>"",INDIRECT("D11")=0),IF(B9<>"",F9+B9,VLOOKUP(INDEX($B$7:B9,MATCH(9.99999999999999E+307,$B$7:B9)),$B$7:F9,5,FALSE)+INDEX($B$7:B9,MATCH(9.99999999999999E+307,$B$7:B9))),(VLOOKUP(INDEX($B$7:B9,MATCH(9.99999999999999E+307,$B$7:B9)),$B$7:F9,5,FALSE))+(INDEX($B$7:B9,MATCH(9.99999999999999E+307,$B$7:B9)))),"") -> 630.0868 | D10: 6.1542 | E10: =IF(D10<>"",IF(OR(B10<>"",INDIRECT("D11")=0),D10,0),"") -> 6.1542 | F10: 623.9326 | H10: =IF(D10<>"",IF(AND(B10<>"",B9<>""),$I$4+H9,VLOOKUP(INDEX($B$7:B9,MATCH(9.99999999999999E+307,$B$7:B9)),$B$7:H9,7,FALSE)+$I$4),"") -> -8.680203047e-05 | I10: 623.9325132
A11: TP3 | B11: 4.1757 | C11: =IF(D11<>"",IF(OR(B11<>"",INDIRECT("D12")=0),IF(B10<>"",F10+B10,VLOOKUP(INDEX($B$7:B10,MATCH(9.99999999999999E+307,$B$7:B10)),$B$7:F10,5,FALSE)+INDEX($B$7:B10,MATCH(9.99999999999999E+307,$B$7:B10))),(VLOOKUP(INDEX($B$7:B10,MATCH(9.99999999999999E+307,$B$7:B10)),$B$7:F10,5,FALSE))+(INDEX($B$7:B10,MATCH(9.99999999999999E+307,$B$7:B10)))),"") -> 628.1336 | D11: 5.9712 | E11: =IF(D11<>"",IF(OR(B11<>"",INDIRECT("D12")=0),D11,0),"") -> 5.9712 | F11: 622.1624 | H11: =IF(D11<>"",IF(AND(B11<>"",B10<>""),$I$4+H10,VLOOKUP(INDEX($B$7:B10,MATCH(9.99999999999999E+307,$B$7:B10)),$B$7:H10,7,FALSE)+$I$4),"") -> -0.0001157360406 | I11: 622.1622843
A12: TP4 | B12: 6.2863 | C12: =IF(D12<>"",IF(OR(B12<>"",INDIRECT("D13")=0),IF(B11<>"",F11+B11,VLOOKUP(INDEX($B$7:B11,MATCH(9.99999999999999E+307,$B$7:B11)),$B$7:F11,5,FALSE)+INDEX($B$7:B11,MATCH(9.99999999999999E+307,$B$7:B11))),(VLOOKUP(INDEX($B$7:B11,MATCH(9.99999999999999E+307,$B$7:B11)),$B$7:F11,5,FALSE))+(INDEX($B$7:B11,MATCH(9.99999999999999E+307,$B$7:B11)))),"") -> 626.3381 | D12: 5.7841 | E12: =IF(D12<>"",IF(OR(B12<>"",INDIRECT("D13")=0),D12,0),"") -> 5.7841 | F12: 620.554 | H12: =IF(D12<>"",IF(AND(B12<>"",B11<>""),$I$4+H11,VLOOKUP(INDEX($B$7:B11,MATCH(9.99999999999999E+307,$B$7:B11)),$B$7:H11,7,FALSE)+$I$4),"") -> -0.0001446700508 | I12: 620.5538553
A13: TP5 | B13: 5.2667 | C13: =IF(D13<>"",IF(OR(B13<>"",INDIRECT("D14")=0),IF(B12<>"",F12+B12,VLOOKUP(INDEX($B$7:B12,MATCH(9.99999999999999E+307,$B$7:B12)),$B$7:F12,5,FALSE)+INDEX($B$7:B12,MATCH(9.99999999999999E+307,$B$7:B12))),(VLOOKUP(INDEX($B$7:B12,MATCH(9.99999999999999E+307,$B$7:B12)),$B$7:F12,5,FALSE))+(INDEX($B$7:B12,MATCH(9.99999999999999E+307,$B$7:B12)))),"") -> 626.8403 | D13: 4.1495 | E13: =IF(D13<>"",IF(OR(B13<>"",INDIRECT("D14")=0),D13,0),"") -> 4.1495 | F13: 622.6908 | H13: =IF(D13<>"",IF(AND(B13<>"",B12<>""),$I$4+H12,VLOOKUP(INDEX($B$7:B12,MATCH(9.99999999999999E+307,$B$7:B12)),$B$7:H12,7,FALSE)+$I$4),"") -> -0.0001736040609 | I13: 622.6906264
A14: SV3 | B14: 7.2874 | C14: =IF(D14<>"",IF(OR(B14<>"",INDIRECT("D15")=0),IF(B13<>"",F13+B13,VLOOKUP(INDEX($B$7:B13,MATCH(9.99999999999999E+307,$B$7:B13)),$B$7:F13,5,FALSE)+INDEX($B$7:B13,MATCH(9.99999999999999E+307,$B$7:B13))),(VLOOKUP(INDEX($B$7:B13,MATCH(9.99999999999999E+307,$B$7:B13)),$B$7:F13,5,FALSE))+(INDEX($B$7:B13,MATCH(9.99999999999999E+307,$B$7:B13)))),"") -> 627.9575 | D14: 4.6257 | E14: =IF(D14<>"",IF(OR(B14<>"",INDIRECT("D15")=0),D14,0),"") -> 4.6257 | F14: 623.3318 | H14: =IF(D14<>"",IF(AND(B14<>"",B13<>""),$I$4+H13,VLOOKUP(INDEX($B$7:B13,MATCH(9.99999999999999E+307,$B$7:B13)),$B$7:H13,7,FALSE)+$I$4),"") -> -0.0002025380711 | I14: 623.3315975
A15: SV4 | B15: 8.0063 | C15: =IF(D15<>"",IF(OR(B15<>"",INDIRECT("D16")=0),IF(B14<>"",F14+B14,VLOOKUP(INDEX($B$7:B14,MATCH(9.99999999999999E+307,$B$7:B14)),$B$7:F14,5,FALSE)+INDEX($B$7:B14,MATCH(9.99999999999999E+307,$B$7:B14))),(VLOOKUP(INDEX($B$7:B14,MATCH(9.99999999999999E+307,$B$7:B14)),$B$7:F14,5,FALSE))+(INDEX($B$7:B14,MATCH(9.99999999999999E+307,$B$7:B14)))),"") -> 630.6192 | D15: 4.5603 | E15: =IF(D15<>"",IF(OR(B15<>"",INDIRECT("D16")=0),D15,0),"") -> 4.5603 | F15: 626.0589 | H15: =IF(D15<>"",IF(AND(B15<>"",B14<>""),$I$4+H14,VLOOKUP(INDEX($B$7:B14,MATCH(9.99999999999999E+307,$B$7:B14)),$B$7:H14,7,FALSE)+$I$4),"") -> -0.0002314720813 | I15: 626.0586685
A16: TP6 | B16: 7.8633 | C16: =IF(D16<>"",IF(OR(B16<>"",INDIRECT("D17")=0),IF(B15<>"",F15+B15,VLOOKUP(INDEX($B$7:B15,MATCH(9.99999999999999E+307,$B$7:B15)),$B$7:F15,5,FALSE)+INDEX($B$7:B15,MATCH(9.99999999999999E+307,$B$7:B15))),(VLOOKUP(INDEX($B$7:B15,MATCH(9.99999999999999E+307,$B$7:B15)),$B$7:F15,5,FALSE))+(INDEX($B$7:B15,MATCH(9.99999999999999E+307,$B$7:B15)))),"") -> 634.0652 | D16: 1.889 | E16: =IF(D16<>"",IF(OR(B16<>"",INDIRECT("D17")=0),D16,0),"") -> 1.889 | F16: 632.1762 | H16: =IF(D16<>"",IF(AND(B16<>"",B15<>""),$I$4+H15,VLOOKUP(INDEX($B$7:B15,MATCH(9.99999999999999E+307,$B$7:B15)),$B$7:H15,7,FALSE)+$I$4),"") -> -0.0002604060914 | I16: 632.1759396
A17: TP7 | B17: 6.6469 | C17: =IF(D17<>"",IF(OR(B17<>"",INDIRECT("D18")=0),IF(B16<>"",F16+B16,VLOOKUP(INDEX($B$7:B16,MATCH(9.99999999999999E+307,$B$7:B16)),$B$7:F16,5,FALSE)+INDEX($B$7:B16,MATCH(9.99999999999999E+307,$B$7:B16))),(VLOOKUP(INDEX($B$7:B16,MATCH(9.99999999999999E+307,$B$7:B16)),$B$7:F16,5,FALSE))+(INDEX($B$7:B16,MATCH(9.99999999999999E+307,$B$7:B16)))),"") -> 640.0395 | D17: 2.5989 | E17: =IF(D17<>"",IF(OR(B17<>"",INDIRECT("D18")=0),D17,0),"") -> 2.5989 | F17: 637.4406 | H17: =IF(D17<>"",IF(AND(B17<>"",B16<>""),$I$4+H16,VLOOKUP(INDEX($B$7:B16,MATCH(9.99999999999999E+307,$B$7:B16)),$B$7:H16,7,FALSE)+$I$4),"") -> -0.0002893401016 | I17: 637.4403107
A18: TP8 | B18: 6.704 | C18: =IF(D18<>"",IF(OR(B18<>"",INDIRECT("D19")=0),IF(B17<>"",F17+B17,VLOOKUP(INDEX($B$7:B17,MATCH(9.99999999999999E+307,$B$7:B17)),$B$7:F17,5,FALSE)+INDEX($B$7:B17,MATCH(9.99999999999999E+307,$B$7:B17))),(VLOOKUP(INDEX($B$7:B17,MATCH(9.99999999999999E+307,$B$7:B17)),$B$7:F17,5,FALSE))+(INDEX($B$7:B17,MATCH(9.99999999999999E+307,$B$7:B17)))),"") -> 644.0875 | D18: 4.5139 | E18: =IF(D18<>"",IF(OR(B18<>"",INDIRECT("D19")=0),D18,0),"") -> 4.5139 | F18: 639.5736 | H18: =IF(D18<>"",IF(AND(B18<>"",B17<>""),$I$4+H17,VLOOKUP(INDEX($B$7:B17,MATCH(9.99999999999999E+307,$B$7:B17)),$B$7:H17,7,FALSE)+$I$4),"") -> -0.0003182741117 | I18: 639.5732817
A19: TP9 | B19: 4.0509 | C19: =IF(D19<>"",IF(OR(B19<>"",INDIRECT("D20")=0),IF(B18<>"",F18+B18,VLOOKUP(INDEX($B$7:B18,MATCH(9.99999999999999E+307,$B$7:B18)),$B$7:F18,5,FALSE)+INDEX($B$7:B18,MATCH(9.99999999999999E+307,$B$7:B18))),(VLOOKUP(INDEX($B$7:B18,MATCH(9.99999999999999E+307,$B$7:B18)),$B$7:F18,5,FALSE))+(INDEX($B$7:B18,MATCH(9.99999999999999E+307,$B$7:B18)))),"") -> 646.2776 | D19: 5.5862 | E19: =IF(D19<>"",IF(OR(B19<>"",INDIRECT("D20")=0),D19,0),"") -> 5.5862 | F19: 640.6914 | H19: =IF(D19<>"",IF(AND(B19<>"",B18<>""),$I$4+H18,VLOOKUP(INDEX($B$7:B18,MATCH(9.99999999999999E+307,$B$7:B18)),$B$7:H18,7,FALSE)+$I$4),"") -> -0.0003472081219 | I19: 640.6910528
A20: TP10 | B20: 4.9198 | C20: =IF(D20<>"",IF(OR(B20<>"",INDIRECT("D21")=0),IF(B19<>"",F19+B19,VLOOKUP(INDEX($B$7:B19,MATCH(9.99999999999999E+307,$B$7:B19)),$B$7:F19,5,FALSE)+INDEX($B$7:B19,MATCH(9.99999999999999E+307,$B$7:B19))),(VLOOKUP(INDEX($B$7:B19,MATCH(9.99999999999999E+307,$B$7:B19)),$B$7:F19,5,FALSE))+(INDEX($B$7:B19,MATCH(9.99999999999999E+307,$B$7:B19)))),"") -> 644.7423 | D20: 6.671 | E20: =IF(D20<>"",IF(OR(B20<>"",INDIRECT("D21")=0),D20,0),"") -> 6.671 | F20: 638.0713 | H20: =IF(D20<>"",IF(AND(B20<>"",B19<>""),$I$4+H19,VLOOKUP(INDEX($B$7:B19,MATCH(9.99999999999999E+307,$B$7:B19)),$B$7:H19,7,FALSE)+$I$4),"") -> -0.000376142132 | I20: 638.0709239
A21: SV5 | B21: 4.4758 | C21: =IF(D21<>"",IF(OR(B21<>"",INDIRECT("D22")=0),IF(B20<>"",F20+B20,VLOOKUP(INDEX($B$7:B20,MATCH(9.99999999999999E+307,$B$7:B20)),$B$7:F20,5,FALSE)+INDEX($B$7:B20,MATCH(9.99999999999999E+307,$B$7:B20))),(VLOOKUP(INDEX($B$7:B20,MATCH(9.99999999999999E+307,$B$7:B20)),$B$7:F20,5,FALSE))+(INDEX($B$7:B20,MATCH(9.99999999999999E+307,$B$7:B20)))),"") -> 642.9911 | D21: 5.504 | E21: =IF(D21<>"",IF(OR(B21<>"",INDIRECT("D22")=0),D21,0),"") -> 5.504 | F21: 637.4871 | H21: =IF(D21<>"",IF(AND(B21<>"",B20<>""),$I$4+H20,VLOOKUP(INDEX($B$7:B20,MATCH(9.99999999999999E+307,$B$7:B20)),$B$7:H20,7,FALSE)+$I$4),"") -> -0.0004050761422 | I21: 637.4866949
A22: TP21 | B22: 4.7534 | C22: =IF(D22<>"",IF(OR(B22<>"",INDIRECT("D23")=0),IF(B21<>"",F21+B21,VLOOKUP(INDEX($B$7:B21,MATCH(9.99999999999999E+307,$B$7:B21)),$B$7:F21,5,FALSE)+INDEX($B$7:B21,MATCH(9.99999999999999E+307,$B$7:B21))),(VLOOKUP(INDEX($B$7:B21,MATCH(9.99999999999999E+307,$B$7:B21)),$B$7:F21,5,FALSE))+(INDEX($B$7:B21,MATCH(9.99999999999999E+307,$B$7:B21)))),"") -> 641.9629 | D22: 5.5975 | E22: =IF(D22<>"",IF(OR(B22<>"",INDIRECT("D23")=0),D22,0),"") -> 5.5975 | F22: 636.3654 | H22: =IF(D22<>"",IF(AND(B22<>"",B21<>""),$I$4+H21,VLOOKUP(INDEX($B$7:B21,MATCH(9.99999999999999E+307,$B$7:B21)),$B$7:H21,7,FALSE)+$I$4),"") -> -0.0004340101524 | I22: 636.364966
A23: SV6 | B23: 4.5053 | C23: =IF(D23<>"",IF(OR(B23<>"",INDIRECT("D24")=0),IF(B22<>"",F22+B22,VLOOKUP(INDEX($B$7:B22,MATCH(9.99999999999999E+307,$B$7:B22)),$B$7:F22,5,FALSE)+INDEX($B$7:B22,MATCH(9.99999999999999E+307,$B$7:B22))),(VLOOKUP(INDEX($B$7:B22,MATCH(9.99999999999999E+307,$B$7:B22)),$B$7:F22,5,FALSE))+(INDEX($B$7:B22,MATCH(9.99999999999999E+307,$B$7:B22)))),"") -> 641.1188 | D23: 6.2383 | E23: =IF(D23<>"",IF(OR(B23<>"",INDIRECT("D24")=0),D23,0),"") -> 6.2383 | F23: 634.8805 | H23: =IF(D23<>"",IF(AND(B23<>"",B22<>""),$I$4+H22,VLOOKUP(INDEX($B$7:B22,MATCH(9.99999999999999E+307,$B$7:B22)),$B$7:H22,7,FALSE)+$I$4),"") -> -0.0004629441625 | I23: 634.8800371
A24: TP22 | B24: 5.9798 | C24: =IF(D24<>"",IF(OR(B24<>"",INDIRECT("D25")=0),IF(B23<>"",F23+B23,VLOOKUP(INDEX($B$7:B23,MATCH(9.99999999999999E+307,$B$7:B23)),$B$7:F23,5,FALSE)+INDEX($B$7:B23,MATCH(9.99999999999999E+307,$B$7:B23))),(VLOOKUP(INDEX($B$7:B23,MATCH(9.99999999999999E+307,$B$7:B23)),$B$7:F23,5,FALSE))+(INDEX($B$7:B23,MATCH(9.99999999999999E+307,$B$7:B23)))),"") -> 639.3858 | D24: 5.5733 | E24: =IF(D24<>"",IF(OR(B24<>"",INDIRECT("D25")=0),D24,0),"") -> 5.5733 | F24: 633.8125 | H24: =IF(D24<>"",IF(AND(B24<>"",B23<>""),$I$4+H23,VLOOKUP(INDEX($B$7:B23,MATCH(9.99999999999999E+307,$B$7:B23)),$B$7:H23,7,FALSE)+$I$4),"") -> -0.0004918781727 | I24: 633.8120081
A25: TP23 | B25: 6.2391 | C25: =IF(D25<>"",IF(OR(B25<>"",INDIRECT("D26")=0),IF(B24<>"",F24+B24,VLOOKUP(INDEX($B$7:B24,MATCH(9.99999999999999E+307,$B$7:B24)),$B$7:F24,5,FALSE)+INDEX($B$7:B24,MATCH(9.99999999999999E+307,$B$7:B24))),(VLOOKUP(INDEX($B$7:B24,MATCH(9.99999999999999E+307,$B$7:B24)),$B$7:F24,5,FALSE))+(INDEX($B$7:B24,MATCH(9.99999999999999E+307,$B$7:B24)))),"") -> 639.7923 | D25: 4.8719 | E25: =IF(D25<>"",IF(OR(B25<>"",INDIRECT("D26")=0),D25,0),"") -> 4.8719 | F25: 634.9204 | H25: =IF(D25<>"",IF(AND(B25<>"",B24<>""),$I$4+H24,VLOOKUP(INDEX($B$7:B24,MATCH(9.99999999999999E+307,$B$7:B24)),$B$7:H24,7,FALSE)+$I$4),"") -> -0.0005208121828 | I25: 634.9198792
A26: TP24 | B26: 6.9466 | C26: =IF(D26<>"",IF(OR(B26<>"",INDIRECT("D27")=0),IF(B25<>"",F25+B25,VLOOKUP(INDEX($B$7:B25,MATCH(9.99999999999999E+307,$B$7:B25)),$B$7:F25,5,FALSE)+INDEX($B$7:B25,MATCH(9.99999999999999E+307,$B$7:B25))),(VLOOKUP(INDEX($B$7:B25,MATCH(9.99999999999999E+307,$B$7:B25)),$B$7:F25,5,FALSE))+(INDEX($B$7:B25,MATCH(9.99999999999999E+307,$B$7:B25)))),"") -> 641.1595 | D26: 5.1773 | E26: =IF(D26<>"",IF(OR(B26<>"",INDIRECT("D27")=0),D26,0),"") -> 5.1773 | F26: 635.9822 | H26: =IF(D26<>"",IF(AND(B26<>"",B25<>""),$I$4+H25,VLOOKUP(INDEX($B$7:B25,MATCH(9.99999999999999E+307,$B$7:B25)),$B$7:H25,7,FALSE)+$I$4),"") -> -0.000549746193 | I26: 635.9816503
A27: TP25 | B27: 6.1842 | C27: =IF(D27<>"",IF(OR(B27<>"",INDIRECT("D28")=0),IF(B26<>"",F26+B26,VLOOKUP(INDEX($B$7:B26,MATCH(9.99999999999999E+307,$B$7:B26)),$B$7:F26,5,FALSE)+INDEX($B$7:B26,MATCH(9.99999999999999E+307,$B$7:B26))),(VLOOKUP(INDEX($B$7:B26,MATCH(9.99999999999999E+307,$B$7:B26)),$B$7:F26,5,FALSE))+(INDEX($B$7:B26,MATCH(9.99999999999999E+307,$B$7:B26)))),"") -> 642.9288 | D27: 4.6379 | E27: =IF(D27<>"",IF(OR(B27<>"",INDIRECT("D28")=0),D27,0),"") -> 4.6379 | F27: 638.2909 | H27: =IF(D27<>"",IF(AND(B27<>"",B26<>""),$I$4+H26,VLOOKUP(INDEX($B$7:B26,MATCH(9.99999999999999E+307,$B$7:B26)),$B$7:H26,7,FALSE)+$I$4),"") -> -0.0005786802031 | I27: 638.2903213
A28: TP26 | B28: 7.1473 | C28: =IF(D28<>"",IF(OR(B28<>"",INDIRECT("D29")=0),IF(B27<>"",F27+B27,VLOOKUP(INDEX($B$7:B27,MATCH(9.99999999999999E+307,$B$7:B27)),$B$7:F27,5,FALSE)+INDEX($B$7:B27,MATCH(9.99999999999999E+307,$B$7:B27))),(VLOOKUP(INDEX($B$7:B27,MATCH(9.99999999999999E+307,$B$7:B27)),$B$7:F27,5,FALSE))+(INDEX($B$7:B27,MATCH(9.99999999999999E+307,$B$7:B27)))),"") -> 644.4751 | D28: 3.0313 | E28: =IF(D28<>"",IF(OR(B28<>"",INDIRECT("D29")=0),D28,0),"") -> 3.0313 | F28: 641.4438 | H28: =IF(D28<>"",IF(AND(B28<>"",B27<>""),$I$4+H27,VLOOKUP(INDEX($B$7:B27,MATCH(9.99999999999999E+307,$B$7:B27)),$B$7:H27,7,FALSE)+$I$4),"") -> -0.0006076142133 | I28: 641.4431924
A29: TP27 | B29: 7.3466 | C29: =IF(D29<>"",IF(OR(B29<>"",INDIRECT("D30")=0),IF(B28<>"",F28+B28,VLOOKUP(INDEX($B$7:B28,MATCH(9.99999999999999E+307,$B$7:B28)),$B$7:F28,5,FALSE)+INDEX($B$7:B28,MATCH(9.99999999999999E+307,$B$7:B28))),(VLOOKUP(INDEX($B$7:B28,MATCH(9.99999999999999E+307,$B$7:B28)),$B$7:F28,5,FALSE))+(INDEX($B$7:B28,MATCH(9.99999999999999E+307,$B$7:B28)))),"") -> 648.5911 | D29: 2.0217 | E29: =IF(D29<>"",IF(OR(B29<>"",INDIRECT("D30")=0),D29,0),"") -> 2.0217 | F29: 646.5694 | H29: =IF(D29<>"",IF(AND(B29<>"",B28<>""),$I$4+H28,VLOOKUP(INDEX($B$7:B28,MATCH(9.99999999999999E+307,$B$7:B28)),$B$7:H28,7,FALSE)+$I$4),"") -> -0.0006365482235 | I29: 646.5687635
A30: SV101 | B30: 5.9539 | C30: =IF(D30<>"",IF(OR(B30<>"",INDIRECT("D31")=0),IF(B29<>"",F29+B29,VLOOKUP(INDEX($B$7:B29,MATCH(9.99999999999999E+307,$B$7:B29)),$B$7:F29,5,FALSE)+INDEX($B$7:B29,MATCH(9.99999999999999E+307,$B$7:B29))),(VLOOKUP(INDEX($B$7:B29,MATCH(9.99999999999999E+307,$B$7:B29)),$B$7:F29,5,FALSE))+(INDEX($B$7:B29,MATCH(9.99999999999999E+307,$B$7:B29)))),"") -> 653.916 | D30: 4.6209 | E30: =IF(D30<>"",IF(OR(B30<>"",INDIRECT("D31")=0),D30,0),"") -> 4.6209 | F30: 649.2951 | H30: =IF(D30<>"",IF(AND(B30<>"",B29<>""),$I$4+H29,VLOOKUP(INDEX($B$7:B29,MATCH(9.99999999999999E+307,$B$7:B29)),$B$7:H29,7,FALSE)+$I$4),"") -> -0.0006654822336 | I30: 649.2944345
A31: TP28 | B31: 4.552 | C31: =IF(D31<>"",IF(OR(B31<>"",INDIRECT("D32")=0),IF(B30<>"",F30+B30,VLOOKUP(INDEX($B$7:B30,MATCH(9.99999999999999E+307,$B$7:B30)),$B$7:F30,5,FALSE)+INDEX($B$7:B30,MATCH(9.99999999999999E+307,$B$7:B30))),(VLOOKUP(INDEX($B$7:B30,MATCH(9.99999999999999E+307,$B$7:B30)),$B$7:F30,5,FALSE))+(INDEX($B$7:B30,MATCH(9.99999999999999E+307,$B$7:B30)))),"") -> 655.249 | D31: 5.7278 | E31: =IF(D31<>"",IF(OR(B31<>"",INDIRECT("D32")=0),D31,0),"") -> 5.7278 | F31: 649.5212 | H31: =IF(D31<>"",IF(AND(B31<>"",B30<>""),$I$4+H30,VLOOKUP(INDEX($B$7:B30,MATCH(9.99999999999999E+307,$B$7:B30)),$B$7:H30,7,FALSE)+$I$4),"") -> -0.0006944162438 | I31: 649.5205056
A32: SV7 | B32: 4.6118 | C32: =IF(D32<>"",IF(OR(B32<>"",INDIRECT("D33")=0),IF(B31<>"",F31+B31,VLOOKUP(INDEX($B$7:B31,MATCH(9.99999999999999E+307,$B$7:B31)),$B$7:F31,5,FALSE)+INDEX($B$7:B31,MATCH(9.99999999999999E+307,$B$7:B31))),(VLOOKUP(INDEX($B$7:B31,MATCH(9.99999999999999E+307,$B$7:B31)),$B$7:F31,5,FALSE))+(INDEX($B$7:B31,MATCH(9.99999999999999E+307,$B$7:B31)))),"") -> 654.0732 | D32: 5.8715 | E32: =IF(D32<>"",IF(OR(B32<>"",INDIRECT("D33")=0),D32,0),"") -> 5.8715 | F32: 648.2017 | H32: =IF(D32<>"",IF(AND(B32<>"",B31<>""),$I$4+H31,VLOOKUP(INDEX($B$7:B31,MATCH(9.99999999999999E+307,$B$7:B31)),$B$7:H31,7,FALSE)+$I$4),"") -> -0.0007233502539 | I32: 648.2009766
A33: TP29 | B33: 2.6551 | C33: =IF(D33<>"",IF(OR(B33<>"",INDIRECT("D34")=0),IF(B32<>"",F32+B32,VLOOKUP(INDEX($B$7:B32,MATCH(9.99999999999999E+307,$B$7:B32)),$B$7:F32,5,FALSE)+INDEX($B$7:B32,MATCH(9.99999999999999E+307,$B$7:B32))),(VLOOKUP(INDEX($B$7:B32,MATCH(9.99999999999999E+307,$B$7:B32)),$B$7:F32,5,FALSE))+(INDEX($B$7:B32,MATCH(9.99999999999999E+307,$B$7:B32)))),"") -> 652.8135 | D33: 4.7164 | E33: =IF(D33<>"",IF(OR(B33<>"",INDIRECT("D34")=0),D33,0),"") -> 4.7164 | F33: 648.0971 | H33: =IF(D33<>"",IF(AND(B33<>"",B32<>""),$I$4+H32,VLOOKUP(INDEX($B$7:B32,MATCH(9.99999999999999E+307,$B$7:B32)),$B$7:H32,7,FALSE)+$I$4),"") -> -0.0007522842641 | I33: 648.0963477
A34: TP30 | B34: 2.7503 | C34: =IF(D34<>"",IF(OR(B34<>"",INDIRECT("D35")=0),IF(B33<>"",F33+B33,VLOOKUP(INDEX($B$7:B33,MATCH(9.99999999999999E+307,$B$7:B33)),$B$7:F33,5,FALSE)+INDEX($B$7:B33,MATCH(9.99999999999999E+307,$B$7:B33))),(VLOOKUP(INDEX($B$7:B33,MATCH(9.99999999999999E+307,$B$7:B33)),$B$7:F33,5,FALSE))+(INDEX($B$7:B33,MATCH(9.99999999999999E+307,$B$7:B33)))),"") -> 650.7522 | D34: 6.4295 | E34: =IF(D34<>"",IF(OR(B34<>"",INDIRECT("D35")=0),D34,0),"") -> 6.4295 | F34: 644.3227 | H34: =IF(D34<>"",IF(AND(B34<>"",B33<>""),$I$4+H33,VLOOKUP(INDEX($B$7:B33,MATCH(9.99999999999999E+307,$B$7:B33)),$B$7:H33,7,FALSE)+$I$4),"") -> -0.0007812182742 | I34: 644.3219188
A35: TP31 | B35: 2.5192 | C35: =IF(D35<>"",IF(OR(B35<>"",INDIRECT("D36")=0),IF(B34<>"",F34+B34,VLOOKUP(INDEX($B$7:B34,MATCH(9.99999999999999E+307,$B$7:B34)),$B$7:F34,5,FALSE)+INDEX($B$7:B34,MATCH(9.99999999999999E+307,$B$7:B34))),(VLOOKUP(INDEX($B$7:B34,MATCH(9.99999999999999E+307,$B$7:B34)),$B$7:F34,5,FALSE))+(INDEX($B$7:B34,MATCH(9.99999999999999E+307,$B$7:B34)))),"") -> 647.073 | D35: 6.4805 | E35: =IF(D35<>"",IF(OR(B35<>"",INDIRECT("D36")=0),D35,0),"") -> 6.4805 | F35: 640.5925 | H35: =IF(D35<>"",IF(AND(B35<>"",B34<>""),$I$4+H34,VLOOKUP(INDEX($B$7:B34,MATCH(9.99999999999999E+307,$B$7:B34)),$B$7:H34,7,FALSE)+$I$4),"") -> -0.0008101522844 | I35: 640.5916898
A36: TP32 | B36: 7.362 | C36: =IF(D36<>"",IF(OR(B36<>"",INDIRECT("D37")=0),IF(B35<>"",F35+B35,VLOOKUP(INDEX($B$7:B35,MATCH(9.99999999999999E+307,$B$7:B35)),$B$7:F35,5,FALSE)+INDEX($B$7:B35,MATCH(9.99999999999999E+307,$B$7:B35))),(VLOOKUP(INDEX($B$7:B35,MATCH(9.99999999999999E+307,$B$7:B35)),$B$7:F35,5,FALSE))+(INDEX($B$7:B35,MATCH(9.99999999999999E+307,$B$7:B35)))),"") -> 643.1117 | D36: 6.8085 | E36: =IF(D36<>"",IF(OR(B36<>"",INDIRECT("D37")=0),D36,0),"") -> 6.8085 | F36: 636.3032 | H36: =IF(D36<>"",IF(AND(B36<>"",B35<>""),$I$4+H35,VLOOKUP(INDEX($B$7:B35,MATCH(9.99999999999999E+307,$B$7:B35)),$B$7:H35,7,FALSE)+$I$4),"") -> -0.0008390862946 | I36: 636.3023609
A37: TP33 | B37: 8.7206 | C37: =IF(D37<>"",IF(OR(B37<>"",INDIRECT("D38")=0),IF(B36<>"",F36+B36,VLOOKUP(INDEX($B$7:B36,MATCH(9.99999999999999E+307,$B$7:B36)),$B$7:F36,5,FALSE)+INDEX($B$7:B36,MATCH(9.99999999999999E+307,$B$7:B36))),(VLOOKUP(INDEX($B$7:B36,MATCH(9.99999999999999E+307,$B$7:B36)),$B$7:F36,5,FALSE))+(INDEX($B$7:B36,MATCH(9.99999999999999E+307,$B$7:B36)))),"") -> 643.6652 | D37: 4.1672 | E37: =IF(D37<>"",IF(OR(B37<>"",INDIRECT("D38")=0),D37,0),"") -> 4.1672 | F37: 639.498 | H37: =IF(D37<>"",IF(AND(B37<>"",B36<>""),$I$4+H36,VLOOKUP(INDEX($B$7:B36,MATCH(9.99999999999999E+307,$B$7:B36)),$B$7:H36,7,FALSE)+$I$4),"") -> -0.0008680203047 | I37: 639.497132
A38: TP34 | B38: 7.0839 | C38: =IF(D38<>"",IF(OR(B38<>"",INDIRECT("D39")=0),IF(B37<>"",F37+B37,VLOOKUP(INDEX($B$7:B37,MATCH(9.99999999999999E+307,$B$7:B37)),$B$7:F37,5,FALSE)+INDEX($B$7:B37,MATCH(9.99999999999999E+307,$B$7:B37))),(VLOOKUP(INDEX($B$7:B37,MATCH(9.99999999999999E+307,$B$7:B37)),$B$7:F37,5,FALSE))+(INDEX($B$7:B37,MATCH(9.99999999999999E+307,$B$7:B37)))),"") -> 648.2186 | D38: 0.5555 | E38: =IF(D38<>"",IF(OR(B38<>"",INDIRECT("D39")=0),D38,0),"") -> 0.5555 | F38: 647.6631 | H38: =IF(D38<>"",IF(AND(B38<>"",B37<>""),$I$4+H37,VLOOKUP(INDEX($B$7:B37,MATCH(9.99999999999999E+307,$B$7:B37)),$B$7:H37,7,FALSE)+$I$4),"") -> -0.0008969543149 | I38: 647.662203
A39: SV8 | B39: 8.6767 | C39: =IF(D39<>"",IF(OR(B39<>"",INDIRECT("D40")=0),IF(B38<>"",F38+B38,VLOOKUP(INDEX($B$7:B38,MATCH(9.99999999999999E+307,$B$7:B38)),$B$7:F38,5,FALSE)+INDEX($B$7:B38,MATCH(9.99999999999999E+307,$B$7:B38))),(VLOOKUP(INDEX($B$7:B38,MATCH(9.99999999999999E+307,$B$7:B38)),$B$7:F38,5,FALSE))+(INDEX($B$7:B38,MATCH(9.99999999999999E+307,$B$7:B38)))),"") -> 654.747 | D39: 2.7434 | E39: =IF(D39<>"",IF(OR(B39<>"",INDIRECT("D40")=0),D39,0),"") -> 2.7434 | F39: 652.0036 | H39: =IF(D39<>"",IF(AND(B39<>"",B38<>""),$I$4+H38,VLOOKUP(INDEX($B$7:B38,MATCH(9.99999999999999E+307,$B$7:B38)),$B$7:H38,7,FALSE)+$I$4),"") -> -0.000925888325 | I39: 652.0026741
A40: TP35 | B40: 4.3147 | C40: =IF(D40<>"",IF(OR(B40<>"",INDIRECT("D41")=0),IF(B39<>"",F39+B39,VLOOKUP(INDEX($B$7:B39,MATCH(9.99999999999999E+307,$B$7:B39)),$B$7:F39,5,FALSE)+INDEX($B$7:B39,MATCH(9.99999999999999E+307,$B$7:B39))),(VLOOKUP(INDEX($B$7:B39,MATCH(9.99999999999999E+307,$B$7:B39)),$B$7:F39,5,FALSE))+(INDEX($B$7:B39,MATCH(9.99999999999999E+307,$B$7:B39)))),"") -> 660.6803 | D40: 2.0865 | E40: =IF(D40<>"",IF(OR(B40<>"",INDIRECT("D41")=0),D40,0),"") -> 2.0865 | F40: 658.5938 | H40: =IF(D40<>"",IF(AND(B40<>"",B39<>""),$I$4+H39,VLOOKUP(INDEX($B$7:B39,MATCH(9.99999999999999E+307,$B$7:B39)),$B$7:H39,7,FALSE)+$I$4),"") -> -0.0009548223352 | I40: 658.5928452
A41: SV9 | B41: 2.9899 | C41: =IF(D41<>"",IF(OR(B41<>"",INDIRECT("D42")=0),IF(B40<>"",F40+B40,VLOOKUP(INDEX($B$7:B40,MATCH(9.99999999999999E+307,$B$7:B40)),$B$7:F40,5,FALSE)+INDEX($B$7:B40,MATCH(9.99999999999999E+307,$B$7:B40))),(VLOOKUP(INDEX($B$7:B40,MATCH(9.99999999999999E+307,$B$7:B40)),$B$7:F40,5,FALSE))+(INDEX($B$7:B40,MATCH(9.99999999999999E+307,$B$7:B40)))),"") -> 662.9085 | D41: 5.4323 | E41: =IF(D41<>"",IF(OR(B41<>"",INDIRECT("D42")=0),D41,0),"") -> 5.4323 | F41: 657.4762 | H41: =IF(D41<>"",IF(AND(B41<>"",B40<>""),$I$4+H40,VLOOKUP(INDEX($B$7:B40,MATCH(9.99999999999999E+307,$B$7:B40)),$B$7:H40,7,FALSE)+$I$4),"") -> -0.0009837563453 | I41: 657.4752162
A42: TP36 | B42: 1.6306 | C42: =IF(D42<>"",IF(OR(B42<>"",INDIRECT("D43")=0),IF(B41<>"",F41+B41,VLOOKUP(INDEX($B$7:B41,MATCH(9.99999999999999E+307,$B$7:B41)),$B$7:F41,5,FALSE)+INDEX($B$7:B41,MATCH(9.99999999999999E+307,$B$7:B41))),(VLOOKUP(INDEX($B$7:B41,MATCH(9.99999999999999E+307,$B$7:B41)),$B$7:F41,5,FALSE))+(INDEX($B$7:B41,MATCH(9.99999999999999E+307,$B$7:B41)))),"") -> 660.4661 | D42: 7.7732 | E42: =IF(D42<>"",IF(OR(B42<>"",INDIRECT("D43")=0),D42,0),"") -> 7.7732 | F42: 652.6929 | H42: =IF(D42<>"",IF(AND(B42<>"",B41<>""),$I$4+H41,VLOOKUP(INDEX($B$7:B41,MATCH(9.99999999999999E+307,$B$7:B41)),$B$7:H41,7,FALSE)+$I$4),"") -> -0.001012690355 | I42: 652.6918873
A43: TP37 | B43: 2.6757 | C43: =IF(D43<>"",IF(OR(B43<>"",INDIRECT("D44")=0),IF(B42<>"",F42+B42,VLOOKUP(INDEX($B$7:B42,MATCH(9.99999999999999E+307,$B$7:B42)),$B$7:F42,5,FALSE)+INDEX($B$7:B42,MATCH(9.99999999999999E+307,$B$7:B42))),(VLOOKUP(INDEX($B$7:B42,MATCH(9.99999999999999E+307,$B$7:B42)),$B$7:F42,5,FALSE))+(INDEX($B$7:B42,MATCH(9.99999999999999E+307,$B$7:B42)))),"") -> 654.3235 | D43: 7.7382 | E43: =IF(D43<>"",IF(OR(B43<>"",INDIRECT("D44")=0),D43,0),"") -> 7.7382 | F43: 646.5853 | H43: =IF(D43<>"",IF(AND(B43<>"",B42<>""),$I$4+H42,VLOOKUP(INDEX($B$7:B42,MATCH(9.99999999999999E+307,$B$7:B42)),$B$7:H42,7,FALSE)+$I$4),"") -> -0.001041624366 | I43: 646.5842584
A44: TP38 | B44: 3.5297 | C44: =IF(D44<>"",IF(OR(B44<>"",INDIRECT("D45")=0),IF(B43<>"",F43+B43,VLOOKUP(INDEX($B$7:B43,MATCH(9.99999999999999E+307,$B$7:B43)),$B$7:F43,5,FALSE)+INDEX($B$7:B43,MATCH(9.99999999999999E+307,$B$7:B43))),(VLOOKUP(INDEX($B$7:B43,MATCH(9.99999999999999E+307,$B$7:B43)),$B$7:F43,5,FALSE))+(INDEX($B$7:B43,MATCH(9.99999999999999E+307,$B$7:B43)))),"") -> 649.261 | D44: 6.1283 | E44: =IF(D44<>"",IF(OR(B44<>"",INDIRECT("D45")=0),D44,0),"") -> 6.1283 | F44: 643.1327 | H44: =IF(D44<>"",IF(AND(B44<>"",B43<>""),$I$4+H43,VLOOKUP(INDEX($B$7:B43,MATCH(9.99999999999999E+307,$B$7:B43)),$B$7:H43,7,FALSE)+$I$4),"") -> -0.001070558376 | I44: 643.1316294
A45: TP39 | B45: 3.0924 | C45: =IF(D45<>"",IF(OR(B45<>"",INDIRECT("D46")=0),IF(B44<>"",F44+B44,VLOOKUP(INDEX($B$7:B44,MATCH(9.99999999999999E+307,$B$7:B44)),$B$7:F44,5,FALSE)+INDEX($B$7:B44,MATCH(9.99999999999999E+307,$B$7:B44))),(VLOOKUP(INDEX($B$7:B44,MATCH(9.99999999999999E+307,$B$7:B44)),$B$7:F44,5,FALSE))+(INDEX($B$7:B44,MATCH(9.99999999999999E+307,$B$7:B44)))),"") -> 646.6624 | D45: 6.2368 | E45: =IF(D45<>"",IF(OR(B45<>"",INDIRECT("D46")=0),D45,0),"") -> 6.2368 | F45: 640.4256 | H45: =IF(D45<>"",IF(AND(B45<>"",B44<>""),$I$4+H44,VLOOKUP(INDEX($B$7:B44,MATCH(9.99999999999999E+307,$B$7:B44)),$B$7:H44,7,FALSE)+$I$4),"") -> -0.001099492386 | I45: 640.4245005
A46: TP40 | B46: 2.987 | C46: =IF(D46<>"",IF(OR(B46<>"",INDIRECT("D47")=0),IF(B45<>"",F45+B45,VLOOKUP(INDEX($B$7:B45,MATCH(9.99999999999999E+307,$B$7:B45)),$B$7:F45,5,FALSE)+INDEX($B$7:B45,MATCH(9.99999999999999E+307,$B$7:B45))),(VLOOKUP(INDEX($B$7:B45,MATCH(9.99999999999999E+307,$B$7:B45)),$B$7:F45,5,FALSE))+(INDEX($B$7:B45,MATCH(9.99999999999999E+307,$B$7:B45)))),"") -> 643.518 | D46: 6.2265 | E46: =IF(D46<>"",IF(OR(B46<>"",INDIRECT("D47")=0),D46,0),"") -> 6.2265 | F46: 637.2915 | H46: =IF(D46<>"",IF(AND(B46<>"",B45<>""),$I$4+H45,VLOOKUP(INDEX($B$7:B45,MATCH(9.99999999999999E+307,$B$7:B45)),$B$7:H45,7,FALSE)+$I$4),"") -> -0.001128426396 | I46: 637.2903716
A47: TP41 | B47: 3.7605 | C47: =IF(D47<>"",IF(OR(B47<>"",INDIRECT("D48")=0),IF(B46<>"",F46+B46,VLOOKUP(INDEX($B$7:B46,MATCH(9.99999999999999E+307,$B$7:B46)),$B$7:F46,5,FALSE)+INDEX($B$7:B46,MATCH(9.99999999999999E+307,$B$7:B46))),(VLOOKUP(INDEX($B$7:B46,MATCH(9.99999999999999E+307,$B$7:B46)),$B$7:F46,5,FALSE))+(INDEX($B$7:B46,MATCH(9.99999999999999E+307,$B$7:B46)))),"") -> 640.2785 | D47: 5.2449 | E47: =IF(D47<>"",IF(OR(B47<>"",INDIRECT("D48")=0),D47,0),"") -> 5.2449 | F47: 635.0336 | H47: =IF(D47<>"",IF(AND(B47<>"",B46<>""),$I$4+H46,VLOOKUP(INDEX($B$7:B46,MATCH(9.99999999999999E+307,$B$7:B46)),$B$7:H46,7,FALSE)+$I$4),"") -> -0.001157360406 | I47: 635.0324426
A48: SV10 | B48: 6.255 | C48: =IF(D48<>"",IF(OR(B48<>"",INDIRECT("D49")=0),IF(B47<>"",F47+B47,VLOOKUP(INDEX($B$7:B47,MATCH(9.99999999999999E+307,$B$7:B47)),$B$7:F47,5,FALSE)+INDEX($B$7:B47,MATCH(9.99999999999999E+307,$B$7:B47))),(VLOOKUP(INDEX($B$7:B47,MATCH(9.99999999999999E+307,$B$7:B47)),$B$7:F47,5,FALSE))+(INDEX($B$7:B47,MATCH(9.99999999999999E+307,$B$7:B47)))),"") -> 638.7941 | D48: 5.5314 | E48: =IF(D48<>"",IF(OR(B48<>"",INDIRECT("D49")=0),D48,0),"") -> 5.5314 | F48: 633.2627 | H48: =IF(D48<>"",IF(AND(B48<>"",B47<>""),$I$4+H47,VLOOKUP(INDEX($B$7:B47,MATCH(9.99999999999999E+307,$B$7:B47)),$B$7:H47,7,FALSE)+$I$4),"") -> -0.001186294416 | I48: 633.2615137
A49: TP42 | B49: 5.1543 | C49: =IF(D49<>"",IF(OR(B49<>"",INDIRECT("D50")=0),IF(B48<>"",F48+B48,VLOOKUP(INDEX($B$7:B48,MATCH(9.99999999999999E+307,$B$7:B48)),$B$7:F48,5,FALSE)+INDEX($B$7:B48,MATCH(9.99999999999999E+307,$B$7:B48))),(VLOOKUP(INDEX($B$7:B48,MATCH(9.99999999999999E+307,$B$7:B48)),$B$7:F48,5,FALSE))+(INDEX($B$7:B48,MATCH(9.99999999999999E+307,$B$7:B48)))),"") -> 639.5177 | D49: 3.7086 | E49: =IF(D49<>"",IF(OR(B49<>"",INDIRECT("D50")=0),D49,0),"") -> 3.7086 | F49: 635.8091 | H49: =IF(D49<>"",IF(AND(B49<>"",B48<>""),$I$4+H48,VLOOKUP(INDEX($B$7:B48,MATCH(9.99999999999999E+307,$B$7:B48)),$B$7:H48,7,FALSE)+$I$4),"") -> -0.001215228427 | I49: 635.8078848
A50: SV11 | B50: 6.6545 | C50: =IF(D50<>"",IF(OR(B50<>"",INDIRECT("D51")=0),IF(B49<>"",F49+B49,VLOOKUP(INDEX($B$7:B49,MATCH(9.99999999999999E+307,$B$7:B49)),$B$7:F49,5,FALSE)+INDEX($B$7:B49,MATCH(9.99999999999999E+307,$B$7:B49))),(VLOOKUP(INDEX($B$7:B49,MATCH(9.99999999999999E+307,$B$7:B49)),$B$7:F49,5,FALSE))+(INDEX($B$7:B49,MATCH(9.99999999999999E+307,$B$7:B49)))),"") -> 640.9634 | D50: 4.4557 | E50: =IF(D50<>"",IF(OR(B50<>"",INDIRECT("D51")=0),D50,0),"") -> 4.4557 | F50: 636.5077 | H50: =IF(D50<>"",IF(AND(B50<>"",B49<>""),$I$4+H49,VLOOKUP(INDEX($B$7:B49,MATCH(9.99999999999999E+307,$B$7:B49)),$B$7:H49,7,FALSE)+$I$4),"") -> -0.001244162437 | I50: 636.5064558
A51: TP43 | B51: 3.8376 | C51: =IF(D51<>"",IF(OR(B51<>"",INDIRECT("D52")=0),IF(B50<>"",F50+B50,VLOOKUP(INDEX($B$7:B50,MATCH(9.99999999999999E+307,$B$7:B50)),$B$7:F50,5,FALSE)+INDEX($B$7:B50,MATCH(9.99999999999999E+307,$B$7:B50))),(VLOOKUP(INDEX($B$7:B50,MATCH(9.99999999999999E+307,$B$7:B50)),$B$7:F50,5,FALSE))+(INDEX($B$7:B50,MATCH(9.99999999999999E+307,$B$7:B50)))),"") -> 643.1622 | D51: 4.4353 | E51: =IF(D51<>"",IF(OR(B51<>"",INDIRECT("D52")=0),D51,0),"") -> 4.4353 | F51: 638.7269 | H51: =IF(D51<>"",IF(AND(B51<>"",B50<>""),$I$4+H50,VLOOKUP(INDEX($B$7:B50,MATCH(9.99999999999999E+307,$B$7:B50)),$B$7:H50,7,FALSE)+$I$4),"") -> -0.001273096447 | I51: 638.7256269
A52: TP44 | B52: 4.7076 | C52: =IF(D52<>"",IF(OR(B52<>"",INDIRECT("D53")=0),IF(B51<>"",F51+B51,VLOOKUP(INDEX($B$7:B51,MATCH(9.99999999999999E+307,$B$7:B51)),$B$7:F51,5,FALSE)+INDEX($B$7:B51,MATCH(9.99999999999999E+307,$B$7:B51))),(VLOOKUP(INDEX($B$7:B51,MATCH(9.99999999999999E+307,$B$7:B51)),$B$7:F51,5,FALSE))+(INDEX($B$7:B51,MATCH(9.99999999999999E+307,$B$7:B51)))),"") -> 642.5645 | D52: 5.7628 | E52: =IF(D52<>"",IF(OR(B52<>"",INDIRECT("D53")=0),D52,0),"") -> 5.7628 | F52: 636.8017 | H52: =IF(D52<>"",IF(AND(B52<>"",B51<>""),$I$4+H51,VLOOKUP(INDEX($B$7:B51,MATCH(9.99999999999999E+307,$B$7:B51)),$B$7:H51,7,FALSE)+$I$4),"") -> -0.001302030457 | I52: 636.800398
A53: TP45 | B53: 4.9229 | C53: =IF(D53<>"",IF(OR(B53<>"",INDIRECT("D54")=0),IF(B52<>"",F52+B52,VLOOKUP(INDEX($B$7:B52,MATCH(9.99999999999999E+307,$B$7:B52)),$B$7:F52,5,FALSE)+INDEX($B$7:B52,MATCH(9.99999999999999E+307,$B$7:B52))),(VLOOKUP(INDEX($B$7:B52,MATCH(9.99999999999999E+307,$B$7:B52)),$B$7:F52,5,FALSE))+(INDEX($B$7:B52,MATCH(9.99999999999999E+307,$B$7:B52)))),"") -> 641.5093 | D53: 4.3092 | E53: =IF(D53<>"",IF(OR(B53<>"",INDIRECT("D54")=0),D53,0),"") -> 4.3092 | F53: 637.2001 | H53: =IF(D53<>"",IF(AND(B53<>"",B52<>""),$I$4+H52,VLOOKUP(INDEX($B$7:B52,MATCH(9.99999999999999E+307,$B$7:B52)),$B$7:H52,7,FALSE)+$I$4),"") -> -0.001330964467 | I53: 637.198769
A54: TP46 | B54: 1.5757 | C54: =IF(D54<>"",IF(OR(B54<>"",INDIRECT("D55")=0),IF(B53<>"",F53+B53,VLOOKUP(INDEX($B$7:B53,MATCH(9.99999999999999E+307,$B$7:B53)),$B$7:F53,5,FALSE)+INDEX($B$7:B53,MATCH(9.99999999999999E+307,$B$7:B53))),(VLOOKUP(INDEX($B$7:B53,MATCH(9.99999999999999E+307,$B$7:B53)),$B$7:F53,5,FALSE))+(INDEX($B$7:B53,MATCH(9.99999999999999E+307,$B$7:B53)))),"") -> 642.123 | D54: 5.83 | E54: =IF(D54<>"",IF(OR(B54<>"",INDIRECT("D55")=0),D54,0),"") -> 5.83 | F54: 636.293 | H54: =IF(D54<>"",IF(AND(B54<>"",B53<>""),$I$4+H53,VLOOKUP(INDEX($B$7:B53,MATCH(9.99999999999999E+307,$B$7:B53)),$B$7:H53,7,FALSE)+$I$4),"") -> -0.001359898477 | I54: 636.2916401
A55: TP47 | B55: 2.7152 | C55: =IF(D55<>"",IF(OR(B55<>"",INDIRECT("D56")=0),IF(B54<>"",F54+B54,VLOOKUP(INDEX($B$7:B54,MATCH(9.99999999999999E+307,$B$7:B54)),$B$7:F54,5,FALSE)+INDEX($B$7:B54,MATCH(9.99999999999999E+307,$B$7:B54))),(VLOOKUP(INDEX($B$7:B54,MATCH(9.99999999999999E+307,$B$7:B54)),$B$7:F54,5,FALSE))+(INDEX($B$7:B54,MATCH(9.99999999999999E+307,$B$7:B54)))),"") -> 637.8687 | D55: 5.8359 | E55: =IF(D55<>"",IF(OR(B55<>"",INDIRECT("D56")=0),D55,0),"") -> 5.8359 | F55: 632.0328 | H55: =IF(D55<>"",IF(AND(B55<>"",B54<>""),$I$4+H54,VLOOKUP(INDEX($B$7:B54,MATCH(9.99999999999999E+307,$B$7:B54)),$B$7:H54,7,FALSE)+$I$4),"") -> -0.001388832488 | I55: 632.0314112
A56: SV102 | B56: 4.1085 | C56: =IF(D56<>"",IF(OR(B56<>"",INDIRECT("D57")=0),IF(B55<>"",F55+B55,VLOOKUP(INDEX($B$7:B55,MATCH(9.99999999999999E+307,$B$7:B55)),$B$7:F55,5,FALSE)+INDEX($B$7:B55,MATCH(9.99999999999999E+307,$B$7:B55))),(VLOOKUP(INDEX($B$7:B55,MATCH(9.99999999999999E+307,$B$7:B55)),$B$7:F55,5,FALSE))+(INDEX($B$7:B55,MATCH(9.99999999999999E+307,$B$7:B55)))),"") -> 634.748 | D56: 5.8618 | E56: =IF(D56<>"",IF(OR(B56<>"",INDIRECT("D57")=0),D56,0),"") -> 5.8618 | F56: 628.8862 | H56: =IF(D56<>"",IF(AND(B56<>"",B55<>""),$I$4+H55,VLOOKUP(INDEX($B$7:B55,MATCH(9.99999999999999E+307,$B$7:B55)),$B$7:H55,7,FALSE)+$I$4),"") -> -0.001417766498 | I56: 628.8847822
A57: TP48 | B57: 4.0639 | C57: =IF(D57<>"",IF(OR(B57<>"",INDIRECT("D58")=0),IF(B56<>"",F56+B56,VLOOKUP(INDEX($B$7:B56,MATCH(9.99999999999999E+307,$B$7:B56)),$B$7:F56,5,FALSE)+INDEX($B$7:B56,MATCH(9.99999999999999E+307,$B$7:B56))),(VLOOKUP(INDEX($B$7:B56,MATCH(9.99999999999999E+307,$B$7:B56)),$B$7:F56,5,FALSE))+(INDEX($B$7:B56,MATCH(9.99999999999999E+307,$B$7:B56)))),"") -> 632.9947 | D57: 6.2743 | E57: =IF(D57<>"",IF(OR(B57<>"",INDIRECT("D58")=0),D57,0),"") -> 6.2743 | F57: 626.7204 | H57: =IF(D57<>"",IF(AND(B57<>"",B56<>""),$I$4+H56,VLOOKUP(INDEX($B$7:B56,MATCH(9.99999999999999E+307,$B$7:B56)),$B$7:H56,7,FALSE)+$I$4),"") -> -0.001446700508 | I57: 626.7189533
A58: SV12 | B58: 6.0138 | C58: =IF(D58<>"",IF(OR(B58<>"",INDIRECT("D59")=0),IF(B57<>"",F57+B57,VLOOKUP(INDEX($B$7:B57,MATCH(9.99999999999999E+307,$B$7:B57)),$B$7:F57,5,FALSE)+INDEX($B$7:B57,MATCH(9.99999999999999E+307,$B$7:B57))),(VLOOKUP(INDEX($B$7:B57,MATCH(9.99999999999999E+307,$B$7:B57)),$B$7:F57,5,FALSE))+(INDEX($B$7:B57,MATCH(9.99999999999999E+307,$B$7:B57)))),"") -> 630.7843 | D58: 6.0042 | E58: =IF(D58<>"",IF(OR(B58<>"",INDIRECT("D59")=0),D58,0),"") -> 6.0042 | F58: 624.7801 | H58: =IF(D58<>"",IF(AND(B58<>"",B57<>""),$I$4+H57,VLOOKUP(INDEX($B$7:B57,MATCH(9.99999999999999E+307,$B$7:B57)),$B$7:H57,7,FALSE)+$I$4),"") -> -0.001475634518 | I58: 624.7786244
A59: TP49 | B59: 5.1642 | C59: =IF(D59<>"",IF(OR(B59<>"",INDIRECT("D60")=0),IF(B58<>"",F58+B58,VLOOKUP(INDEX($B$7:B58,MATCH(9.99999999999999E+307,$B$7:B58)),$B$7:F58,5,FALSE)+INDEX($B$7:B58,MATCH(9.99999999999999E+307,$B$7:B58))),(VLOOKUP(INDEX($B$7:B58,MATCH(9.99999999999999E+307,$B$7:B58)),$B$7:F58,5,FALSE))+(INDEX($B$7:B58,MATCH(9.99999999999999E+307,$B$7:B58)))),"") -> 630.7939 | D59: 3.4325 | E59: =IF(D59<>"",IF(OR(B59<>"",INDIRECT("D60")=0),D59,0),"") -> 3.4325 | F59: 627.3614 | H59: =IF(D59<>"",IF(AND(B59<>"",B58<>""),$I$4+H58,VLOOKUP(INDEX($B$7:B58,MATCH(9.99999999999999E+307,$B$7:B58)),$B$7:H58,7,FALSE)+$I$4),"") -> -0.001504568528 | I59: 627.3598954
A60: TP50 | B60: 5.5328 | C60: =IF(D60<>"",IF(OR(B60<>"",INDIRECT("D61")=0),IF(B59<>"",F59+B59,VLOOKUP(INDEX($B$7:B59,MATCH(9.99999999999999E+307,$B$7:B59)),$B$7:F59,5,FALSE)+INDEX($B$7:B59,MATCH(9.99999999999999E+307,$B$7:B59))),(VLOOKUP(INDEX($B$7:B59,MATCH(9.99999999999999E+307,$B$7:B59)),$B$7:F59,5,FALSE))+(INDEX($B$7:B59,MATCH(9.99999999999999E+307,$B$7:B59)))),"") -> 632.5256 | D60: 4.1814 | E60: =IF(D60<>"",IF(OR(B60<>"",INDIRECT("D61")=0),D60,0),"") -> 4.1814 | F60: 628.3442 | H60: =IF(D60<>"",IF(AND(B60<>"",B59<>""),$I$4+H59,VLOOKUP(INDEX($B$7:B59,MATCH(9.99999999999999E+307,$B$7:B59)),$B$7:H59,7,FALSE)+$I$4),"") -> -0.001533502538 | I60: 628.3426665
A61: TP51 | B61: 4.1207 | C61: =IF(D61<>"",IF(OR(B61<>"",INDIRECT("D62")=0),IF(B60<>"",F60+B60,VLOOKUP(INDEX($B$7:B60,MATCH(9.99999999999999E+307,$B$7:B60)),$B$7:F60,5,FALSE)+INDEX($B$7:B60,MATCH(9.99999999999999E+307,$B$7:B60))),(VLOOKUP(INDEX($B$7:B60,MATCH(9.99999999999999E+307,$B$7:B60)),$B$7:F60,5,FALSE))+(INDEX($B$7:B60,MATCH(9.99999999999999E+307,$B$7:B60)))),"") -> 633.877 | D61: 5.4917 | E61: =IF(D61<>"",IF(OR(B61<>"",INDIRECT("D62")=0),D61,0),"") -> 5.4917 | F61: 628.3853 | H61: =IF(D61<>"",IF(AND(B61<>"",B60<>""),$I$4+H60,VLOOKUP(INDEX($B$7:B60,MATCH(9.99999999999999E+307,$B$7:B60)),$B$7:H60,7,FALSE)+$I$4),"") -> -0.001562436548 | I61: 628.3837376
A62: TP52 | B62: 3.5452 | C62: =IF(D62<>"",IF(OR(B62<>"",INDIRECT("D63")=0),IF(B61<>"",F61+B61,VLOOKUP(INDEX($B$7:B61,MATCH(9.99999999999999E+307,$B$7:B61)),$B$7:F61,5,FALSE)+INDEX($B$7:B61,MATCH(9.99999999999999E+307,$B$7:B61))),(VLOOKUP(INDEX($B$7:B61,MATCH(9.99999999999999E+307,$B$7:B61)),$B$7:F61,5,FALSE))+(INDEX($B$7:B61,MATCH(9.99999999999999E+307,$B$7:B61)))),"") -> 632.506 | D62: 5.3796 | E62: =IF(D62<>"",IF(OR(B62<>"",INDIRECT("D63")=0),D62,0),"") -> 5.3796 | F62: 627.1264 | H62: =IF(D62<>"",IF(AND(B62<>"",B61<>""),$I$4+H61,VLOOKUP(INDEX($B$7:B61,MATCH(9.99999999999999E+307,$B$7:B61)),$B$7:H61,7,FALSE)+$I$4),"") -> -0.001591370559 | I62: 627.1248086
A63: TP53 | B63: 3.925 | C63: =IF(D63<>"",IF(OR(B63<>"",INDIRECT("D64")=0),IF(B62<>"",F62+B62,VLOOKUP(INDEX($B$7:B62,MATCH(9.99999999999999E+307,$B$7:B62)),$B$7:F62,5,FALSE)+INDEX($B$7:B62,MATCH(9.99999999999999E+307,$B$7:B62))),(VLOOKUP(INDEX($B$7:B62,MATCH(9.99999999999999E+307,$B$7:B62)),$B$7:F62,5,FALSE))+(INDEX($B$7:B62,MATCH(9.99999999999999E+307,$B$7:B62)))),"") -> 630.6716 | D63: 5.3936 | E63: =IF(D63<>"",IF(OR(B63<>"",INDIRECT("D64")=0),D63,0),"") -> 5.3936 | F63: 625.278 | H63: =IF(D63<>"",IF(AND(B63<>"",B62<>""),$I$4+H62,VLOOKUP(INDEX($B$7:B62,MATCH(9.99999999999999E+307,$B$7:B62)),$B$7:H62,7,FALSE)+$I$4),"") -> -0.001620304569 | I63: 625.2763797
A64: TP54 | B64: 5.4774 | C64: =IF(D64<>"",IF(OR(B64<>"",INDIRECT("D65")=0),IF(B63<>"",F63+B63,VLOOKUP(INDEX($B$7:B63,MATCH(9.99999999999999E+307,$B$7:B63)),$B$7:F63,5,FALSE)+INDEX($B$7:B63,MATCH(9.99999999999999E+307,$B$7:B63))),(VLOOKUP(INDEX($B$7:B63,MATCH(9.99999999999999E+307,$B$7:B63)),$B$7:F63,5,FALSE))+(INDEX($B$7:B63,MATCH(9.99999999999999E+307,$B$7:B63)))),"") -> 629.203 | D64: 4.9066 | E64: =IF(D64<>"",IF(OR(B64<>"",INDIRECT("D65")=0),D64,0),"") -> 4.9066 | F64: 624.2964 | H64: =IF(D64<>"",IF(AND(B64<>"",B63<>""),$I$4+H63,VLOOKUP(INDEX($B$7:B63,MATCH(9.99999999999999E+307,$B$7:B63)),$B$7:H63,7,FALSE)+$I$4),"") -> -0.001649238579 | I64: 624.2947508
A65: SV13 | B65: 7.9307 | C65: =IF(D65<>"",IF(OR(B65<>"",INDIRECT("D66")=0),IF(B64<>"",F64+B64,VLOOKUP(INDEX($B$7:B64,MATCH(9.99999999999999E+307,$B$7:B64)),$B$7:F64,5,FALSE)+INDEX($B$7:B64,MATCH(9.99999999999999E+307,$B$7:B64))),(VLOOKUP(INDEX($B$7:B64,MATCH(9.99999999999999E+307,$B$7:B64)),$B$7:F64,5,FALSE))+(INDEX($B$7:B64,MATCH(9.99999999999999E+307,$B$7:B64)))),"") -> 629.7738 | D65: 5.8557 | E65: =IF(D65<>"",IF(OR(B65<>"",INDIRECT("D66")=0),D65,0),"") -> 5.8557 | F65: 623.9181 | H65: =IF(D65<>"",IF(AND(B65<>"",B64<>""),$I$4+H64,VLOOKUP(INDEX($B$7:B64,MATCH(9.99999999999999E+307,$B$7:B64)),$B$7:H64,7,FALSE)+$I$4),"") -> -0.001678172589 | I65: 623.9164218
A66: TP89 | B66: 5.7947 | C66: =IF(D66<>"",IF(OR(B66<>"",INDIRECT("D67")=0),IF(B65<>"",F65+B65,VLOOKUP(INDEX($B$7:B65,MATCH(9.99999999999999E+307,$B$7:B65)),$B$7:F65,5,FALSE)+INDEX($B$7:B65,MATCH(9.99999999999999E+307,$B$7:B65))),(VLOOKUP(INDEX($B$7:B65,MATCH(9.99999999999999E+307,$B$7:B65)),$B$7:F65,5,FALSE))+(INDEX($B$7:B65,MATCH(9.99999999999999E+307,$B$7:B65)))),"") -> 631.8488 | D66: 0.6482 | E66: =IF(D66<>"",IF(OR(B66<>"",INDIRECT("D67")=0),D66,0),"") -> 0.6482 | F66: 631.2006 | H66: =IF(D66<>"",IF(AND(B66<>"",B65<>""),$I$4+H65,VLOOKUP(INDEX($B$7:B65,MATCH(9.99999999999999E+307,$B$7:B65)),$B$7:H65,7,FALSE)+$I$4),"") -> -0.001707106599 | I66: 631.1988929
A67: SV14 | B67: 8.076 | C67: =IF(D67<>"",IF(OR(B67<>"",INDIRECT("D68")=0),IF(B66<>"",F66+B66,VLOOKUP(INDEX($B$7:B66,MATCH(9.99999999999999E+307,$B$7:B66)),$B$7:F66,5,FALSE)+INDEX($B$7:B66,MATCH(9.99999999999999E+307,$B$7:B66))),(VLOOKUP(INDEX($B$7:B66,MATCH(9.99999999999999E+307,$B$7:B66)),$B$7:F66,5,FALSE))+(INDEX($B$7:B66,MATCH(9.99999999999999E+307,$B$7:B66)))),"") -> 636.9953 | D67: 4.0991 | E67: =IF(D67<>"",IF(OR(B67<>"",INDIRECT("D68")=0),D67,0),"") -> 4.0991 | F67: 632.8962 | H67: =IF(D67<>"",IF(AND(B67<>"",B66<>""),$I$4+H66,VLOOKUP(INDEX($B$7:B66,MATCH(9.99999999999999E+307,$B$7:B66)),$B$7:H66,7,FALSE)+$I$4),"") -> -0.001736040609 | I67: 632.894464
A68: TP90 | B68: 3.7794 | C68: =IF(D68<>"",IF(OR(B68<>"",INDIRECT("D69")=0),IF(B67<>"",F67+B67,VLOOKUP(INDEX($B$7:B67,MATCH(9.99999999999999E+307,$B$7:B67)),$B$7:F67,5,FALSE)+INDEX($B$7:B67,MATCH(9.99999999999999E+307,$B$7:B67))),(VLOOKUP(INDEX($B$7:B67,MATCH(9.99999999999999E+307,$B$7:B67)),$B$7:F67,5,FALSE))+(INDEX($B$7:B67,MATCH(9.99999999999999E+307,$B$7:B67)))),"") -> 640.9722 | D68: 3.9096 | E68: =IF(D68<>"",IF(OR(B68<>"",INDIRECT("D69")=0),D68,0),"") -> 3.9096 | F68: 637.0626 | H68: =IF(D68<>"",IF(AND(B68<>"",B67<>""),$I$4+H67,VLOOKUP(INDEX($B$7:B67,MATCH(9.99999999999999E+307,$B$7:B67)),$B$7:H67,7,FALSE)+$I$4),"") -> -0.00176497462 | I68: 637.060835
A69: TP91 | B69: 2.5281 | C69: =IF(D69<>"",IF(OR(B69<>"",INDIRECT("D70")=0),IF(B68<>"",F68+B68,VLOOKUP(INDEX($B$7:B68,MATCH(9.99999999999999E+307,$B$7:B68)),$B$7:F68,5,FALSE)+INDEX($B$7:B68,MATCH(9.99999999999999E+307,$B$7:B68))),(VLOOKUP(INDEX($B$7:B68,MATCH(9.99999999999999E+307,$B$7:B68)),$B$7:F68,5,FALSE))+(INDEX($B$7:B68,MATCH(9.99999999999999E+307,$B$7:B68)))),"") -> 640.842 | D69: 5.9605 | E69: =IF(D69<>"",IF(OR(B69<>"",INDIRECT("D70")=0),D69,0),"") -> 5.9605 | F69: 634.8815 | H69: =IF(D69<>"",IF(AND(B69<>"",B68<>""),$I$4+H68,VLOOKUP(INDEX($B$7:B68,MATCH(9.99999999999999E+307,$B$7:B68)),$B$7:H68,7,FALSE)+$I$4),"") -> -0.00179390863 | I69: 634.8797061
A70: TP92 | B70: 2.7921 | C70: =IF(D70<>"",IF(OR(B70<>"",INDIRECT("D71")=0),IF(B69<>"",F69+B69,VLOOKUP(INDEX($B$7:B69,MATCH(9.99999999999999E+307,$B$7:B69)),$B$7:F69,5,FALSE)+INDEX($B$7:B69,MATCH(9.99999999999999E+307,$B$7:B69))),(VLOOKUP(INDEX($B$7:B69,MATCH(9.99999999999999E+307,$B$7:B69)),$B$7:F69,5,FALSE))+(INDEX($B$7:B69,MATCH(9.99999999999999E+307,$B$7:B69)))),"") -> 637.4096 | D70: 5.9959 | E70: =IF(D70<>"",IF(OR(B70<>"",INDIRECT("D71")=0),D70,0),"") -> 5.9959 | F70: 631.4137 | H70: =IF(D70<>"",IF(AND(B70<>"",B69<>""),$I$4+H69,VLOOKUP(INDEX($B$7:B69,MATCH(9.99999999999999E+307,$B$7:B69)),$B$7:H69,7,FALSE)+$I$4),"") -> -0.00182284264 | I70: 631.4118772
A71: TP93 | B71: 6.13 | C71: =IF(D71<>"",IF(OR(B71<>"",INDIRECT("D72")=0),IF(B70<>"",F70+B70,VLOOKUP(INDEX($B$7:B70,MATCH(9.99999999999999E+307,$B$7:B70)),$B$7:F70,5,FALSE)+INDEX($B$7:B70,MATCH(9.99999999999999E+307,$B$7:B70))),(VLOOKUP(INDEX($B$7:B70,MATCH(9.99999999999999E+307,$B$7:B70)),$B$7:F70,5,FALSE))+(INDEX($B$7:B70,MATCH(9.99999999999999E+307,$B$7:B70)))),"") -> 634.2058 | D71: 5.9478 | E71: =IF(D71<>"",IF(OR(B71<>"",INDIRECT("D72")=0),D71,0),"") -> 5.9478 | F71: 628.258 | H71: =IF(D71<>"",IF(AND(B71<>"",B70<>""),$I$4+H70,VLOOKUP(INDEX($B$7:B70,MATCH(9.99999999999999E+307,$B$7:B70)),$B$7:H70,7,FALSE)+$I$4),"") -> -0.00185177665 | I71: 628.2561482
A72: TP94 | B72: 7.5676 | C72: =IF(D72<>"",IF(OR(B72<>"",INDIRECT("D73")=0),IF(B71<>"",F71+B71,VLOOKUP(INDEX($B$7:B71,MATCH(9.99999999999999E+307,$B$7:B71)),$B$7:F71,5,FALSE)+INDEX($B$7:B71,MATCH(9.99999999999999E+307,$B$7:B71))),(VLOOKUP(INDEX($B$7:B71,MATCH(9.99999999999999E+307,$B$7:B71)),$B$7:F71,5,FALSE))+(INDEX($B$7:B71,MATCH(9.99999999999999E+307,$B$7:B71)))),"") -> 634.388 | D72: 2.9253 | E72: =IF(D72<>"",IF(OR(B72<>"",INDIRECT("D73")=0),D72,0),"") -> 2.9253 | F72: 631.4627 | H72: =IF(D72<>"",IF(AND(B72<>"",B71<>""),$I$4+H71,VLOOKUP(INDEX($B$7:B71,MATCH(9.99999999999999E+307,$B$7:B71)),$B$7:H71,7,FALSE)+$I$4),"") -> -0.00188071066 | I72: 631.4608193
A73: TP95 | B73: 4.8911 | C73: =IF(D73<>"",IF(OR(B73<>"",INDIRECT("D74")=0),IF(B72<>"",F72+B72,VLOOKUP(INDEX($B$7:B72,MATCH(9.99999999999999E+307,$B$7:B72)),$B$7:F72,5,FALSE)+INDEX($B$7:B72,MATCH(9.99999999999999E+307,$B$7:B72))),(VLOOKUP(INDEX($B$7:B72,MATCH(9.99999999999999E+307,$B$7:B72)),$B$7:F72,5,FALSE))+(INDEX($B$7:B72,MATCH(9.99999999999999E+307,$B$7:B72)))),"") -> 639.0303 | D73: 3.2358 | E73: =IF(D73<>"",IF(OR(B73<>"",INDIRECT("D74")=0),D73,0),"") -> 3.2358 | F73: =IF(D73<>"",C73-D73,"") -> 635.7945 | H73: =IF(D73<>"",IF(AND(B73<>"",B72<>""),$I$4+H72,VLOOKUP(INDEX($B$7:B72,MATCH(9.99999999999999E+307,$B$7:B72)),$B$7:H72,7,FALSE)+$I$4),"") -> -0.00190964467 | I73: =IF(D73<>"",(F73+H73),"") -> 635.7925904
A74: SV15 | B74: 7.6931 | C74: =IF(D74<>"",IF(OR(B74<>"",INDIRECT("D75")=0),IF(B73<>"",F73+B73,VLOOKUP(INDEX($B$7:B73,MATCH(9.99999999999999E+307,$B$7:B73)),$B$7:F73,5,FALSE)+INDEX($B$7:B73,MATCH(9.99999999999999E+307,$B$7:B73))),(VLOOKUP(INDEX($B$7:B73,MATCH(9.99999999999999E+307,$B$7:B73)),$B$7:F73,5,FALSE))+(INDEX($B$7:B73,MATCH(9.99999999999999E+307,$B$7:B73)))),"") -> 640.6856 | D74: 2.7845 | E74: =IF(D74<>"",IF(OR(B74<>"",INDIRECT("D75")=0),D74,0),"") -> 2.7845 | F74: 637.9011 | H74: =IF(D74<>"",IF(AND(B74<>"",B73<>""),$I$4+H73,VLOOKUP(INDEX($B$7:B73,MATCH(9.99999999999999E+307,$B$7:B73)),$B$7:H73,7,FALSE)+$I$4),"") -> -0.001938578681 | I74: 637.8991614
A75: TP96 | B75: 5.3867 | C75: =IF(D75<>"",IF(OR(B75<>"",INDIRECT("D76")=0),IF(B74<>"",F74+B74,VLOOKUP(INDEX($B$7:B74,MATCH(9.99999999999999E+307,$B$7:B74)),$B$7:F74,5,FALSE)+INDEX($B$7:B74,MATCH(9.99999999999999E+307,$B$7:B74))),(VLOOKUP(INDEX($B$7:B74,MATCH(9.99999999999999E+307,$B$7:B74)),$B$7:F74,5,FALSE))+(INDEX($B$7:B74,MATCH(9.99999999999999E+307,$B$7:B74)))),"") -> 645.5942 | D75: 2.2003 | E75: =IF(D75<>"",IF(OR(B75<>"",INDIRECT("D76")=0),D75,0),"") -> 2.2003 | F75: 643.3939 | H75: =IF(D75<>"",IF(AND(B75<>"",B74<>""),$I$4+H74,VLOOKUP(INDEX($B$7:B74,MATCH(9.99999999999999E+307,$B$7:B74)),$B$7:H74,7,FALSE)+$I$4),"") -> -0.001967512691 | I75: 643.3919325
A76: SV16 | B76: 6.7863 | C76: =IF(D76<>"",IF(OR(B76<>"",INDIRECT("D77")=0),IF(B75<>"",F75+B75,VLOOKUP(INDEX($B$7:B75,MATCH(9.99999999999999E+307,$B$7:B75)),$B$7:F75,5,FALSE)+INDEX($B$7:B75,MATCH(9.99999999999999E+307,$B$7:B75))),(VLOOKUP(INDEX($B$7:B75,MATCH(9.99999999999999E+307,$B$7:B75)),$B$7:F75,5,FALSE))+(INDEX($B$7:B75,MATCH(9.99999999999999E+307,$B$7:B75)))),"") -> 648.7806 | D76: 4.7484 | E76: =IF(D76<>"",IF(OR(B76<>"",INDIRECT("D77")=0),D76,0),"") -> 4.7484 | F76: 644.0322 | H76: =IF(D76<>"",IF(AND(B76<>"",B75<>""),$I$4+H75,VLOOKUP(INDEX($B$7:B75,MATCH(9.99999999999999E+307,$B$7:B75)),$B$7:H75,7,FALSE)+$I$4),"") -> -0.001996446701 | I76: 644.0302036
A77: TP97 | B77: 3.6444 | C77: =IF(D77<>"",IF(OR(B77<>"",INDIRECT("D78")=0),IF(B76<>"",F76+B76,VLOOKUP(INDEX($B$7:B76,MATCH(9.99999999999999E+307,$B$7:B76)),$B$7:F76,5,FALSE)+INDEX($B$7:B76,MATCH(9.99999999999999E+307,$B$7:B76))),(VLOOKUP(INDEX($B$7:B76,MATCH(9.99999999999999E+307,$B$7:B76)),$B$7:F76,5,FALSE))+(INDEX($B$7:B76,MATCH(9.99999999999999E+307,$B$7:B76)))),"") -> 650.8185 | D77: 4.5694 | E77: =IF(D77<>"",IF(OR(B77<>"",INDIRECT("D78")=0),D77,0),"") -> 4.5694 | F77: 646.2491 | H77: =IF(D77<>"",IF(AND(B77<>"",B76<>""),$I$4+H76,VLOOKUP(INDEX($B$7:B76,MATCH(9.99999999999999E+307,$B$7:B76)),$B$7:H76,7,FALSE)+$I$4),"") -> -0.002025380711 | I77: 646.2470746
A78: TP98 | B78: 2.298 | C78: =IF(D78<>"",IF(OR(B78<>"",INDIRECT("D79")=0),IF(B77<>"",F77+B77,VLOOKUP(INDEX($B$7:B77,MATCH(9.99999999999999E+307,$B$7:B77)),$B$7:F77,5,FALSE)+INDEX($B$7:B77,MATCH(9.99999999999999E+307,$B$7:B77))),(VLOOKUP(INDEX($B$7:B77,MATCH(9.99999999999999E+307,$B$7:B77)),$B$7:F77,5,FALSE))+(INDEX($B$7:B77,MATCH(9.99999999999999E+307,$B$7:B77)))),"") -> 649.8935 | D78: 8.2796 | E78: =IF(D78<>"",IF(OR(B78<>"",INDIRECT("D79")=0),D78,0),"") -> 8.2796 | F78: 641.6139 | H78: =IF(D78<>"",IF(AND(B78<>"",B77<>""),$I$4+H77,VLOOKUP(INDEX($B$7:B77,MATCH(9.99999999999999E+307,$B$7:B77)),$B$7:H77,7,FALSE)+$I$4),"") -> -0.002054314721 | I78: 641.6118457
A79: TP99 | B79: 2.3199 | C79: =IF(D79<>"",IF(OR(B79<>"",INDIRECT("D80")=0),IF(B78<>"",F78+B78,VLOOKUP(INDEX($B$7:B78,MATCH(9.99999999999999E+307,$B$7:B78)),$B$7:F78,5,FALSE)+INDEX($B$7:B78,MATCH(9.99999999999999E+307,$B$7:B78))),(VLOOKUP(INDEX($B$7:B78,MATCH(9.99999999999999E+307,$B$7:B78)),$B$7:F78,5,FALSE))+(INDEX($B$7:B78,MATCH(9.99999999999999E+307,$B$7:B78)))),"") -> 643.9119 | D79: 6.9876 | E79: =IF(D79<>"",IF(OR(B79<>"",INDIRECT("D80")=0),D79,0),"") -> 6.9876 | F79: 636.9243 | H79: =IF(D79<>"",IF(AND(B79<>"",B78<>""),$I$4+H78,VLOOKUP(INDEX($B$7:B78,MATCH(9.99999999999999E+307,$B$7:B78)),$B$7:H78,7,FALSE)+$I$4),"") -> -0.002083248731 | I79: 636.9222168
A80: TP100 | B80: 2.713 | C80: =IF(D80<>"",IF(OR(B80<>"",INDIRECT("D81")=0),IF(B79<>"",F79+B79,VLOOKUP(INDEX($B$7:B79,MATCH(9.99999999999999E+307,$B$7:B79)),$B$7:F79,5,FALSE)+INDEX($B$7:B79,MATCH(9.99999999999999E+307,$B$7:B79))),(VLOOKUP(INDEX($B$7:B79,MATCH(9.99999999999999E+307,$B$7:B79)),$B$7:F79,5,FALSE))+(INDEX($B$7:B79,MATCH(9.99999999999999E+307,$B$7:B79)))),"") -> 639.2442 | D80: 6.64 | E80: =IF(D80<>"",IF(OR(B80<>"",INDIRECT("D81")=0),D80,0),"") -> 6.64 | F80: 632.6042 | H80: =IF(D80<>"",IF(AND(B80<>"",B79<>""),$I$4+H79,VLOOKUP(INDEX($B$7:B79,MATCH(9.99999999999999E+307,$B$7:B79)),$B$7:H79,7,FALSE)+$I$4),"") -> -0.002112182741 | I80: 632.6020878
A81: TP101 | B81: 4.2637 | C81: =IF(D81<>"",IF(OR(B81<>"",INDIRECT("D82")=0),IF(B80<>"",F80+B80,VLOOKUP(INDEX($B$7:B80,MATCH(9.99999999999999E+307,$B$7:B80)),$B$7:F80,5,FALSE)+INDEX($B$7:B80,MATCH(9.99999999999999E+307,$B$7:B80))),(VLOOKUP(INDEX($B$7:B80,MATCH(9.99999999999999E+307,$B$7:B80)),$B$7:F80,5,FALSE))+(INDEX($B$7:B80,MATCH(9.99999999999999E+307,$B$7:B80)))),"") -> 635.3172 | D81: 6.9958 | E81: =IF(D81<>"",IF(OR(B81<>"",INDIRECT("D82")=0),D81,0),"") -> 6.9958 | F81: 628.3214 | H81: =IF(D81<>"",IF(AND(B81<>"",B80<>""),$I$4+H80,VLOOKUP(INDEX($B$7:B80,MATCH(9.99999999999999E+307,$B$7:B80)),$B$7:H80,7,FALSE)+$I$4),"") -> -0.002141116752 | I81: 628.3192589
A82: SV103 | B82: 7.7745 | C82: =IF(D82<>"",IF(OR(B82<>"",INDIRECT("D83")=0),IF(B81<>"",F81+B81,VLOOKUP(INDEX($B$7:B81,MATCH(9.99999999999999E+307,$B$7:B81)),$B$7:F81,5,FALSE)+INDEX($B$7:B81,MATCH(9.99999999999999E+307,$B$7:B81))),(VLOOKUP(INDEX($B$7:B81,MATCH(9.99999999999999E+307,$B$7:B81)),$B$7:F81,5,FALSE))+(INDEX($B$7:B81,MATCH(9.99999999999999E+307,$B$7:B81)))),"") -> 632.5851 | D82: 3.9668 | E82: =IF(D82<>"",IF(OR(B82<>"",INDIRECT("D83")=0),D82,0),"") -> 3.9668 | F82: 628.6183 | H82: =IF(D82<>"",IF(AND(B82<>"",B81<>""),$I$4+H81,VLOOKUP(INDEX($B$7:B81,MATCH(9.99999999999999E+307,$B$7:B81)),$B$7:H81,7,FALSE)+$I$4),"") -> -0.002170050762 | I82: 628.6161299
A83: TP102 | B83: 7.6646 | C83: =IF(D83<>"",IF(OR(B83<>"",INDIRECT("D84")=0),IF(B82<>"",F82+B82,VLOOKUP(INDEX($B$7:B82,MATCH(9.99999999999999E+307,$B$7:B82)),$B$7:F82,5,FALSE)+INDEX($B$7:B82,MATCH(9.99999999999999E+307,$B$7:B82))),(VLOOKUP(INDEX($B$7:B82,MATCH(9.99999999999999E+307,$B$7:B82)),$B$7:F82,5,FALSE))+(INDEX($B$7:B82,MATCH(9.99999999999999E+307,$B$7:B82)))),"") -> 636.3928 | D83: 0.8941 | E83: =IF(D83<>"",IF(OR(B83<>"",INDIRECT("D84")=0),D83,0),"") -> 0.8941 | F83: 635.4987 | H83: =IF(D83<>"",IF(AND(B83<>"",B82<>""),$I$4+H82,VLOOKUP(INDEX($B$7:B82,MATCH(9.99999999999999E+307,$B$7:B82)),$B$7:H82,7,FALSE)+$I$4),"") -> -0.002198984772 | I83: 635.496501
A84: SV17 | B84: 8.3076 | C84: =IF(D84<>"",IF(OR(B84<>"",INDIRECT("D85")=0),IF(B83<>"",F83+B83,VLOOKUP(INDEX($B$7:B83,MATCH(9.99999999999999E+307,$B$7:B83)),$B$7:F83,5,FALSE)+INDEX($B$7:B83,MATCH(9.99999999999999E+307,$B$7:B83))),(VLOOKUP(INDEX($B$7:B83,MATCH(9.99999999999999E+307,$B$7:B83)),$B$7:F83,5,FALSE))+(INDEX($B$7:B83,MATCH(9.99999999999999E+307,$B$7:B83)))),"") -> 643.1633 | D84: 3.9167 | E84: =IF(D84<>"",IF(OR(B84<>"",INDIRECT("D85")=0),D84,0),"") -> 3.9167 | F84: 639.2466 | H84: =IF(D84<>"",IF(AND(B84<>"",B83<>""),$I$4+H83,VLOOKUP(INDEX($B$7:B83,MATCH(9.99999999999999E+307,$B$7:B83)),$B$7:H83,7,FALSE)+$I$4),"") -> -0.002227918782 | I84: 639.2443721
A85: TP103 | B85: 4.8591 | C85: =IF(D85<>"",IF(OR(B85<>"",INDIRECT("D86")=0),IF(B84<>"",F84+B84,VLOOKUP(INDEX($B$7:B84,MATCH(9.99999999999999E+307,$B$7:B84)),$B$7:F84,5,FALSE)+INDEX($B$7:B84,MATCH(9.99999999999999E+307,$B$7:B84))),(VLOOKUP(INDEX($B$7:B84,MATCH(9.99999999999999E+307,$B$7:B84)),$B$7:F84,5,FALSE))+(INDEX($B$7:B84,MATCH(9.99999999999999E+307,$B$7:B84)))),"") -> 647.5542 | D85: 4.4624 | E85: =IF(D85<>"",IF(OR(B85<>"",INDIRECT("D86")=0),D85,0),"") -> 4.4624 | F85: 643.0918 | H85: =IF(D85<>"",IF(AND(B85<>"",B84<>""),$I$4+H84,VLOOKUP(INDEX($B$7:B84,MATCH(9.99999999999999E+307,$B$7:B84)),$B$7:H84,7,FALSE)+$I$4),"") -> -0.002256852792 | I85: 643.0895431
A86: TP104 | B86: 1.3949 | C86: =IF(D86<>"",IF(OR(B86<>"",INDIRECT("D87")=0),IF(B85<>"",F85+B85,VLOOKUP(INDEX($B$7:B85,MATCH(9.99999999999999E+307,$B$7:B85)),$B$7:F85,5,FALSE)+INDEX($B$7:B85,MATCH(9.99999999999999E+307,$B$7:B85))),(VLOOKUP(INDEX($B$7:B85,MATCH(9.99999999999999E+307,$B$7:B85)),$B$7:F85,5,FALSE))+(INDEX($B$7:B85,MATCH(9.99999999999999E+307,$B$7:B85)))),"") -> 647.9509 | D86: 7.3832 | E86: =IF(D86<>"",IF(OR(B86<>"",INDIRECT("D87")=0),D86,0),"") -> 7.3832 | F86: 640.5677 | H86: =IF(D86<>"",IF(AND(B86<>"",B85<>""),$I$4+H85,VLOOKUP(INDEX($B$7:B85,MATCH(9.99999999999999E+307,$B$7:B85)),$B$7:H85,7,FALSE)+$I$4),"") -> -0.002285786802 | I86: 640.5654142
A87: TP105 | B87: 1.8358 | C87: =IF(D87<>"",IF(OR(B87<>"",INDIRECT("D88")=0),IF(B86<>"",F86+B86,VLOOKUP(INDEX($B$7:B86,MATCH(9.99999999999999E+307,$B$7:B86)),$B$7:F86,5,FALSE)+INDEX($B$7:B86,MATCH(9.99999999999999E+307,$B$7:B86))),(VLOOKUP(INDEX($B$7:B86,MATCH(9.99999999999999E+307,$B$7:B86)),$B$7:F86,5,FALSE))+(INDEX($B$7:B86,MATCH(9.99999999999999E+307,$B$7:B86)))),"") -> 641.9626 | D87: 8.3748 | E87: =IF(D87<>"",IF(OR(B87<>"",INDIRECT("D88")=0),D87,0),"") -> 8.3748 | F87: 633.5878 | H87: =IF(D87<>"",IF(AND(B87<>"",B86<>""),$I$4+H86,VLOOKUP(INDEX($B$7:B86,MATCH(9.99999999999999E+307,$B$7:B86)),$B$7:H86,7,FALSE)+$I$4),"") -> -0.002314720813 | I87: 633.5854853
A88: TP106 | B88: 4.0789 | C88: =IF(D88<>"",IF(OR(B88<>"",INDIRECT("D89")=0),IF(B87<>"",F87+B87,VLOOKUP(INDEX($B$7:B87,MATCH(9.99999999999999E+307,$B$7:B87)),$B$7:F87,5,FALSE)+INDEX($B$7:B87,MATCH(9.99999999999999E+307,$B$7:B87))),(VLOOKUP(INDEX($B$7:B87,MATCH(9.99999999999999E+307,$B$7:B87)),$B$7:F87,5,FALSE))+(INDEX($B$7:B87,MATCH(9.99999999999999E+307,$B$7:B87)))),"") -> 635.4236 | D88: 6.5839 | E88: =IF(D88<>"",IF(OR(B88<>"",INDIRECT("D89")=0),D88,0),"") -> 6.5839 | F88: 628.8397 | H88: =IF(D88<>"",IF(AND(B88<>"",B87<>""),$I$4+H87,VLOOKUP(INDEX($B$7:B87,MATCH(9.99999999999999E+307,$B$7:B87)),$B$7:H87,7,FALSE)+$I$4),"") -> -0.002343654823 | I88: 628.8373563
A89: TP107 | B89: 6.3101 | C89: =IF(D89<>"",IF(OR(B89<>"",INDIRECT("D90")=0),IF(B88<>"",F88+B88,VLOOKUP(INDEX($B$7:B88,MATCH(9.99999999999999E+307,$B$7:B88)),$B$7:F88,5,FALSE)+INDEX($B$7:B88,MATCH(9.99999999999999E+307,$B$7:B88))),(VLOOKUP(INDEX($B$7:B88,MATCH(9.99999999999999E+307,$B$7:B88)),$B$7:F88,5,FALSE))+(INDEX($B$7:B88,MATCH(9.99999999999999E+307,$B$7:B88)))),"") -> 632.9186 | D89: 3.6722 | E89: =IF(D89<>"",IF(OR(B89<>"",INDIRECT("D90")=0),D89,0),"") -> 3.6722 | F89: 629.2464 | H89: =IF(D89<>"",IF(AND(B89<>"",B88<>""),$I$4+H88,VLOOKUP(INDEX($B$7:B88,MATCH(9.99999999999999E+307,$B$7:B88)),$B$7:H88,7,FALSE)+$I$4),"") -> -0.002372588833 | I89: 629.2440274
A90: TP108 | B90: 4.7543 | C90: =IF(D90<>"",IF(OR(B90<>"",INDIRECT("D91")=0),IF(B89<>"",F89+B89,VLOOKUP(INDEX($B$7:B89,MATCH(9.99999999999999E+307,$B$7:B89)),$B$7:F89,5,FALSE)+INDEX($B$7:B89,MATCH(9.99999999999999E+307,$B$7:B89))),(VLOOKUP(INDEX($B$7:B89,MATCH(9.99999999999999E+307,$B$7:B89)),$B$7:F89,5,FALSE))+(INDEX($B$7:B89,MATCH(9.99999999999999E+307,$B$7:B89)))),"") -> 635.5565 | D90: 3.0309 | E90: =IF(D90<>"",IF(OR(B90<>"",INDIRECT("D91")=0),D90,0),"") -> 3.0309 | F90: 632.5256 | H90: =IF(D90<>"",IF(AND(B90<>"",B89<>""),$I$4+H89,VLOOKUP(INDEX($B$7:B89,MATCH(9.99999999999999E+307,$B$7:B89)),$B$7:H89,7,FALSE)+$I$4),"") -> -0.002401522843 | I90: 632.5231985
A91: SV18 | B91: 5.4733 | C91: =IF(D91<>"",IF(OR(B91<>"",INDIRECT("D92")=0),IF(B90<>"",F90+B90,VLOOKUP(INDEX($B$7:B90,MATCH(9.99999999999999E+307,$B$7:B90)),$B$7:F90,5,FALSE)+INDEX($B$7:B90,MATCH(9.99999999999999E+307,$B$7:B90))),(VLOOKUP(INDEX($B$7:B90,MATCH(9.99999999999999E+307,$B$7:B90)),$B$7:F90,5,FALSE))+(INDEX($B$7:B90,MATCH(9.99999999999999E+307,$B$7:B90)))),"") -> 637.2799 | D91: 4.9031 | E91: =IF(D91<>"",IF(OR(B91<>"",INDIRECT("D92")=0),D91,0),"") -> 4.9031 | F91: 632.3768 | H91: =IF(D91<>"",IF(AND(B91<>"",B90<>""),$I$4+H90,VLOOKUP(INDEX($B$7:B90,MATCH(9.99999999999999E+307,$B$7:B90)),$B$7:H90,7,FALSE)+$I$4),"") -> -0.002430456853 | I91: 632.3743695
A92: TP109 | B92: 3.7135 | C92: =IF(D92<>"",IF(OR(B92<>"",INDIRECT("D93")=0),IF(B91<>"",F91+B91,VLOOKUP(INDEX($B$7:B91,MATCH(9.99999999999999E+307,$B$7:B91)),$B$7:F91,5,FALSE)+INDEX($B$7:B91,MATCH(9.99999999999999E+307,$B$7:B91))),(VLOOKUP(INDEX($B$7:B91,MATCH(9.99999999999999E+307,$B$7:B91)),$B$7:F91,5,FALSE))+(INDEX($B$7:B91,MATCH(9.99999999999999E+307,$B$7:B91)))),"") -> 637.8501 | D92: 4.8782 | E92: =IF(D92<>"",IF(OR(B92<>"",INDIRECT("D93")=0),D92,0),"") -> 4.8782 | F92: 632.9719 | H92: =IF(D92<>"",IF(AND(B92<>"",B91<>""),$I$4+H91,VLOOKUP(INDEX($B$7:B91,MATCH(9.99999999999999E+307,$B$7:B91)),$B$7:H91,7,FALSE)+$I$4),"") -> -0.002459390863 | I92: 632.9694406
A93: SV19 | B93: 4.3513 | C93: =IF(D93<>"",IF(OR(B93<>"",INDIRECT("D94")=0),IF(B92<>"",F92+B92,VLOOKUP(INDEX($B$7:B92,MATCH(9.99999999999999E+307,$B$7:B92)),$B$7:F92,5,FALSE)+INDEX($B$7:B92,MATCH(9.99999999999999E+307,$B$7:B92))),(VLOOKUP(INDEX($B$7:B92,MATCH(9.99999999999999E+307,$B$7:B92)),$B$7:F92,5,FALSE))+(INDEX($B$7:B92,MATCH(9.99999999999999E+307,$B$7:B92)))),"") -> 636.6854 | D93: 6.3927 | E93: =IF(D93<>"",IF(OR(B93<>"",INDIRECT("D94")=0),D93,0),"") -> 6.3927 | F93: 630.2927 | H93: =IF(D93<>"",IF(AND(B93<>"",B92<>""),$I$4+H92,VLOOKUP(INDEX($B$7:B92,MATCH(9.99999999999999E+307,$B$7:B92)),$B$7:H92,7,FALSE)+$I$4),"") -> -0.002488324874 | I93: 630.2902117
A94: TP110 | B94: 4.0214 | C94: =IF(D94<>"",IF(OR(B94<>"",INDIRECT("D95")=0),IF(B93<>"",F93+B93,VLOOKUP(INDEX($B$7:B93,MATCH(9.99999999999999E+307,$B$7:B93)),$B$7:F93,5,FALSE)+INDEX($B$7:B93,MATCH(9.99999999999999E+307,$B$7:B93))),(VLOOKUP(INDEX($B$7:B93,MATCH(9.99999999999999E+307,$B$7:B93)),$B$7:F93,5,FALSE))+(INDEX($B$7:B93,MATCH(9.99999999999999E+307,$B$7:B93)))),"") -> 634.644 | D94: 5.2603 | E94: =IF(D94<>"",IF(OR(B94<>"",INDIRECT("D95")=0),D94,0),"") -> 5.2603 | F94: 629.3837 | H94: =IF(D94<>"",IF(AND(B94<>"",B93<>""),$I$4+H93,VLOOKUP(INDEX($B$7:B93,MATCH(9.99999999999999E+307,$B$7:B93)),$B$7:H93,7,FALSE)+$I$4),"") -> -0.002517258884 | I94: 629.3811827
A95: TP111 | B95: 4.1335 | C95: =IF(D95<>"",IF(OR(B95<>"",INDIRECT("D96")=0),IF(B94<>"",F94+B94,VLOOKUP(INDEX($B$7:B94,MATCH(9.99999999999999E+307,$B$7:B94)),$B$7:F94,5,FALSE)+INDEX($B$7:B94,MATCH(9.99999999999999E+307,$B$7:B94))),(VLOOKUP(INDEX($B$7:B94,MATCH(9.99999999999999E+307,$B$7:B94)),$B$7:F94,5,FALSE))+(INDEX($B$7:B94,MATCH(9.99999999999999E+307,$B$7:B94)))),"") -> 633.4051 | D95: 5.6521 | E95: =IF(D95<>"",IF(OR(B95<>"",INDIRECT("D96")=0),D95,0),"") -> 5.6521 | F95: 627.753 | H95: =IF(D95<>"",IF(AND(B95<>"",B94<>""),$I$4+H94,VLOOKUP(INDEX($B$7:B94,MATCH(9.99999999999999E+307,$B$7:B94)),$B$7:H94,7,FALSE)+$I$4),"") -> -0.002546192894 | I95: 627.7504538
A96: TP112 | B96: 7.5903 | C96: =IF(D96<>"",IF(OR(B96<>"",INDIRECT("D97")=0),IF(B95<>"",F95+B95,VLOOKUP(INDEX($B$7:B95,MATCH(9.99999999999999E+307,$B$7:B95)),$B$7:F95,5,FALSE)+INDEX($B$7:B95,MATCH(9.99999999999999E+307,$B$7:B95))),(VLOOKUP(INDEX($B$7:B95,MATCH(9.99999999999999E+307,$B$7:B95)),$B$7:F95,5,FALSE))+(INDEX($B$7:B95,MATCH(9.99999999999999E+307,$B$7:B95)))),"") -> 631.8865 | D96: 3.7461 | E96: =IF(D96<>"",IF(OR(B96<>"",INDIRECT("D97")=0),D96,0),"") -> 3.7461 | F96: 628.1404 | H96: =IF(D96<>"",IF(AND(B96<>"",B95<>""),$I$4+H95,VLOOKUP(INDEX($B$7:B95,MATCH(9.99999999999999E+307,$B$7:B95)),$B$7:H95,7,FALSE)+$I$4),"") -> -0.002575126904 | I96: 628.1378249
A97: TP113 | B97: 8.5798 | C97: =IF(D97<>"",IF(OR(B97<>"",INDIRECT("D98")=0),IF(B96<>"",F96+B96,VLOOKUP(INDEX($B$7:B96,MATCH(9.99999999999999E+307,$B$7:B96)),$B$7:F96,5,FALSE)+INDEX($B$7:B96,MATCH(9.99999999999999E+307,$B$7:B96))),(VLOOKUP(INDEX($B$7:B96,MATCH(9.99999999999999E+307,$B$7:B96)),$B$7:F96,5,FALSE))+(INDEX($B$7:B96,MATCH(9.99999999999999E+307,$B$7:B96)))),"") -> 635.7307 | D97: 0.3781 | E97: =IF(D97<>"",IF(OR(B97<>"",INDIRECT("D98")=0),D97,0),"") -> 0.3781 | F97: 635.3526 | H97: =IF(D97<>"",IF(AND(B97<>"",B96<>""),$I$4+H96,VLOOKUP(INDEX($B$7:B96,MATCH(9.99999999999999E+307,$B$7:B96)),$B$7:H96,7,FALSE)+$I$4),"") -> -0.002604060914 | I97: 635.3499959
A98: TP114 | B98: 8.6494 | C98: =IF(D98<>"",IF(OR(B98<>"",INDIRECT("D99")=0),IF(B97<>"",F97+B97,VLOOKUP(INDEX($B$7:B97,MATCH(9.99999999999999E+307,$B$7:B97)),$B$7:F97,5,FALSE)+INDEX($B$7:B97,MATCH(9.99999999999999E+307,$B$7:B97))),(VLOOKUP(INDEX($B$7:B97,MATCH(9.99999999999999E+307,$B$7:B97)),$B$7:F97,5,FALSE))+(INDEX($B$7:B97,MATCH(9.99999999999999E+307,$B$7:B97)))),"") -> 643.9324 | D98: 0.3779 | E98: =IF(D98<>"",IF(OR(B98<>"",INDIRECT("D99")=0),D98,0),"") -> 0.3779 | F98: 643.5545 | H98: =IF(D98<>"",IF(AND(B98<>"",B97<>""),$I$4+H97,VLOOKUP(INDEX($B$7:B97,MATCH(9.99999999999999E+307,$B$7:B97)),$B$7:H97,7,FALSE)+$I$4),"") -> -0.002632994924 | I98: 643.551867
A99: TP115 | B99: 8.6782 | C99: =IF(D99<>"",IF(OR(B99<>"",INDIRECT("D100")=0),IF(B98<>"",F98+B98,VLOOKUP(INDEX($B$7:B98,MATCH(9.99999999999999E+307,$B$7:B98)),$B$7:F98,5,FALSE)+INDEX($B$7:B98,MATCH(9.99999999999999E+307,$B$7:B98))),(VLOOKUP(INDEX($B$7:B98,MATCH(9.99999999999999E+307,$B$7:B98)),$B$7:F98,5,FALSE))+(INDEX($B$7:B98,MATCH(9.99999999999999E+307,$B$7:B98)))),"") -> 652.2039 | D99: 0.6446 | E99: =IF(D99<>"",IF(OR(B99<>"",INDIRECT("D100")=0),D99,0),"") -> 0.6446 | F99: 651.5593 | H99: =IF(D99<>"",IF(AND(B99<>"",B98<>""),$I$4+H98,VLOOKUP(INDEX($B$7:B98,MATCH(9.99999999999999E+307,$B$7:B98)),$B$7:H98,7,FALSE)+$I$4),"") -> -0.002661928934 | I99: 651.5566381
A100: TP116 | B100: 7.1437 | C100: =IF(D100<>"",IF(OR(B100<>"",INDIRECT("D101")=0),IF(B99<>"",F99+B99,VLOOKUP(INDEX($B$7:B99,MATCH(9.99999999999999E+307,$B$7:B99)),$B$7:F99,5,FALSE)+INDEX($B$7:B99,MATCH(9.99999999999999E+307,$B$7:B99))),(VLOOKUP(INDEX($B$7:B99,MATCH(9.99999999999999E+307,$B$7:B99)),$B$7:F99,5,FALSE))+(INDEX($B$7:B99,MATCH(9.99999999999999E+307,$B$7:B99)))),"") -> 660.2375 | D100: 0.339 | E100: =IF(D100<>"",IF(OR(B100<>"",INDIRECT("D101")=0),D100,0),"") -> 0.339 | F100: 659.8985 | H100: =IF(D100<>"",IF(AND(B100<>"",B99<>""),$I$4+H99,VLOOKUP(INDEX($B$7:B99,MATCH(9.99999999999999E+307,$B$7:B99)),$B$7:H99,7,FALSE)+$I$4),"") -> -0.002690862945 | I100: 659.8958091
A101: SV20 | B101: 7.5697 | C101: =IF(D101<>"",IF(OR(B101<>"",INDIRECT("D102")=0),IF(B100<>"",F100+B100,VLOOKUP(INDEX($B$7:B100,MATCH(9.99999999999999E+307,$B$7:B100)),$B$7:F100,5,FALSE)+INDEX($B$7:B100,MATCH(9.99999999999999E+307,$B$7:B100))),(VLOOKUP(INDEX($B$7:B100,MATCH(9.99999999999999E+307,$B$7:B100)),$B$7:F100,5,FALSE))+(INDEX($B$7:B100,MATCH(9.99999999999999E+307,$B$7:B100)))),"") -> 667.0422 | D101: 3.5641 | E101: =IF(D101<>"",IF(OR(B101<>"",INDIRECT("D102")=0),D101,0),"") -> 3.5641 | F101: 663.4781 | H101: =IF(D101<>"",IF(AND(B101<>"",B100<>""),$I$4+H100,VLOOKUP(INDEX($B$7:B100,MATCH(9.99999999999999E+307,$B$7:B100)),$B$7:H100,7,FALSE)+$I$4),"") -> -0.002719796955 | I101: 663.4753802
A102: TP117 | B102: 4.7199 | C102: =IF(D102<>"",IF(OR(B102<>"",INDIRECT("D103")=0),IF(B101<>"",F101+B101,VLOOKUP(INDEX($B$7:B101,MATCH(9.99999999999999E+307,$B$7:B101)),$B$7:F101,5,FALSE)+INDEX($B$7:B101,MATCH(9.99999999999999E+307,$B$7:B101))),(VLOOKUP(INDEX($B$7:B101,MATCH(9.99999999999999E+307,$B$7:B101)),$B$7:F101,5,FALSE))+(INDEX($B$7:B101,MATCH(9.99999999999999E+307,$B$7:B101)))),"") -> 671.0478 | D102: 3.6049 | E102: =IF(D102<>"",IF(OR(B102<>"",INDIRECT("D103")=0),D102,0),"") -> 3.6049 | F102: 667.4429 | H102: =IF(D102<>"",IF(AND(B102<>"",B101<>""),$I$4+H101,VLOOKUP(INDEX($B$7:B101,MATCH(9.99999999999999E+307,$B$7:B101)),$B$7:H101,7,FALSE)+$I$4),"") -> -0.002748730965 | I102: 667.4401513
A103: SV21 | B103: 6.6859 | C103: =IF(D103<>"",IF(OR(B103<>"",INDIRECT("D104")=0),IF(B102<>"",F102+B102,VLOOKUP(INDEX($B$7:B102,MATCH(9.99999999999999E+307,$B$7:B102)),$B$7:F102,5,FALSE)+INDEX($B$7:B102,MATCH(9.99999999999999E+307,$B$7:B102))),(VLOOKUP(INDEX($B$7:B102,MATCH(9.99999999999999E+307,$B$7:B102)),$B$7:F102,5,FALSE))+(INDEX($B$7:B102,MATCH(9.99999999999999E+307,$B$7:B102)))),"") -> 672.1628 | D103: 5.0353 | E103: =IF(D103<>"",IF(OR(B103<>"",INDIRECT("D104")=0),D103,0),"") -> 5.0353 | F103: 667.1275 | H103: =IF(D103<>"",IF(AND(B103<>"",B102<>""),$I$4+H102,VLOOKUP(INDEX($B$7:B102,MATCH(9.99999999999999E+307,$B$7:B102)),$B$7:H102,7,FALSE)+$I$4),"") -> -0.002777664975 | I103: 667.1247223
A104: TP118 | B104: 5.6102 | C104: =IF(D104<>"",IF(OR(B104<>"",INDIRECT("D105")=0),IF(B103<>"",F103+B103,VLOOKUP(INDEX($B$7:B103,MATCH(9.99999999999999E+307,$B$7:B103)),$B$7:F103,5,FALSE)+INDEX($B$7:B103,MATCH(9.99999999999999E+307,$B$7:B103))),(VLOOKUP(INDEX($B$7:B103,MATCH(9.99999999999999E+307,$B$7:B103)),$B$7:F103,5,FALSE))+(INDEX($B$7:B103,MATCH(9.99999999999999E+307,$B$7:B103)))),"") -> 673.8134 | D104: 0.7712 | E104: =IF(D104<>"",IF(OR(B104<>"",INDIRECT("D105")=0),D104,0),"") -> 0.7712 | F104: 673.0422 | H104: =IF(D104<>"",IF(AND(B104<>"",B103<>""),$I$4+H103,VLOOKUP(INDEX($B$7:B103,MATCH(9.99999999999999E+307,$B$7:B103)),$B$7:H103,7,FALSE)+$I$4),"") -> -0.002806598985 | I104: 673.0393934
A105: SV22 | B105: 4.5389 | C105: =IF(D105<>"",IF(OR(B105<>"",INDIRECT("D106")=0),IF(B104<>"",F104+B104,VLOOKUP(INDEX($B$7:B104,MATCH(9.99999999999999E+307,$B$7:B104)),$B$7:F104,5,FALSE)+INDEX($B$7:B104,MATCH(9.99999999999999E+307,$B$7:B104))),(VLOOKUP(INDEX($B$7:B104,MATCH(9.99999999999999E+307,$B$7:B104)),$B$7:F104,5,FALSE))+(INDEX($B$7:B104,MATCH(9.99999999999999E+307,$B$7:B104)))),"") -> 678.6524 | D105: 4.6073 | E105: =IF(D105<>"",IF(OR(B105<>"",INDIRECT("D106")=0),D105,0),"") -> 4.6073 | F105: 674.0451 | H105: =IF(D105<>"",IF(AND(B105<>"",B104<>""),$I$4+H104,VLOOKUP(INDEX($B$7:B104,MATCH(9.99999999999999E+307,$B$7:B104)),$B$7:H104,7,FALSE)+$I$4),"") -> -0.002835532995 | I105: 674.0422645
A106: TP119 | B106: 0.7984 | C106: =IF(D106<>"",IF(OR(B106<>"",INDIRECT("D107")=0),IF(B105<>"",F105+B105,VLOOKUP(INDEX($B$7:B105,MATCH(9.99999999999999E+307,$B$7:B105)),$B$7:F105,5,FALSE)+INDEX($B$7:B105,MATCH(9.99999999999999E+307,$B$7:B105))),(VLOOKUP(INDEX($B$7:B105,MATCH(9.99999999999999E+307,$B$7:B105)),$B$7:F105,5,FALSE))+(INDEX($B$7:B105,MATCH(9.99999999999999E+307,$B$7:B105)))),"") -> 678.584 | D106: 5.4688 | E106: =IF(D106<>"",IF(OR(B106<>"",INDIRECT("D107")=0),D106,0),"") -> 5.4688 | F106: 673.1152 | H106: =IF(D106<>"",IF(AND(B106<>"",B105<>""),$I$4+H105,VLOOKUP(INDEX($B$7:B105,MATCH(9.99999999999999E+307,$B$7:B105)),$B$7:H105,7,FALSE)+$I$4),"") -> -0.002864467006 | I106: 673.1123355
A107: SV21 | B107: 5.2411 | C107: =IF(D107<>"",IF(OR(B107<>"",INDIRECT("D108")=0),IF(B106<>"",F106+B106,VLOOKUP(INDEX($B$7:B106,MATCH(9.99999999999999E+307,$B$7:B106)),$B$7:F106,5,FALSE)+INDEX($B$7:B106,MATCH(9.99999999999999E+307,$B$7:B106))),(VLOOKUP(INDEX($B$7:B106,MATCH(9.99999999999999E+307,$B$7:B106)),$B$7:F106,5,FALSE))+(INDEX($B$7:B106,MATCH(9.99999999999999E+307,$B$7:B106)))),"") -> 673.9136 | D107: 6.7889 | E107: =IF(D107<>"",IF(OR(B107<>"",INDIRECT("D108")=0),D107,0),"") -> 6.7889 | F107: 667.1247 | H107: =IF(D107<>"",IF(AND(B107<>"",B106<>""),$I$4+H106,VLOOKUP(INDEX($B$7:B106,MATCH(9.99999999999999E+307,$B$7:B106)),$B$7:H106,7,FALSE)+$I$4),"") -> -0.002893401016 | I107: 667.1218066
A108: TP120 | B108: 3.6648 | C108: =IF(D108<>"",IF(OR(B108<>"",INDIRECT("D109")=0),IF(B107<>"",F107+B107,VLOOKUP(INDEX($B$7:B107,MATCH(9.99999999999999E+307,$B$7:B107)),$B$7:F107,5,FALSE)+INDEX($B$7:B107,MATCH(9.99999999999999E+307,$B$7:B107))),(VLOOKUP(INDEX($B$7:B107,MATCH(9.99999999999999E+307,$B$7:B107)),$B$7:F107,5,FALSE))+(INDEX($B$7:B107,MATCH(9.99999999999999E+307,$B$7:B107)))),"") -> 672.3658 | D108: 4.8362 | E108: =IF(D108<>"",IF(OR(B108<>"",INDIRECT("D109")=0),D108,0),"") -> 4.8362 | F108: 667.5296 | H108: =IF(D108<>"",IF(AND(B108<>"",B107<>""),$I$4+H107,VLOOKUP(INDEX($B$7:B107,MATCH(9.99999999999999E+307,$B$7:B107)),$B$7:H107,7,FALSE)+$I$4),"") -> -0.002922335026 | I108: 667.5266777
A109: SV20 | B109: 3.6281 | C109: =IF(D109<>"",IF(OR(B109<>"",INDIRECT("D110")=0),IF(B108<>"",F108+B108,VLOOKUP(INDEX($B$7:B108,MATCH(9.99999999999999E+307,$B$7:B108)),$B$7:F108,5,FALSE)+INDEX($B$7:B108,MATCH(9.99999999999999E+307,$B$7:B108))),(VLOOKUP(INDEX($B$7:B108,MATCH(9.99999999999999E+307,$B$7:B108)),$B$7:F108,5,FALSE))+(INDEX($B$7:B108,MATCH(9.99999999999999E+307,$B$7:B108)))),"") -> 671.1944 | D109: 7.7216 | E109: =IF(D109<>"",IF(OR(B109<>"",INDIRECT("D110")=0),D109,0),"") -> 7.7216 | F109: 663.4728 | H109: =IF(D109<>"",IF(AND(B109<>"",B108<>""),$I$4+H108,VLOOKUP(INDEX($B$7:B108,MATCH(9.99999999999999E+307,$B$7:B108)),$B$7:H108,7,FALSE)+$I$4),"") -> -0.002951269036 | I109: 663.4698487
A110: TP121 | B110: 1.0629 | C110: =IF(D110<>"",IF(OR(B110<>"",INDIRECT("D111")=0),IF(B109<>"",F109+B109,VLOOKUP(INDEX($B$7:B109,MATCH(9.99999999999999E+307,$B$7:B109)),$B$7:F109,5,FALSE)+INDEX($B$7:B109,MATCH(9.99999999999999E+307,$B$7:B109))),(VLOOKUP(INDEX($B$7:B109,MATCH(9.99999999999999E+307,$B$7:B109)),$B$7:F109,5,FALSE))+(INDEX($B$7:B109,MATCH(9.99999999999999E+307,$B$7:B109)))),"") -> 667.1009 | D110: 7.2761 | E110: =IF(D110<>"",IF(OR(B110<>"",INDIRECT("D111")=0),D110,0),"") -> 7.2761 | F110: 659.8248 | H110: =IF(D110<>"",IF(AND(B110<>"",B109<>""),$I$4+H109,VLOOKUP(INDEX($B$7:B109,MATCH(9.99999999999999E+307,$B$7:B109)),$B$7:H109,7,FALSE)+$I$4),"") -> -0.002980203046 | I110: 659.8218198
A111: TP122 | B111: 0.4301 | C111: =IF(D111<>"",IF(OR(B111<>"",INDIRECT("D112")=0),IF(B110<>"",F110+B110,VLOOKUP(INDEX($B$7:B110,MATCH(9.99999999999999E+307,$B$7:B110)),$B$7:F110,5,FALSE)+INDEX($B$7:B110,MATCH(9.99999999999999E+307,$B$7:B110))),(VLOOKUP(INDEX($B$7:B110,MATCH(9.99999999999999E+307,$B$7:B110)),$B$7:F110,5,FALSE))+(INDEX($B$7:B110,MATCH(9.99999999999999E+307,$B$7:B110)))),"") -> 660.8877 | D111: 8.5233 | E111: =IF(D111<>"",IF(OR(B111<>"",INDIRECT("D112")=0),D111,0),"") -> 8.5233 | F111: 652.3644 | H111: =IF(D111<>"",IF(AND(B111<>"",B110<>""),$I$4+H110,VLOOKUP(INDEX($B$7:B110,MATCH(9.99999999999999E+307,$B$7:B110)),$B$7:H110,7,FALSE)+$I$4),"") -> -0.003009137056 | I111: 652.3613909
A112: TP123 | B112: 0.1516 | C112: =IF(D112<>"",IF(OR(B112<>"",INDIRECT("D113")=0),IF(B111<>"",F111+B111,VLOOKUP(INDEX($B$7:B111,MATCH(9.99999999999999E+307,$B$7:B111)),$B$7:F111,5,FALSE)+INDEX($B$7:B111,MATCH(9.99999999999999E+307,$B$7:B111))),(VLOOKUP(INDEX($B$7:B111,MATCH(9.99999999999999E+307,$B$7:B111)),$B$7:F111,5,FALSE))+(INDEX($B$7:B111,MATCH(9.99999999999999E+307,$B$7:B111)))),"") -> 652.7945 | D112: 8.3413 | E112: =IF(D112<>"",IF(OR(B112<>"",INDIRECT("D113")=0),D112,0),"") -> 8.3413 | F112: 644.4532 | H112: =IF(D112<>"",IF(AND(B112<>"",B111<>""),$I$4+H111,VLOOKUP(INDEX($B$7:B111,MATCH(9.99999999999999E+307,$B$7:B111)),$B$7:H111,7,FALSE)+$I$4),"") -> -0.003038071066 | I112: 644.4501619
A113: TP124 | B113: 0.2931 | C113: =IF(D113<>"",IF(OR(B113<>"",INDIRECT("D114")=0),IF(B112<>"",F112+B112,VLOOKUP(INDEX($B$7:B112,MATCH(9.99999999999999E+307,$B$7:B112)),$B$7:F112,5,FALSE)+INDEX($B$7:B112,MATCH(9.99999999999999E+307,$B$7:B112))),(VLOOKUP(INDEX($B$7:B112,MATCH(9.99999999999999E+307,$B$7:B112)),$B$7:F112,5,FALSE))+(INDEX($B$7:B112,MATCH(9.99999999999999E+307,$B$7:B112)))),"") -> 644.6048 | D113: 8.4274 | E113: =IF(D113<>"",IF(OR(B113<>"",INDIRECT("D114")=0),D113,0),"") -> 8.4274 | F113: 636.1774 | H113: =IF(D113<>"",IF(AND(B113<>"",B112<>""),$I$4+H112,VLOOKUP(INDEX($B$7:B112,MATCH(9.99999999999999E+307,$B$7:B112)),$B$7:H112,7,FALSE)+$I$4),"") -> -0.003067005077 | I113: 636.174333
A114: TP125 | B114: 3.9706 | C114: =IF(D114<>"",IF(OR(B114<>"",INDIRECT("D115")=0),IF(B113<>"",F113+B113,VLOOKUP(INDEX($B$7:B113,MATCH(9.99999999999999E+307,$B$7:B113)),$B$7:F113,5,FALSE)+INDEX($B$7:B113,MATCH(9.99999999999999E+307,$B$7:B113))),(VLOOKUP(INDEX($B$7:B113,MATCH(9.99999999999999E+307,$B$7:B113)),$B$7:F113,5,FALSE))+(INDEX($B$7:B113,MATCH(9.99999999999999E+307,$B$7:B113)))),"") -> 636.4705 | D114: 8.4628 | E114: =IF(D114<>"",IF(OR(B114<>"",INDIRECT("D115")=0),D114,0),"") -> 8.4628 | F114: 628.0077 | H114: =IF(D114<>"",IF(AND(B114<>"",B113<>""),$I$4+H113,VLOOKUP(INDEX($B$7:B113,MATCH(9.99999999999999E+307,$B$7:B113)),$B$7:H113,7,FALSE)+$I$4),"") -> -0.003095939087 | I114: 628.0046041
A115: TP126 | B115: 5.7559 | C115: =IF(D115<>"",IF(OR(B115<>"",INDIRECT("D116")=0),IF(B114<>"",F114+B114,VLOOKUP(INDEX($B$7:B114,MATCH(9.99999999999999E+307,$B$7:B114)),$B$7:F114,5,FALSE)+INDEX($B$7:B114,MATCH(9.99999999999999E+307,$B$7:B114))),(VLOOKUP(INDEX($B$7:B114,MATCH(9.99999999999999E+307,$B$7:B114)),$B$7:F114,5,FALSE))+(INDEX($B$7:B114,MATCH(9.99999999999999E+307,$B$7:B114)))),"") -> 631.9783 | D115: 4.189 | E115: =IF(D115<>"",IF(OR(B115<>"",INDIRECT("D116")=0),D115,0),"") -> 4.189 | F115: 627.7893 | H115: =IF(D115<>"",IF(AND(B115<>"",B114<>""),$I$4+H114,VLOOKUP(INDEX($B$7:B114,MATCH(9.99999999999999E+307,$B$7:B114)),$B$7:H114,7,FALSE)+$I$4),"") -> -0.003124873097 | I115: 627.7861751
A116: TP127 | B116: 5.0892 | C116: =IF(D116<>"",IF(OR(B116<>"",INDIRECT("D117")=0),IF(B115<>"",F115+B115,VLOOKUP(INDEX($B$7:B115,MATCH(9.99999999999999E+307,$B$7:B115)),$B$7:F115,5,FALSE)+INDEX($B$7:B115,MATCH(9.99999999999999E+307,$B$7:B115))),(VLOOKUP(INDEX($B$7:B115,MATCH(9.99999999999999E+307,$B$7:B115)),$B$7:F115,5,FALSE))+(INDEX($B$7:B115,MATCH(9.99999999999999E+307,$B$7:B115)))),"") -> 633.5452 | D116: 3.8146 | E116: =IF(D116<>"",IF(OR(B116<>"",INDIRECT("D117")=0),D116,0),"") -> 3.8146 | F116: 629.7306 | H116: =IF(D116<>"",IF(AND(B116<>"",B115<>""),$I$4+H115,VLOOKUP(INDEX($B$7:B115,MATCH(9.99999999999999E+307,$B$7:B115)),$B$7:H115,7,FALSE)+$I$4),"") -> -0.003153807107 | I116: 629.7274462
A117: SV19 | B117: 6.4044 | C117: =IF(D117<>"",IF(OR(B117<>"",INDIRECT("D118")=0),IF(B116<>"",F116+B116,VLOOKUP(INDEX($B$7:B116,MATCH(9.99999999999999E+307,$B$7:B116)),$B$7:F116,5,FALSE)+INDEX($B$7:B116,MATCH(9.99999999999999E+307,$B$7:B116))),(VLOOKUP(INDEX($B$7:B116,MATCH(9.99999999999999E+307,$B$7:B116)),$B$7:F116,5,FALSE))+(INDEX($B$7:B116,MATCH(9.99999999999999E+307,$B$7:B116)))),"") -> 634.8198 | D117: 4.5339 | E117: =IF(D117<>"",IF(OR(B117<>"",INDIRECT("D118")=0),D117,0),"") -> 4.5339 | F117: 630.2859 | H117: =IF(D117<>"",IF(AND(B117<>"",B116<>""),$I$4+H116,VLOOKUP(INDEX($B$7:B116,MATCH(9.99999999999999E+307,$B$7:B116)),$B$7:H116,7,FALSE)+$I$4),"") -> -0.003182741117 | I117: 630.2827173
A118: TP128 | B118: 5.2352 | C118: =IF(D118<>"",IF(OR(B118<>"",INDIRECT("D119")=0),IF(B117<>"",F117+B117,VLOOKUP(INDEX($B$7:B117,MATCH(9.99999999999999E+307,$B$7:B117)),$B$7:F117,5,FALSE)+INDEX($B$7:B117,MATCH(9.99999999999999E+307,$B$7:B117))),(VLOOKUP(INDEX($B$7:B117,MATCH(9.99999999999999E+307,$B$7:B117)),$B$7:F117,5,FALSE))+(INDEX($B$7:B117,MATCH(9.99999999999999E+307,$B$7:B117)))),"") -> 636.6903 | D118: 4.0595 | E118: =IF(D118<>"",IF(OR(B118<>"",INDIRECT("D119")=0),D118,0),"") -> 4.0595 | F118: 632.6308 | H118: =IF(D118<>"",IF(AND(B118<>"",B117<>""),$I$4+H117,VLOOKUP(INDEX($B$7:B117,MATCH(9.99999999999999E+307,$B$7:B117)),$B$7:H117,7,FALSE)+$I$4),"") -> -0.003211675127 | I118: 632.6275883
A119: SV18 | B119: 4.9636 | C119: =IF(D119<>"",IF(OR(B119<>"",INDIRECT("D120")=0),IF(B118<>"",F118+B118,VLOOKUP(INDEX($B$7:B118,MATCH(9.99999999999999E+307,$B$7:B118)),$B$7:F118,5,FALSE)+INDEX($B$7:B118,MATCH(9.99999999999999E+307,$B$7:B118))),(VLOOKUP(INDEX($B$7:B118,MATCH(9.99999999999999E+307,$B$7:B118)),$B$7:F118,5,FALSE))+(INDEX($B$7:B118,MATCH(9.99999999999999E+307,$B$7:B118)))),"") -> 637.866 | D119: 5.4946 | E119: =IF(D119<>"",IF(OR(B119<>"",INDIRECT("D120")=0),D119,0),"") -> 5.4946 | F119: 632.3714 | H119: =IF(D119<>"",IF(AND(B119<>"",B118<>""),$I$4+H118,VLOOKUP(INDEX($B$7:B118,MATCH(9.99999999999999E+307,$B$7:B118)),$B$7:H118,7,FALSE)+$I$4),"") -> -0.003240609138 | I119: 632.3681594
A120: TP129 | B120: 3.5052 | C120: =IF(D120<>"",IF(OR(B120<>"",INDIRECT("D121")=0),IF(B119<>"",F119+B119,VLOOKUP(INDEX($B$7:B119,MATCH(9.99999999999999E+307,$B$7:B119)),$B$7:F119,5,FALSE)+INDEX($B$7:B119,MATCH(9.99999999999999E+307,$B$7:B119))),(VLOOKUP(INDEX($B$7:B119,MATCH(9.99999999999999E+307,$B$7:B119)),$B$7:F119,5,FALSE))+(INDEX($B$7:B119,MATCH(9.99999999999999E+307,$B$7:B119)))),"") -> 637.335 | D120: 4.8484 | E120: =IF(D120<>"",IF(OR(B120<>"",INDIRECT("D121")=0),D120,0),"") -> 4.8484 | F120: 632.4866 | H120: =IF(D120<>"",IF(AND(B120<>"",B119<>""),$I$4+H119,VLOOKUP(INDEX($B$7:B119,MATCH(9.99999999999999E+307,$B$7:B119)),$B$7:H119,7,FALSE)+$I$4),"") -> -0.003269543148 | I120: 632.4833305
A121: TP130 | B121: 3.7231 | C121: =IF(D121<>"",IF(OR(B121<>"",INDIRECT("D122")=0),IF(B120<>"",F120+B120,VLOOKUP(INDEX($B$7:B120,MATCH(9.99999999999999E+307,$B$7:B120)),$B$7:F120,5,FALSE)+INDEX($B$7:B120,MATCH(9.99999999999999E+307,$B$7:B120))),(VLOOKUP(INDEX($B$7:B120,MATCH(9.99999999999999E+307,$B$7:B120)),$B$7:F120,5,FALSE))+(INDEX($B$7:B120,MATCH(9.99999999999999E+307,$B$7:B120)))),"") -> 635.9918 | D121: 6.703 | E121: =IF(D121<>"",IF(OR(B121<>"",INDIRECT("D122")=0),D121,0),"") -> 6.703 | F121: 629.2888 | H121: =IF(D121<>"",IF(AND(B121<>"",B120<>""),$I$4+H120,VLOOKUP(INDEX($B$7:B120,MATCH(9.99999999999999E+307,$B$7:B120)),$B$7:H120,7,FALSE)+$I$4),"") -> -0.003298477158 | I121: 629.2855015
A122: TP131 | B122: 6.5916 | C122: =IF(D122<>"",IF(OR(B122<>"",INDIRECT("D123")=0),IF(B121<>"",F121+B121,VLOOKUP(INDEX($B$7:B121,MATCH(9.99999999999999E+307,$B$7:B121)),$B$7:F121,5,FALSE)+INDEX($B$7:B121,MATCH(9.99999999999999E+307,$B$7:B121))),(VLOOKUP(INDEX($B$7:B121,MATCH(9.99999999999999E+307,$B$7:B121)),$B$7:F121,5,FALSE))+(INDEX($B$7:B121,MATCH(9.99999999999999E+307,$B$7:B121)))),"") -> 633.0119 | D122: 4.0656 | E122: =IF(D122<>"",IF(OR(B122<>"",INDIRECT("D123")=0),D122,0),"") -> 4.0656 | F122: 628.9463 | H122: =IF(D122<>"",IF(AND(B122<>"",B121<>""),$I$4+H121,VLOOKUP(INDEX($B$7:B121,MATCH(9.99999999999999E+307,$B$7:B121)),$B$7:H121,7,FALSE)+$I$4),"") -> -0.003327411168 | I122: 628.9429726
A123: TP132 | B123: 8.3849 | C123: =IF(D123<>"",IF(OR(B123<>"",INDIRECT("D124")=0),IF(B122<>"",F122+B122,VLOOKUP(INDEX($B$7:B122,MATCH(9.99999999999999E+307,$B$7:B122)),$B$7:F122,5,FALSE)+INDEX($B$7:B122,MATCH(9.99999999999999E+307,$B$7:B122))),(VLOOKUP(INDEX($B$7:B122,MATCH(9.99999999999999E+307,$B$7:B122)),$B$7:F122,5,FALSE))+(INDEX($B$7:B122,MATCH(9.99999999999999E+307,$B$7:B122)))),"") -> 635.5379 | D123: 1.8246 | E123: =IF(D123<>"",IF(OR(B123<>"",INDIRECT("D124")=0),D123,0),"") -> 1.8246 | F123: 633.7133 | H123: =IF(D123<>"",IF(AND(B123<>"",B122<>""),$I$4+H122,VLOOKUP(INDEX($B$7:B122,MATCH(9.99999999999999E+307,$B$7:B122)),$B$7:H122,7,FALSE)+$I$4),"") -> -0.003356345178 | I123: 633.7099437
A124: TP133 | B124: 7.5005 | C124: =IF(D124<>"",IF(OR(B124<>"",INDIRECT("D125")=0),IF(B123<>"",F123+B123,VLOOKUP(INDEX($B$7:B123,MATCH(9.99999999999999E+307,$B$7:B123)),$B$7:F123,5,FALSE)+INDEX($B$7:B123,MATCH(9.99999999999999E+307,$B$7:B123))),(VLOOKUP(INDEX($B$7:B123,MATCH(9.99999999999999E+307,$B$7:B123)),$B$7:F123,5,FALSE))+(INDEX($B$7:B123,MATCH(9.99999999999999E+307,$B$7:B123)))),"") -> 642.0982 | D124: 1.5404 | E124: =IF(D124<>"",IF(OR(B124<>"",INDIRECT("D125")=0),D124,0),"") -> 1.5404 | F124: 640.5578 | H124: =IF(D124<>"",IF(AND(B124<>"",B123<>""),$I$4+H123,VLOOKUP(INDEX($B$7:B123,MATCH(9.99999999999999E+307,$B$7:B123)),$B$7:H123,7,FALSE)+$I$4),"") -> -0.003385279188 | I124: 640.5544147
A125: TP134 | B125: 4.4182 | C125: =IF(D125<>"",IF(OR(B125<>"",INDIRECT("D126")=0),IF(B124<>"",F124+B124,VLOOKUP(INDEX($B$7:B124,MATCH(9.99999999999999E+307,$B$7:B124)),$B$7:F124,5,FALSE)+INDEX($B$7:B124,MATCH(9.99999999999999E+307,$B$7:B124))),(VLOOKUP(INDEX($B$7:B124,MATCH(9.99999999999999E+307,$B$7:B124)),$B$7:F124,5,FALSE))+(INDEX($B$7:B124,MATCH(9.99999999999999E+307,$B$7:B124)))),"") -> 648.0583 | D125: 4.8787 | E125: =IF(D125<>"",IF(OR(B125<>"",INDIRECT("D126")=0),D125,0),"") -> 4.8787 | F125: 643.1796 | H125: =IF(D125<>"",IF(AND(B125<>"",B124<>""),$I$4+H124,VLOOKUP(INDEX($B$7:B124,MATCH(9.99999999999999E+307,$B$7:B124)),$B$7:H124,7,FALSE)+$I$4),"") -> -0.003414213199 | I125: 643.1761858
A126: SV17 | B126: 3.9413 | C126: =IF(D126<>"",IF(OR(B126<>"",INDIRECT("D127")=0),IF(B125<>"",F125+B125,VLOOKUP(INDEX($B$7:B125,MATCH(9.99999999999999E+307,$B$7:B125)),$B$7:F125,5,FALSE)+INDEX($B$7:B125,MATCH(9.99999999999999E+307,$B$7:B125))),(VLOOKUP(INDEX($B$7:B125,MATCH(9.99999999999999E+307,$B$7:B125)),$B$7:F125,5,FALSE))+(INDEX($B$7:B125,MATCH(9.99999999999999E+307,$B$7:B125)))),"") -> 647.5978 | D126: 8.3536 | E126: =IF(D126<>"",IF(OR(B126<>"",INDIRECT("D127")=0),D126,0),"") -> 8.3536 | F126: 639.2442 | H126: =IF(D126<>"",IF(AND(B126<>"",B125<>""),$I$4+H125,VLOOKUP(INDEX($B$7:B125,MATCH(9.99999999999999E+307,$B$7:B125)),$B$7:H125,7,FALSE)+$I$4),"") -> -0.003443147209 | I126: 639.2407569
A127: TP135 | B127: 1.2156 | C127: =IF(D127<>"",IF(OR(B127<>"",INDIRECT("D128")=0),IF(B126<>"",F126+B126,VLOOKUP(INDEX($B$7:B126,MATCH(9.99999999999999E+307,$B$7:B126)),$B$7:F126,5,FALSE)+INDEX($B$7:B126,MATCH(9.99999999999999E+307,$B$7:B126))),(VLOOKUP(INDEX($B$7:B126,MATCH(9.99999999999999E+307,$B$7:B126)),$B$7:F126,5,FALSE))+(INDEX($B$7:B126,MATCH(9.99999999999999E+307,$B$7:B126)))),"") -> 643.1855 | D127: 7.6613 | E127: =IF(D127<>"",IF(OR(B127<>"",INDIRECT("D128")=0),D127,0),"") -> 7.6613 | F127: 635.5242 | H127: =IF(D127<>"",IF(AND(B127<>"",B126<>""),$I$4+H126,VLOOKUP(INDEX($B$7:B126,MATCH(9.99999999999999E+307,$B$7:B126)),$B$7:H126,7,FALSE)+$I$4),"") -> -0.003472081219 | I127: 635.5207279
A128: SV103 | B128: 3.8898 | C128: =IF(D128<>"",IF(OR(B128<>"",INDIRECT("D129")=0),IF(B127<>"",F127+B127,VLOOKUP(INDEX($B$7:B127,MATCH(9.99999999999999E+307,$B$7:B127)),$B$7:F127,5,FALSE)+INDEX($B$7:B127,MATCH(9.99999999999999E+307,$B$7:B127))),(VLOOKUP(INDEX($B$7:B127,MATCH(9.99999999999999E+307,$B$7:B127)),$B$7:F127,5,FALSE))+(INDEX($B$7:B127,MATCH(9.99999999999999E+307,$B$7:B127)))),"") -> 636.7398 | D128: 8.1258 | E128: =IF(D128<>"",IF(OR(B128<>"",INDIRECT("D129")=0),D128,0),"") -> 8.1258 | F128: 628.614 | H128: =IF(D128<>"",IF(AND(B128<>"",B127<>""),$I$4+H127,VLOOKUP(INDEX($B$7:B127,MATCH(9.99999999999999E+307,$B$7:B127)),$B$7:H127,7,FALSE)+$I$4),"") -> -0.003501015229 | I128: 628.610499
A129: TP136 | B129: 6.7471 | C129: =IF(D129<>"",IF(OR(B129<>"",INDIRECT("D130")=0),IF(B128<>"",F128+B128,VLOOKUP(INDEX($B$7:B128,MATCH(9.99999999999999E+307,$B$7:B128)),$B$7:F128,5,FALSE)+INDEX($B$7:B128,MATCH(9.99999999999999E+307,$B$7:B128))),(VLOOKUP(INDEX($B$7:B128,MATCH(9.99999999999999E+307,$B$7:B128)),$B$7:F128,5,FALSE))+(INDEX($B$7:B128,MATCH(9.99999999999999E+307,$B$7:B128)))),"") -> 632.5038 | D129: 4.1014 | E129: =IF(D129<>"",IF(OR(B129<>"",INDIRECT("D130")=0),D129,0),"") -> 4.1014 | F129: 628.4024 | H129: =IF(D129<>"",IF(AND(B129<>"",B128<>""),$I$4+H128,VLOOKUP(INDEX($B$7:B128,MATCH(9.99999999999999E+307,$B$7:B128)),$B$7:H128,7,FALSE)+$I$4),"") -> -0.003529949239 | I129: 628.3988701
A130: TP137 | B130: 7.5223 | C130: =IF(D130<>"",IF(OR(B130<>"",INDIRECT("D131")=0),IF(B129<>"",F129+B129,VLOOKUP(INDEX($B$7:B129,MATCH(9.99999999999999E+307,$B$7:B129)),$B$7:F129,5,FALSE)+INDEX($B$7:B129,MATCH(9.99999999999999E+307,$B$7:B129))),(VLOOKUP(INDEX($B$7:B129,MATCH(9.99999999999999E+307,$B$7:B129)),$B$7:F129,5,FALSE))+(INDEX($B$7:B129,MATCH(9.99999999999999E+307,$B$7:B129)))),"") -> 635.1495 | D130: 2.5989 | E130: =IF(D130<>"",IF(OR(B130<>"",INDIRECT("D131")=0),D130,0),"") -> 2.5989 | F130: 632.5506 | H130: =IF(D130<>"",IF(AND(B130<>"",B129<>""),$I$4+H129,VLOOKUP(INDEX($B$7:B129,MATCH(9.99999999999999E+307,$B$7:B129)),$B$7:H129,7,FALSE)+$I$4),"") -> -0.003558883249 | I130: 632.5470411
A131: TP138 | B131: 7.5222 | C131: =IF(D131<>"",IF(OR(B131<>"",INDIRECT("D132")=0),IF(B130<>"",F130+B130,VLOOKUP(INDEX($B$7:B130,MATCH(9.99999999999999E+307,$B$7:B130)),$B$7:F130,5,FALSE)+INDEX($B$7:B130,MATCH(9.99999999999999E+307,$B$7:B130))),(VLOOKUP(INDEX($B$7:B130,MATCH(9.99999999999999E+307,$B$7:B130)),$B$7:F130,5,FALSE))+(INDEX($B$7:B130,MATCH(9.99999999999999E+307,$B$7:B130)))),"") -> 640.0729 | D131: 3.1624 | E131: =IF(D131<>"",IF(OR(B131<>"",INDIRECT("D132")=0),D131,0),"") -> 3.1624 | F131: 636.9105 | H131: =IF(D131<>"",IF(AND(B131<>"",B130<>""),$I$4+H130,VLOOKUP(INDEX($B$7:B130,MATCH(9.99999999999999E+307,$B$7:B130)),$B$7:H130,7,FALSE)+$I$4),"") -> -0.003587817259 | I131: 636.9069122
A132: TP139 | B132: 8.3827 | C132: =IF(D132<>"",IF(OR(B132<>"",INDIRECT("D133")=0),IF(B131<>"",F131+B131,VLOOKUP(INDEX($B$7:B131,MATCH(9.99999999999999E+307,$B$7:B131)),$B$7:F131,5,FALSE)+INDEX($B$7:B131,MATCH(9.99999999999999E+307,$B$7:B131))),(VLOOKUP(INDEX($B$7:B131,MATCH(9.99999999999999E+307,$B$7:B131)),$B$7:F131,5,FALSE))+(INDEX($B$7:B131,MATCH(9.99999999999999E+307,$B$7:B131)))),"") -> 644.4327 | D132: 2.6437 | E132: =IF(D132<>"",IF(OR(B132<>"",INDIRECT("D133")=0),D132,0),"") -> 2.6437 | F132: 641.789 | H132: =IF(D132<>"",IF(AND(B132<>"",B131<>""),$I$4+H131,VLOOKUP(INDEX($B$7:B131,MATCH(9.99999999999999E+307,$B$7:B131)),$B$7:H131,7,FALSE)+$I$4),"") -> -0.00361675127 | I132: 641.7853832
A133: TP140 | B133: 4.559 | C133: =IF(D133<>"",IF(OR(B133<>"",INDIRECT("D134")=0),IF(B132<>"",F132+B132,VLOOKUP(INDEX($B$7:B132,MATCH(9.99999999999999E+307,$B$7:B132)),$B$7:F132,5,FALSE)+INDEX($B$7:B132,MATCH(9.99999999999999E+307,$B$7:B132))),(VLOOKUP(INDEX($B$7:B132,MATCH(9.99999999999999E+307,$B$7:B132)),$B$7:F132,5,FALSE))+(INDEX($B$7:B132,MATCH(9.99999999999999E+307,$B$7:B132)))),"") -> 650.1717 | D133: 3.9219 | E133: =IF(D133<>"",IF(OR(B133<>"",INDIRECT("D134")=0),D133,0),"") -> 3.9219 | F133: 646.2498 | H133: =IF(D133<>"",IF(AND(B133<>"",B132<>""),$I$4+H132,VLOOKUP(INDEX($B$7:B132,MATCH(9.99999999999999E+307,$B$7:B132)),$B$7:H132,7,FALSE)+$I$4),"") -> -0.00364568528 | I133: 646.2461543
A134: SV16 | B134: 5.0119 | C134: =IF(D134<>"",IF(OR(B134<>"",INDIRECT("D135")=0),IF(B133<>"",F133+B133,VLOOKUP(INDEX($B$7:B133,MATCH(9.99999999999999E+307,$B$7:B133)),$B$7:F133,5,FALSE)+INDEX($B$7:B133,MATCH(9.99999999999999E+307,$B$7:B133))),(VLOOKUP(INDEX($B$7:B133,MATCH(9.99999999999999E+307,$B$7:B133)),$B$7:F133,5,FALSE))+(INDEX($B$7:B133,MATCH(9.99999999999999E+307,$B$7:B133)))),"") -> 650.8088 | D134: 6.7704 | E134: =IF(D134<>"",IF(OR(B134<>"",INDIRECT("D135")=0),D134,0),"") -> 6.7704 | F134: 644.0384 | H134: =IF(D134<>"",IF(AND(B134<>"",B133<>""),$I$4+H133,VLOOKUP(INDEX($B$7:B133,MATCH(9.99999999999999E+307,$B$7:B133)),$B$7:H133,7,FALSE)+$I$4),"") -> -0.00367461929 | I134: 644.0347254
A135: TP141 | B135: 2.5327 | C135: =IF(D135<>"",IF(OR(B135<>"",INDIRECT("D136")=0),IF(B134<>"",F134+B134,VLOOKUP(INDEX($B$7:B134,MATCH(9.99999999999999E+307,$B$7:B134)),$B$7:F134,5,FALSE)+INDEX($B$7:B134,MATCH(9.99999999999999E+307,$B$7:B134))),(VLOOKUP(INDEX($B$7:B134,MATCH(9.99999999999999E+307,$B$7:B134)),$B$7:F134,5,FALSE))+(INDEX($B$7:B134,MATCH(9.99999999999999E+307,$B$7:B134)))),"") -> 649.0503 | D135: 5.671 | E135: =IF(D135<>"",IF(OR(B135<>"",INDIRECT("D136")=0),D135,0),"") -> 5.671 | F135: 643.3793 | H135: =IF(D135<>"",IF(AND(B135<>"",B134<>""),$I$4+H134,VLOOKUP(INDEX($B$7:B134,MATCH(9.99999999999999E+307,$B$7:B134)),$B$7:H134,7,FALSE)+$I$4),"") -> -0.0037035533 | I135: 643.3755964
A136: SV15 | B136: 4.0212 | C136: =IF(D136<>"",IF(OR(B136<>"",INDIRECT("D137")=0),IF(B135<>"",F135+B135,VLOOKUP(INDEX($B$7:B135,MATCH(9.99999999999999E+307,$B$7:B135)),$B$7:F135,5,FALSE)+INDEX($B$7:B135,MATCH(9.99999999999999E+307,$B$7:B135))),(VLOOKUP(INDEX($B$7:B135,MATCH(9.99999999999999E+307,$B$7:B135)),$B$7:F135,5,FALSE))+(INDEX($B$7:B135,MATCH(9.99999999999999E+307,$B$7:B135)))),"") -> 645.912 | D136: 7.9992 | E136: =IF(D136<>"",IF(OR(B136<>"",INDIRECT("D137")=0),D136,0),"") -> 7.9992 | F136: 637.9128 | H136: =IF(D136<>"",IF(AND(B136<>"",B135<>""),$I$4+H135,VLOOKUP(INDEX($B$7:B135,MATCH(9.99999999999999E+307,$B$7:B135)),$B$7:H135,7,FALSE)+$I$4),"") -> -0.00373248731 | I136: 637.9090675
A137: TP142 | B137: 3.4675 | C137: =IF(D137<>"",IF(OR(B137<>"",INDIRECT("D138")=0),IF(B136<>"",F136+B136,VLOOKUP(INDEX($B$7:B136,MATCH(9.99999999999999E+307,$B$7:B136)),$B$7:F136,5,FALSE)+INDEX($B$7:B136,MATCH(9.99999999999999E+307,$B$7:B136))),(VLOOKUP(INDEX($B$7:B136,MATCH(9.99999999999999E+307,$B$7:B136)),$B$7:F136,5,FALSE))+(INDEX($B$7:B136,MATCH(9.99999999999999E+307,$B$7:B136)))),"") -> 641.934 | D137: 6.0439 | E137: =IF(D137<>"",IF(OR(B137<>"",INDIRECT("D138")=0),D137,0),"") -> 6.0439 | F137: =IF(D137<>"",C137-D137,"") -> 635.8901 | H137: =IF(D137<>"",IF(AND(B137<>"",B136<>""),$I$4+H136,VLOOKUP(INDEX($B$7:B136,MATCH(9.99999999999999E+307,$B$7:B136)),$B$7:H136,7,FALSE)+$I$4),"") -> -0.00376142132 | I137: =IF(D137<>"",(F137+H137),"") -> 635.8863386
A138: TP143 | B138: 3.3059 | C138: =IF(D138<>"",IF(OR(B138<>"",INDIRECT("D139")=0),IF(B137<>"",F137+B137,VLOOKUP(INDEX($B$7:B137,MATCH(9.99999999999999E+307,$B$7:B137)),$B$7:F137,5,FALSE)+INDEX($B$7:B137,MATCH(9.99999999999999E+307,$B$7:B137))),(VLOOKUP(INDEX($B$7:B137,MATCH(9.99999999999999E+307,$B$7:B137)),$B$7:F137,5,FALSE))+(INDEX($B$7:B137,MATCH(9.99999999999999E+307,$B$7:B137)))),"") -> 639.3576 | D138: 7.9261 | E138: =IF(D138<>"",IF(OR(B138<>"",INDIRECT("D139")=0),D138,0),"") -> 7.9261 | F138: 631.4315 | H138: =IF(D138<>"",IF(AND(B138<>"",B137<>""),$I$4+H137,VLOOKUP(INDEX($B$7:B137,MATCH(9.99999999999999E+307,$B$7:B137)),$B$7:H137,7,FALSE)+$I$4),"") -> -0.003790355331 | I138: 631.4277096
A139: TP144 | B139: 6.2093 | C139: =IF(D139<>"",IF(OR(B139<>"",INDIRECT("D140")=0),IF(B138<>"",F138+B138,VLOOKUP(INDEX($B$7:B138,MATCH(9.99999999999999E+307,$B$7:B138)),$B$7:F138,5,FALSE)+INDEX($B$7:B138,MATCH(9.99999999999999E+307,$B$7:B138))),(VLOOKUP(INDEX($B$7:B138,MATCH(9.99999999999999E+307,$B$7:B138)),$B$7:F138,5,FALSE))+(INDEX($B$7:B138,MATCH(9.99999999999999E+307,$B$7:B138)))),"") -> 634.7374 | D139: 6.3253 | E139: =IF(D139<>"",IF(OR(B139<>"",INDIRECT("D140")=0),D139,0),"") -> 6.3253 | F139: 628.4121 | H139: =IF(D139<>"",IF(AND(B139<>"",B138<>""),$I$4+H138,VLOOKUP(INDEX($B$7:B138,MATCH(9.99999999999999E+307,$B$7:B138)),$B$7:H138,7,FALSE)+$I$4),"") -> -0.003819289341 | I139: 628.4082807
A140: TP145 | B140: 6.4681 | C140: =IF(D140<>"",IF(OR(B140<>"",INDIRECT("D141")=0),IF(B139<>"",F139+B139,VLOOKUP(INDEX($B$7:B139,MATCH(9.99999999999999E+307,$B$7:B139)),$B$7:F139,5,FALSE)+INDEX($B$7:B139,MATCH(9.99999999999999E+307,$B$7:B139))),(VLOOKUP(INDEX($B$7:B139,MATCH(9.99999999999999E+307,$B$7:B139)),$B$7:F139,5,FALSE))+(INDEX($B$7:B139,MATCH(9.99999999999999E+307,$B$7:B139)))),"") -> 634.6214 | D140: 3.5147 | E140: =IF(D140<>"",IF(OR(B140<>"",INDIRECT("D141")=0),D140,0),"") -> 3.5147 | F140: 631.1067 | H140: =IF(D140<>"",IF(AND(B140<>"",B139<>""),$I$4+H139,VLOOKUP(INDEX($B$7:B139,MATCH(9.99999999999999E+307,$B$7:B139)),$B$7:H139,7,FALSE)+$I$4),"") -> -0.003848223351 | I140: 631.1028518
A141: TP146 | B141: 6.1113 | C141: =IF(D141<>"",IF(OR(B141<>"",INDIRECT("D142")=0),IF(B140<>"",F140+B140,VLOOKUP(INDEX($B$7:B140,MATCH(9.99999999999999E+307,$B$7:B140)),$B$7:F140,5,FALSE)+INDEX($B$7:B140,MATCH(9.99999999999999E+307,$B$7:B140))),(VLOOKUP(INDEX($B$7:B140,MATCH(9.99999999999999E+307,$B$7:B140)),$B$7:F140,5,FALSE))+(INDEX($B$7:B140,MATCH(9.99999999999999E+307,$B$7:B140)))),"") -> 637.5748 | D141: 2.6891 | E141: =IF(D141<>"",IF(OR(B141<>"",INDIRECT("D142")=0),D141,0),"") -> 2.6891 | F141: 634.8857 | H141: =IF(D141<>"",IF(AND(B141<>"",B140<>""),$I$4+H140,VLOOKUP(INDEX($B$7:B140,MATCH(9.99999999999999E+307,$B$7:B140)),$B$7:H140,7,FALSE)+$I$4),"") -> -0.003877157361 | I141: 634.8818228
A142: TP147 | B142: 4.1809 | C142: =IF(D142<>"",IF(OR(B142<>"",INDIRECT("D143")=0),IF(B141<>"",F141+B141,VLOOKUP(INDEX($B$7:B141,MATCH(9.99999999999999E+307,$B$7:B141)),$B$7:F141,5,FALSE)+INDEX($B$7:B141,MATCH(9.99999999999999E+307,$B$7:B141))),(VLOOKUP(INDEX($B$7:B141,MATCH(9.99999999999999E+307,$B$7:B141)),$B$7:F141,5,FALSE))+(INDEX($B$7:B141,MATCH(9.99999999999999E+307,$B$7:B141)))),"") -> 640.997 | D142: 4.104 | E142: =IF(D142<>"",IF(OR(B142<>"",INDIRECT("D143")=0),D142,0),"") -> 4.104 | F142: 636.893 | H142: =IF(D142<>"",IF(AND(B142<>"",B141<>""),$I$4+H141,VLOOKUP(INDEX($B$7:B141,MATCH(9.99999999999999E+307,$B$7:B141)),$B$7:H141,7,FALSE)+$I$4),"") -> -0.003906091371 | I142: 636.8890939
A143: SV14 | B143: 4.362 | C143: =IF(D143<>"",IF(OR(B143<>"",INDIRECT("D144")=0),IF(B142<>"",F142+B142,VLOOKUP(INDEX($B$7:B142,MATCH(9.99999999999999E+307,$B$7:B142)),$B$7:F142,5,FALSE)+INDEX($B$7:B142,MATCH(9.99999999999999E+307,$B$7:B142))),(VLOOKUP(INDEX($B$7:B142,MATCH(9.99999999999999E+307,$B$7:B142)),$B$7:F142,5,FALSE))+(INDEX($B$7:B142,MATCH(9.99999999999999E+307,$B$7:B142)))),"") -> 641.0739 | D143: 8.1491 | E143: =IF(D143<>"",IF(OR(B143<>"",INDIRECT("D144")=0),D143,0),"") -> 8.1491 | F143: 632.9248 | H143: =IF(D143<>"",IF(AND(B143<>"",B142<>""),$I$4+H142,VLOOKUP(INDEX($B$7:B142,MATCH(9.99999999999999E+307,$B$7:B142)),$B$7:H142,7,FALSE)+$I$4),"") -> -0.003935025381 | I143: 632.920865
A144: TP148 | B144: 1.4895 | C144: =IF(D144<>"",IF(OR(B144<>"",INDIRECT("D145")=0),IF(B143<>"",F143+B143,VLOOKUP(INDEX($B$7:B143,MATCH(9.99999999999999E+307,$B$7:B143)),$B$7:F143,5,FALSE)+INDEX($B$7:B143,MATCH(9.99999999999999E+307,$B$7:B143))),(VLOOKUP(INDEX($B$7:B143,MATCH(9.99999999999999E+307,$B$7:B143)),$B$7:F143,5,FALSE))+(INDEX($B$7:B143,MATCH(9.99999999999999E+307,$B$7:B143)))),"") -> 637.2868 | D144: 6.2847 | E144: =IF(D144<>"",IF(OR(B144<>"",INDIRECT("D145")=0),D144,0),"") -> 6.2847 | F144: 631.0021 | H144: =IF(D144<>"",IF(AND(B144<>"",B143<>""),$I$4+H143,VLOOKUP(INDEX($B$7:B143,MATCH(9.99999999999999E+307,$B$7:B143)),$B$7:H143,7,FALSE)+$I$4),"") -> -0.003963959392 | I144: 630.998136
A145: SV13 | B145: 6.1268 | C145: =IF(D145<>"",IF(OR(B145<>"",INDIRECT("D146")=0),IF(B144<>"",F144+B144,VLOOKUP(INDEX($B$7:B144,MATCH(9.99999999999999E+307,$B$7:B144)),$B$7:F144,5,FALSE)+INDEX($B$7:B144,MATCH(9.99999999999999E+307,$B$7:B144))),(VLOOKUP(INDEX($B$7:B144,MATCH(9.99999999999999E+307,$B$7:B144)),$B$7:F144,5,FALSE))+(INDEX($B$7:B144,MATCH(9.99999999999999E+307,$B$7:B144)))),"") -> 632.4916 | D145: 8.5534 | E145: =IF(D145<>"",IF(OR(B145<>"",INDIRECT("D146")=0),D145,0),"") -> 8.5534 | F145: 623.9382 | H145: =IF(D145<>"",IF(AND(B145<>"",B144<>""),$I$4+H144,VLOOKUP(INDEX($B$7:B144,MATCH(9.99999999999999E+307,$B$7:B144)),$B$7:H144,7,FALSE)+$I$4),"") -> -0.003992893402 | I145: 623.9342071
A146: TP55 | B146: 5.2634 | C146: =IF(D146<>"",IF(OR(B146<>"",INDIRECT("D147")=0),IF(B145<>"",F145+B145,VLOOKUP(INDEX($B$7:B145,MATCH(9.99999999999999E+307,$B$7:B145)),$B$7:F145,5,FALSE)+INDEX($B$7:B145,MATCH(9.99999999999999E+307,$B$7:B145))),(VLOOKUP(INDEX($B$7:B145,MATCH(9.99999999999999E+307,$B$7:B145)),$B$7:F145,5,FALSE))+(INDEX($B$7:B145,MATCH(9.99999999999999E+307,$B$7:B145)))),"") -> 630.065 | D146: 5.8737 | E146: =IF(D146<>"",IF(OR(B146<>"",INDIRECT("D147")=0),D146,0),"") -> 5.8737 | F146: 624.1913 | H146: =IF(D146<>"",IF(AND(B146<>"",B145<>""),$I$4+H145,VLOOKUP(INDEX($B$7:B145,MATCH(9.99999999999999E+307,$B$7:B145)),$B$7:H145,7,FALSE)+$I$4),"") -> -0.004021827412 | I146: 624.1872782
A147: TP56 | B147: 5.7217 | C147: =IF(D147<>"",IF(OR(B147<>"",INDIRECT("D148")=0),IF(B146<>"",F146+B146,VLOOKUP(INDEX($B$7:B146,MATCH(9.99999999999999E+307,$B$7:B146)),$B$7:F146,5,FALSE)+INDEX($B$7:B146,MATCH(9.99999999999999E+307,$B$7:B146))),(VLOOKUP(INDEX($B$7:B146,MATCH(9.99999999999999E+307,$B$7:B146)),$B$7:F146,5,FALSE))+(INDEX($B$7:B146,MATCH(9.99999999999999E+307,$B$7:B146)))),"") -> 629.4547 | D147: 4.2708 | E147: =IF(D147<>"",IF(OR(B147<>"",INDIRECT("D148")=0),D147,0),"") -> 4.2708 | F147: 625.1839 | H147: =IF(D147<>"",IF(AND(B147<>"",B146<>""),$I$4+H146,VLOOKUP(INDEX($B$7:B146,MATCH(9.99999999999999E+307,$B$7:B146)),$B$7:H146,7,FALSE)+$I$4),"") -> -0.004050761422 | I147: 625.1798492
A148: TP57 | B148: 5.5904 | C148: =IF(D148<>"",IF(OR(B148<>"",INDIRECT("D149")=0),IF(B147<>"",F147+B147,VLOOKUP(INDEX($B$7:B147,MATCH(9.99999999999999E+307,$B$7:B147)),$B$7:F147,5,FALSE)+INDEX($B$7:B147,MATCH(9.99999999999999E+307,$B$7:B147))),(VLOOKUP(INDEX($B$7:B147,MATCH(9.99999999999999E+307,$B$7:B147)),$B$7:F147,5,FALSE))+(INDEX($B$7:B147,MATCH(9.99999999999999E+307,$B$7:B147)))),"") -> 630.9056 | D148: 3.8046 | E148: =IF(D148<>"",IF(OR(B148<>"",INDIRECT("D149")=0),D148,0),"") -> 3.8046 | F148: 627.101 | H148: =IF(D148<>"",IF(AND(B148<>"",B147<>""),$I$4+H147,VLOOKUP(INDEX($B$7:B147,MATCH(9.99999999999999E+307,$B$7:B147)),$B$7:H147,7,FALSE)+$I$4),"") -> -0.004079695432 | I148: 627.0969203
A149: TP58 | B149: 5.5324 | C149: =IF(D149<>"",IF(OR(B149<>"",INDIRECT("D150")=0),IF(B148<>"",F148+B148,VLOOKUP(INDEX($B$7:B148,MATCH(9.99999999999999E+307,$B$7:B148)),$B$7:F148,5,FALSE)+INDEX($B$7:B148,MATCH(9.99999999999999E+307,$B$7:B148))),(VLOOKUP(INDEX($B$7:B148,MATCH(9.99999999999999E+307,$B$7:B148)),$B$7:F148,5,FALSE))+(INDEX($B$7:B148,MATCH(9.99999999999999E+307,$B$7:B148)))),"") -> 632.6914 | D149: 4.2643 | E149: =IF(D149<>"",IF(OR(B149<>"",INDIRECT("D150")=0),D149,0),"") -> 4.2643 | F149: 628.4271 | H149: =IF(D149<>"",IF(AND(B149<>"",B148<>""),$I$4+H148,VLOOKUP(INDEX($B$7:B148,MATCH(9.99999999999999E+307,$B$7:B148)),$B$7:H148,7,FALSE)+$I$4),"") -> -0.004108629442 | I149: 628.4229914
A150: TP59 | B150: 4.3345 | C150: =IF(D150<>"",IF(OR(B150<>"",INDIRECT("D151")=0),IF(B149<>"",F149+B149,VLOOKUP(INDEX($B$7:B149,MATCH(9.99999999999999E+307,$B$7:B149)),$B$7:F149,5,FALSE)+INDEX($B$7:B149,MATCH(9.99999999999999E+307,$B$7:B149))),(VLOOKUP(INDEX($B$7:B149,MATCH(9.99999999999999E+307,$B$7:B149)),$B$7:F149,5,FALSE))+(INDEX($B$7:B149,MATCH(9.99999999999999E+307,$B$7:B149)))),"") -> 633.9595 | D150: 5.5902 | E150: =IF(D150<>"",IF(OR(B150<>"",INDIRECT("D151")=0),D150,0),"") -> 5.5902 | F150: 628.3693 | H150: =IF(D150<>"",IF(AND(B150<>"",B149<>""),$I$4+H149,VLOOKUP(INDEX($B$7:B149,MATCH(9.99999999999999E+307,$B$7:B149)),$B$7:H149,7,FALSE)+$I$4),"") -> -0.004137563452 | I150: 628.3651624
A151: TP60 | B151: 3.6478 | C151: =IF(D151<>"",IF(OR(B151<>"",INDIRECT("D152")=0),IF(B150<>"",F150+B150,VLOOKUP(INDEX($B$7:B150,MATCH(9.99999999999999E+307,$B$7:B150)),$B$7:F150,5,FALSE)+INDEX($B$7:B150,MATCH(9.99999999999999E+307,$B$7:B150))),(VLOOKUP(INDEX($B$7:B150,MATCH(9.99999999999999E+307,$B$7:B150)),$B$7:F150,5,FALSE))+(INDEX($B$7:B150,MATCH(9.99999999999999E+307,$B$7:B150)))),"") -> 632.7038 | D151: 5.4226 | E151: =IF(D151<>"",IF(OR(B151<>"",INDIRECT("D152")=0),D151,0),"") -> 5.4226 | F151: 627.2812 | H151: =IF(D151<>"",IF(AND(B151<>"",B150<>""),$I$4+H150,VLOOKUP(INDEX($B$7:B150,MATCH(9.99999999999999E+307,$B$7:B150)),$B$7:H150,7,FALSE)+$I$4),"") -> -0.004166497463 | I151: 627.2770335
A152: SV12 | B152: 6.1745 | C152: =IF(D152<>"",IF(OR(B152<>"",INDIRECT("D153")=0),IF(B151<>"",F151+B151,VLOOKUP(INDEX($B$7:B151,MATCH(9.99999999999999E+307,$B$7:B151)),$B$7:F151,5,FALSE)+INDEX($B$7:B151,MATCH(9.99999999999999E+307,$B$7:B151))),(VLOOKUP(INDEX($B$7:B151,MATCH(9.99999999999999E+307,$B$7:B151)),$B$7:F151,5,FALSE))+(INDEX($B$7:B151,MATCH(9.99999999999999E+307,$B$7:B151)))),"") -> 630.929 | D152: 6.1324 | E152: =IF(D152<>"",IF(OR(B152<>"",INDIRECT("D153")=0),D152,0),"") -> 6.1324 | F152: 624.7966 | H152: =IF(D152<>"",IF(AND(B152<>"",B151<>""),$I$4+H151,VLOOKUP(INDEX($B$7:B151,MATCH(9.99999999999999E+307,$B$7:B151)),$B$7:H151,7,FALSE)+$I$4),"") -> -0.004195431473 | I152: 624.7924046
A153: TP61 | B153: 5.2126 | C153: =IF(D153<>"",IF(OR(B153<>"",INDIRECT("D154")=0),IF(B152<>"",F152+B152,VLOOKUP(INDEX($B$7:B152,MATCH(9.99999999999999E+307,$B$7:B152)),$B$7:F152,5,FALSE)+INDEX($B$7:B152,MATCH(9.99999999999999E+307,$B$7:B152))),(VLOOKUP(INDEX($B$7:B152,MATCH(9.99999999999999E+307,$B$7:B152)),$B$7:F152,5,FALSE))+(INDEX($B$7:B152,MATCH(9.99999999999999E+307,$B$7:B152)))),"") -> 630.9711 | D153: 4.1044 | E153: =IF(D153<>"",IF(OR(B153<>"",INDIRECT("D154")=0),D153,0),"") -> 4.1044 | F153: 626.8667 | H153: =IF(D153<>"",IF(AND(B153<>"",B152<>""),$I$4+H152,VLOOKUP(INDEX($B$7:B152,MATCH(9.99999999999999E+307,$B$7:B152)),$B$7:H152,7,FALSE)+$I$4),"") -> -0.004224365483 | I153: 626.8624756
A154: SV102 | B154: 6.0165 | C154: =IF(D154<>"",IF(OR(B154<>"",INDIRECT("D155")=0),IF(B153<>"",F153+B153,VLOOKUP(INDEX($B$7:B153,MATCH(9.99999999999999E+307,$B$7:B153)),$B$7:F153,5,FALSE)+INDEX($B$7:B153,MATCH(9.99999999999999E+307,$B$7:B153))),(VLOOKUP(INDEX($B$7:B153,MATCH(9.99999999999999E+307,$B$7:B153)),$B$7:F153,5,FALSE))+(INDEX($B$7:B153,MATCH(9.99999999999999E+307,$B$7:B153)))),"") -> 632.0793 | D154: 3.1759 | E154: =IF(D154<>"",IF(OR(B154<>"",INDIRECT("D155")=0),D154,0),"") -> 3.1759 | F154: 628.9034 | H154: =IF(D154<>"",IF(AND(B154<>"",B153<>""),$I$4+H153,VLOOKUP(INDEX($B$7:B153,MATCH(9.99999999999999E+307,$B$7:B153)),$B$7:H153,7,FALSE)+$I$4),"") -> -0.004253299493 | I154: 628.8991467
A155: TP62 | B155: 7.2107 | C155: =IF(D155<>"",IF(OR(B155<>"",INDIRECT("D156")=0),IF(B154<>"",F154+B154,VLOOKUP(INDEX($B$7:B154,MATCH(9.99999999999999E+307,$B$7:B154)),$B$7:F154,5,FALSE)+INDEX($B$7:B154,MATCH(9.99999999999999E+307,$B$7:B154))),(VLOOKUP(INDEX($B$7:B154,MATCH(9.99999999999999E+307,$B$7:B154)),$B$7:F154,5,FALSE))+(INDEX($B$7:B154,MATCH(9.99999999999999E+307,$B$7:B154)))),"") -> 634.9199 | D155: 2.8813 | E155: =IF(D155<>"",IF(OR(B155<>"",INDIRECT("D156")=0),D155,0),"") -> 2.8813 | F155: 632.0386 | H155: =IF(D155<>"",IF(AND(B155<>"",B154<>""),$I$4+H154,VLOOKUP(INDEX($B$7:B154,MATCH(9.99999999999999E+307,$B$7:B154)),$B$7:H154,7,FALSE)+$I$4),"") -> -0.004282233503 | I155: 632.0343178
A156: TP63 | B156: 6.4673 | C156: =IF(D156<>"",IF(OR(B156<>"",INDIRECT("D157")=0),IF(B155<>"",F155+B155,VLOOKUP(INDEX($B$7:B155,MATCH(9.99999999999999E+307,$B$7:B155)),$B$7:F155,5,FALSE)+INDEX($B$7:B155,MATCH(9.99999999999999E+307,$B$7:B155))),(VLOOKUP(INDEX($B$7:B155,MATCH(9.99999999999999E+307,$B$7:B155)),$B$7:F155,5,FALSE))+(INDEX($B$7:B155,MATCH(9.99999999999999E+307,$B$7:B155)))),"") -> 639.2493 | D156: 3.3985 | E156: =IF(D156<>"",IF(OR(B156<>"",INDIRECT("D157")=0),D156,0),"") -> 3.3985 | F156: 635.8508 | H156: =IF(D156<>"",IF(AND(B156<>"",B155<>""),$I$4+H155,VLOOKUP(INDEX($B$7:B155,MATCH(9.99999999999999E+307,$B$7:B155)),$B$7:H155,7,FALSE)+$I$4),"") -> -0.004311167513 | I156: 635.8464888
A157: TP64 | B157: 4.6126 | C157: =IF(D157<>"",IF(OR(B157<>"",INDIRECT("D158")=0),IF(B156<>"",F156+B156,VLOOKUP(INDEX($B$7:B156,MATCH(9.99999999999999E+307,$B$7:B156)),$B$7:F156,5,FALSE)+INDEX($B$7:B156,MATCH(9.99999999999999E+307,$B$7:B156))),(VLOOKUP(INDEX($B$7:B156,MATCH(9.99999999999999E+307,$B$7:B156)),$B$7:F156,5,FALSE))+(INDEX($B$7:B156,MATCH(9.99999999999999E+307,$B$7:B156)))),"") -> 642.3181 | D157: 5.0994 | E157: =IF(D157<>"",IF(OR(B157<>"",INDIRECT("D158")=0),D157,0),"") -> 5.0994 | F157: 637.2187 | H157: =IF(D157<>"",IF(AND(B157<>"",B156<>""),$I$4+H156,VLOOKUP(INDEX($B$7:B156,MATCH(9.99999999999999E+307,$B$7:B156)),$B$7:H156,7,FALSE)+$I$4),"") -> -0.004340101524 | I157: 637.2143599
A158: TP65 | B158: 6.2323 | C158: =IF(D158<>"",IF(OR(B158<>"",INDIRECT("D159")=0),IF(B157<>"",F157+B157,VLOOKUP(INDEX($B$7:B157,MATCH(9.99999999999999E+307,$B$7:B157)),$B$7:F157,5,FALSE)+INDEX($B$7:B157,MATCH(9.99999999999999E+307,$B$7:B157))),(VLOOKUP(INDEX($B$7:B157,MATCH(9.99999999999999E+307,$B$7:B157)),$B$7:F157,5,FALSE))+(INDEX($B$7:B157,MATCH(9.99999999999999E+307,$B$7:B157)))),"") -> 641.8313 | D158: 5.0273 | E158: =IF(D158<>"",IF(OR(B158<>"",INDIRECT("D159")=0),D158,0),"") -> 5.0273 | F158: 636.804 | H158: =IF(D158<>"",IF(AND(B158<>"",B157<>""),$I$4+H157,VLOOKUP(INDEX($B$7:B157,MATCH(9.99999999999999E+307,$B$7:B157)),$B$7:H157,7,FALSE)+$I$4),"") -> -0.004369035534 | I158: 636.799631
A159: TP66 | B159: 4.5116 | C159: =IF(D159<>"",IF(OR(B159<>"",INDIRECT("D160")=0),IF(B158<>"",F158+B158,VLOOKUP(INDEX($B$7:B158,MATCH(9.99999999999999E+307,$B$7:B158)),$B$7:F158,5,FALSE)+INDEX($B$7:B158,MATCH(9.99999999999999E+307,$B$7:B158))),(VLOOKUP(INDEX($B$7:B158,MATCH(9.99999999999999E+307,$B$7:B158)),$B$7:F158,5,FALSE))+(INDEX($B$7:B158,MATCH(9.99999999999999E+307,$B$7:B158)))),"") -> 643.0363 | D159: 4.2277 | E159: =IF(D159<>"",IF(OR(B159<>"",INDIRECT("D160")=0),D159,0),"") -> 4.2277 | F159: 638.8086 | H159: =IF(D159<>"",IF(AND(B159<>"",B158<>""),$I$4+H158,VLOOKUP(INDEX($B$7:B158,MATCH(9.99999999999999E+307,$B$7:B158)),$B$7:H158,7,FALSE)+$I$4),"") -> -0.004397969544 | I159: 638.804202
A160: SV11 | B160: 4.4853 | C160: =IF(D160<>"",IF(OR(B160<>"",INDIRECT("D161")=0),IF(B159<>"",F159+B159,VLOOKUP(INDEX($B$7:B159,MATCH(9.99999999999999E+307,$B$7:B159)),$B$7:F159,5,FALSE)+INDEX($B$7:B159,MATCH(9.99999999999999E+307,$B$7:B159))),(VLOOKUP(INDEX($B$7:B159,MATCH(9.99999999999999E+307,$B$7:B159)),$B$7:F159,5,FALSE))+(INDEX($B$7:B159,MATCH(9.99999999999999E+307,$B$7:B159)))),"") -> 643.3202 | D160: 6.7972 | E160: =IF(D160<>"",IF(OR(B160<>"",INDIRECT("D161")=0),D160,0),"") -> 6.7972 | F160: 636.523 | H160: =IF(D160<>"",IF(AND(B160<>"",B159<>""),$I$4+H159,VLOOKUP(INDEX($B$7:B159,MATCH(9.99999999999999E+307,$B$7:B159)),$B$7:H159,7,FALSE)+$I$4),"") -> -0.004426903554 | I160: 636.5185731
A161: TP67 | B161: 3.3752 | C161: =IF(D161<>"",IF(OR(B161<>"",INDIRECT("D162")=0),IF(B160<>"",F160+B160,VLOOKUP(INDEX($B$7:B160,MATCH(9.99999999999999E+307,$B$7:B160)),$B$7:F160,5,FALSE)+INDEX($B$7:B160,MATCH(9.99999999999999E+307,$B$7:B160))),(VLOOKUP(INDEX($B$7:B160,MATCH(9.99999999999999E+307,$B$7:B160)),$B$7:F160,5,FALSE))+(INDEX($B$7:B160,MATCH(9.99999999999999E+307,$B$7:B160)))),"") -> 641.0083 | D161: 4.7284 | E161: =IF(D161<>"",IF(OR(B161<>"",INDIRECT("D162")=0),D161,0),"") -> 4.7284 | F161: 636.2799 | H161: =IF(D161<>"",IF(AND(B161<>"",B160<>""),$I$4+H160,VLOOKUP(INDEX($B$7:B160,MATCH(9.99999999999999E+307,$B$7:B160)),$B$7:H160,7,FALSE)+$I$4),"") -> -0.004455837564 | I161: 636.2754442
A162: SV10 | B162: 5.7761 | C162: =IF(D162<>"",IF(OR(B162<>"",INDIRECT("D163")=0),IF(B161<>"",F161+B161,VLOOKUP(INDEX($B$7:B161,MATCH(9.99999999999999E+307,$B$7:B161)),$B$7:F161,5,FALSE)+INDEX($B$7:B161,MATCH(9.99999999999999E+307,$B$7:B161))),(VLOOKUP(INDEX($B$7:B161,MATCH(9.99999999999999E+307,$B$7:B161)),$B$7:F161,5,FALSE))+(INDEX($B$7:B161,MATCH(9.99999999999999E+307,$B$7:B161)))),"") -> 639.6551 | D162: 6.3761 | E162: =IF(D162<>"",IF(OR(B162<>"",INDIRECT("D163")=0),D162,0),"") -> 6.3761 | F162: 633.279 | H162: =IF(D162<>"",IF(AND(B162<>"",B161<>""),$I$4+H161,VLOOKUP(INDEX($B$7:B161,MATCH(9.99999999999999E+307,$B$7:B161)),$B$7:H161,7,FALSE)+$I$4),"") -> -0.004484771574 | I162: 633.2745152
A163: TP68 | B163: 5.3531 | C163: =IF(D163<>"",IF(OR(B163<>"",INDIRECT("D164")=0),IF(B162<>"",F162+B162,VLOOKUP(INDEX($B$7:B162,MATCH(9.99999999999999E+307,$B$7:B162)),$B$7:F162,5,FALSE)+INDEX($B$7:B162,MATCH(9.99999999999999E+307,$B$7:B162))),(VLOOKUP(INDEX($B$7:B162,MATCH(9.99999999999999E+307,$B$7:B162)),$B$7:F162,5,FALSE))+(INDEX($B$7:B162,MATCH(9.99999999999999E+307,$B$7:B162)))),"") -> 639.0551 | D163: 4.1098 | E163: =IF(D163<>"",IF(OR(B163<>"",INDIRECT("D164")=0),D163,0),"") -> 4.1098 | F163: 634.9453 | H163: =IF(D163<>"",IF(AND(B163<>"",B162<>""),$I$4+H162,VLOOKUP(INDEX($B$7:B162,MATCH(9.99999999999999E+307,$B$7:B162)),$B$7:H162,7,FALSE)+$I$4),"") -> -0.004513705585 | I163: 634.9407863
A164: TP69 | B164: 6.1516 | C164: =IF(D164<>"",IF(OR(B164<>"",INDIRECT("D165")=0),IF(B163<>"",F163+B163,VLOOKUP(INDEX($B$7:B163,MATCH(9.99999999999999E+307,$B$7:B163)),$B$7:F163,5,FALSE)+INDEX($B$7:B163,MATCH(9.99999999999999E+307,$B$7:B163))),(VLOOKUP(INDEX($B$7:B163,MATCH(9.99999999999999E+307,$B$7:B163)),$B$7:F163,5,FALSE))+(INDEX($B$7:B163,MATCH(9.99999999999999E+307,$B$7:B163)))),"") -> 640.2984 | D164: 2.7361 | E164: =IF(D164<>"",IF(OR(B164<>"",INDIRECT("D165")=0),D164,0),"") -> 2.7361 | F164: 637.5623 | H164: =IF(D164<>"",IF(AND(B164<>"",B163<>""),$I$4+H163,VLOOKUP(INDEX($B$7:B163,MATCH(9.99999999999999E+307,$B$7:B163)),$B$7:H163,7,FALSE)+$I$4),"") -> -0.004542639595 | I164: 637.5577574
A165: TP70 | B165: 6.1237 | C165: =IF(D165<>"",IF(OR(B165<>"",INDIRECT("D166")=0),IF(B164<>"",F164+B164,VLOOKUP(INDEX($B$7:B164,MATCH(9.99999999999999E+307,$B$7:B164)),$B$7:F164,5,FALSE)+INDEX($B$7:B164,MATCH(9.99999999999999E+307,$B$7:B164))),(VLOOKUP(INDEX($B$7:B164,MATCH(9.99999999999999E+307,$B$7:B164)),$B$7:F164,5,FALSE))+(INDEX($B$7:B164,MATCH(9.99999999999999E+307,$B$7:B164)))),"") -> 643.7139 | D165: 3.1596 | E165: =IF(D165<>"",IF(OR(B165<>"",INDIRECT("D166")=0),D165,0),"") -> 3.1596 | F165: 640.5543 | H165: =IF(D165<>"",IF(AND(B165<>"",B164<>""),$I$4+H164,VLOOKUP(INDEX($B$7:B164,MATCH(9.99999999999999E+307,$B$7:B164)),$B$7:H164,7,FALSE)+$I$4),"") -> -0.004571573605 | I165: 640.5497284
A166: TP71 | B166: 6.0661 | C166: =IF(D166<>"",IF(OR(B166<>"",INDIRECT("D167")=0),IF(B165<>"",F165+B165,VLOOKUP(INDEX($B$7:B165,MATCH(9.99999999999999E+307,$B$7:B165)),$B$7:F165,5,FALSE)+INDEX($B$7:B165,MATCH(9.99999999999999E+307,$B$7:B165))),(VLOOKUP(INDEX($B$7:B165,MATCH(9.99999999999999E+307,$B$7:B165)),$B$7:F165,5,FALSE))+(INDEX($B$7:B165,MATCH(9.99999999999999E+307,$B$7:B165)))),"") -> 646.678 | D166: 3.4077 | E166: =IF(D166<>"",IF(OR(B166<>"",INDIRECT("D167")=0),D166,0),"") -> 3.4077 | F166: 643.2703 | H166: =IF(D166<>"",IF(AND(B166<>"",B165<>""),$I$4+H165,VLOOKUP(INDEX($B$7:B165,MATCH(9.99999999999999E+307,$B$7:B165)),$B$7:H165,7,FALSE)+$I$4),"") -> -0.004600507615 | I166: 643.2656995
A167: TP72 | B167: 6.3037 | C167: =IF(D167<>"",IF(OR(B167<>"",INDIRECT("D168")=0),IF(B166<>"",F166+B166,VLOOKUP(INDEX($B$7:B166,MATCH(9.99999999999999E+307,$B$7:B166)),$B$7:F166,5,FALSE)+INDEX($B$7:B166,MATCH(9.99999999999999E+307,$B$7:B166))),(VLOOKUP(INDEX($B$7:B166,MATCH(9.99999999999999E+307,$B$7:B166)),$B$7:F166,5,FALSE))+(INDEX($B$7:B166,MATCH(9.99999999999999E+307,$B$7:B166)))),"") -> 649.3364 | D167: 2.7212 | E167: =IF(D167<>"",IF(OR(B167<>"",INDIRECT("D168")=0),D167,0),"") -> 2.7212 | F167: 646.6152 | H167: =IF(D167<>"",IF(AND(B167<>"",B166<>""),$I$4+H166,VLOOKUP(INDEX($B$7:B166,MATCH(9.99999999999999E+307,$B$7:B166)),$B$7:H166,7,FALSE)+$I$4),"") -> -0.004629441625 | I167: 646.6105706
A168: TP73 | B168: 7.7121 | C168: =IF(D168<>"",IF(OR(B168<>"",INDIRECT("D169")=0),IF(B167<>"",F167+B167,VLOOKUP(INDEX($B$7:B167,MATCH(9.99999999999999E+307,$B$7:B167)),$B$7:F167,5,FALSE)+INDEX($B$7:B167,MATCH(9.99999999999999E+307,$B$7:B167))),(VLOOKUP(INDEX($B$7:B167,MATCH(9.99999999999999E+307,$B$7:B167)),$B$7:F167,5,FALSE))+(INDEX($B$7:B167,MATCH(9.99999999999999E+307,$B$7:B167)))),"") -> 652.9189 | D168: 0.2467 | E168: =IF(D168<>"",IF(OR(B168<>"",INDIRECT("D169")=0),D168,0),"") -> 0.2467 | F168: 652.6722 | H168: =IF(D168<>"",IF(AND(B168<>"",B167<>""),$I$4+H167,VLOOKUP(INDEX($B$7:B167,MATCH(9.99999999999999E+307,$B$7:B167)),$B$7:H167,7,FALSE)+$I$4),"") -> -0.004658375635 | I168: 652.6675416
A169: SV9 | B169: 5.6847 | C169: =IF(D169<>"",IF(OR(B169<>"",INDIRECT("D170")=0),IF(B168<>"",F168+B168,VLOOKUP(INDEX($B$7:B168,MATCH(9.99999999999999E+307,$B$7:B168)),$B$7:F168,5,FALSE)+INDEX($B$7:B168,MATCH(9.99999999999999E+307,$B$7:B168))),(VLOOKUP(INDEX($B$7:B168,MATCH(9.99999999999999E+307,$B$7:B168)),$B$7:F168,5,FALSE))+(INDEX($B$7:B168,MATCH(9.99999999999999E+307,$B$7:B168)))),"") -> 660.3843 | D169: 2.9002 | E169: =IF(D169<>"",IF(OR(B169<>"",INDIRECT("D170")=0),D169,0),"") -> 2.9002 | F169: 657.4841 | H169: =IF(D169<>"",IF(AND(B169<>"",B168<>""),$I$4+H168,VLOOKUP(INDEX($B$7:B168,MATCH(9.99999999999999E+307,$B$7:B168)),$B$7:H168,7,FALSE)+$I$4),"") -> -0.004687309645 | I169: 657.4794127
A170: TP74 | B170: 1.8911 | C170: =IF(D170<>"",IF(OR(B170<>"",INDIRECT("D171")=0),IF(B169<>"",F169+B169,VLOOKUP(INDEX($B$7:B169,MATCH(9.99999999999999E+307,$B$7:B169)),$B$7:F169,5,FALSE)+INDEX($B$7:B169,MATCH(9.99999999999999E+307,$B$7:B169))),(VLOOKUP(INDEX($B$7:B169,MATCH(9.99999999999999E+307,$B$7:B169)),$B$7:F169,5,FALSE))+(INDEX($B$7:B169,MATCH(9.99999999999999E+307,$B$7:B169)))),"") -> 663.1688 | D170: 4.4594 | E170: =IF(D170<>"",IF(OR(B170<>"",INDIRECT("D171")=0),D170,0),"") -> 4.4594 | F170: 658.7094 | H170: =IF(D170<>"",IF(AND(B170<>"",B169<>""),$I$4+H169,VLOOKUP(INDEX($B$7:B169,MATCH(9.99999999999999E+307,$B$7:B169)),$B$7:H169,7,FALSE)+$I$4),"") -> -0.004716243656 | I170: 658.7046838
A171: SV8 | B171: 2.596 | C171: =IF(D171<>"",IF(OR(B171<>"",INDIRECT("D172")=0),IF(B170<>"",F170+B170,VLOOKUP(INDEX($B$7:B170,MATCH(9.99999999999999E+307,$B$7:B170)),$B$7:F170,5,FALSE)+INDEX($B$7:B170,MATCH(9.99999999999999E+307,$B$7:B170))),(VLOOKUP(INDEX($B$7:B170,MATCH(9.99999999999999E+307,$B$7:B170)),$B$7:F170,5,FALSE))+(INDEX($B$7:B170,MATCH(9.99999999999999E+307,$B$7:B170)))),"") -> 660.6005 | D171: 8.5867 | E171: =IF(D171<>"",IF(OR(B171<>"",INDIRECT("D172")=0),D171,0),"") -> 8.5867 | F171: 652.0138 | H171: =IF(D171<>"",IF(AND(B171<>"",B170<>""),$I$4+H170,VLOOKUP(INDEX($B$7:B170,MATCH(9.99999999999999E+307,$B$7:B170)),$B$7:H170,7,FALSE)+$I$4),"") -> -0.004745177666 | I171: 652.0090548
A172: TP75 | B172: 0.9929 | C172: =IF(D172<>"",IF(OR(B172<>"",INDIRECT("D173")=0),IF(B171<>"",F171+B171,VLOOKUP(INDEX($B$7:B171,MATCH(9.99999999999999E+307,$B$7:B171)),$B$7:F171,5,FALSE)+INDEX($B$7:B171,MATCH(9.99999999999999E+307,$B$7:B171))),(VLOOKUP(INDEX($B$7:B171,MATCH(9.99999999999999E+307,$B$7:B171)),$B$7:F171,5,FALSE))+(INDEX($B$7:B171,MATCH(9.99999999999999E+307,$B$7:B171)))),"") -> 654.6098 | D172: 7.0971 | E172: =IF(D172<>"",IF(OR(B172<>"",INDIRECT("D173")=0),D172,0),"") -> 7.0971 | F172: 647.5127 | H172: =IF(D172<>"",IF(AND(B172<>"",B171<>""),$I$4+H171,VLOOKUP(INDEX($B$7:B171,MATCH(9.99999999999999E+307,$B$7:B171)),$B$7:H171,7,FALSE)+$I$4),"") -> -0.004774111676 | I172: 647.5079259
A173: TP76 | B173: 3.7807 | C173: =IF(D173<>"",IF(OR(B173<>"",INDIRECT("D174")=0),IF(B172<>"",F172+B172,VLOOKUP(INDEX($B$7:B172,MATCH(9.99999999999999E+307,$B$7:B172)),$B$7:F172,5,FALSE)+INDEX($B$7:B172,MATCH(9.99999999999999E+307,$B$7:B172))),(VLOOKUP(INDEX($B$7:B172,MATCH(9.99999999999999E+307,$B$7:B172)),$B$7:F172,5,FALSE))+(INDEX($B$7:B172,MATCH(9.99999999999999E+307,$B$7:B172)))),"") -> 648.5056 | D173: 8.7183 | E173: =IF(D173<>"",IF(OR(B173<>"",INDIRECT("D174")=0),D173,0),"") -> 8.7183 | F173: 639.7873 | H173: =IF(D173<>"",IF(AND(B173<>"",B172<>""),$I$4+H172,VLOOKUP(INDEX($B$7:B172,MATCH(9.99999999999999E+307,$B$7:B172)),$B$7:H172,7,FALSE)+$I$4),"") -> -0.004803045686 | I173: 639.782497
A174: TP77 | B174: 6.8575 | C174: =IF(D174<>"",IF(OR(B174<>"",INDIRECT("D175")=0),IF(B173<>"",F173+B173,VLOOKUP(INDEX($B$7:B173,MATCH(9.99999999999999E+307,$B$7:B173)),$B$7:F173,5,FALSE)+INDEX($B$7:B173,MATCH(9.99999999999999E+307,$B$7:B173))),(VLOOKUP(INDEX($B$7:B173,MATCH(9.99999999999999E+307,$B$7:B173)),$B$7:F173,5,FALSE))+(INDEX($B$7:B173,MATCH(9.99999999999999E+307,$B$7:B173)))),"") -> 643.568 | D174: 7.1451 | E174: =IF(D174<>"",IF(OR(B174<>"",INDIRECT("D175")=0),D174,0),"") -> 7.1451 | F174: 636.4229 | H174: =IF(D174<>"",IF(AND(B174<>"",B173<>""),$I$4+H173,VLOOKUP(INDEX($B$7:B173,MATCH(9.99999999999999E+307,$B$7:B173)),$B$7:H173,7,FALSE)+$I$4),"") -> -0.004831979696 | I174: 636.418068
A175: TP78 | B175: 6.3834 | C175: =IF(D175<>"",IF(OR(B175<>"",INDIRECT("D176")=0),IF(B174<>"",F174+B174,VLOOKUP(INDEX($B$7:B174,MATCH(9.99999999999999E+307,$B$7:B174)),$B$7:F174,5,FALSE)+INDEX($B$7:B174,MATCH(9.99999999999999E+307,$B$7:B174))),(VLOOKUP(INDEX($B$7:B174,MATCH(9.99999999999999E+307,$B$7:B174)),$B$7:F174,5,FALSE))+(INDEX($B$7:B174,MATCH(9.99999999999999E+307,$B$7:B174)))),"") -> 643.2804 | D175: 2.6715 | E175: =IF(D175<>"",IF(OR(B175<>"",INDIRECT("D176")=0),D175,0),"") -> 2.6715 | F175: 640.6089 | H175: =IF(D175<>"",IF(AND(B175<>"",B174<>""),$I$4+H174,VLOOKUP(INDEX($B$7:B174,MATCH(9.99999999999999E+307,$B$7:B174)),$B$7:H174,7,FALSE)+$I$4),"") -> -0.004860913706 | I175: 640.6040391
A176: TP79 | B176: 6.1935 | C176: =IF(D176<>"",IF(OR(B176<>"",INDIRECT("D177")=0),IF(B175<>"",F175+B175,VLOOKUP(INDEX($B$7:B175,MATCH(9.99999999999999E+307,$B$7:B175)),$B$7:F175,5,FALSE)+INDEX($B$7:B175,MATCH(9.99999999999999E+307,$B$7:B175))),(VLOOKUP(INDEX($B$7:B175,MATCH(9.99999999999999E+307,$B$7:B175)),$B$7:F175,5,FALSE))+(INDEX($B$7:B175,MATCH(9.99999999999999E+307,$B$7:B175)))),"") -> 646.9923 | D176: 2.6027 | E176: =IF(D176<>"",IF(OR(B176<>"",INDIRECT("D177")=0),D176,0),"") -> 2.6027 | F176: 644.3896 | H176: =IF(D176<>"",IF(AND(B176<>"",B175<>""),$I$4+H175,VLOOKUP(INDEX($B$7:B175,MATCH(9.99999999999999E+307,$B$7:B175)),$B$7:H175,7,FALSE)+$I$4),"") -> -0.004889847717 | I176: 644.3847102
A177: TP80 | B177: 4.6584 | C177: =IF(D177<>"",IF(OR(B177<>"",INDIRECT("D178")=0),IF(B176<>"",F176+B176,VLOOKUP(INDEX($B$7:B176,MATCH(9.99999999999999E+307,$B$7:B176)),$B$7:F176,5,FALSE)+INDEX($B$7:B176,MATCH(9.99999999999999E+307,$B$7:B176))),(VLOOKUP(INDEX($B$7:B176,MATCH(9.99999999999999E+307,$B$7:B176)),$B$7:F176,5,FALSE))+(INDEX($B$7:B176,MATCH(9.99999999999999E+307,$B$7:B176)))),"") -> 650.5831 | D177: 2.4846 | E177: =IF(D177<>"",IF(OR(B177<>"",INDIRECT("D178")=0),D177,0),"") -> 2.4846 | F177: 648.0985 | H177: =IF(D177<>"",IF(AND(B177<>"",B176<>""),$I$4+H176,VLOOKUP(INDEX($B$7:B176,MATCH(9.99999999999999E+307,$B$7:B176)),$B$7:H176,7,FALSE)+$I$4),"") -> -0.004918781727 | I177: 648.0935812
A178: SV7 | B178: 5.5083 | C178: =IF(D178<>"",IF(OR(B178<>"",INDIRECT("D179")=0),IF(B177<>"",F177+B177,VLOOKUP(INDEX($B$7:B177,MATCH(9.99999999999999E+307,$B$7:B177)),$B$7:F177,5,FALSE)+INDEX($B$7:B177,MATCH(9.99999999999999E+307,$B$7:B177))),(VLOOKUP(INDEX($B$7:B177,MATCH(9.99999999999999E+307,$B$7:B177)),$B$7:F177,5,FALSE))+(INDEX($B$7:B177,MATCH(9.99999999999999E+307,$B$7:B177)))),"") -> 652.7569 | D178: 4.547 | E178: =IF(D178<>"",IF(OR(B178<>"",INDIRECT("D179")=0),D178,0),"") -> 4.547 | F178: 648.2099 | H178: =IF(D178<>"",IF(AND(B178<>"",B177<>""),$I$4+H177,VLOOKUP(INDEX($B$7:B177,MATCH(9.99999999999999E+307,$B$7:B177)),$B$7:H177,7,FALSE)+$I$4),"") -> -0.004947715737 | I178: 648.2049523
A179: TP81 | B179: 4.3752 | C179: =IF(D179<>"",IF(OR(B179<>"",INDIRECT("D180")=0),IF(B178<>"",F178+B178,VLOOKUP(INDEX($B$7:B178,MATCH(9.99999999999999E+307,$B$7:B178)),$B$7:F178,5,FALSE)+INDEX($B$7:B178,MATCH(9.99999999999999E+307,$B$7:B178))),(VLOOKUP(INDEX($B$7:B178,MATCH(9.99999999999999E+307,$B$7:B178)),$B$7:F178,5,FALSE))+(INDEX($B$7:B178,MATCH(9.99999999999999E+307,$B$7:B178)))),"") -> 653.7182 | D179: 3.8134 | E179: =IF(D179<>"",IF(OR(B179<>"",INDIRECT("D180")=0),D179,0),"") -> 3.8134 | F179: 649.9048 | H179: =IF(D179<>"",IF(AND(B179<>"",B178<>""),$I$4+H178,VLOOKUP(INDEX($B$7:B178,MATCH(9.99999999999999E+307,$B$7:B178)),$B$7:H178,7,FALSE)+$I$4),"") -> -0.004976649747 | I179: 649.8998234
A180: SV101 | B180: 4.5363 | C180: =IF(D180<>"",IF(OR(B180<>"",INDIRECT("D181")=0),IF(B179<>"",F179+B179,VLOOKUP(INDEX($B$7:B179,MATCH(9.99999999999999E+307,$B$7:B179)),$B$7:F179,5,FALSE)+INDEX($B$7:B179,MATCH(9.99999999999999E+307,$B$7:B179))),(VLOOKUP(INDEX($B$7:B179,MATCH(9.99999999999999E+307,$B$7:B179)),$B$7:F179,5,FALSE))+(INDEX($B$7:B179,MATCH(9.99999999999999E+307,$B$7:B179)))),"") -> 654.28 | D180: 4.9743 | E180: =IF(D180<>"",IF(OR(B180<>"",INDIRECT("D181")=0),D180,0),"") -> 4.9743 | F180: 649.3057 | H180: =IF(D180<>"",IF(AND(B180<>"",B179<>""),$I$4+H179,VLOOKUP(INDEX($B$7:B179,MATCH(9.99999999999999E+307,$B$7:B179)),$B$7:H179,7,FALSE)+$I$4),"") -> -0.005005583757 | I180: 649.3006944
A181: TP82 | B181: 1.632 | C181: =IF(D181<>"",IF(OR(B181<>"",INDIRECT("D182")=0),IF(B180<>"",F180+B180,VLOOKUP(INDEX($B$7:B180,MATCH(9.99999999999999E+307,$B$7:B180)),$B$7:F180,5,FALSE)+INDEX($B$7:B180,MATCH(9.99999999999999E+307,$B$7:B180))),(VLOOKUP(INDEX($B$7:B180,MATCH(9.99999999999999E+307,$B$7:B180)),$B$7:F180,5,FALSE))+(INDEX($B$7:B180,MATCH(9.99999999999999E+307,$B$7:B180)))),"") -> 653.842 | D181: 7.2847 | E181: =IF(D181<>"",IF(OR(B181<>"",INDIRECT("D182")=0),D181,0),"") -> 7.2847 | F181: 646.5573 | H181: =IF(D181<>"",IF(AND(B181<>"",B180<>""),$I$4+H180,VLOOKUP(INDEX($B$7:B180,MATCH(9.99999999999999E+307,$B$7:B180)),$B$7:H180,7,FALSE)+$I$4),"") -> -0.005034517767 | I181: 646.5522655
A182: TP83 | B182: 2.2122 | C182: =IF(D182<>"",IF(OR(B182<>"",INDIRECT("D183")=0),IF(B181<>"",F181+B181,VLOOKUP(INDEX($B$7:B181,MATCH(9.99999999999999E+307,$B$7:B181)),$B$7:F181,5,FALSE)+INDEX($B$7:B181,MATCH(9.99999999999999E+307,$B$7:B181))),(VLOOKUP(INDEX($B$7:B181,MATCH(9.99999999999999E+307,$B$7:B181)),$B$7:F181,5,FALSE))+(INDEX($B$7:B181,MATCH(9.99999999999999E+307,$B$7:B181)))),"") -> 648.1893 | D182: 6.2079 | E182: =IF(D182<>"",IF(OR(B182<>"",INDIRECT("D183")=0),D182,0),"") -> 6.2079 | F182: 641.9814 | H182: =IF(D182<>"",IF(AND(B182<>"",B181<>""),$I$4+H181,VLOOKUP(INDEX($B$7:B181,MATCH(9.99999999999999E+307,$B$7:B181)),$B$7:H181,7,FALSE)+$I$4),"") -> -0.005063451777 | I182: 641.9763365
A183: TP84 | B183: 4.5347 | C183: =IF(D183<>"",IF(OR(B183<>"",INDIRECT("D184")=0),IF(B182<>"",F182+B182,VLOOKUP(INDEX($B$7:B182,MATCH(9.99999999999999E+307,$B$7:B182)),$B$7:F182,5,FALSE)+INDEX($B$7:B182,MATCH(9.99999999999999E+307,$B$7:B182))),(VLOOKUP(INDEX($B$7:B182,MATCH(9.99999999999999E+307,$B$7:B182)),$B$7:F182,5,FALSE))+(INDEX($B$7:B182,MATCH(9.99999999999999E+307,$B$7:B182)))),"") -> 644.1936 | D183: 5.8759 | E183: =IF(D183<>"",IF(OR(B183<>"",INDIRECT("D184")=0),D183,0),"") -> 5.8759 | F183: 638.3177 | H183: =IF(D183<>"",IF(AND(B183<>"",B182<>""),$I$4+H182,VLOOKUP(INDEX($B$7:B182,MATCH(9.99999999999999E+307,$B$7:B182)),$B$7:H182,7,FALSE)+$I$4),"") -> -0.005092385788 | I183: 638.3126076
A184: TP85 | B184: 5.056 | C184: =IF(D184<>"",IF(OR(B184<>"",INDIRECT("D185")=0),IF(B183<>"",F183+B183,VLOOKUP(INDEX($B$7:B183,MATCH(9.99999999999999E+307,$B$7:B183)),$B$7:F183,5,FALSE)+INDEX($B$7:B183,MATCH(9.99999999999999E+307,$B$7:B183))),(VLOOKUP(INDEX($B$7:B183,MATCH(9.99999999999999E+307,$B$7:B183)),$B$7:F183,5,FALSE))+(INDEX($B$7:B183,MATCH(9.99999999999999E+307,$B$7:B183)))),"") -> 642.8524 | D184: 6.8374 | E184: =IF(D184<>"",IF(OR(B184<>"",INDIRECT("D185")=0),D184,0),"") -> 6.8374 | F184: 636.015 | H184: =IF(D184<>"",IF(AND(B184<>"",B183<>""),$I$4+H183,VLOOKUP(INDEX($B$7:B183,MATCH(9.99999999999999E+307,$B$7:B183)),$B$7:H183,7,FALSE)+$I$4),"") -> -0.005121319798 | I184: 636.0098787
A185: TP86 | B185: 5.6647 | C185: =IF(D185<>"",IF(OR(B185<>"",INDIRECT("D186")=0),IF(B184<>"",F184+B184,VLOOKUP(INDEX($B$7:B184,MATCH(9.99999999999999E+307,$B$7:B184)),$B$7:F184,5,FALSE)+INDEX($B$7:B184,MATCH(9.99999999999999E+307,$B$7:B184))),(VLOOKUP(INDEX($B$7:B184,MATCH(9.99999999999999E+307,$B$7:B184)),$B$7:F184,5,FALSE))+(INDEX($B$7:B184,MATCH(9.99999999999999E+307,$B$7:B184)))),"") -> 641.071 | D185: 6.2057 | E185: =IF(D185<>"",IF(OR(B185<>"",INDIRECT("D186")=0),D185,0),"") -> 6.2057 | F185: 634.8653 | H185: =IF(D185<>"",IF(AND(B185<>"",B184<>""),$I$4+H184,VLOOKUP(INDEX($B$7:B184,MATCH(9.99999999999999E+307,$B$7:B184)),$B$7:H184,7,FALSE)+$I$4),"") -> -0.005150253808 | I185: 634.8601497
A186: TP87 | B186: 6.2573 | C186: =IF(D186<>"",IF(OR(B186<>"",INDIRECT("D187")=0),IF(B185<>"",F185+B185,VLOOKUP(INDEX($B$7:B185,MATCH(9.99999999999999E+307,$B$7:B185)),$B$7:F185,5,FALSE)+INDEX($B$7:B185,MATCH(9.99999999999999E+307,$B$7:B185))),(VLOOKUP(INDEX($B$7:B185,MATCH(9.99999999999999E+307,$B$7:B185)),$B$7:F185,5,FALSE))+(INDEX($B$7:B185,MATCH(9.99999999999999E+307,$B$7:B185)))),"") -> 640.53 | D186: 5.6132 | E186: =IF(D186<>"",IF(OR(B186<>"",INDIRECT("D187")=0),D186,0),"") -> 5.6132 | F186: 634.9168 | H186: =IF(D186<>"",IF(AND(B186<>"",B185<>""),$I$4+H185,VLOOKUP(INDEX($B$7:B185,MATCH(9.99999999999999E+307,$B$7:B185)),$B$7:H185,7,FALSE)+$I$4),"") -> -0.005179187818 | I186: 634.9116208
A187: SV6 | B187: 6.4588 | C187: =IF(D187<>"",IF(OR(B187<>"",INDIRECT("D188")=0),IF(B186<>"",F186+B186,VLOOKUP(INDEX($B$7:B186,MATCH(9.99999999999999E+307,$B$7:B186)),$B$7:F186,5,FALSE)+INDEX($B$7:B186,MATCH(9.99999999999999E+307,$B$7:B186))),(VLOOKUP(INDEX($B$7:B186,MATCH(9.99999999999999E+307,$B$7:B186)),$B$7:F186,5,FALSE))+(INDEX($B$7:B186,MATCH(9.99999999999999E+307,$B$7:B186)))),"") -> 641.1741 | D187: 6.2808 | E187: =IF(D187<>"",IF(OR(B187<>"",INDIRECT("D188")=0),D187,0),"") -> 6.2808 | F187: 634.8933 | H187: =IF(D187<>"",IF(AND(B187<>"",B186<>""),$I$4+H186,VLOOKUP(INDEX($B$7:B186,MATCH(9.99999999999999E+307,$B$7:B186)),$B$7:H186,7,FALSE)+$I$4),"") -> -0.005208121828 | I187: 634.8880919
A188: TP88 | B188: 5.8392 | C188: =IF(D188<>"",IF(OR(B188<>"",INDIRECT("D189")=0),IF(B187<>"",F187+B187,VLOOKUP(INDEX($B$7:B187,MATCH(9.99999999999999E+307,$B$7:B187)),$B$7:F187,5,FALSE)+INDEX($B$7:B187,MATCH(9.99999999999999E+307,$B$7:B187))),(VLOOKUP(INDEX($B$7:B187,MATCH(9.99999999999999E+307,$B$7:B187)),$B$7:F187,5,FALSE))+(INDEX($B$7:B187,MATCH(9.99999999999999E+307,$B$7:B187)))),"") -> 641.3521 | D188: 5.198 | E188: =IF(D188<>"",IF(OR(B188<>"",INDIRECT("D189")=0),D188,0),"") -> 5.198 | F188: 636.1541 | H188: =IF(D188<>"",IF(AND(B188<>"",B187<>""),$I$4+H187,VLOOKUP(INDEX($B$7:B187,MATCH(9.99999999999999E+307,$B$7:B187)),$B$7:H187,7,FALSE)+$I$4),"") -> -0.005237055838 | I188: 636.1488629
A189: SV5 | B189: 5.6543 | C189: =IF(D189<>"",IF(OR(B189<>"",INDIRECT("D190")=0),IF(B188<>"",F188+B188,VLOOKUP(INDEX($B$7:B188,MATCH(9.99999999999999E+307,$B$7:B188)),$B$7:F188,5,FALSE)+INDEX($B$7:B188,MATCH(9.99999999999999E+307,$B$7:B188))),(VLOOKUP(INDEX($B$7:B188,MATCH(9.99999999999999E+307,$B$7:B188)),$B$7:F188,5,FALSE))+(INDEX($B$7:B188,MATCH(9.99999999999999E+307,$B$7:B188)))),"") -> 641.9933 | D189: 4.4942 | E189: =IF(D189<>"",IF(OR(B189<>"",INDIRECT("D190")=0),D189,0),"") -> 4.4942 | F189: 637.4991 | H189: =IF(D189<>"",IF(AND(B189<>"",B188<>""),$I$4+H188,VLOOKUP(INDEX($B$7:B188,MATCH(9.99999999999999E+307,$B$7:B188)),$B$7:H188,7,FALSE)+$I$4),"") -> -0.005265989849 | I189: 637.493834
A190: TP11 | B190: 6.8493 | C190: =IF(D190<>"",IF(OR(B190<>"",INDIRECT("D191")=0),IF(B189<>"",F189+B189,VLOOKUP(INDEX($B$7:B189,MATCH(9.99999999999999E+307,$B$7:B189)),$B$7:F189,5,FALSE)+INDEX($B$7:B189,MATCH(9.99999999999999E+307,$B$7:B189))),(VLOOKUP(INDEX($B$7:B189,MATCH(9.99999999999999E+307,$B$7:B189)),$B$7:F189,5,FALSE))+(INDEX($B$7:B189,MATCH(9.99999999999999E+307,$B$7:B189)))),"") -> 643.1534 | D190: 5.2125 | E190: =IF(D190<>"",IF(OR(B190<>"",INDIRECT("D191")=0),D190,0),"") -> 5.2125 | F190: 637.9409 | H190: =IF(D190<>"",IF(AND(B190<>"",B189<>""),$I$4+H189,VLOOKUP(INDEX($B$7:B189,MATCH(9.99999999999999E+307,$B$7:B189)),$B$7:H189,7,FALSE)+$I$4),"") -> -0.005294923859 | I190: 637.9356051
A191: TP12 | B191: 5.8979 | C191: =IF(D191<>"",IF(OR(B191<>"",INDIRECT("D192")=0),IF(B190<>"",F190+B190,VLOOKUP(INDEX($B$7:B190,MATCH(9.99999999999999E+307,$B$7:B190)),$B$7:F190,5,FALSE)+INDEX($B$7:B190,MATCH(9.99999999999999E+307,$B$7:B190))),(VLOOKUP(INDEX($B$7:B190,MATCH(9.99999999999999E+307,$B$7:B190)),$B$7:F190,5,FALSE))+(INDEX($B$7:B190,MATCH(9.99999999999999E+307,$B$7:B190)))),"") -> 644.7902 | D191: 4.2189 | E191: =IF(D191<>"",IF(OR(B191<>"",INDIRECT("D192")=0),D191,0),"") -> 4.2189 | F191: 640.5713 | H191: =IF(D191<>"",IF(AND(B191<>"",B190<>""),$I$4+H190,VLOOKUP(INDEX($B$7:B190,MATCH(9.99999999999999E+307,$B$7:B190)),$B$7:H190,7,FALSE)+$I$4),"") -> -0.005323857869 | I191: 640.5659761
A192: TP13 | B192: 4.4806 | C192: =IF(D192<>"",IF(OR(B192<>"",INDIRECT("D193")=0),IF(B191<>"",F191+B191,VLOOKUP(INDEX($B$7:B191,MATCH(9.99999999999999E+307,$B$7:B191)),$B$7:F191,5,FALSE)+INDEX($B$7:B191,MATCH(9.99999999999999E+307,$B$7:B191))),(VLOOKUP(INDEX($B$7:B191,MATCH(9.99999999999999E+307,$B$7:B191)),$B$7:F191,5,FALSE))+(INDEX($B$7:B191,MATCH(9.99999999999999E+307,$B$7:B191)))),"") -> 646.4692 | D192: 6.8607 | E192: =IF(D192<>"",IF(OR(B192<>"",INDIRECT("D193")=0),D192,0),"") -> 6.8607 | F192: 639.6085 | H192: =IF(D192<>"",IF(AND(B192<>"",B191<>""),$I$4+H191,VLOOKUP(INDEX($B$7:B191,MATCH(9.99999999999999E+307,$B$7:B191)),$B$7:H191,7,FALSE)+$I$4),"") -> -0.005352791879 | I192: 639.6031472
A193: TP14 | B193: 2.6893 | C193: =IF(D193<>"",IF(OR(B193<>"",INDIRECT("D194")=0),IF(B192<>"",F192+B192,VLOOKUP(INDEX($B$7:B192,MATCH(9.99999999999999E+307,$B$7:B192)),$B$7:F192,5,FALSE)+INDEX($B$7:B192,MATCH(9.99999999999999E+307,$B$7:B192))),(VLOOKUP(INDEX($B$7:B192,MATCH(9.99999999999999E+307,$B$7:B192)),$B$7:F192,5,FALSE))+(INDEX($B$7:B192,MATCH(9.99999999999999E+307,$B$7:B192)))),"") -> 644.0891 | D193: 6.8878 | E193: =IF(D193<>"",IF(OR(B193<>"",INDIRECT("D194")=0),D193,0),"") -> 6.8878 | F193: 637.2013 | H193: =IF(D193<>"",IF(AND(B193<>"",B192<>""),$I$4+H192,VLOOKUP(INDEX($B$7:B192,MATCH(9.99999999999999E+307,$B$7:B192)),$B$7:H192,7,FALSE)+$I$4),"") -> -0.005381725889 | I193: 637.1959183
A194: TP15 | B194: 2.1001 | C194: =IF(D194<>"",IF(OR(B194<>"",INDIRECT("D195")=0),IF(B193<>"",F193+B193,VLOOKUP(INDEX($B$7:B193,MATCH(9.99999999999999E+307,$B$7:B193)),$B$7:F193,5,FALSE)+INDEX($B$7:B193,MATCH(9.99999999999999E+307,$B$7:B193))),(VLOOKUP(INDEX($B$7:B193,MATCH(9.99999999999999E+307,$B$7:B193)),$B$7:F193,5,FALSE))+(INDEX($B$7:B193,MATCH(9.99999999999999E+307,$B$7:B193)))),"") -> 639.8906 | D194: 7.8215 | E194: =IF(D194<>"",IF(OR(B194<>"",INDIRECT("D195")=0),D194,0),"") -> 7.8215 | F194: 632.0691 | H194: =IF(D194<>"",IF(AND(B194<>"",B193<>""),$I$4+H193,VLOOKUP(INDEX($B$7:B193,MATCH(9.99999999999999E+307,$B$7:B193)),$B$7:H193,7,FALSE)+$I$4),"") -> -0.005410659899 | I194: 632.0636893
A195: SV4 | B195: 4.3423 | C195: =IF(D195<>"",IF(OR(B195<>"",INDIRECT("D196")=0),IF(B194<>"",F194+B194,VLOOKUP(INDEX($B$7:B194,MATCH(9.99999999999999E+307,$B$7:B194)),$B$7:F194,5,FALSE)+INDEX($B$7:B194,MATCH(9.99999999999999E+307,$B$7:B194))),(VLOOKUP(INDEX($B$7:B194,MATCH(9.99999999999999E+307,$B$7:B194)),$B$7:F194,5,FALSE))+(INDEX($B$7:B194,MATCH(9.99999999999999E+307,$B$7:B194)))),"") -> 634.1692 | D195: 8.0957 | E195: =IF(D195<>"",IF(OR(B195<>"",INDIRECT("D196")=0),D195,0),"") -> 8.0957 | F195: 626.0735 | H195: =IF(D195<>"",IF(AND(B195<>"",B194<>""),$I$4+H194,VLOOKUP(INDEX($B$7:B194,MATCH(9.99999999999999E+307,$B$7:B194)),$B$7:H194,7,FALSE)+$I$4),"") -> -0.00543959391 | I195: 626.0680604
A196: SV3 | B196: 4.6085 | C196: =IF(D196<>"",IF(OR(B196<>"",INDIRECT("D197")=0),IF(B195<>"",F195+B195,VLOOKUP(INDEX($B$7:B195,MATCH(9.99999999999999E+307,$B$7:B195)),$B$7:F195,5,FALSE)+INDEX($B$7:B195,MATCH(9.99999999999999E+307,$B$7:B195))),(VLOOKUP(INDEX($B$7:B195,MATCH(9.99999999999999E+307,$B$7:B195)),$B$7:F195,5,FALSE))+(INDEX($B$7:B195,MATCH(9.99999999999999E+307,$B$7:B195)))),"") -> 630.4158 | D196: 7.0723 | E196: =IF(D196<>"",IF(OR(B196<>"",INDIRECT("D197")=0),D196,0),"") -> 7.0723 | F196: 623.3435 | H196: =IF(D196<>"",IF(AND(B196<>"",B195<>""),$I$4+H195,VLOOKUP(INDEX($B$7:B195,MATCH(9.99999999999999E+307,$B$7:B195)),$B$7:H195,7,FALSE)+$I$4),"") -> -0.00546852792 | I196: 623.3380315
A197: TP16 | B197: 4.0202 | C197: =IF(D197<>"",IF(OR(B197<>"",INDIRECT("D198")=0),IF(B196<>"",F196+B196,VLOOKUP(INDEX($B$7:B196,MATCH(9.99999999999999E+307,$B$7:B196)),$B$7:F196,5,FALSE)+INDEX($B$7:B196,MATCH(9.99999999999999E+307,$B$7:B196))),(VLOOKUP(INDEX($B$7:B196,MATCH(9.99999999999999E+307,$B$7:B196)),$B$7:F196,5,FALSE))+(INDEX($B$7:B196,MATCH(9.99999999999999E+307,$B$7:B196)))),"") -> 627.952 | D197: 5.4232 | E197: =IF(D197<>"",IF(OR(B197<>"",INDIRECT("D198")=0),D197,0),"") -> 5.4232 | F197: 622.5288 | H197: =IF(D197<>"",IF(AND(B197<>"",B196<>""),$I$4+H196,VLOOKUP(INDEX($B$7:B196,MATCH(9.99999999999999E+307,$B$7:B196)),$B$7:H196,7,FALSE)+$I$4),"") -> -0.00549746193 | I197: 622.5233025
A198: TP17 | B198: 6.0155 | C198: =IF(D198<>"",IF(OR(B198<>"",INDIRECT("D199")=0),IF(B197<>"",F197+B197,VLOOKUP(INDEX($B$7:B197,MATCH(9.99999999999999E+307,$B$7:B197)),$B$7:F197,5,FALSE)+INDEX($B$7:B197,MATCH(9.99999999999999E+307,$B$7:B197))),(VLOOKUP(INDEX($B$7:B197,MATCH(9.99999999999999E+307,$B$7:B197)),$B$7:F197,5,FALSE))+(INDEX($B$7:B197,MATCH(9.99999999999999E+307,$B$7:B197)))),"") -> 626.549 | D198: 6.117 | E198: =IF(D198<>"",IF(OR(B198<>"",INDIRECT("D199")=0),D198,0),"") -> 6.117 | F198: 620.432 | H198: =IF(D198<>"",IF(AND(B198<>"",B197<>""),$I$4+H197,VLOOKUP(INDEX($B$7:B197,MATCH(9.99999999999999E+307,$B$7:B197)),$B$7:H197,7,FALSE)+$I$4),"") -> -0.00552639594 | I198: 620.4264736
A199: TP18 | B199: 6.0721 | C199: =IF(D199<>"",IF(OR(B199<>"",INDIRECT("D200")=0),IF(B198<>"",F198+B198,VLOOKUP(INDEX($B$7:B198,MATCH(9.99999999999999E+307,$B$7:B198)),$B$7:F198,5,FALSE)+INDEX($B$7:B198,MATCH(9.99999999999999E+307,$B$7:B198))),(VLOOKUP(INDEX($B$7:B198,MATCH(9.99999999999999E+307,$B$7:B198)),$B$7:F198,5,FALSE))+(INDEX($B$7:B198,MATCH(9.99999999999999E+307,$B$7:B198)))),"") -> 626.4475 | D199: 4.2986 | E199: =IF(D199<>"",IF(OR(B199<>"",INDIRECT("D200")=0),D199,0),"") -> 4.2986 | F199: 622.1489 | H199: =IF(D199<>"",IF(AND(B199<>"",B198<>""),$I$4+H198,VLOOKUP(INDEX($B$7:B198,MATCH(9.99999999999999E+307,$B$7:B198)),$B$7:H198,7,FALSE)+$I$4),"") -> -0.00555532995 | I199: 622.1433447
A200: TP19 | B200: 6.2971 | C200: =IF(D200<>"",IF(OR(B200<>"",INDIRECT("D201")=0),IF(B199<>"",F199+B199,VLOOKUP(INDEX($B$7:B199,MATCH(9.99999999999999E+307,$B$7:B199)),$B$7:F199,5,FALSE)+INDEX($B$7:B199,MATCH(9.99999999999999E+307,$B$7:B199))),(VLOOKUP(INDEX($B$7:B199,MATCH(9.99999999999999E+307,$B$7:B199)),$B$7:F199,5,FALSE))+(INDEX($B$7:B199,MATCH(9.99999999999999E+307,$B$7:B199)))),"") -> 628.221 | D200: 4.4067 | E200: =IF(D200<>"",IF(OR(B200<>"",INDIRECT("D201")=0),D200,0),"") -> 4.4067 | F200: 623.8143 | H200: =IF(D200<>"",IF(AND(B200<>"",B199<>""),$I$4+H199,VLOOKUP(INDEX($B$7:B199,MATCH(9.99999999999999E+307,$B$7:B199)),$B$7:H199,7,FALSE)+$I$4),"") -> -0.00558426396 | I200: 623.8087157
... 4 more rows

Sheet TIN
A1: Vertical TIN Accuracy Test
A2: Example Survey Check Shot Data Compared to TIN for Accuracy Class A
A3: (Units in U.S. Survey Feet)
A4: Point ID | B4: Easting | C4: Northing | D4: Check Z | E4: TIN Z | F4: Dz | G4: Dz^2
A5: LC30 | B5: 2320871.37 | C5: 628034.997 | D5: 1194.525 | E5: 1194.53 | F5: =E5-D5 -> 0.005 | G5: =F5^2 -> 2.5e-05
A6: LC29 | B6: 2320865.568 | C6: 628033.832 | D6: 1194.554 | E6: 1194.56 | F6: =E6-D6 -> 0.006 | G6: =F6^2 -> 3.6e-05
A7: LC28 | B7: 2320859.752 | C7: 628032.681 | D7: 1194.649 | E7: 1194.66 | F7: 0.011 | G7: 0.000121
A8: LC27 | B8: 2320853.382 | C8: 628031.508 | D8: 1194.665 | E8: 1194.69 | F8: =E8-D8 -> 0.025 | G8: =F8^2 -> 0.000625
A9: LC26 | B9: 2320846.92 | C9: 628030.264 | D9: 1194.777 | E9: 1194.8 | F9: 0.023 | G9: 0.000529
A10: LC25 | B10: 2320839.6 | C10: 628028.777 | D10: 1194.861 | E10: 1194.87 | F10: 0.009 | G10: 8.1e-05
A11: LC24 | B11: 2320831.251 | C11: 628027.297 | D11: 1194.925 | E11: 1194.93 | F11: 0.005 | G11: 2.5e-05
A12: LC23 | B12: 2320824.158 | C12: 628025.857 | D12: 1195.071 | E12: 1195.08 | F12: 0.009 | G12: 8.1e-05
A13: LC22 | B13: 2320815.891 | C13: 628024.224 | D13: 1195.133 | E13: 1195.14 | F13: 0.007 | G13: 4.9e-05
A14: LC21 | B14: 2320808.377 | C14: 628022.7 | D14: 1195.25 | E14: 1195.28 | F14: 0.03 | G14: 0.0009
A15: LC20 | B15: 2320799.636 | C15: 628021.068 | D15: 1195.37 | E15: 1195.38 | F15: 0.01 | G15: 0.0001
A16: LC19 | B16: 2320791.654 | C16: 628019.501 | D16: 1195.488 | E16: 1195.49 | F16: 0.002 | G16: 4e-06
A17: LC18 | B17: 2320783.406 | C17: 628017.83 | D17: 1195.639 | E17: 1195.64 | F17: 0.001 | G17: 1e-06
A18: LC17 | B18: 2320775.569 | C18: 628016.33 | D18: 1195.774 | E18: 1195.78 | F18: 0.006 | G18: 3.6e-05
A19: LC16 | B19: 2320765.627 | C19: 628014.379 | D19: 1195.934 | E19: 1195.96 | F19: 0.026 | G19: 0.000676
A20: LC15 | B20: 2320756.632 | C20: 628012.522 | D20: 1196.119 | E20: 1196.13 | F20: 0.011 | G20: 0.000121
A21: LC14 | B21: 2320746.097 | C21: 628010.487 | D21: 1196.361 | E21: 1196.36 | F21: -0.001 | G21: 1e-06
A22: LC13 | B22: 2320736.033 | C22: 628008.519 | D22: 1196.632 | E22: 1196.61 | F22: -0.022 | G22: 0.000484
A23: LC12 | B23: 2320725.223 | C23: 628006.552 | D23: 1196.853 | E23: 1196.83 | F23: -0.023 | G23: 0.000529
A24: LC11 | B24: 2320714.442 | C24: 628004.417 | D24: 1197.028 | E24: 1197.05 | F24: 0.022 | G24: 0.000484
A25: LC10 | B25: 2320703.682 | C25: 628002.352 | D25: 1197.237 | E25: 1197.23 | F25: -0.007 | G25: 4.9e-05
A26: LC9 | B26: 2320693.309 | C26: 628000.285 | D26: 1197.399 | E26: 1197.4 | F26: 0.001 | G26: 1e-06
A27: LC8 | B27: 2320682.596 | C27: 627998.183 | D27: 1197.548 | E27: 1197.54 | F27: -0.008 | G27: 6.4e-05
A28: LC7 | B28: 2320671.344 | C28: 627995.981 | D28: 1197.731 | E28: 1197.72 | F28: -0.011 | G28: 0.000121
F29: 0 | G29: 0
F30: 0 | G30: 0
F31: 0 | G31: 0
F32: 0 | G32: 0
F33: 0 | G33: 0
F34: 0 | G34: 0
F35: 0 | G35: 0
F36: 0 | G36: 0
F37: 0 | G37: 0
F38: 0 | G38: 0
F39: 0 | G39: 0
F40: 0 | G40: 0
F41: 0 | G41: 0
F42: 0 | G42: 0
F43: 0 | G43: 0
F44: 0 | G44: 0
F45: 0 | G45: 0
F46: 0 | G46: 0
F47: 0 | G47: 0
F48: 0 | G48: 0
F49: 0 | G49: 0
F50: 0 | G50: 0
F51: 0 | G51: 0
F52: 0 | G52: 0
F53: 0 | G53: 0
F54: 0 | G54: 0
F55: 0 | G55: 0
F56: 0 | G56: 0
F57: 0 | G57: 0
F58: 0 | G58: 0
F59: 0 | G59: 0
F60: 0 | G60: 0
F61: 0 | G61: 0
F62: 0 | G62: 0
F63: 0 | G63: 0
F64: 0 | G64: 0
F65: 0 | G65: 0
F66: 0 | G66: 0
F67: 0 | G67: 0
F68: 0 | G68: 0
F69: 0 | G69: 0
F70: 0 | G70: 0
F71: 0 | G71: 0
F72: =E72-D72 -> 0 | G72: =F72^2 -> 0
F73: 0 | G73: 0
F74: 0 | G74: 0
F75: 0 | G75: 0
F76: 0 | G76: 0
F77: 0 | G77: 0
F78: 0 | G78: 0
F79: 0 | G79: 0
F80: 0 | G80: 0
F81: 0 | G81: 0
F82: 0 | G82: 0
F83: 0 | G83: 0
F84: 0 | G84: 0
F85: 0 | G85: 0
F86: 0 | G86: 0
F87: 0 | G87: 0
F88: 0 | G88: 0
F89: 0 | G89: 0
F90: 0 | G90: 0
F91: 0 | G91: 0
F92: 0 | G92: 0
F93: 0 | G93: 0
F94: 0 | G94: 0
F95: 0 | G95: 0
F96: 0 | G96: 0
F97: 0 | G97: 0
F98: 0 | G98: 0
F99: =E99-D99 -> 0 | G99: =F99^2 -> 0
F100: 0 | G100: 0
F101: 0 | G101: 0
F102: 0 | G102: 0
F103: 0 | G103: 0
F104: 0 | G104: 0
E105: Sum Dz= | F105: =SUM($F$5:$F104) -> 0.137
A106: Spreadsheet user is responsible to verify all calculations. This spreadsheet is not guaranteed to provide accurate results. | E106: Sum Dz^2= | G106: =SUM($G$5:$G104) -> 0.005143
E107: N= | F107: =COUNT($D$5:$D104) -> 24

Sheet DATABASE
A1: Name | B1: Point ID | C1: Northing | D1: Easting | E1: Elevation | F1: Feature | G1: Condition | H1: Latitude | I1: Longitude | J1: Ellips Ht | K1: Datum_Adj | L1: Geoid | M1: Method | N1: Date | O1: County | P1: Route | Q1: District | R1: PID
